Workbook

Sheet SPRAWOZDANIE CZĘŚĆ I
A1: SPRAWOZDANIE Z REALIZACJI ZADAŃ ORGANIZATORA W RAMACH FUNDUSZU ROZWOJU PRZEWOZÓW AUTOBUSOWYCH
A2: ZA OKRES | C2: ROKU | D2: 2023
A4: INFORMACJE IDENTYFIKACYJNE ORGANIZATORA
A5: NIP ORGANIZATORA
A6: Pełna nazwa Organizatora (dane uzupełniane automatycznie) | B6: =IFERROR(VLOOKUP($B$5,Arkusz2!$A$2:$K$203,2,0),"") ->  | C6: Rodzaj Organizatora (dane uzupełniane automatycznie) | D6: =IFERROR(VLOOKUP($B$5,Arkusz2!$A$2:$K$203,11,0),"") -> 
A7: Adres (dane uzupełniane automatycznie) | B7: =IFERROR(IF(B10=0,D8,B10),"") ->  | C7: Nr budynku (dane uzupełniane automatycznie) | D7: =IFERROR(VLOOKUP($B$5,Arkusz2!$A$2:$K$203,10,0),"") -> 
A8: Kod pocztowy (dane uzupełniane automatycznie) | B8: =IFERROR(VLOOKUP(B$5,Arkusz2!$A$2:$K$203,6,0),"") ->  | C8: Miejscowość (dane uzupełniane automatycznie) | D8: =IFERROR(VLOOKUP($B$5,Arkusz2!$A$2:$K$203,8,0),"") -> 
A9: Telefon | C9: Adres e-mail
B10: =VLOOKUP(B$5,Arkusz2!$A$2:$K$203,9,0) -> 
A11: DANE OSOBY WSKAZANEJ DO KONTAKTOWANIA SIĘ W SPRAWIE SPRAWOZDANIA
A12: Imię i Nazwisko | C12: Komórka organizacyjna
A13: Adres e-mail | C13: Telefon
A15: DANE INFORMACYJNE
A16: Łączna liczba linii autobusowych o charakterze użyteczności publicznej, które objęte są sprawozdaniem | D16: ='SPRAWOZDANIE CZĘŚĆ II'!A2 -> 0
A17: Łączna długość linii autobusowych o charakterze użyteczności publicznej, które objęte są sprawozdaniem | D17: ='SPRAWOZDANIE CZĘŚĆ II'!A4 -> 0
A18: Liczba operatorów, którzy są objęci sprawozdaniem | D18: =Arkusz1!K2 -> 0
A19: Łączna wielkość pracy eksploatacyjnej w okresie | D19: ='SPRAWOZDANIE CZĘŚĆ II'!A8 -> 0
A21: DANE FINANSOWE
A22: Kwota deficytu wszystkich linii komunikacyjnych w okresie | D22: ='SPRAWOZDANIE CZĘŚĆ II'!A10 -> 0
A23: Środki własne organizatora finansujące część deficytu wszystkich linii komunikacyjnych w wysokości nie mniejszej niż 10% | D23: ='SPRAWOZDANIE CZĘŚĆ II'!A12 -> 0
A24: Łączna kwota dopłaty w okresie | D24: =ROUND('SPRAWOZDANIE CZĘŚĆ II'!A14,2) -> 0
A25: Suma środków własnych organizatora finansujących część ceny usługi w wysokości nie mniejszej niż 10% oraz łączna kwota dopłaty w okresie | D25: =IF(D23+D24<=D22*1.06,D23+D24,"SPRAWDŹ POPRAWNOŚĆ WYLICZEŃ") -> 0
A26: Kwota niewykorzystanych środków Funduszu rozwoju przewozów autobusowych | D26: =IF('SPRAWOZDANIE CZĘŚĆ II'!A$16<0,-'SPRAWOZDANIE CZĘŚĆ II'!A$16,0) -> 0
A27: Różnica pomiędzy rzeczywistą a przewidywaną kwotą dopłaty ze środków Funduszu w okresie (NIEDOPŁATA) | D27: =IF('SPRAWOZDANIE CZĘŚĆ II'!A$16>0,-'SPRAWOZDANIE CZĘŚĆ II'!A$16,0) -> 0
A28: Kwota rekompensaty przekazana przez Organizatora Operatorowi, w tym:
A29: ze środków Funduszu
A31: OŚWIADCZENIA
A32: OŚWIADCZAM, ŻE ZAPOZNAŁEM SIĘ Z PRZEPISAMI USTAWY Z DNIA 16 MAJA 2019 R. O FUNDUSZU ROZWOJU PRZEWOZÓW AUTOBUSOWYCH O CHARAKTERZE UŻYTECZNOŚCI PUBLICZNEJ ORAZ USTAWY Z DNIA 16 GRUDNIA 2010 R. O PUBLICZNYM TRANSPORCIE ZBIOROWYM A TAKŻE PRZEPISAMI WYKONAWCZYMI, ROZUMIEM ICH ZNACZENIE I ZNAM KONSEKWENCJE ZA ICH NIENALEŻYTE ZASTOSOWANIE
A33: OŚWIADCZAM, ŻE ZE ŚRODKÓW WŁASNYCH ORGANIZATORA ZOSTAŁA SFINANSOWANA CZĘŚĆ DEFICYTU KAŻDEJ LINII KOMUNIKACYJNEJ W WYSOKOŚCI NIE MNIEJSZEJ NIŻ 10%
A34: OŚWIADCZAM, ŻE WSZYSTKIE PRZEDSTAWIONE W SPRAWOZDANIU DANE SĄ RZETELNE I ZGODNE ZE STANEM FAKTYCZNYM

Sheet SPRAWOZDANIE CZĘŚĆ II
A1: WYKAZ LINII | J1: WYKAZ LINII | S1: WYKAZ LINII | AB1: WYKAZ LINII | AK1: WYKAZ LINII | AT1: WYKAZ LINII | BC1: WYKAZ LINII | BL1: WYKAZ LINII | BU1: WYKAZ LINII | CD1: WYKAZ LINII | CM1: WYKAZ LINII | CV1: WYKAZ LINII | DE1: WYKAZ LINII
A2: =SUM(3:3) -> 0 | B2: ILOŚĆ LINII | J2: =SUM(3:3) -> 0 | K2: ILOŚĆ LINII | S2: =SUM(3:3) -> 0 | T2: ILOŚĆ LINII | AB2: =SUM(3:3) -> 0 | AC2: ILOŚĆ LINII | AK2: =SUM(3:3) -> 0 | AL2: ILOŚĆ LINII | AT2: =SUM(3:3) -> 0 | AU2: ILOŚĆ LINII | BC2: =SUM(3:3) -> 0 | BD2: ILOŚĆ LINII | BL2: =SUM(3:3) -> 0 | BM2: ILOŚĆ LINII | BU2: =SUM(3:3) -> 0 | BV2: ILOŚĆ LINII | CD2: =SUM(3:3) -> 0 | CE2: ILOŚĆ LINII | CM2: =SUM(3:3) -> 0 | CN2: ILOŚĆ LINII | CV2: =SUM(3:3) -> 0 | CW2: ILOŚĆ LINII | DE2: =SUM(3:3) -> 0 | DF2: ILOŚĆ LINII
B3: =IF(B19="",0,1) -> 0 | K3: =IF(K19="",0,1) -> 0 | T3: =IF(T19="",0,1) -> 0 | AC3: =IF(AC19="",0,1) -> 0 | AL3: =IF(AL19="",0,1) -> 0 | AU3: =IF(AU19="",0,1) -> 0 | BD3: =IF(BD19="",0,1) -> 0 | BM3: =IF(BM19="",0,1) -> 0 | BV3: =IF(BV19="",0,1) -> 0 | CE3: =IF(CE19="",0,1) -> 0 | CN3: =IF(CN19="",0,1) -> 0 | CW3: =IF(CW19="",0,1) -> 0 | DF3: =IF(DF19="",0,1) -> 0
A4: =SUM(5:5) -> 0 | B4: DŁUGOŚĆ LINII | J4: =SUM(5:5) -> 0 | K4: DŁUGOŚĆ LINII | S4: =SUM(5:5) -> 0 | T4: DŁUGOŚĆ LINII | AB4: =SUM(5:5) -> 0 | AC4: DŁUGOŚĆ LINII | AK4: =SUM(5:5) -> 0 | AL4: DŁUGOŚĆ LINII | AT4: =SUM(5:5) -> 0 | AU4: DŁUGOŚĆ LINII | BC4: =SUM(5:5) -> 0 | BD4: DŁUGOŚĆ LINII | BL4: =SUM(5:5) -> 0 | BM4: DŁUGOŚĆ LINII | BU4: =SUM(5:5) -> 0 | BV4: DŁUGOŚĆ LINII | CD4: =SUM(5:5) -> 0 | CE4: DŁUGOŚĆ LINII | CM4: =SUM(5:5) -> 0 | CN4: DŁUGOŚĆ LINII | CV4: =SUM(5:5) -> 0 | CW4: DŁUGOŚĆ LINII | DE4: =SUM(5:5) -> 0 | DF4: DŁUGOŚĆ LINII
B5: =C21 -> 0 | K5: =L21 -> 0 | T5: =U21 -> 0 | AC5: =AD21 -> 0 | AL5: =AM21 -> 0 | AU5: =AV21 -> 0 | BD5: =BE21 -> 0 | BM5: =BN21 -> 0 | BV5: =BW21 -> 0 | CE5: =CF21 -> 0 | CN5: =CO21 -> 0 | CW5: =CX21 -> 0 | DF5: =DG21 -> 0
A6: =SUM(7:7) -> 0 | B6: LICZBA PRZEJAZDÓW | J6: =SUM(7:7) -> 0 | K6: LICZBA PRZEJAZDÓW | S6: =SUM(7:7) -> 0 | T6: LICZBA PRZEJAZDÓW | AB6: =SUM(7:7) -> 0 | AC6: LICZBA PRZEJAZDÓW | AK6: =SUM(7:7) -> 0 | AL6: LICZBA PRZEJAZDÓW | AT6: =SUM(7:7) -> 0 | AU6: LICZBA PRZEJAZDÓW | BC6: =SUM(7:7) -> 0 | BD6: LICZBA PRZEJAZDÓW | BL6: =SUM(7:7) -> 0 | BM6: LICZBA PRZEJAZDÓW | BU6: =SUM(7:7) -> 0 | BV6: LICZBA PRZEJAZDÓW | CD6: =SUM(7:7) -> 0 | CE6: LICZBA PRZEJAZDÓW | CM6: =SUM(7:7) -> 0 | CN6: LICZBA PRZEJAZDÓW | CV6: =SUM(7:7) -> 0 | CW6: LICZBA PRZEJAZDÓW | DE6: =SUM(7:7) -> 0 | DF6: LICZBA PRZEJAZDÓW
B7: =B33 -> 0 | K7: =K33 -> 0 | T7: =T33 -> 0 | AC7: =AC33 -> 0 | AL7: =AL33 -> 0 | AU7: =AU33 -> 0 | BD7: =BD33 -> 0 | BM7: =BM33 -> 0 | BV7: =BV33 -> 0 | CE7: =CE33 -> 0 | CN7: =CN33 -> 0 | CW7: =CW33 -> 0 | DF7: =DF33 -> 0
A8: =SUM(9:9) -> 0 | B8: WIELKOŚĆ PRACY | J8: =SUM(9:9) -> 0 | K8: WIELKOŚĆ PRACY | S8: =SUM(9:9) -> 0 | T8: WIELKOŚĆ PRACY | AB8: =SUM(9:9) -> 0 | AC8: WIELKOŚĆ PRACY | AK8: =SUM(9:9) -> 0 | AL8: WIELKOŚĆ PRACY | AT8: =SUM(9:9) -> 0 | AU8: WIELKOŚĆ PRACY | BC8: =SUM(9:9) -> 0 | BD8: WIELKOŚĆ PRACY | BL8: =SUM(9:9) -> 0 | BM8: WIELKOŚĆ PRACY | BU8: =SUM(9:9) -> 0 | BV8: WIELKOŚĆ PRACY | CD8: =SUM(9:9) -> 0 | CE8: WIELKOŚĆ PRACY | CM8: =SUM(9:9) -> 0 | CN8: WIELKOŚĆ PRACY | CV8: =SUM(9:9) -> 0 | CW8: WIELKOŚĆ PRACY | DE8: =SUM(9:9) -> 0 | DF8: WIELKOŚĆ PRACY
B9: =G29 -> 0 | K9: =P29 -> 0 | T9: =Y29 -> 0 | AC9: =AH29 -> 0 | AL9: =AQ29 -> 0 | AU9: =AZ29 -> 0 | BD9: =BI29 -> 0 | BM9: =BR29 -> 0 | BV9: =CA29 -> 0 | CE9: =CJ29 -> 0 | CN9: =CS29 -> 0 | CW9: =DB29 -> 0 | DF9: =DK29 -> 0
A10: =SUM(11:11) -> 0 | B10: KWOTA DEFICYTU | J10: =SUM(11:11) -> 0 | K10: KWOTA DEFICYTU | S10: =SUM(11:11) -> 0 | T10: KWOTA DEFICYTU | AB10: =SUM(11:11) -> 0 | AC10: KWOTA DEFICYTU | AK10: =SUM(11:11) -> 0 | AL10: KWOTA DEFICYTU | AT10: =SUM(11:11) -> 0 | AU10: KWOTA DEFICYTU | BC10: =SUM(11:11) -> 0 | BD10: KWOTA DEFICYTU | BL10: =SUM(11:11) -> 0 | BM10: KWOTA DEFICYTU | BU10: =SUM(11:11) -> 0 | BV10: KWOTA DEFICYTU | CD10: =SUM(11:11) -> 0 | CE10: KWOTA DEFICYTU | CM10: =SUM(11:11) -> 0 | CN10: KWOTA DEFICYTU | CV10: =SUM(11:11) -> 0 | CW10: KWOTA DEFICYTU | DE10: =SUM(11:11) -> 0 | DF10: KWOTA DEFICYTU
B11: =H52 -> BRAK DEFICYTU | K11: =Q52 -> BRAK DEFICYTU | T11: =Z52 -> BRAK DEFICYTU | AC11: =AI52 -> BRAK DEFICYTU | AL11: =AR52 -> BRAK DEFICYTU | AU11: =BA52 -> BRAK DEFICYTU | BD11: =BJ52 -> BRAK DEFICYTU | BM11: =BS52 -> BRAK DEFICYTU | BV11: =CB52 -> BRAK DEFICYTU | CE11: =CK52 -> BRAK DEFICYTU | CN11: =CT52 -> BRAK DEFICYTU | CW11: =DC52 -> BRAK DEFICYTU | DF11: =DL52 -> BRAK DEFICYTU
A12: =SUM(13:13) -> 0 | B12: KWOTA WŁASNA | J12: =SUM(13:13) -> 0 | K12: KWOTA WŁASNA | S12: =SUM(13:13) -> 0 | T12: KWOTA WŁASNA | AB12: =SUM(13:13) -> 0 | AC12: KWOTA WŁASNA | AK12: =SUM(13:13) -> 0 | AL12: KWOTA WŁASNA | AT12: =SUM(13:13) -> 0 | AU12: KWOTA WŁASNA | BC12: =SUM(13:13) -> 0 | BD12: KWOTA WŁASNA | BL12: =SUM(13:13) -> 0 | BM12: KWOTA WŁASNA | BU12: =SUM(13:13) -> 0 | BV12: KWOTA WŁASNA | CD12: =SUM(13:13) -> 0 | CE12: KWOTA WŁASNA | CM12: =SUM(13:13) -> 0 | CN12: KWOTA WŁASNA | CV12: =SUM(13:13) -> 0 | CW12: KWOTA WŁASNA | DE12: =SUM(13:13) -> 0 | DF12: KWOTA WŁASNA
B13: =H56 -> 0 | K13: =Q56 -> 0 | T13: =Z56 -> 0 | AC13: =AI56 -> 0 | AL13: =AR56 -> 0 | AU13: =BA56 -> 0 | BD13: =BJ56 -> 0 | BM13: =BS56 -> 0 | BV13: =CB56 -> 0 | CE13: =CK56 -> 0 | CN13: =CT56 -> 0 | CW13: =DC56 -> 0 | DF13: =DL56 -> 0
A14: =SUM(15:15) -> 0 | B14: KWOTA Z FUNDUSZU | J14: =SUM(15:15) -> 0 | K14: KWOTA Z FUNDUSZU | S14: =SUM(15:15) -> 0 | T14: KWOTA Z FUNDUSZU | AB14: =SUM(15:15) -> 0 | AC14: KWOTA Z FUNDUSZU | AK14: =SUM(15:15) -> 0 | AL14: KWOTA Z FUNDUSZU | AT14: =SUM(15:15) -> 0 | AU14: KWOTA Z FUNDUSZU | BC14: =SUM(15:15) -> 0 | BD14: KWOTA Z FUNDUSZU | BL14: =SUM(15:15) -> 0 | BM14: KWOTA Z FUNDUSZU | BU14: =SUM(15:15) -> 0 | BV14: KWOTA Z FUNDUSZU | CD14: =SUM(15:15) -> 0 | CE14: KWOTA Z FUNDUSZU | CM14: =SUM(15:15) -> 0 | CN14: KWOTA Z FUNDUSZU | CV14: =SUM(15:15) -> 0 | CW14: KWOTA Z FUNDUSZU | DE14: =SUM(15:15) -> 0 | DF14: KWOTA Z FUNDUSZU
B15: =H57 -> 0 | K15: =Q57 -> 0 | T15: =Z57 -> 0 | AC15: =AI57 -> 0 | AL15: =AR57 -> 0 | AU15: =BA57 -> 0 | BD15: =BJ57 -> 0 | BM15: =BS57 -> 0 | BV15: =CB57 -> 0 | CE15: =CK57 -> 0 | CN15: =CT57 -> 0 | CW15: =DC57 -> 0 | DF15: =DL57 -> 0
A16: =SUM(17:17) -> 0 | B16: RÓŻNICA | J16: =SUM(17:17) -> 0 | K16: RÓŻNICA | S16: =SUM(17:17) -> 0 | T16: RÓŻNICA | AB16: =SUM(17:17) -> 0 | AC16: RÓŻNICA | AK16: =SUM(17:17) -> 0 | AL16: RÓŻNICA | AT16: =SUM(17:17) -> 0 | AU16: RÓŻNICA | BC16: =SUM(17:17) -> 0 | BD16: RÓŻNICA | BL16: =SUM(17:17) -> 0 | BM16: RÓŻNICA | BU16: =SUM(17:17) -> 0 | BV16: RÓŻNICA | CD16: =SUM(17:17) -> 0 | CE16: RÓŻNICA | CM16: =SUM(17:17) -> 0 | CN16: RÓŻNICA | CV16: =SUM(17:17) -> 0 | CW16: RÓŻNICA | DE16: =SUM(17:17) -> 0 | DF16: RÓŻNICA
B17: =H60 -> 0 | K17: =Q60 -> 0 | T17: =Z60 -> 0 | AC17: =AI60 -> 0 | AL17: =AR60 -> 0 | AU17: =BA60 -> 0 | BD17: =BJ60 -> 0 | BM17: =BS60 -> 0 | BV17: =CB60 -> 0 | CE17: =CK60 -> 0 | CN17: =CT60 -> 0 | CW17: =DC60 -> 0 | DF17: =DL60 -> 0
A19: LP LINII KOMUNIKACYJNEJ | C19: NAZWA LINII KOMUNIKACYJNEJ | J19: LP LINII KOMUNIKACYJNEJ | L19: NAZWA LINII KOMUNIKACYJNEJ | S19: LP LINII KOMUNIKACYJNEJ | U19: NAZWA LINII KOMUNIKACYJNEJ | AB19: LP LINII KOMUNIKACYJNEJ | AD19: NAZWA LINII KOMUNIKACYJNEJ | AK19: LP LINII KOMUNIKACYJNEJ | AM19: NAZWA LINII KOMUNIKACYJNEJ | AT19: LP LINII KOMUNIKACYJNEJ | AV19: NAZWA LINII KOMUNIKACYJNEJ | BC19: LP LINII KOMUNIKACYJNEJ | BE19: NAZWA LINII KOMUNIKACYJNEJ | BL19: LP LINII KOMUNIKACYJNEJ | BN19: NAZWA LINII KOMUNIKACYJNEJ | BU19: LP LINII KOMUNIKACYJNEJ | BW19: NAZWA LINII KOMUNIKACYJNEJ | CD19: LP LINII KOMUNIKACYJNEJ | CF19: NAZWA LINII KOMUNIKACYJNEJ | CM19: LP LINII KOMUNIKACYJNEJ | CO19: NAZWA LINII KOMUNIKACYJNEJ | CV19: LP LINII KOMUNIKACYJNEJ | CX19: NAZWA LINII KOMUNIKACYJNEJ | DE19: LP LINII KOMUNIKACYJNEJ | DG19: NAZWA LINII KOMUNIKACYJNEJ
A21: DŁUGOŚĆ LINII KOMUNIKACYJNEJ W KM | J21: DŁUGOŚĆ LINII KOMUNIKACYJNEJ W KM | S21: DŁUGOŚĆ LINII KOMUNIKACYJNEJ W KM | AB21: DŁUGOŚĆ LINII KOMUNIKACYJNEJ W KM | AK21: DŁUGOŚĆ LINII KOMUNIKACYJNEJ W KM | AT21: DŁUGOŚĆ LINII KOMUNIKACYJNEJ W KM | BC21: DŁUGOŚĆ LINII KOMUNIKACYJNEJ W KM | BL21: DŁUGOŚĆ LINII KOMUNIKACYJNEJ W KM | BU21: DŁUGOŚĆ LINII KOMUNIKACYJNEJ W KM | CD21: DŁUGOŚĆ LINII KOMUNIKACYJNEJ W KM | CM21: DŁUGOŚĆ LINII KOMUNIKACYJNEJ W KM | CV21: DŁUGOŚĆ LINII KOMUNIKACYJNEJ W KM | DE21: DŁUGOŚĆ LINII KOMUNIKACYJNEJ W KM
A22: =MONTH(1&A24) -> 1 | B22: =IF(B23="","",A22) ->  | C22: =MONTH(1&C24) -> 1 | G22: =IF(G23="","",C22) ->  | J22: =MONTH(1&J24) -> 1 | K22: =IF(K23="","",J22) ->  | L22: =MONTH(1&L24) -> 1 | P22: =IF(P23="","",L22) ->  | S22: =MONTH(1&S24) -> 1 | T22: =IF(T23="","",S22) ->  | U22: =MONTH(1&U24) -> 1 | Y22: =IF(Y23="","",U22) ->  | AB22: =MONTH(1&AB24) -> 1 | AC22: =IF(AC23="","",AB22) ->  | AD22: =MONTH(1&AD24) -> 1 | AH22: =IF(AH23="","",AD22) ->  | AK22: =MONTH(1&AK24) -> 1 | AL22: =IF(AL23="","",AK22) ->  | AM22: =MONTH(1&AM24) -> 1 | AQ22: =IF(AQ23="","",AM22) ->  | AT22: =MONTH(1&AT24) -> 1 | AU22: =IF(AU23="","",AT22) ->  | AV22: =MONTH(1&AV24) -> 1 | AZ22: =IF(AZ23="","",AV22) ->  | BC22: =MONTH(1&BC24) -> 1 | BD22: =IF(BD23="","",BC22) ->  | BE22: =MONTH(1&BE24) -> 1 | BI22: =IF(BI23="","",BE22) ->  | BL22: =MONTH(1&BL24) -> 1 | BM22: =IF(BM23="","",BL22) ->  | BN22: =MONTH(1&BN24) -> 1 | BR22: =IF(BR23="","",BN22) ->  | BU22: =MONTH(1&BU24) -> 1 | BV22: =IF(BV23="","",BU22) ->  | BW22: =MONTH(1&BW24) -> 1 | CA22: =IF(CA23="","",BW22) ->  | CD22: =MONTH(1&CD24) -> 1 | CE22: =IF(CE23="","",CD22) ->  | CF22: =MONTH(1&CF24) -> 1 | CJ22: =IF(CJ23="","",CF22) ->  | CM22: =MONTH(1&CM24) -> 1 | CN22: =IF(CN23="","",CM22) ->  | CO22: =MONTH(1&CO24) -> 1 | CS22: =IF(CS23="","",CO22) ->  | CV22: =MONTH(1&CV24) -> 1 | CW22: =IF(CW23="","",CV22) ->  | CX22: =MONTH(1&CX24) -> 1 | DB22: =IF(DB23="","",CX22) ->  | DE22: =MONTH(1&DE24) -> 1 | DF22: =IF(DF23="","",DE22) ->  | DG22: =MONTH(1&DG24) -> 1 | DK22: =IF(DK23="","",DG22) -> 
A23: data rozpoczęcia ruchu w danym okresie | C23: data zakończenia ruchu w danym okresie | J23: data rozpoczęcia ruchu w danym okresie | L23: data zakończenia ruchu w danym okresie | S23: data rozpoczęcia ruchu w danym okresie | U23: data zakończenia ruchu w danym okresie | AB23: data rozpoczęcia ruchu w danym okresie | AD23: data zakończenia ruchu w danym okresie | AK23: data rozpoczęcia ruchu w danym okresie | AM23: data zakończenia ruchu w danym okresie | AT23: data rozpoczęcia ruchu w danym okresie | AV23: data zakończenia ruchu w danym okresie | BC23: data rozpoczęcia ruchu w danym okresie | BE23: data zakończenia ruchu w danym okresie | BL23: data rozpoczęcia ruchu w danym okresie | BN23: data zakończenia ruchu w danym okresie | BU23: data rozpoczęcia ruchu w danym okresie | BW23: data zakończenia ruchu w danym okresie | CD23: data rozpoczęcia ruchu w danym okresie | CF23: data zakończenia ruchu w danym okresie | CM23: data rozpoczęcia ruchu w danym okresie | CO23: data zakończenia ruchu w danym okresie | CV23: data rozpoczęcia ruchu w danym okresie | CX23: data zakończenia ruchu w danym okresie | DE23: data rozpoczęcia ruchu w danym okresie | DG23: data zakończenia ruchu w danym okresie
A24: =IF(B23="","",B24) ->  | B24: =TEXT(B23,"MMMM") -> styczeń | C24: =IF(G23="","",G24) ->  | G24: =TEXT(G23,"MMMM") -> styczeń | J24: =IF(K23="","",K24) ->  | K24: =TEXT(K23,"MMMM") -> styczeń | L24: =IF(P23="","",P24) ->  | P24: =TEXT(P23,"MMMM") -> styczeń | S24: =IF(T23="","",T24) ->  | T24: =TEXT(T23,"MMMM") -> styczeń | U24: =IF(Y23="","",Y24) ->  | Y24: =TEXT(Y23,"MMMM") -> styczeń | AB24: =IF(AC23="","",AC24) ->  | AC24: =TEXT(AC23,"MMMM") -> styczeń | AD24: =IF(AH23="","",AH24) ->  | AH24: =TEXT(AH23,"MMMM") -> styczeń | AK24: =IF(AL23="","",AL24) ->  | AL24: =TEXT(AL23,"MMMM") -> styczeń | AM24: =IF(AQ23="","",AQ24) ->  | AQ24: =TEXT(AQ23,"MMMM") -> styczeń | AT24: =IF(AU23="","",AU24) ->  | AU24: =TEXT(AU23,"MMMM") -> styczeń | AV24: =IF(AZ23="","",AZ24) ->  | AZ24: =TEXT(AZ23,"MMMM") -> styczeń | BC24: =IF(BD23="","",BD24) ->  | BD24: =TEXT(BD23,"MMMM") -> styczeń | BE24: =IF(BI23="","",BI24) ->  | BI24: =TEXT(BI23,"MMMM") -> styczeń | BL24: =IF(BM23="","",BM24) ->  | BM24: =TEXT(BM23,"MMMM") -> styczeń | BN24: =IF(BR23="","",BR24) ->  | BR24: =TEXT(BR23,"MMMM") -> styczeń | BU24: =IF(BV23="","",BV24) ->  | BV24: =TEXT(BV23,"MMMM") -> styczeń | BW24: =IF(CA23="","",CA24) ->  | CA24: =TEXT(CA23,"MMMM") -> styczeń | CD24: =IF(CE23="","",CE24) ->  | CE24: =TEXT(CE23,"MMMM") -> styczeń | CF24: =IF(CJ23="","",CJ24) ->  | CJ24: =TEXT(CJ23,"MMMM") -> styczeń | CM24: =IF(CN23="","",CN24) ->  | CN24: =TEXT(CN23,"MMMM") -> styczeń | CO24: =IF(CS23="","",CS24) ->  | CS24: =TEXT(CS23,"MMMM") -> styczeń | CV24: =IF(CW23="","",CW24) ->  | CW24: =TEXT(CW23,"MMMM") -> styczeń | CX24: =IF(DB23="","",DB24) ->  | DB24: =TEXT(DB23,"MMMM") -> styczeń | DE24: =IF(DF23="","",DF24) ->  | DF24: =TEXT(DF23,"MMMM") -> styczeń | DG24: =IF(DK23="","",DK24) ->  | DK24: =TEXT(DK23,"MMMM") -> styczeń
A25: OPERATOR | J25: OPERATOR | S25: OPERATOR | AB25: OPERATOR | AK25: OPERATOR | AT25: OPERATOR | BC25: OPERATOR | BL25: OPERATOR | BU25: OPERATOR | CD25: OPERATOR | CM25: OPERATOR | CV25: OPERATOR | DE25: OPERATOR
A26: NIP | C26: NAZWA | J26: NIP | L26: NAZWA | S26: NIP | U26: NAZWA | AB26: NIP | AD26: NAZWA | AK26: NIP | AM26: NAZWA | AT26: NIP | AV26: NAZWA | BC26: NIP | BE26: NAZWA | BL26: NIP | BN26: NAZWA | BU26: NIP | BW26: NAZWA | CD26: NIP | CF26: NAZWA | CM26: NIP | CO26: NAZWA | CV26: NIP | CX26: NAZWA | DE26: NIP | DG26: NAZWA
A29: ŁĄCZNA WIELKOŚĆ PRACY EKSPLOATACYJNEJ W WOZOKILOMETRACH W OKRESIE | G29: =C33 -> 0 | J29: ŁĄCZNA WIELKOŚĆ PRACY EKSPLOATACYJNEJ W WOZOKILOMETRACH W OKRESIE | P29: =L33 -> 0 | S29: ŁĄCZNA WIELKOŚĆ PRACY EKSPLOATACYJNEJ W WOZOKILOMETRACH W OKRESIE | Y29: =U33 -> 0 | AB29: ŁĄCZNA WIELKOŚĆ PRACY EKSPLOATACYJNEJ W WOZOKILOMETRACH W OKRESIE | AH29: =AD33 -> 0 | AK29: ŁĄCZNA WIELKOŚĆ PRACY EKSPLOATACYJNEJ W WOZOKILOMETRACH W OKRESIE | AQ29: =AM33 -> 0 | AT29: ŁĄCZNA WIELKOŚĆ PRACY EKSPLOATACYJNEJ W WOZOKILOMETRACH W OKRESIE | AZ29: =AV33 -> 0 | BC29: ŁĄCZNA WIELKOŚĆ PRACY EKSPLOATACYJNEJ W WOZOKILOMETRACH W OKRESIE | BI29: =BE33 -> 0 | BL29: ŁĄCZNA WIELKOŚĆ PRACY EKSPLOATACYJNEJ W WOZOKILOMETRACH W OKRESIE | BR29: =BN33 -> 0 | BU29: ŁĄCZNA WIELKOŚĆ PRACY EKSPLOATACYJNEJ W WOZOKILOMETRACH W OKRESIE | CA29: =BW33 -> 0 | CD29: ŁĄCZNA WIELKOŚĆ PRACY EKSPLOATACYJNEJ W WOZOKILOMETRACH W OKRESIE | CJ29: =CF33 -> 0 | CM29: ŁĄCZNA WIELKOŚĆ PRACY EKSPLOATACYJNEJ W WOZOKILOMETRACH W OKRESIE | CS29: =CO33 -> 0 | CV29: ŁĄCZNA WIELKOŚĆ PRACY EKSPLOATACYJNEJ W WOZOKILOMETRACH W OKRESIE | DB29: =CX33 -> 0 | DE29: ŁĄCZNA WIELKOŚĆ PRACY EKSPLOATACYJNEJ W WOZOKILOMETRACH W OKRESIE | DK29: =DG33 -> 0
A31: PRZEJAZDY NA LINII KOMUNIKACYJNEJ W OKRESIE | J31: PRZEJAZDY NA LINII KOMUNIKACYJNEJ W OKRESIE | S31: PRZEJAZDY NA LINII KOMUNIKACYJNEJ W OKRESIE | AB31: PRZEJAZDY NA LINII KOMUNIKACYJNEJ W OKRESIE | AK31: PRZEJAZDY NA LINII KOMUNIKACYJNEJ W OKRESIE | AT31: PRZEJAZDY NA LINII KOMUNIKACYJNEJ W OKRESIE | BC31: PRZEJAZDY NA LINII KOMUNIKACYJNEJ W OKRESIE | BL31: PRZEJAZDY NA LINII KOMUNIKACYJNEJ W OKRESIE | BU31: PRZEJAZDY NA LINII KOMUNIKACYJNEJ W OKRESIE | CD31: PRZEJAZDY NA LINII KOMUNIKACYJNEJ W OKRESIE | CM31: PRZEJAZDY NA LINII KOMUNIKACYJNEJ W OKRESIE | CV31: PRZEJAZDY NA LINII KOMUNIKACYJNEJ W OKRESIE | DE31: PRZEJAZDY NA LINII KOMUNIKACYJNEJ W OKRESIE
A32: W TYM: | B32: LICZBA PRZEJAZDÓW | C32: WIELKOŚĆ PRACY EKSPLOATACYJNEJ | D32: =SUM(D34:D45) -> 0 | J32: W TYM: | K32: LICZBA PRZEJAZDÓW | L32: WIELKOŚĆ PRACY EKSPLOATACYJNEJ | M32: =SUM(M34:M45) -> 0 | S32: W TYM: | T32: LICZBA PRZEJAZDÓW | U32: WIELKOŚĆ PRACY EKSPLOATACYJNEJ | V32: =SUM(V34:V45) -> 0 | AB32: W TYM: | AC32: LICZBA PRZEJAZDÓW | AD32: WIELKOŚĆ PRACY EKSPLOATACYJNEJ | AE32: =SUM(AE34:AE45) -> 0 | AK32: W TYM: | AL32: LICZBA PRZEJAZDÓW | AM32: WIELKOŚĆ PRACY EKSPLOATACYJNEJ | AN32: =SUM(AN34:AN45) -> 0 | AT32: W TYM: | AU32: LICZBA PRZEJAZDÓW | AV32: WIELKOŚĆ PRACY EKSPLOATACYJNEJ | AW32: =SUM(AW34:AW45) -> 0 | BC32: W TYM: | BD32: LICZBA PRZEJAZDÓW | BE32: WIELKOŚĆ PRACY EKSPLOATACYJNEJ | BF32: =SUM(BF34:BF45) -> 0 | BL32: W TYM: | BM32: LICZBA PRZEJAZDÓW | BN32: WIELKOŚĆ PRACY EKSPLOATACYJNEJ | BO32: =SUM(BO34:BO45) -> 0 | BU32: W TYM: | BV32: LICZBA PRZEJAZDÓW | BW32: WIELKOŚĆ PRACY EKSPLOATACYJNEJ | BX32: =SUM(BX34:BX45) -> 0 | CD32: W TYM: | CE32: LICZBA PRZEJAZDÓW | CF32: WIELKOŚĆ PRACY EKSPLOATACYJNEJ | CG32: =SUM(CG34:CG45) -> 0 | CM32: W TYM: | CN32: LICZBA PRZEJAZDÓW | CO32: WIELKOŚĆ PRACY EKSPLOATACYJNEJ | CP32: =SUM(CP34:CP45) -> 0 | CV32: W TYM: | CW32: LICZBA PRZEJAZDÓW | CX32: WIELKOŚĆ PRACY EKSPLOATACYJNEJ | CY32: =SUM(CY34:CY45) -> 0 | DE32: W TYM: | DF32: LICZBA PRZEJAZDÓW | DG32: WIELKOŚĆ PRACY EKSPLOATACYJNEJ | DH32: =SUM(DH34:DH45) -> 0
A33: ŁĄCZNIE | B33: =SUM(B34:B45) -> 0 | C33: =SUM(C34:C45) -> 0 | J33: ŁĄCZNIE | K33: =SUM(K34:K45) -> 0 | L33: =SUM(L34:L45) -> 0 | S33: ŁĄCZNIE | T33: =SUM(T34:T45) -> 0 | U33: =SUM(U34:U45) -> 0 | AB33: ŁĄCZNIE | AC33: =SUM(AC34:AC45) -> 0 | AD33: =SUM(AD34:AD45) -> 0 | AK33: ŁĄCZNIE | AL33: =SUM(AL34:AL45) -> 0 | AM33: =SUM(AM34:AM45) -> 0 | AT33: ŁĄCZNIE | AU33: =SUM(AU34:AU45) -> 0 | AV33: =SUM(AV34:AV45) -> 0 | BC33: ŁĄCZNIE | BD33: =SUM(BD34:BD45) -> 0 | BE33: =SUM(BE34:BE45) -> 0 | BL33: ŁĄCZNIE | BM33: =SUM(BM34:BM45) -> 0 | BN33: =SUM(BN34:BN45) -> 0 | BU33: ŁĄCZNIE | BV33: =SUM(BV34:BV45) -> 0 | BW33: =SUM(BW34:BW45) -> 0 | CD33: ŁĄCZNIE | CE33: =SUM(CE34:CE45) -> 0 | CF33: =SUM(CF34:CF45) -> 0 | CM33: ŁĄCZNIE | CN33: =SUM(CN34:CN45) -> 0 | CO33: =SUM(CO34:CO45) -> 0 | CV33: ŁĄCZNIE | CW33: =SUM(CW34:CW45) -> 0 | CX33: =SUM(CX34:CX45) -> 0 | DE33: ŁĄCZNIE | DF33: =SUM(DF34:DF45) -> 0 | DG33: =SUM(DG34:DG45) -> 0
A34: styczeń | B34: =IF(H34=0,0,"") -> 0 | C34: =IF(H34=0,0,"") -> 0 | D34: =C34*C$21 -> 0 | G34: 1 | H34: =IF(AND(G34>=B$22,G34<=G$22),1,0) -> 0 | I34: =IF(OR(B$26="",B$19=""),0,H34*100000) -> 0 | J34: styczeń | K34: =IF(Q34=0,0,"") -> 0 | L34: =IF(Q34=0,0,"") -> 0 | M34: =L34*L$21 -> 0 | P34: 1 | Q34: =IF(AND(P34>=K$22,P34<=P$22),1,0) -> 0 | R34: =IF(OR(K$26="",K$19=""),0,Q34*100000) -> 0 | S34: styczeń | T34: =IF(Z34=0,0,"") -> 0 | U34: =IF(Z34=0,0,"") -> 0 | V34: =U34*U$21 -> 0 | Y34: 1 | Z34: =IF(AND(Y34>=T$22,Y34<=Y$22),1,0) -> 0 | AA34: =IF(OR(T$26="",T$19=""),0,Z34*100000) -> 0 | AB34: styczeń | AC34: =IF(AI34=0,0,"") -> 0 | AD34: =IF(AI34=0,0,"") -> 0 | AE34: =AD34*AD$21 -> 0 | AH34: 1 | AI34: =IF(AND(AH34>=AC$22,AH34<=AH$22),1,0) -> 0 | AJ34: =IF(OR(AC$26="",AC$19=""),0,AI34*100000) -> 0 | AK34: styczeń | AL34: =IF(AR34=0,0,"") -> 0 | AM34: =IF(AR34=0,0,"") -> 0 | AN34: =AM34*AM$21 -> 0 | AQ34: 1 | AR34: =IF(AND(AQ34>=AL$22,AQ34<=AQ$22),1,0) -> 0 | AS34: =IF(OR(AL$26="",AL$19=""),0,AR34*100000) -> 0 | AT34: styczeń | AU34: =IF(BA34=0,0,"") -> 0 | AV34: =IF(BA34=0,0,"") -> 0 | AW34: =AV34*AV$21 -> 0 | AZ34: 1 | BA34: =IF(AND(AZ34>=AU$22,AZ34<=AZ$22),1,0) -> 0 | BB34: =IF(OR(AU$26="",AU$19=""),0,BA34*100000) -> 0 | BC34: styczeń | BD34: =IF(BJ34=0,0,"") -> 0 | BE34: =IF(BJ34=0,0,"") -> 0 | BF34: =BE34*BE$21 -> 0 | BI34: 1 | BJ34: =IF(AND(BI34>=BD$22,BI34<=BI$22),1,0) -> 0 | BK34: =IF(OR(BD$26="",BD$19=""),0,BJ34*100000) -> 0 | BL34: styczeń | BM34: =IF(BS34=0,0,"") -> 0 | BN34: =IF(BS34=0,0,"") -> 0 | BO34: =BN34*BN$21 -> 0 | BR34: 1 | BS34: =IF(AND(BR34>=BM$22,BR34<=BR$22),1,0) -> 0 | BT34: =IF(OR(BM$26="",BM$19=""),0,BS34*100000) -> 0 | BU34: styczeń | BV34: =IF(CB34=0,0,"") -> 0 | BW34: =IF(CB34=0,0,"") -> 0 | BX34: =BW34*BW$21 -> 0 | CA34: 1 | CB34: =IF(AND(CA34>=BV$22,CA34<=CA$22),1,0) -> 0 | CC34: =IF(OR(BV$26="",BV$19=""),0,CB34*100000) -> 0 | CD34: styczeń | CE34: =IF(CK34=0,0,"") -> 0 | CF34: =IF(CK34=0,0,"") -> 0 | CG34: =CF34*CF$21 -> 0 | CJ34: 1 | CK34: =IF(AND(CJ34>=CE$22,CJ34<=CJ$22),1,0) -> 0 | CL34: =IF(OR(CE$26="",CE$19=""),0,CK34*100000) -> 0 | CM34: styczeń | CN34: =IF(CT34=0,0,"") -> 0 | CO34: =IF(CT34=0,0,"") -> 0 | CP34: =CO34*CO$21 -> 0 | CS34: 1 | CT34: =IF(AND(CS34>=CN$22,CS34<=CS$22),1,0) -> 0 | CU34: =IF(OR(CN$26="",CN$19=""),0,CT34*100000) -> 0 | CV34: styczeń | CW34: =IF(DC34=0,0,"") -> 0 | CX34: =IF(DC34=0,0,"") -> 0 | CY34: =CX34*CX$21 -> 0 | DB34: 1 | DC34: =IF(AND(DB34>=CW$22,DB34<=DB$22),1,0) -> 0 | DD34: =IF(OR(CW$26="",CW$19=""),0,DC34*100000) -> 0 | DE34: styczeń | DF34: =IF(DL34=0,0,"") -> 0 | DG34: =IF(DL34=0,0,"") -> 0 | DH34: =DG34*DG$21 -> 0 | DK34: 1 | DL34: =IF(AND(DK34>=DF$22,DK34<=DK$22),1,0) -> 0 | DM34: =IF(OR(DF$26="",DF$19=""),0,DL34*100000) -> 0
A35: luty | B35: =IF(H35=0,0,"") -> 0 | C35: =IF(H35=0,0,"") -> 0 | D35: =C35*C$21 -> 0 | G35: 2 | H35: =IF(AND(G35>=B$22,G35<=G$22),1,0) -> 0 | I35: =IF(OR(B$26="",B$19=""),0,H35*100000) -> 0 | J35: luty | K35: =IF(Q35=0,0,"") -> 0 | L35: =IF(Q35=0,0,"") -> 0 | M35: =L35*L$21 -> 0 | P35: 2 | Q35: =IF(AND(P35>=K$22,P35<=P$22),1,0) -> 0 | R35: =IF(OR(K$26="",K$19=""),0,Q35*100000) -> 0 | S35: luty | T35: =IF(Z35=0,0,"") -> 0 | U35: =IF(Z35=0,0,"") -> 0 | V35: =U35*U$21 -> 0 | Y35: 2 | Z35: =IF(AND(Y35>=T$22,Y35<=Y$22),1,0) -> 0 | AA35: =IF(OR(T$26="",T$19=""),0,Z35*100000) -> 0 | AB35: luty | AC35: =IF(AI35=0,0,"") -> 0 | AD35: =IF(AI35=0,0,"") -> 0 | AE35: =AD35*AD$21 -> 0 | AH35: 2 | AI35: =IF(AND(AH35>=AC$22,AH35<=AH$22),1,0) -> 0 | AJ35: =IF(OR(AC$26="",AC$19=""),0,AI35*100000) -> 0 | AK35: luty | AL35: =IF(AR35=0,0,"") -> 0 | AM35: =IF(AR35=0,0,"") -> 0 | AN35: =AM35*AM$21 -> 0 | AQ35: 2 | AR35: =IF(AND(AQ35>=AL$22,AQ35<=AQ$22),1,0) -> 0 | AS35: =IF(OR(AL$26="",AL$19=""),0,AR35*100000) -> 0 | AT35: luty | AU35: =IF(BA35=0,0,"") -> 0 | AV35: =IF(BA35=0,0,"") -> 0 | AW35: =AV35*AV$21 -> 0 | AZ35: 2 | BA35: =IF(AND(AZ35>=AU$22,AZ35<=AZ$22),1,0) -> 0 | BB35: =IF(OR(AU$26="",AU$19=""),0,BA35*100000) -> 0 | BC35: luty | BD35: =IF(BJ35=0,0,"") -> 0 | BE35: =IF(BJ35=0,0,"") -> 0 | BF35: =BE35*BE$21 -> 0 | BI35: 2 | BJ35: =IF(AND(BI35>=BD$22,BI35<=BI$22),1,0) -> 0 | BK35: =IF(OR(BD$26="",BD$19=""),0,BJ35*100000) -> 0 | BL35: luty | BM35: =IF(BS35=0,0,"") -> 0 | BN35: =IF(BS35=0,0,"") -> 0 | BO35: =BN35*BN$21 -> 0 | BR35: 2 | BS35: =IF(AND(BR35>=BM$22,BR35<=BR$22),1,0) -> 0 | BT35: =IF(OR(BM$26="",BM$19=""),0,BS35*100000) -> 0 | BU35: luty | BV35: =IF(CB35=0,0,"") -> 0 | BW35: =IF(CB35=0,0,"") -> 0 | BX35: =BW35*BW$21 -> 0 | CA35: 2 | CB35: =IF(AND(CA35>=BV$22,CA35<=CA$22),1,0) -> 0 | CC35: =IF(OR(BV$26="",BV$19=""),0,CB35*100000) -> 0 | CD35: luty | CE35: =IF(CK35=0,0,"") -> 0 | CF35: =IF(CK35=0,0,"") -> 0 | CG35: =CF35*CF$21 -> 0 | CJ35: 2 | CK35: =IF(AND(CJ35>=CE$22,CJ35<=CJ$22),1,0) -> 0 | CL35: =IF(OR(CE$26="",CE$19=""),0,CK35*100000) -> 0 | CM35: luty | CN35: =IF(CT35=0,0,"") -> 0 | CO35: =IF(CT35=0,0,"") -> 0 | CP35: =CO35*CO$21 -> 0 | CS35: 2 | CT35: =IF(AND(CS35>=CN$22,CS35<=CS$22),1,0) -> 0 | CU35: =IF(OR(CN$26="",CN$19=""),0,CT35*100000) -> 0 | CV35: luty | CW35: =IF(DC35=0,0,"") -> 0 | CX35: =IF(DC35=0,0,"") -> 0 | CY35: =CX35*CX$21 -> 0 | DB35: 2 | DC35: =IF(AND(DB35>=CW$22,DB35<=DB$22),1,0) -> 0 | DD35: =IF(OR(CW$26="",CW$19=""),0,DC35*100000) -> 0 | DE35: luty | DF35: =IF(DL35=0,0,"") -> 0 | DG35: =IF(DL35=0,0,"") -> 0 | DH35: =DG35*DG$21 -> 0 | DK35: 2 | DL35: =IF(AND(DK35>=DF$22,DK35<=DK$22),1,0) -> 0 | DM35: =IF(OR(DF$26="",DF$19=""),0,DL35*100000) -> 0
A36: marzec | B36: 0 | C36: 0 | D36: 0 | G36: 3 | H36: 0 | I36: 0 | J36: marzec | K36: 0 | L36: 0 | M36: 0 | P36: 3 | Q36: 0 | R36: 0 | S36: marzec | T36: 0 | U36: 0 | V36: 0 | Y36: 3 | Z36: 0 | AA36: 0 | AB36: marzec | AC36: 0 | AD36: 0 | AE36: 0 | AH36: 3 | AI36: 0 | AJ36: 0 | AK36: marzec | AL36: 0 | AM36: 0 | AN36: 0 | AQ36: 3 | AR36: 0 | AS36: 0 | AT36: marzec | AU36: 0 | AV36: 0 | AW36: 0 | AZ36: 3 | BA36: 0 | BB36: 0 | BC36: marzec | BD36: 0 | BE36: 0 | BF36: 0 | BI36: 3 | BJ36: 0 | BK36: 0 | BL36: marzec | BM36: 0 | BN36: 0 | BO36: 0 | BR36: 3 | BS36: 0 | BT36: 0 | BU36: marzec | BV36: 0 | BW36: 0 | BX36: 0 | CA36: 3 | CB36: 0 | CC36: 0 | CD36: marzec | CE36: 0 | CF36: 0 | CG36: 0 | CJ36: 3 | CK36: 0 | CL36: 0 | CM36: marzec | CN36: 0 | CO36: 0 | CP36: 0 | CS36: 3 | CT36: 0 | CU36: 0 | CV36: marzec | CW36: 0 | CX36: 0 | CY36: 0 | DB36: 3 | DC36: 0 | DD36: 0 | DE36: marzec | DF36: 0 | DG36: 0 | DH36: 0 | DK36: 3 | DL36: 0 | DM36: 0
A37: kwiecień | B37: 0 | C37: 0 | D37: 0 | G37: 4 | H37: 0 | I37: 0 | J37: kwiecień | K37: 0 | L37: 0 | M37: 0 | P37: 4 | Q37: 0 | R37: 0 | S37: kwiecień | T37: 0 | U37: 0 | V37: 0 | Y37: 4 | Z37: 0 | AA37: 0 | AB37: kwiecień | AC37: 0 | AD37: 0 | AE37: 0 | AH37: 4 | AI37: 0 | AJ37: 0 | AK37: kwiecień | AL37: 0 | AM37: 0 | AN37: 0 | AQ37: 4 | AR37: 0 | AS37: 0 | AT37: kwiecień | AU37: 0 | AV37: 0 | AW37: 0 | AZ37: 4 | BA37: 0 | BB37: 0 | BC37: kwiecień | BD37: 0 | BE37: 0 | BF37: 0 | BI37: 4 | BJ37: 0 | BK37: 0 | BL37: kwiecień | BM37: 0 | BN37: 0 | BO37: 0 | BR37: 4 | BS37: 0 | BT37: 0 | BU37: kwiecień | BV37: 0 | BW37: 0 | BX37: 0 | CA37: 4 | CB37: 0 | CC37: 0 | CD37: kwiecień | CE37: 0 | CF37: 0 | CG37: 0 | CJ37: 4 | CK37: 0 | CL37: 0 | CM37: kwiecień | CN37: 0 | CO37: 0 | CP37: 0 | CS37: 4 | CT37: 0 | CU37: 0 | CV37: kwiecień | CW37: 0 | CX37: 0 | CY37: 0 | DB37: 4 | DC37: 0 | DD37: 0 | DE37: kwiecień | DF37: 0 | DG37: 0 | DH37: 0 | DK37: 4 | DL37: 0 | DM37: 0
A38: maj | B38: 0 | C38: 0 | D38: 0 | G38: 5 | H38: 0 | I38: 0 | J38: maj | K38: 0 | L38: 0 | M38: 0 | P38: 5 | Q38: 0 | R38: 0 | S38: maj | T38: 0 | U38: 0 | V38: 0 | Y38: 5 | Z38: 0 | AA38: 0 | AB38: maj | AC38: 0 | AD38: 0 | AE38: 0 | AH38: 5 | AI38: 0 | AJ38: 0 | AK38: maj | AL38: 0 | AM38: 0 | AN38: 0 | AQ38: 5 | AR38: 0 | AS38: 0 | AT38: maj | AU38: 0 | AV38: 0 | AW38: 0 | AZ38: 5 | BA38: 0 | BB38: 0 | BC38: maj | BD38: 0 | BE38: 0 | BF38: 0 | BI38: 5 | BJ38: 0 | BK38: 0 | BL38: maj | BM38: 0 | BN38: 0 | BO38: 0 | BR38: 5 | BS38: 0 | BT38: 0 | BU38: maj | BV38: 0 | BW38: 0 | BX38: 0 | CA38: 5 | CB38: 0 | CC38: 0 | CD38: maj | CE38: 0 | CF38: 0 | CG38: 0 | CJ38: 5 | CK38: 0 | CL38: 0 | CM38: maj | CN38: 0 | CO38: 0 | CP38: 0 | CS38: 5 | CT38: 0 | CU38: 0 | CV38: maj | CW38: 0 | CX38: 0 | CY38: 0 | DB38: 5 | DC38: 0 | DD38: 0 | DE38: maj | DF38: 0 | DG38: 0 | DH38: 0 | DK38: 5 | DL38: 0 | DM38: 0
A39: czerwiec | B39: 0 | C39: 0 | D39: 0 | G39: 6 | H39: 0 | I39: 0 | J39: czerwiec | K39: 0 | L39: 0 | M39: 0 | P39: 6 | Q39: 0 | R39: 0 | S39: czerwiec | T39: 0 | U39: 0 | V39: 0 | Y39: 6 | Z39: 0 | AA39: 0 | AB39: czerwiec | AC39: 0 | AD39: 0 | AE39: 0 | AH39: 6 | AI39: 0 | AJ39: 0 | AK39: czerwiec | AL39: 0 | AM39: 0 | AN39: 0 | AQ39: 6 | AR39: 0 | AS39: 0 | AT39: czerwiec | AU39: 0 | AV39: 0 | AW39: 0 | AZ39: 6 | BA39: 0 | BB39: 0 | BC39: czerwiec | BD39: 0 | BE39: 0 | BF39: 0 | BI39: 6 | BJ39: 0 | BK39: 0 | BL39: czerwiec | BM39: 0 | BN39: 0 | BO39: 0 | BR39: 6 | BS39: 0 | BT39: 0 | BU39: czerwiec | BV39: 0 | BW39: 0 | BX39: 0 | CA39: 6 | CB39: 0 | CC39: 0 | CD39: czerwiec | CE39: 0 | CF39: 0 | CG39: 0 | CJ39: 6 | CK39: 0 | CL39: 0 | CM39: czerwiec | CN39: 0 | CO39: 0 | CP39: 0 | CS39: 6 | CT39: 0 | CU39: 0 | CV39: czerwiec | CW39: 0 | CX39: 0 | CY39: 0 | DB39: 6 | DC39: 0 | DD39: 0 | DE39: czerwiec | DF39: 0 | DG39: 0 | DH39: 0 | DK39: 6 | DL39: 0 | DM39: 0
A40: lipiec | B40: 0 | C40: 0 | D40: 0 | G40: 7 | H40: 0 | I40: 0 | J40: lipiec | K40: 0 | L40: 0 | M40: 0 | P40: 7 | Q40: 0 | R40: 0 | S40: lipiec | T40: 0 | U40: 0 | V40: 0 | Y40: 7 | Z40: 0 | AA40: 0 | AB40: lipiec | AC40: 0 | AD40: 0 | AE40: 0 | AH40: 7 | AI40: 0 | AJ40: 0 | AK40: lipiec | AL40: 0 | AM40: 0 | AN40: 0 | AQ40: 7 | AR40: 0 | AS40: 0 | AT40: lipiec | AU40: 0 | AV40: 0 | AW40: 0 | AZ40: 7 | BA40: 0 | BB40: 0 | BC40: lipiec | BD40: 0 | BE40: 0 | BF40: 0 | BI40: 7 | BJ40: 0 | BK40: 0 | BL40: lipiec | BM40: 0 | BN40: 0 | BO40: 0 | BR40: 7 | BS40: 0 | BT40: 0 | BU40: lipiec | BV40: 0 | BW40: 0 | BX40: 0 | CA40: 7 | CB40: 0 | CC40: 0 | CD40: lipiec | CE40: 0 | CF40: 0 | CG40: 0 | CJ40: 7 | CK40: 0 | CL40: 0 | CM40: lipiec | CN40: 0 | CO40: 0 | CP40: 0 | CS40: 7 | CT40: 0 | CU40: 0 | CV40: lipiec | CW40: 0 | CX40: 0 | CY40: 0 | DB40: 7 | DC40: 0 | DD40: 0 | DE40: lipiec | DF40: 0 | DG40: 0 | DH40: 0 | DK40: 7 | DL40: 0 | DM40: 0
A41: sierpień | B41: 0 | C41: 0 | D41: 0 | G41: 8 | H41: 0 | I41: 0 | J41: sierpień | K41: 0 | L41: 0 | M41: 0 | P41: 8 | Q41: 0 | R41: 0 | S41: sierpień | T41: 0 | U41: 0 | V41: 0 | Y41: 8 | Z41: 0 | AA41: 0 | AB41: sierpień | AC41: 0 | AD41: 0 | AE41: 0 | AH41: 8 | AI41: 0 | AJ41: 0 | AK41: sierpień | AL41: 0 | AM41: 0 | AN41: 0 | AQ41: 8 | AR41: 0 | AS41: 0 | AT41: sierpień | AU41: 0 | AV41: 0 | AW41: 0 | AZ41: 8 | BA41: 0 | BB41: 0 | BC41: sierpień | BD41: 0 | BE41: 0 | BF41: 0 | BI41: 8 | BJ41: 0 | BK41: 0 | BL41: sierpień | BM41: 0 | BN41: 0 | BO41: 0 | BR41: 8 | BS41: 0 | BT41: 0 | BU41: sierpień | BV41: 0 | BW41: 0 | BX41: 0 | CA41: 8 | CB41: 0 | CC41: 0 | CD41: sierpień | CE41: 0 | CF41: 0 | CG41: 0 | CJ41: 8 | CK41: 0 | CL41: 0 | CM41: sierpień | CN41: 0 | CO41: 0 | CP41: 0 | CS41: 8 | CT41: 0 | CU41: 0 | CV41: sierpień | CW41: 0 | CX41: 0 | CY41: 0 | DB41: 8 | DC41: 0 | DD41: 0 | DE41: sierpień | DF41: 0 | DG41: 0 | DH41: 0 | DK41: 8 | DL41: 0 | DM41: 0
A42: wrzesień | B42: 0 | C42: 0 | D42: 0 | G42: 9 | H42: 0 | I42: 0 | J42: wrzesień | K42: 0 | L42: 0 | M42: 0 | P42: 9 | Q42: 0 | R42: 0 | S42: wrzesień | T42: 0 | U42: 0 | V42: 0 | Y42: 9 | Z42: 0 | AA42: 0 | AB42: wrzesień | AC42: 0 | AD42: 0 | AE42: 0 | AH42: 9 | AI42: 0 | AJ42: 0 | AK42: wrzesień | AL42: 0 | AM42: 0 | AN42: 0 | AQ42: 9 | AR42: 0 | AS42: 0 | AT42: wrzesień | AU42: 0 | AV42: 0 | AW42: 0 | AZ42: 9 | BA42: 0 | BB42: 0 | BC42: wrzesień | BD42: 0 | BE42: 0 | BF42: 0 | BI42: 9 | BJ42: 0 | BK42: 0 | BL42: wrzesień | BM42: 0 | BN42: 0 | BO42: 0 | BR42: 9 | BS42: 0 | BT42: 0 | BU42: wrzesień | BV42: 0 | BW42: 0 | BX42: 0 | CA42: 9 | CB42: 0 | CC42: 0 | CD42: wrzesień | CE42: 0 | CF42: 0 | CG42: 0 | CJ42: 9 | CK42: 0 | CL42: 0 | CM42: wrzesień | CN42: 0 | CO42: 0 | CP42: 0 | CS42: 9 | CT42: 0 | CU42: 0 | CV42: wrzesień | CW42: 0 | CX42: 0 | CY42: 0 | DB42: 9 | DC42: 0 | DD42: 0 | DE42: wrzesień | DF42: 0 | DG42: 0 | DH42: 0 | DK42: 9 | DL42: 0 | DM42: 0
A43: październik | B43: 0 | C43: 0 | D43: 0 | G43: 10 | H43: 0 | I43: 0 | J43: październik | K43: 0 | L43: 0 | M43: 0 | P43: 10 | Q43: 0 | R43: 0 | S43: październik | T43: 0 | U43: 0 | V43: 0 | Y43: 10 | Z43: 0 | AA43: 0 | AB43: październik | AC43: 0 | AD43: 0 | AE43: 0 | AH43: 10 | AI43: 0 | AJ43: 0 | AK43: październik | AL43: 0 | AM43: 0 | AN43: 0 | AQ43: 10 | AR43: 0 | AS43: 0 | AT43: październik | AU43: 0 | AV43: 0 | AW43: 0 | AZ43: 10 | BA43: 0 | BB43: 0 | BC43: październik | BD43: 0 | BE43: 0 | BF43: 0 | BI43: 10 | BJ43: 0 | BK43: 0 | BL43: październik | BM43: 0 | BN43: 0 | BO43: 0 | BR43: 10 | BS43: 0 | BT43: 0 | BU43: październik | BV43: 0 | BW43: 0 | BX43: 0 | CA43: 10 | CB43: 0 | CC43: 0 | CD43: październik | CE43: 0 | CF43: 0 | CG43: 0 | CJ43: 10 | CK43: 0 | CL43: 0 | CM43: październik | CN43: 0 | CO43: 0 | CP43: 0 | CS43: 10 | CT43: 0 | CU43: 0 | CV43: październik | CW43: 0 | CX43: 0 | CY43: 0 | DB43: 10 | DC43: 0 | DD43: 0 | DE43: październik | DF43: 0 | DG43: 0 | DH43: 0 | DK43: 10 | DL43: 0 | DM43: 0
A44: listopad | B44: 0 | C44: 0 | D44: 0 | G44: 11 | H44: 0 | I44: 0 | J44: listopad | K44: 0 | L44: 0 | M44: 0 | P44: 11 | Q44: 0 | R44: 0 | S44: listopad | T44: 0 | U44: 0 | V44: 0 | Y44: 11 | Z44: 0 | AA44: 0 | AB44: listopad | AC44: 0 | AD44: 0 | AE44: 0 | AH44: 11 | AI44: 0 | AJ44: 0 | AK44: listopad | AL44: 0 | AM44: 0 | AN44: 0 | AQ44: 11 | AR44: 0 | AS44: 0 | AT44: listopad | AU44: 0 | AV44: 0 | AW44: 0 | AZ44: 11 | BA44: 0 | BB44: 0 | BC44: listopad | BD44: 0 | BE44: 0 | BF44: 0 | BI44: 11 | BJ44: 0 | BK44: 0 | BL44: listopad | BM44: 0 | BN44: 0 | BO44: 0 | BR44: 11 | BS44: 0 | BT44: 0 | BU44: listopad | BV44: 0 | BW44: 0 | BX44: 0 | CA44: 11 | CB44: 0 | CC44: 0 | CD44: listopad | CE44: 0 | CF44: 0 | CG44: 0 | CJ44: 11 | CK44: 0 | CL44: 0 | CM44: listopad | CN44: 0 | CO44: 0 | CP44: 0 | CS44: 11 | CT44: 0 | CU44: 0 | CV44: listopad | CW44: 0 | CX44: 0 | CY44: 0 | DB44: 11 | DC44: 0 | DD44: 0 | DE44: listopad | DF44: 0 | DG44: 0 | DH44: 0 | DK44: 11 | DL44: 0 | DM44: 0
A45: grudzień | B45: 0 | C45: 0 | D45: 0 | G45: 12 | H45: 0 | I45: 0 | J45: grudzień | K45: 0 | L45: 0 | M45: 0 | P45: 12 | Q45: 0 | R45: 0 | S45: grudzień | T45: 0 | U45: 0 | V45: 0 | Y45: 12 | Z45: 0 | AA45: 0 | AB45: grudzień | AC45: 0 | AD45: 0 | AE45: 0 | AH45: 12 | AI45: 0 | AJ45: 0 | AK45: grudzień | AL45: 0 | AM45: 0 | AN45: 0 | AQ45: 12 | AR45: 0 | AS45: 0 | AT45: grudzień | AU45: 0 | AV45: 0 | AW45: 0 | AZ45: 12 | BA45: 0 | BB45: 0 | BC45: grudzień | BD45: 0 | BE45: 0 | BF45: 0 | BI45: 12 | BJ45: 0 | BK45: 0 | BL45: grudzień | BM45: 0 | BN45: 0 | BO45: 0 | BR45: 12 | BS45: 0 | BT45: 0 | BU45: grudzień | BV45: 0 | BW45: 0 | BX45: 0 | CA45: 12 | CB45: 0 | CC45: 0 | CD45: grudzień | CE45: 0 | CF45: 0 | CG45: 0 | CJ45: 12 | CK45: 0 | CL45: 0 | CM45: grudzień | CN45: 0 | CO45: 0 | CP45: 0 | CS45: 12 | CT45: 0 | CU45: 0 | CV45: grudzień | CW45: 0 | CX45: 0 | CY45: 0 | DB45: 12 | DC45: 0 | DD45: 0 | DE45: grudzień | DF45: 0 | DG45: 0 | DH45: 0 | DK45: 12 | DL45: 0 | DM45: 0
A46: =H53*0.1 -> 0 | B46: =IF(H52="BRAK DEFICYTU",0,H52) -> 0 | C46: =IF(H53-H54>=3,3,(H53-H54)*1.06) -> 0 | D46: 0 | J46: =Q53*0.1 -> 0 | K46: =IF(Q52="BRAK DEFICYTU",0,Q52) -> 0 | L46: =IF(Q53-Q54>=3,3,(Q53-Q54)*1.06) -> 0 | M46: 0 | S46: =Z53*0.1 -> 0 | T46: =IF(Z52="BRAK DEFICYTU",0,Z52) -> 0 | U46: =IF(Z53-Z54>=3,3,(Z53-Z54)*1.06) -> 0 | V46: 0 | AB46: =AI53*0.1 -> 0 | AC46: =IF(AI52="BRAK DEFICYTU",0,AI52) -> 0 | AD46: =IF(AI53-AI54>=3,3,(AI53-AI54)*1.06) -> 0 | AE46: 0 | AK46: =AR53*0.1 -> 0 | AL46: =IF(AR52="BRAK DEFICYTU",0,AR52) -> 0 | AM46: =IF(AR53-AR54>=3,3,(AR53-AR54)*1.06) -> 0 | AN46: 0 | AT46: =BA53*0.1 -> 0 | AU46: =IF(BA52="BRAK DEFICYTU",0,BA52) -> 0 | AV46: =IF(BA53-BA54>=3,3,(BA53-BA54)*1.06) -> 0 | AW46: 0 | BC46: =BJ53*0.1 -> 0 | BD46: =IF(BJ52="BRAK DEFICYTU",0,BJ52) -> 0 | BE46: =IF(BJ53-BJ54>=3,3,(BJ53-BJ54)*1.06) -> 0 | BF46: 0 | BL46: =BS53*0.1 -> 0 | BM46: =IF(BS52="BRAK DEFICYTU",0,BS52) -> 0 | BN46: =IF(BS53-BS54>=3,3,(BS53-BS54)*1.06) -> 0 | BO46: 0 | BU46: =CB53*0.1 -> 0 | BV46: =IF(CB52="BRAK DEFICYTU",0,CB52) -> 0 | BW46: =IF(CB53-CB54>=3,3,(CB53-CB54)*1.06) -> 0 | BX46: 0 | CD46: =CK53*0.1 -> 0 | CE46: =IF(CK52="BRAK DEFICYTU",0,CK52) -> 0 | CF46: =IF(CK53-CK54>=3,3,(CK53-CK54)*1.06) -> 0 | CG46: 0 | CM46: =CT53*0.1 -> 0 | CN46: =IF(CT52="BRAK DEFICYTU",0,CT52) -> 0 | CO46: =IF(CT53-CT54>=3,3,(CT53-CT54)*1.06) -> 0 | CP46: 0 | CV46: =DC53*0.1 -> 0 | CW46: =IF(DC52="BRAK DEFICYTU",0,DC52) -> 0 | CX46: =IF(DC53-DC54>=3,3,(DC53-DC54)*1.06) -> 0 | CY46: 0 | DE46: =DL53*0.1 -> 0 | DF46: =IF(DL52="BRAK DEFICYTU",0,DL52) -> 0 | DG46: =IF(DL53-DL54>=3,3,(DL53-DL54)*1.06) -> 0 | DH46: 0
A47: PRZYCHODY W ODNIESIENIU DO LINII KOMUNIKACYJNEJ W OKRESIE Z WYŁĄCZENIEM KWOTY REKOMPENSATY Z TYTUŁU POWIERZENIA USŁUG W ZAKRESIE PUBLICZNEGO TRANSPORTU ZBIOROWEGO, W TYM: | H47: =SUM(H48:I50) -> 0 | J47: PRZYCHODY W ODNIESIENIU DO LINII KOMUNIKACYJNEJ W OKRESIE Z WYŁĄCZENIEM KWOTY REKOMPENSATY Z TYTUŁU POWIERZENIA USŁUG W ZAKRESIE PUBLICZNEGO TRANSPORTU ZBIOROWEGO, W TYM: | Q47: =SUM(Q48:R50) -> 0 | S47: PRZYCHODY W ODNIESIENIU DO LINII KOMUNIKACYJNEJ W OKRESIE Z WYŁĄCZENIEM KWOTY REKOMPENSATY Z TYTUŁU POWIERZENIA USŁUG W ZAKRESIE PUBLICZNEGO TRANSPORTU ZBIOROWEGO, W TYM: | Z47: =SUM(Z48:AA50) -> 0 | AB47: PRZYCHODY W ODNIESIENIU DO LINII KOMUNIKACYJNEJ W OKRESIE Z WYŁĄCZENIEM KWOTY REKOMPENSATY Z TYTUŁU POWIERZENIA USŁUG W ZAKRESIE PUBLICZNEGO TRANSPORTU ZBIOROWEGO, W TYM: | AI47: =SUM(AI48:AJ50) -> 0 | AK47: PRZYCHODY W ODNIESIENIU DO LINII KOMUNIKACYJNEJ W OKRESIE Z WYŁĄCZENIEM KWOTY REKOMPENSATY Z TYTUŁU POWIERZENIA USŁUG W ZAKRESIE PUBLICZNEGO TRANSPORTU ZBIOROWEGO, W TYM: | AR47: =SUM(AR48:AS50) -> 0 | AT47: PRZYCHODY W ODNIESIENIU DO LINII KOMUNIKACYJNEJ W OKRESIE Z WYŁĄCZENIEM KWOTY REKOMPENSATY Z TYTUŁU POWIERZENIA USŁUG W ZAKRESIE PUBLICZNEGO TRANSPORTU ZBIOROWEGO, W TYM: | BA47: =SUM(BA48:BB50) -> 0 | BC47: PRZYCHODY W ODNIESIENIU DO LINII KOMUNIKACYJNEJ W OKRESIE Z WYŁĄCZENIEM KWOTY REKOMPENSATY Z TYTUŁU POWIERZENIA USŁUG W ZAKRESIE PUBLICZNEGO TRANSPORTU ZBIOROWEGO, W TYM: | BJ47: =SUM(BJ48:BK50) -> 0 | BL47: PRZYCHODY W ODNIESIENIU DO LINII KOMUNIKACYJNEJ W OKRESIE Z WYŁĄCZENIEM KWOTY REKOMPENSATY Z TYTUŁU POWIERZENIA USŁUG W ZAKRESIE PUBLICZNEGO TRANSPORTU ZBIOROWEGO, W TYM: | BS47: =SUM(BS48:BT50) -> 0 | BU47: PRZYCHODY W ODNIESIENIU DO LINII KOMUNIKACYJNEJ W OKRESIE Z WYŁĄCZENIEM KWOTY REKOMPENSATY Z TYTUŁU POWIERZENIA USŁUG W ZAKRESIE PUBLICZNEGO TRANSPORTU ZBIOROWEGO, W TYM: | CB47: =SUM(CB48:CC50) -> 0 | CD47: PRZYCHODY W ODNIESIENIU DO LINII KOMUNIKACYJNEJ W OKRESIE Z WYŁĄCZENIEM KWOTY REKOMPENSATY Z TYTUŁU POWIERZENIA USŁUG W ZAKRESIE PUBLICZNEGO TRANSPORTU ZBIOROWEGO, W TYM: | CK47: =SUM(CK48:CL50) -> 0 | CM47: PRZYCHODY W ODNIESIENIU DO LINII KOMUNIKACYJNEJ W OKRESIE Z WYŁĄCZENIEM KWOTY REKOMPENSATY Z TYTUŁU POWIERZENIA USŁUG W ZAKRESIE PUBLICZNEGO TRANSPORTU ZBIOROWEGO, W TYM: | CT47: =SUM(CT48:CU50) -> 0 | CV47: PRZYCHODY W ODNIESIENIU DO LINII KOMUNIKACYJNEJ W OKRESIE Z WYŁĄCZENIEM KWOTY REKOMPENSATY Z TYTUŁU POWIERZENIA USŁUG W ZAKRESIE PUBLICZNEGO TRANSPORTU ZBIOROWEGO, W TYM: | DC47: =SUM(DC48:DD50) -> 0 | DE47: PRZYCHODY W ODNIESIENIU DO LINII KOMUNIKACYJNEJ W OKRESIE Z WYŁĄCZENIEM KWOTY REKOMPENSATY Z TYTUŁU POWIERZENIA USŁUG W ZAKRESIE PUBLICZNEGO TRANSPORTU ZBIOROWEGO, W TYM: | DL47: =SUM(DL48:DM50) -> 0
A48: suma przychodu netto ze sprzedaży biletów (o ile z zawartej umowy o świadczenie usługi przewozów autobusowych o charakterze publicznym wynika prawo ich zatrzymania przez Operatora) | J48: suma przychodu netto ze sprzedaży biletów (o ile z zawartej umowy o świadczenie usługi przewozów autobusowych o charakterze publicznym wynika prawo ich zatrzymania przez Operatora) | S48: suma przychodu netto ze sprzedaży biletów (o ile z zawartej umowy o świadczenie usługi przewozów autobusowych o charakterze publicznym wynika prawo ich zatrzymania przez Operatora) | AB48: suma przychodu netto ze sprzedaży biletów (o ile z zawartej umowy o świadczenie usługi przewozów autobusowych o charakterze publicznym wynika prawo ich zatrzymania przez Operatora) | AK48: suma przychodu netto ze sprzedaży biletów (o ile z zawartej umowy o świadczenie usługi przewozów autobusowych o charakterze publicznym wynika prawo ich zatrzymania przez Operatora) | AT48: suma przychodu netto ze sprzedaży biletów (o ile z zawartej umowy o świadczenie usługi przewozów autobusowych o charakterze publicznym wynika prawo ich zatrzymania przez Operatora) | BC48: suma przychodu netto ze sprzedaży biletów (o ile z zawartej umowy o świadczenie usługi przewozów autobusowych o charakterze publicznym wynika prawo ich zatrzymania przez Operatora) | BL48: suma przychodu netto ze sprzedaży biletów (o ile z zawartej umowy o świadczenie usługi przewozów autobusowych o charakterze publicznym wynika prawo ich zatrzymania przez Operatora) | BU48: suma przychodu netto ze sprzedaży biletów (o ile z zawartej umowy o świadczenie usługi przewozów autobusowych o charakterze publicznym wynika prawo ich zatrzymania przez Operatora) | CD48: suma przychodu netto ze sprzedaży biletów (o ile z zawartej umowy o świadczenie usługi przewozów autobusowych o charakterze publicznym wynika prawo ich zatrzymania przez Operatora) | CM48: suma przychodu netto ze sprzedaży biletów (o ile z zawartej umowy o świadczenie usługi przewozów autobusowych o charakterze publicznym wynika prawo ich zatrzymania przez Operatora) | CV48: suma przychodu netto ze sprzedaży biletów (o ile z zawartej umowy o świadczenie usługi przewozów autobusowych o charakterze publicznym wynika prawo ich zatrzymania przez Operatora) | DE48: suma przychodu netto ze sprzedaży biletów (o ile z zawartej umowy o świadczenie usługi przewozów autobusowych o charakterze publicznym wynika prawo ich zatrzymania przez Operatora)
A49: rekompensata netto z tytułu stosowania obowiązujących ulg ustawowych w przewozach pasażerskich w krajowym transporcie drogowym na podstawie ustawy z dnia 20 czerwca 1992 r. o uprawnieniach do ulgowych przejazdów środkami publicznego transportu zbiorowego (t.j. Dz. U. z 2018 r. poz. 295) przysługująca Operatorowi na podstawie art. 52 ustawy z dnia 19 grudnia 2010 r. o publicznym transporcie zbiorowym | J49: rekompensata netto z tytułu stosowania obowiązujących ulg ustawowych w przewozach pasażerskich w krajowym transporcie drogowym na podstawie ustawy z dnia 20 czerwca 1992 r. o uprawnieniach do ulgowych przejazdów środkami publicznego transportu zbiorowego (t.j. Dz. U. z 2018 r. poz. 295) przysługująca Operatorowi na podstawie art. 52 ustawy z dnia 19 grudnia 2010 r. o publicznym transporcie zbiorowym | S49: rekompensata netto z tytułu stosowania obowiązujących ulg ustawowych w przewozach pasażerskich w krajowym transporcie drogowym na podstawie ustawy z dnia 20 czerwca 1992 r. o uprawnieniach do ulgowych przejazdów środkami publicznego transportu zbiorowego (t.j. Dz. U. z 2018 r. poz. 295) przysługująca Operatorowi na podstawie art. 52 ustawy z dnia 19 grudnia 2010 r. o publicznym transporcie zbiorowym | AB49: rekompensata netto z tytułu stosowania obowiązujących ulg ustawowych w przewozach pasażerskich w krajowym transporcie drogowym na podstawie ustawy z dnia 20 czerwca 1992 r. o uprawnieniach do ulgowych przejazdów środkami publicznego transportu zbiorowego (t.j. Dz. U. z 2018 r. poz. 295) przysługująca Operatorowi na podstawie art. 52 ustawy z dnia 19 grudnia 2010 r. o publicznym transporcie zbiorowym | AK49: rekompensata netto z tytułu stosowania obowiązujących ulg ustawowych w przewozach pasażerskich w krajowym transporcie drogowym na podstawie ustawy z dnia 20 czerwca 1992 r. o uprawnieniach do ulgowych przejazdów środkami publicznego transportu zbiorowego (t.j. Dz. U. z 2018 r. poz. 295) przysługująca Operatorowi na podstawie art. 52 ustawy z dnia 19 grudnia 2010 r. o publicznym transporcie zbiorowym | AT49: rekompensata netto z tytułu stosowania obowiązujących ulg ustawowych w przewozach pasażerskich w krajowym transporcie drogowym na podstawie ustawy z dnia 20 czerwca 1992 r. o uprawnieniach do ulgowych przejazdów środkami publicznego transportu zbiorowego (t.j. Dz. U. z 2018 r. poz. 295) przysługująca Operatorowi na podstawie art. 52 ustawy z dnia 19 grudnia 2010 r. o publicznym transporcie zbiorowym | BC49: rekompensata netto z tytułu stosowania obowiązujących ulg ustawowych w przewozach pasażerskich w krajowym transporcie drogowym na podstawie ustawy z dnia 20 czerwca 1992 r. o uprawnieniach do ulgowych przejazdów środkami publicznego transportu zbiorowego (t.j. Dz. U. z 2018 r. poz. 295) przysługująca Operatorowi na podstawie art. 52 ustawy z dnia 19 grudnia 2010 r. o publicznym transporcie zbiorowym | BL49: rekompensata netto z tytułu stosowania obowiązujących ulg ustawowych w przewozach pasażerskich w krajowym transporcie drogowym na podstawie ustawy z dnia 20 czerwca 1992 r. o uprawnieniach do ulgowych przejazdów środkami publicznego transportu zbiorowego (t.j. Dz. U. z 2018 r. poz. 295) przysługująca Operatorowi na podstawie art. 52 ustawy z dnia 19 grudnia 2010 r. o publicznym transporcie zbiorowym | BU49: rekompensata netto z tytułu stosowania obowiązujących ulg ustawowych w przewozach pasażerskich w krajowym transporcie drogowym na podstawie ustawy z dnia 20 czerwca 1992 r. o uprawnieniach do ulgowych przejazdów środkami publicznego transportu zbiorowego (t.j. Dz. U. z 2018 r. poz. 295) przysługująca Operatorowi na podstawie art. 52 ustawy z dnia 19 grudnia 2010 r. o publicznym transporcie zbiorowym | CD49: rekompensata netto z tytułu stosowania obowiązujących ulg ustawowych w przewozach pasażerskich w krajowym transporcie drogowym na podstawie ustawy z dnia 20 czerwca 1992 r. o uprawnieniach do ulgowych przejazdów środkami publicznego transportu zbiorowego (t.j. Dz. U. z 2018 r. poz. 295) przysługująca Operatorowi na podstawie art. 52 ustawy z dnia 19 grudnia 2010 r. o publicznym transporcie zbiorowym | CM49: rekompensata netto z tytułu stosowania obowiązujących ulg ustawowych w przewozach pasażerskich w krajowym transporcie drogowym na podstawie ustawy z dnia 20 czerwca 1992 r. o uprawnieniach do ulgowych przejazdów środkami publicznego transportu zbiorowego (t.j. Dz. U. z 2018 r. poz. 295) przysługująca Operatorowi na podstawie art. 52 ustawy z dnia 19 grudnia 2010 r. o publicznym transporcie zbiorowym | CV49: rekompensata netto z tytułu stosowania obowiązujących ulg ustawowych w przewozach pasażerskich w krajowym transporcie drogowym na podstawie ustawy z dnia 20 czerwca 1992 r. o uprawnieniach do ulgowych przejazdów środkami publicznego transportu zbiorowego (t.j. Dz. U. z 2018 r. poz. 295) przysługująca Operatorowi na podstawie art. 52 ustawy z dnia 19 grudnia 2010 r. o publicznym transporcie zbiorowym | DE49: rekompensata netto z tytułu stosowania obowiązujących ulg ustawowych w przewozach pasażerskich w krajowym transporcie drogowym na podstawie ustawy z dnia 20 czerwca 1992 r. o uprawnieniach do ulgowych przejazdów środkami publicznego transportu zbiorowego(t.j. Dz. U. z 2018 r. poz. 295) przysługująca Operatorowi na podstawie art. 52 ustawy z dnia 19 grudnia 2010 r. o publicznym transporcie zbiorowym
A50: łączna kwota netto pozostałych przychodów Operatora, pozostających w związku ze świadczeniem usług przewozów autobusowych o charakterze publicznym niewymienionych powyżej innych niż rekompensata | J50: łączna kwota netto pozostałych przychodów Operatora, pozostających w związku ze świadczeniem usług przewozów autobusowych o charakterze publicznym niewymienionych powyżej innych niż rekompensata | S50: łączna kwota netto pozostałych przychodów Operatora, pozostających w związku ze świadczeniem usług przewozów autobusowych o charakterze publicznym niewymienionych powyżej innych niż rekompensata | AB50: łączna kwota netto pozostałych przychodów Operatora, pozostających w związku ze świadczeniem usług przewozów autobusowych o charakterze publicznym niewymienionych powyżej innych niż rekompensata | AK50: łączna kwota netto pozostałych przychodów Operatora, pozostających w związku ze świadczeniem usług przewozów autobusowych o charakterze publicznym niewymienionych powyżej innych niż rekompensata | AT50: łączna kwota netto pozostałych przychodów Operatora, pozostających w związku ze świadczeniem usług przewozów autobusowych o charakterze publicznym niewymienionych powyżej innych niż rekompensata | BC50: łączna kwota netto pozostałych przychodów Operatora, pozostających w związku ze świadczeniem usług przewozów autobusowych o charakterze publicznym niewymienionych powyżej innych niż rekompensata | BL50: łączna kwota netto pozostałych przychodów Operatora, pozostających w związku ze świadczeniem usług przewozów autobusowych o charakterze publicznym niewymienionych powyżej innych niż rekompensata | BU50: łączna kwota netto pozostałych przychodów Operatora, pozostających w związku ze świadczeniem usług przewozów autobusowych o charakterze publicznym niewymienionych powyżej innych niż rekompensata | CD50: łączna kwota netto pozostałych przychodów Operatora, pozostających w związku ze świadczeniem usług przewozów autobusowych o charakterze publicznym niewymienionych powyżej innych niż rekompensata | CM50: łączna kwota netto pozostałych przychodów Operatora, pozostających w związku ze świadczeniem usług przewozów autobusowych o charakterze publicznym niewymienionych powyżej innych niż rekompensata | CV50: łączna kwota netto pozostałych przychodów Operatora, pozostających w związku ze świadczeniem usług przewozów autobusowych o charakterze publicznym niewymienionych powyżej innych niż rekompensata | DE50: łączna kwota netto pozostałych przychodów Operatora, pozostających w związku ze świadczeniem usług przewozów autobusowych o charakterze publicznym niewymienionych powyżej innych niż rekompensata
A51: KOSZTY W ODNIESIENIU DO LINII KOMUNIKACYJNEJ W DANYM OKRESIE | J51: KOSZTY W ODNIESIENIU DO LINII KOMUNIKACYJNEJ W DANYM OKRESIE | S51: KOSZTY W ODNIESIENIU DO LINII KOMUNIKACYJNEJ W DANYM OKRESIE | AB51: KOSZTY W ODNIESIENIU DO LINII KOMUNIKACYJNEJ W DANYM OKRESIE | AK51: KOSZTY W ODNIESIENIU DO LINII KOMUNIKACYJNEJ W DANYM OKRESIE | AT51: KOSZTY W ODNIESIENIU DO LINII KOMUNIKACYJNEJ W DANYM OKRESIE | BC51: KOSZTY W ODNIESIENIU DO LINII KOMUNIKACYJNEJ W DANYM OKRESIE | BL51: KOSZTY W ODNIESIENIU DO LINII KOMUNIKACYJNEJ W DANYM OKRESIE | BU51: KOSZTY W ODNIESIENIU DO LINII KOMUNIKACYJNEJ W DANYM OKRESIE | CD51: KOSZTY W ODNIESIENIU DO LINII KOMUNIKACYJNEJ W DANYM OKRESIE | CM51: KOSZTY W ODNIESIENIU DO LINII KOMUNIKACYJNEJ W DANYM OKRESIE | CV51: KOSZTY W ODNIESIENIU DO LINII KOMUNIKACYJNEJ W DANYM OKRESIE | DE51: KOSZTY W ODNIESIENIU DO LINII KOMUNIKACYJNEJ W DANYM OKRESIE
A52: DEFICYT W ODNIESIENIU DO LINII KOMUNIKACYJNEJ W DANYM OKRESIE | H52: =IF(H51<=H47,"BRAK DEFICYTU",H51-H47) -> BRAK DEFICYTU | J52: DEFICYT W ODNIESIENIU DO LINII KOMUNIKACYJNEJ W DANYM OKRESIE | Q52: =IF(Q51<=Q47,"BRAK DEFICYTU",Q51-Q47) -> BRAK DEFICYTU | S52: DEFICYT W ODNIESIENIU DO LINII KOMUNIKACYJNEJ W DANYM OKRESIE | Z52: =IF(Z51<=Z47,"BRAK DEFICYTU",Z51-Z47) -> BRAK DEFICYTU | AB52: DEFICYT W ODNIESIENIU DO LINII KOMUNIKACYJNEJ W DANYM OKRESIE | AI52: =IF(AI51<=AI47,"BRAK DEFICYTU",AI51-AI47) -> BRAK DEFICYTU | AK52: DEFICYT W ODNIESIENIU DO LINII KOMUNIKACYJNEJ W DANYM OKRESIE | AR52: =IF(AR51<=AR47,"BRAK DEFICYTU",AR51-AR47) -> BRAK DEFICYTU | AT52: DEFICYT W ODNIESIENIU DO LINII KOMUNIKACYJNEJ W DANYM OKRESIE | BA52: =IF(BA51<=BA47,"BRAK DEFICYTU",BA51-BA47) -> BRAK DEFICYTU | BC52: DEFICYT W ODNIESIENIU DO LINII KOMUNIKACYJNEJ W DANYM OKRESIE | BJ52: =IF(BJ51<=BJ47,"BRAK DEFICYTU",BJ51-BJ47) -> BRAK DEFICYTU | BL52: DEFICYT W ODNIESIENIU DO LINII KOMUNIKACYJNEJ W DANYM OKRESIE | BS52: =IF(BS51<=BS47,"BRAK DEFICYTU",BS51-BS47) -> BRAK DEFICYTU | BU52: DEFICYT W ODNIESIENIU DO LINII KOMUNIKACYJNEJ W DANYM OKRESIE | CB52: =IF(CB51<=CB47,"BRAK DEFICYTU",CB51-CB47) -> BRAK DEFICYTU | CD52: DEFICYT W ODNIESIENIU DO LINII KOMUNIKACYJNEJ W DANYM OKRESIE | CK52: =IF(CK51<=CK47,"BRAK DEFICYTU",CK51-CK47) -> BRAK DEFICYTU | CM52: DEFICYT W ODNIESIENIU DO LINII KOMUNIKACYJNEJ W DANYM OKRESIE | CT52: =IF(CT51<=CT47,"BRAK DEFICYTU",CT51-CT47) -> BRAK DEFICYTU | CV52: DEFICYT W ODNIESIENIU DO LINII KOMUNIKACYJNEJ W DANYM OKRESIE | DC52: =IF(DC51<=DC47,"BRAK DEFICYTU",DC51-DC47) -> BRAK DEFICYTU | DE52: DEFICYT W ODNIESIENIU DO LINII KOMUNIKACYJNEJ W DANYM OKRESIE | DL52: =IF(DL51<=DL47,"BRAK DEFICYTU",DL51-DL47) -> BRAK DEFICYTU
A53: DEFICYT W ODNIESIENIU DO LINII KOMUNIKACYJNEJ NA 1 WOZOKILOMETR | H53: =IF(G29=0,0,B46/G29) -> 0 | J53: DEFICYT W ODNIESIENIU DO LINII KOMUNIKACYJNEJ NA 1 WOZOKILOMETR | Q53: =IF(P29=0,0,K46/P29) -> 0 | S53: DEFICYT W ODNIESIENIU DO LINII KOMUNIKACYJNEJ NA 1 WOZOKILOMETR | Z53: =IF(Y29=0,0,T46/Y29) -> 0 | AB53: DEFICYT W ODNIESIENIU DO LINII KOMUNIKACYJNEJ NA 1 WOZOKILOMETR | AI53: =IF(AH29=0,0,AC46/AH29) -> 0 | AK53: DEFICYT W ODNIESIENIU DO LINII KOMUNIKACYJNEJ NA 1 WOZOKILOMETR | AR53: =IF(AQ29=0,0,AL46/AQ29) -> 0 | AT53: DEFICYT W ODNIESIENIU DO LINII KOMUNIKACYJNEJ NA 1 WOZOKILOMETR | BA53: =IF(AZ29=0,0,AU46/AZ29) -> 0 | BC53: DEFICYT W ODNIESIENIU DO LINII KOMUNIKACYJNEJ NA 1 WOZOKILOMETR | BJ53: =IF(BI29=0,0,BD46/BI29) -> 0 | BL53: DEFICYT W ODNIESIENIU DO LINII KOMUNIKACYJNEJ NA 1 WOZOKILOMETR | BS53: =IF(BR29=0,0,BM46/BR29) -> 0 | BU53: DEFICYT W ODNIESIENIU DO LINII KOMUNIKACYJNEJ NA 1 WOZOKILOMETR | CB53: =IF(CA29=0,0,BV46/CA29) -> 0 | CD53: DEFICYT W ODNIESIENIU DO LINII KOMUNIKACYJNEJ NA 1 WOZOKILOMETR | CK53: =IF(CJ29=0,0,CE46/CJ29) -> 0 | CM53: DEFICYT W ODNIESIENIU DO LINII KOMUNIKACYJNEJ NA 1 WOZOKILOMETR | CT53: =IF(CS29=0,0,CN46/CS29) -> 0 | CV53: DEFICYT W ODNIESIENIU DO LINII KOMUNIKACYJNEJ NA 1 WOZOKILOMETR | DC53: =IF(DB29=0,0,CW46/DB29) -> 0 | DE53: DEFICYT W ODNIESIENIU DO LINII KOMUNIKACYJNEJ NA 1 WOZOKILOMETR | DL53: =IF(DK29=0,0,DF46/DK29) -> 0
A54: KWOTA POKRYCIA DEFICYTU ZE ŚRODKÓW WŁASNYCH ORGANIZATORA DO 1 WOZOKILOMETRA PRACY EKSPLOATACYJNEJ | J54: KWOTA POKRYCIA DEFICYTU ZE ŚRODKÓW WŁASNYCH ORGANIZATORA DO 1 WOZOKILOMETRA PRACY EKSPLOATACYJNEJ | S54: KWOTA POKRYCIA DEFICYTU ZE ŚRODKÓW WŁASNYCH ORGANIZATORA DO 1 WOZOKILOMETRA PRACY EKSPLOATACYJNEJ | AB54: KWOTA POKRYCIA DEFICYTU ZE ŚRODKÓW WŁASNYCH ORGANIZATORA DO 1 WOZOKILOMETRA PRACY EKSPLOATACYJNEJ | AK54: KWOTA POKRYCIA DEFICYTU ZE ŚRODKÓW WŁASNYCH ORGANIZATORA DO 1 WOZOKILOMETRA PRACY EKSPLOATACYJNEJ | AT54: KWOTA POKRYCIA DEFICYTU ZE ŚRODKÓW WŁASNYCH ORGANIZATORA DO 1 WOZOKILOMETRA PRACY EKSPLOATACYJNEJ | BC54: KWOTA POKRYCIA DEFICYTU ZE ŚRODKÓW WŁASNYCH ORGANIZATORA DO 1 WOZOKILOMETRA PRACY EKSPLOATACYJNEJ | BL54: KWOTA POKRYCIA DEFICYTU ZE ŚRODKÓW WŁASNYCH ORGANIZATORA DO 1 WOZOKILOMETRA PRACY EKSPLOATACYJNEJ | BU54: KWOTA POKRYCIA DEFICYTU ZE ŚRODKÓW WŁASNYCH ORGANIZATORA DO 1 WOZOKILOMETRA PRACY EKSPLOATACYJNEJ | CD54: KWOTA POKRYCIA DEFICYTU ZE ŚRODKÓW WŁASNYCH ORGANIZATORA DO 1 WOZOKILOMETRA PRACY EKSPLOATACYJNEJ | CM54: KWOTA POKRYCIA DEFICYTU ZE ŚRODKÓW WŁASNYCH ORGANIZATORA DO 1 WOZOKILOMETRA PRACY EKSPLOATACYJNEJ | CV54: KWOTA POKRYCIA DEFICYTU ZE ŚRODKÓW WŁASNYCH ORGANIZATORA DO 1 WOZOKILOMETRA PRACY EKSPLOATACYJNEJ | DE54: KWOTA POKRYCIA DEFICYTU ZE ŚRODKÓW WŁASNYCH ORGANIZATORA DO 1 WOZOKILOMETRA PRACY EKSPLOATACYJNEJ
A55: NALEŻNA KWOTA DOPŁATY ZE ŚRODKÓW FUNDUSZU DO 1 WOZOKILOMETRA PRACY EKSPLOATACYJNEJ | J55: NALEŻNA KWOTA DOPŁATY ZE ŚRODKÓW FUNDUSZU DO 1 WOZOKILOMETRA PRACY EKSPLOATACYJNEJ | S55: NALEŻNA KWOTA DOPŁATY ZE ŚRODKÓW FUNDUSZU DO 1 WOZOKILOMETRA PRACY EKSPLOATACYJNEJ | AB55: NALEŻNA KWOTA DOPŁATY ZE ŚRODKÓW FUNDUSZU DO 1 WOZOKILOMETRA PRACY EKSPLOATACYJNEJ | AK55: NALEŻNA KWOTA DOPŁATY ZE ŚRODKÓW FUNDUSZU DO 1 WOZOKILOMETRA PRACY EKSPLOATACYJNEJ | AT55: NALEŻNA KWOTA DOPŁATY ZE ŚRODKÓW FUNDUSZU DO 1 WOZOKILOMETRA PRACY EKSPLOATACYJNEJ | BC55: NALEŻNA KWOTA DOPŁATY ZE ŚRODKÓW FUNDUSZU DO 1 WOZOKILOMETRA PRACY EKSPLOATACYJNEJ | BL55: NALEŻNA KWOTA DOPŁATY ZE ŚRODKÓW FUNDUSZU DO 1 WOZOKILOMETRA PRACY EKSPLOATACYJNEJ | BU55: NALEŻNA KWOTA DOPŁATY ZE ŚRODKÓW FUNDUSZU DO 1 WOZOKILOMETRA PRACY EKSPLOATACYJNEJ | CD55: NALEŻNA KWOTA DOPŁATY ZE ŚRODKÓW FUNDUSZU DO 1 WOZOKILOMETRA PRACY EKSPLOATACYJNEJ | CM55: NALEŻNA KWOTA DOPŁATY ZE ŚRODKÓW FUNDUSZU DO 1 WOZOKILOMETRA PRACY EKSPLOATACYJNEJ | CV55: NALEŻNA KWOTA DOPŁATY ZE ŚRODKÓW FUNDUSZU DO 1 WOZOKILOMETRA PRACY EKSPLOATACYJNEJ | DE55: NALEŻNA KWOTA DOPŁATY ZE ŚRODKÓW FUNDUSZU DO 1 WOZOKILOMETRA PRACY EKSPLOATACYJNEJ
A56: CAŁKOWITA KWOTA POKRYCIA DEFICYTU ZE ŚRODKÓW WŁASNYCH ORGANIZATORA (ILOCZYN DOPŁATY DO 1 WOZOKILOMETRA I PRACY EKSPLOATACYJNEJ) | H56: =H54*G29 -> 0 | J56: CAŁKOWITA KWOTA POKRYCIA DEFICYTU ZE ŚRODKÓW WŁASNYCH ORGANIZATORA (ILOCZYN DOPŁATY DO 1 WOZOKILOMETRA I PRACY EKSPLOATACYJNEJ) | Q56: =Q54*P29 -> 0 | S56: CAŁKOWITA KWOTA POKRYCIA DEFICYTU ZE ŚRODKÓW WŁASNYCH ORGANIZATORA (ILOCZYN DOPŁATY DO 1 WOZOKILOMETRA I PRACY EKSPLOATACYJNEJ) | Z56: =Z54*Y29 -> 0 | AB56: CAŁKOWITA KWOTA POKRYCIA DEFICYTU ZE ŚRODKÓW WŁASNYCH ORGANIZATORA (ILOCZYN DOPŁATY DO 1 WOZOKILOMETRA I PRACY EKSPLOATACYJNEJ) | AI56: =AI54*AH29 -> 0 | AK56: CAŁKOWITA KWOTA POKRYCIA DEFICYTU ZE ŚRODKÓW WŁASNYCH ORGANIZATORA (ILOCZYN DOPŁATY DO 1 WOZOKILOMETRA I PRACY EKSPLOATACYJNEJ) | AR56: =AR54*AQ29 -> 0 | AT56: CAŁKOWITA KWOTA POKRYCIA DEFICYTU ZE ŚRODKÓW WŁASNYCH ORGANIZATORA (ILOCZYN DOPŁATY DO 1 WOZOKILOMETRA I PRACY EKSPLOATACYJNEJ) | BA56: =BA54*AZ29 -> 0 | BC56: CAŁKOWITA KWOTA POKRYCIA DEFICYTU ZE ŚRODKÓW WŁASNYCH ORGANIZATORA (ILOCZYN DOPŁATY DO 1 WOZOKILOMETRA I PRACY EKSPLOATACYJNEJ) | BJ56: =BJ54*BI29 -> 0 | BL56: CAŁKOWITA KWOTA POKRYCIA DEFICYTU ZE ŚRODKÓW WŁASNYCH ORGANIZATORA (ILOCZYN DOPŁATY DO 1 WOZOKILOMETRA I PRACY EKSPLOATACYJNEJ) | BS56: =BS54*BR29 -> 0 | BU56: CAŁKOWITA KWOTA POKRYCIA DEFICYTU ZE ŚRODKÓW WŁASNYCH ORGANIZATORA (ILOCZYN DOPŁATY DO 1 WOZOKILOMETRA I PRACY EKSPLOATACYJNEJ) | CB56: =CB54*CA29 -> 0 | CD56: CAŁKOWITA KWOTA POKRYCIA DEFICYTU ZE ŚRODKÓW WŁASNYCH ORGANIZATORA (ILOCZYN DOPŁATY DO 1 WOZOKILOMETRA I PRACY EKSPLOATACYJNEJ) | CK56: =CK54*CJ29 -> 0 | CM56: CAŁKOWITA KWOTA POKRYCIA DEFICYTU ZE ŚRODKÓW WŁASNYCH ORGANIZATORA (ILOCZYN DOPŁATY DO 1 WOZOKILOMETRA I PRACY EKSPLOATACYJNEJ) | CT56: =CT54*CS29 -> 0 | CV56: CAŁKOWITA KWOTA POKRYCIA DEFICYTU ZE ŚRODKÓW WŁASNYCH ORGANIZATORA (ILOCZYN DOPŁATY DO 1 WOZOKILOMETRA I PRACY EKSPLOATACYJNEJ) | DC56: =DC54*DB29 -> 0 | DE56: CAŁKOWITA KWOTA POKRYCIA DEFICYTU ZE ŚRODKÓW WŁASNYCH ORGANIZATORA (ILOCZYN DOPŁATY DO 1 WOZOKILOMETRA I PRACY EKSPLOATACYJNEJ) | DL56: =DL54*DK29 -> 0
A57: CAŁKOWITA NALEŻNA KWOTA DOPŁATY ZE ŚRODKÓW FUNDUSZU (ILOCZYN DOPŁATY DO 1 WOZOKILOMETRA I PRACY EKSPLOATACYJNEJ) | H57: =H55*G29 -> 0 | J57: CAŁKOWITA NALEŻNA KWOTA DOPŁATY ZE ŚRODKÓW FUNDUSZU (ILOCZYN DOPŁATY DO 1 WOZOKILOMETRA I PRACY EKSPLOATACYJNEJ) | Q57: =Q55*P29 -> 0 | S57: CAŁKOWITA NALEŻNA KWOTA DOPŁATY ZE ŚRODKÓW FUNDUSZU (ILOCZYN DOPŁATY DO 1 WOZOKILOMETRA I PRACY EKSPLOATACYJNEJ) | Z57: =Z55*Y29 -> 0 | AB57: CAŁKOWITA NALEŻNA KWOTA DOPŁATY ZE ŚRODKÓW FUNDUSZU (ILOCZYN DOPŁATY DO 1 WOZOKILOMETRA I PRACY EKSPLOATACYJNEJ) | AI57: =AI55*AH29 -> 0 | AK57: CAŁKOWITA NALEŻNA KWOTA DOPŁATY ZE ŚRODKÓW FUNDUSZU (ILOCZYN DOPŁATY DO 1 WOZOKILOMETRA I PRACY EKSPLOATACYJNEJ) | AR57: =AR55*AQ29 -> 0 | AT57: CAŁKOWITA NALEŻNA KWOTA DOPŁATY ZE ŚRODKÓW FUNDUSZU (ILOCZYN DOPŁATY DO 1 WOZOKILOMETRA I PRACY EKSPLOATACYJNEJ) | BA57: =BA55*AZ29 -> 0 | BC57: CAŁKOWITA NALEŻNA KWOTA DOPŁATY ZE ŚRODKÓW FUNDUSZU (ILOCZYN DOPŁATY DO 1 WOZOKILOMETRA I PRACY EKSPLOATACYJNEJ) | BJ57: =BJ55*BI29 -> 0 | BL57: CAŁKOWITA NALEŻNA KWOTA DOPŁATY ZE ŚRODKÓW FUNDUSZU (ILOCZYN DOPŁATY DO 1 WOZOKILOMETRA I PRACY EKSPLOATACYJNEJ) | BS57: =BS55*BR29 -> 0 | BU57: CAŁKOWITA NALEŻNA KWOTA DOPŁATY ZE ŚRODKÓW FUNDUSZU (ILOCZYN DOPŁATY DO 1 WOZOKILOMETRA I PRACY EKSPLOATACYJNEJ) | CB57: =CB55*CA29 -> 0 | CD57: CAŁKOWITA NALEŻNA KWOTA DOPŁATY ZE ŚRODKÓW FUNDUSZU (ILOCZYN DOPŁATY DO 1 WOZOKILOMETRA I PRACY EKSPLOATACYJNEJ) | CK57: =CK55*CJ29 -> 0 | CM57: CAŁKOWITA NALEŻNA KWOTA DOPŁATY ZE ŚRODKÓW FUNDUSZU (ILOCZYN DOPŁATY DO 1 WOZOKILOMETRA I PRACY EKSPLOATACYJNEJ) | CT57: =CT55*CS29 -> 0 | CV57: CAŁKOWITA NALEŻNA KWOTA DOPŁATY ZE ŚRODKÓW FUNDUSZU (ILOCZYN DOPŁATY DO 1 WOZOKILOMETRA I PRACY EKSPLOATACYJNEJ) | DC57: =DC55*DB29 -> 0 | DE57: CAŁKOWITA NALEŻNA KWOTA DOPŁATY ZE ŚRODKÓW FUNDUSZU (ILOCZYN DOPŁATY DO 1 WOZOKILOMETRA I PRACY EKSPLOATACYJNEJ) | DL57: =DL55*DK29 -> 0
A59: PRZEWIDYWANA KWOTA DOPŁATY WE WNIOSKU O DOPŁATĘ ZA OKRES OBJĘTY SPRAWOZDANIEM | J59: PRZEWIDYWANA KWOTA DOPŁATY WE WNIOSKU O DOPŁATĘ ZA OKRES OBJĘTY SPRAWOZDANIEM | S59: PRZEWIDYWANA KWOTA DOPŁATY WE WNIOSKU O DOPŁATĘ ZA OKRES OBJĘTY SPRAWOZDANIEM | AB59: PRZEWIDYWANA KWOTA DOPŁATY WE WNIOSKU O DOPŁATĘ ZA OKRES OBJĘTY SPRAWOZDANIEM | AK59: PRZEWIDYWANA KWOTA DOPŁATY WE WNIOSKU O DOPŁATĘ ZA OKRES OBJĘTY SPRAWOZDANIEM | AT59: PRZEWIDYWANA KWOTA DOPŁATY WE WNIOSKU O DOPŁATĘ ZA OKRES OBJĘTY SPRAWOZDANIEM | BC59: PRZEWIDYWANA KWOTA DOPŁATY WE WNIOSKU O DOPŁATĘ ZA OKRES OBJĘTY SPRAWOZDANIEM | BL59: PRZEWIDYWANA KWOTA DOPŁATY WE WNIOSKU O DOPŁATĘ ZA OKRES OBJĘTY SPRAWOZDANIEM | BU59: PRZEWIDYWANA KWOTA DOPŁATY WE WNIOSKU O DOPŁATĘ ZA OKRES OBJĘTY SPRAWOZDANIEM | CD59: PRZEWIDYWANA KWOTA DOPŁATY WE WNIOSKU O DOPŁATĘ ZA OKRES OBJĘTY SPRAWOZDANIEM | CM59: PRZEWIDYWANA KWOTA DOPŁATY WE WNIOSKU O DOPŁATĘ ZA OKRES OBJĘTY SPRAWOZDANIEM | CV59: PRZEWIDYWANA KWOTA DOPŁATY WE WNIOSKU O DOPŁATĘ ZA OKRES OBJĘTY SPRAWOZDANIEM | DE59: PRZEWIDYWANA KWOTA DOPŁATY WE WNIOSKU O DOPŁATĘ ZA OKRES OBJĘTY SPRAWOZDANIEM
A60: RÓŻNICA MIĘDZY PRZEWIDYWANĄ A RZECZYWISTĄ KWOTĄ DOPŁATY ZE ŚRODKÓW FUNDUSZU W OKRESIE | H60: =H57-H59 -> 0 | J60: RÓŻNICA MIĘDZY PRZEWIDYWANĄ A RZECZYWISTĄ KWOTĄ DOPŁATY ZE ŚRODKÓW FUNDUSZU W OKRESIE | Q60: =Q57-Q59 -> 0 | S60: RÓŻNICA MIĘDZY PRZEWIDYWANĄ A RZECZYWISTĄ KWOTĄ DOPŁATY ZE ŚRODKÓW FUNDUSZU W OKRESIE | Z60: =Z57-Z59 -> 0 | AB60: RÓŻNICA MIĘDZY PRZEWIDYWANĄ A RZECZYWISTĄ KWOTĄ DOPŁATY ZE ŚRODKÓW FUNDUSZU W OKRESIE | AI60: =AI57-AI59 -> 0 | AK60: RÓŻNICA MIĘDZY PRZEWIDYWANĄ A RZECZYWISTĄ KWOTĄ DOPŁATY ZE ŚRODKÓW FUNDUSZU W OKRESIE | AR60: =AR57-AR59 -> 0 | AT60: RÓŻNICA MIĘDZY PRZEWIDYWANĄ A RZECZYWISTĄ KWOTĄ DOPŁATY ZE ŚRODKÓW FUNDUSZU W OKRESIE | BA60: =BA57-BA59 -> 0 | BC60: RÓŻNICA MIĘDZY PRZEWIDYWANĄ A RZECZYWISTĄ KWOTĄ DOPŁATY ZE ŚRODKÓW FUNDUSZU W OKRESIE | BJ60: =BJ57-BJ59 -> 0 | BL60: RÓŻNICA MIĘDZY PRZEWIDYWANĄ A RZECZYWISTĄ KWOTĄ DOPŁATY ZE ŚRODKÓW FUNDUSZU W OKRESIE | BS60: =BS57-BS59 -> 0 | BU60: RÓŻNICA MIĘDZY PRZEWIDYWANĄ A RZECZYWISTĄ KWOTĄ DOPŁATY ZE ŚRODKÓW FUNDUSZU W OKRESIE | CB60: =CB57-CB59 -> 0 | CD60: RÓŻNICA MIĘDZY PRZEWIDYWANĄ A RZECZYWISTĄ KWOTĄ DOPŁATY ZE ŚRODKÓW FUNDUSZU W OKRESIE | CK60: =CK57-CK59 -> 0 | CM60: RÓŻNICA MIĘDZY PRZEWIDYWANĄ A RZECZYWISTĄ KWOTĄ DOPŁATY ZE ŚRODKÓW FUNDUSZU W OKRESIE | CT60: =CT57-CT59 -> 0 | CV60: RÓŻNICA MIĘDZY PRZEWIDYWANĄ A RZECZYWISTĄ KWOTĄ DOPŁATY ZE ŚRODKÓW FUNDUSZU W OKRESIE | DC60: =DC57-DC59 -> 0 | DE60: RÓŻNICA MIĘDZY PRZEWIDYWANĄ A RZECZYWISTĄ KWOTĄ DOPŁATY ZE ŚRODKÓW FUNDUSZU W OKRESIE | DL60: =DL57-DL59 -> 0

Sheet WYCIĄG ZE SPRAWOZDANIA
A1: OKRES ROZLICZENIOWY | B1: TYP ORGANIZATORA | C1: ='SPRAWOZDANIE CZĘŚĆ I'!A5 -> NIP ORGANIZATORA | D1: NAZWA ORGANIZATORA | E1: KWOTA DOPŁATY | F1: WYRÓWNANIE | G1: NIEWYKORZYSTANA KWOTA DOPŁATY | H1: WKŁAD WŁASNY | J1: ŁĄCZNA LICZBA LINII | K1: ŁĄCZNA DŁUGOŚĆ LINII | L1: ŁĄCZNA LICZBA OPERATORÓW | M1: ŁĄCZNA WIELKOŚĆ PRACY EKSPLOATACYJNEJ | N1: KWOTA REKOMPENSATY PRZEKAZANA | O1: PRZEKAZANA REKOMPENSATA ZE ŚRODKÓW DOPŁATY
A2: ='SPRAWOZDANIE CZĘŚĆ I'!B2 -> 0 | B2: ='SPRAWOZDANIE CZĘŚĆ I'!D6 ->  | C2: ='SPRAWOZDANIE CZĘŚĆ I'!B5 -> 0 | D2: ='SPRAWOZDANIE CZĘŚĆ I'!B6 ->  | E2: ='SPRAWOZDANIE CZĘŚĆ I'!D24 -> 0 | F2: ='SPRAWOZDANIE CZĘŚĆ I'!D27 -> 0 | G2: ='SPRAWOZDANIE CZĘŚĆ I'!D26 -> 0 | H2: ='SPRAWOZDANIE CZĘŚĆ I'!D23 -> 0 | J2: ='SPRAWOZDANIE CZĘŚĆ I'!D16 -> 0 | K2: ='SPRAWOZDANIE CZĘŚĆ I'!D17 -> 0 | L2: ='SPRAWOZDANIE CZĘŚĆ I'!D18 -> 0 | M2: ='SPRAWOZDANIE CZĘŚĆ I'!D19 -> 0 | N2: ='SPRAWOZDANIE CZĘŚĆ I'!D28 -> 0 | O2: ='SPRAWOZDANIE CZĘŚĆ I'!D29 -> 0

Sheet Arkusz2 (hidden)
A1: NIP | B1: NAZWA | C1: WOJ. | D1: POW | E1: GMINA | F1: Kod pocztowy | G1: Miejscowość poczty | H1: Miejscowość | I1: Ulica | J1: nr nieruchomości | O1: TAK | P1: NIE
A2: 6282074477 | B2: GMINA ALWERNIA | C2: 12 | D2: 03 | E2: 014 | F2: 32566 | G2: Alwernia | H2: Alwernia | I2: ul. Zbigniewa Gęsikowskiego | J2: 7 | K2: GMINA | L2: =C2*100000+D2*1000+E2 -> 1203014 | M2: =VLOOKUP(L2,Arkusz3!A:L,2,0) ->  | N2: =IF(M2=M$1,L2-1,IF(M2=N$1,L2-2,L2)) -> 1203013 | O2: =VLOOKUP(N2,Arkusz3!A:L,5,0) -> 74 | P2: =VLOOKUP(N2,Arkusz3!A:L,6,0) -> 12640 | Q2: =VLOOKUP(N2,Arkusz3!A:L,8,0) -> 170 | R2: =VLOOKUP(N2,Arkusz3!AN:AP,3,0) -> 1849.95 | T2: I KWARTAŁ | U2: =IF('SPRAWOZDANIE CZĘŚĆ I'!$B$2=Arkusz2!$T$2,$V$2,IF('SPRAWOZDANIE CZĘŚĆ I'!$B$2=Arkusz2!$T$3,$V$3,IF('SPRAWOZDANIE CZĘŚĆ I'!$B$2=Arkusz2!$T$4,$V$4,$V$5))) -> 2023-10-01 | V2: 2023-01-01 | W2: 2023-03-31
A3: 5510013406 | B3: GMINA ANDRYCHÓW | C3: 12 | D3: 18 | E3: 014 | F3: 34120 | G3: Andrychów | H3: Andrychów | I3: Rynek | J3: 15 | K3: GMINA | L3: =C3*100000+D3*1000+E3 -> 1218014 | M3: =VLOOKUP(L3,Arkusz3!A:L,2,0) ->  | N3: =IF(M3=M$1,L3-1,IF(M3=N$1,L3-2,L3)) -> 1218013 | O3: =VLOOKUP(N3,Arkusz3!A:L,5,0) -> 100 | P3: =VLOOKUP(N3,Arkusz3!A:L,6,0) -> 43654 | Q3: =VLOOKUP(N3,Arkusz3!A:L,8,0) -> 435 | R3: =VLOOKUP(N3,Arkusz3!AN:AP,3,0) -> 1534.85 | T3: II KWARTAŁ | U3: =IF('SPRAWOZDANIE CZĘŚĆ I'!$B$2=Arkusz2!$T$2,$W$2,IF('SPRAWOZDANIE CZĘŚĆ I'!$B$2=Arkusz2!$T$3,$W$3,IF('SPRAWOZDANIE CZĘŚĆ I'!$B$2=Arkusz2!$T$4,$W$4,$W$5))) -> 2023-12-31 | V3: 2023-04-01 | W3: 2023-06-30
A4: 6282267905 | B4: GMINA BABICE | C4: 12 | D4: 03 | E4: 022 | F4: 32551 | G4: Babice | H4: Babice | I4: ul. Krakowska | J4: 56 | K4: GMINA | L4: 1203022 | M4: =VLOOKUP(L4,Arkusz3!A:L,2,0) -> Babice.......................................................................................................................................................................................................................................................... | N4: 1203022 | O4: =VLOOKUP(N4,Arkusz3!A:L,5,0) -> 55 | P4: =VLOOKUP(N4,Arkusz3!A:L,6,0) -> 9146 | Q4: =VLOOKUP(N4,Arkusz3!A:L,8,0) -> 169 | R4: =VLOOKUP(N4,Arkusz3!AN:AP,3,0) -> 1514.6 | T4: III KWARTAŁ | V4: 2023-07-01 | W4: 2023-09-30
A5: 7361717680 | B5: GMINA BIAŁY DUNAJEC | C5: 12 | D5: 17 | E5: 022 | F5: 34425 | G5: Biały Dunajec | H5: Biały Dunajec | I5: ul. Jana Pawła II | J5: 312 | K5: GMINA | L5: 1217022 | M5: =VLOOKUP(L5,Arkusz3!A:L,2,0) -> Biały Dunajec.......................................................................................................................................................................................................................................................... | N5: 1217022 | O5: =VLOOKUP(N5,Arkusz3!A:L,5,0) -> 35 | P5: =VLOOKUP(N5,Arkusz3!A:L,6,0) -> 7184 | Q5: =VLOOKUP(N5,Arkusz3!A:L,8,0) -> 204 | R5: =VLOOKUP(N5,Arkusz3!AN:AP,3,0) -> 990.23 | T5: IV KWARTAŁ | V5: 2023-10-01 | W5: 2023-12-31
A6: 7381973883 | B6: GMINA BIECZ | C6: 12 | D6: 05 | E6: 024 | F6: 38340 | G6: Biecz | H6: Biecz | I6: ul. Rynek | J6: 1 | K6: GMINA | L6: 1205024 | M6: =VLOOKUP(L6,Arkusz3!A:L,2,0) ->  | N6: 1205023 | O6: =VLOOKUP(N6,Arkusz3!A:L,5,0) -> 98 | P6: =VLOOKUP(N6,Arkusz3!A:L,6,0) -> 16858 | Q6: =VLOOKUP(N6,Arkusz3!A:L,8,0) -> 172 | R6: =VLOOKUP(N6,Arkusz3!AN:AP,3,0) -> 973.3
A7: 6831573055 | B7: GMINA BISKUPICE | C7: 12 | D7: 19 | E7: 012 | F7: 32020 | G7: Wieliczka | H7: Tomaszkowice | J7: 455 | K7: GMINA | L7: 1219012 | M7: =VLOOKUP(L7,Arkusz3!A:L,2,0) -> Biskupice.......................................................................................................................................................................................................................................................... | N7: 1219012 | O7: =VLOOKUP(N7,Arkusz3!A:L,5,0) -> 41 | P7: =VLOOKUP(N7,Arkusz3!A:L,6,0) -> 10330 | Q7: =VLOOKUP(N7,Arkusz3!A:L,8,0) -> 251 | R7: =VLOOKUP(N7,Arkusz3!AN:AP,3,0) -> 1294.37
A8: 7382129965 | B8: GMINA BOBOWA | C8: 12 | D8: 05 | E8: 034 | F8: 38350 | G8: Bobowa | H8: Bobowa | I8: ul. Rynek | J8: 21 | K8: GMINA | L8: 1205034 | M8: =VLOOKUP(L8,Arkusz3!A:L,2,0) ->  | N8: 1205033 | O8: =VLOOKUP(N8,Arkusz3!A:L,5,0) -> 50 | P8: =VLOOKUP(N8,Arkusz3!A:L,6,0) -> 9778 | Q8: =VLOOKUP(N8,Arkusz3!A:L,8,0) -> 196 | R8: =VLOOKUP(N8,Arkusz3!AN:AP,3,0) -> 677.37
A9: 8681001825 | B9: GMINA MIASTA BOCHNIA | C9: 12 | D9: 01 | E9: 011 | F9: 32700 | G9: Bochnia | H9: Bochnia | I9: ul. Kazimierza Wielkiego | J9: 2 | K9: GMINA | L9: 1201011 | M9: =VLOOKUP(L9,Arkusz3!A:L,2,0) -> Bochnia.......................................................................................................................................................................................................................................................... | N9: 1201011 | O9: =VLOOKUP(N9,Arkusz3!A:L,5,0) -> 30 | P9: =VLOOKUP(N9,Arkusz3!A:L,6,0) -> 29922 | Q9: =VLOOKUP(N9,Arkusz3!A:L,8,0) -> 1002 | R9: =VLOOKUP(N9,Arkusz3!AN:AP,3,0) -> 2176.94
A10: 8681021271 | B10: GMINA BOCHNIA | C10: 12 | D10: 01 | E10: 011 | F10: 32700 | G10: Bochnia | H10: Bochnia | I10: ul. Kazimierza Wielkiego | J10: 26 | K10: GMINA | L10: 1201011 | M10: =VLOOKUP(L10,Arkusz3!A:L,2,0) -> Bochnia.......................................................................................................................................................................................................................................................... | N10: 1201011 | O10: =VLOOKUP(N10,Arkusz3!A:L,5,0) -> 30 | P10: =VLOOKUP(N10,Arkusz3!A:L,6,0) -> 29922 | Q10: =VLOOKUP(N10,Arkusz3!A:L,8,0) -> 1002 | R10: =VLOOKUP(N10,Arkusz3!AN:AP,3,0) -> 2176.94
A11: 8711770280 | B11: GMINA BOLESŁAW (pow. dąbrowski) | C11: 12 | D11: 04 | E11: 012 | F11: 33220 | G11: Bolesław | H11: Bolesław | J11: 68 | K11: GMINA | L11: 1204012 | M11: =VLOOKUP(L11,Arkusz3!A:L,2,0) -> Bolesław.......................................................................................................................................................................................................................................................... | N11: 1204012 | O11: =VLOOKUP(N11,Arkusz3!A:L,5,0) -> 36 | P11: =VLOOKUP(N11,Arkusz3!A:L,6,0) -> 2682 | Q11: =VLOOKUP(N11,Arkusz3!A:L,8,0) -> 75 | R11: =VLOOKUP(N11,Arkusz3!AN:AP,3,0) -> 834.44
A12: 6371997976 | B12: GMINA BOLESŁAW (pow. olkuski) | C12: 12 | D12: 12 | E12: 032 | F12: 32329 | G12: Bolesław | H12: Bolesław | I12: ul. Główna | J12: 58 | K12: GMINA | L12: 1212032 | M12: =VLOOKUP(L12,Arkusz3!A:L,2,0) -> Bolesław.......................................................................................................................................................................................................................................................... | N12: 1212032 | O12: =VLOOKUP(N12,Arkusz3!A:L,5,0) -> 41 | P12: =VLOOKUP(N12,Arkusz3!A:L,6,0) -> 7786 | Q12: =VLOOKUP(N12,Arkusz3!A:L,8,0) -> 191 | R12: =VLOOKUP(N12,Arkusz3!AN:AP,3,0) -> 2594.73
A13: 8691318251 | B13: GMINA BORZĘCIN | C13: 12 | D13: 02 | E13: 012 | F13: 32825 | G13: Borzęcin | H13: Borzęcin | J13: 583G | K13: GMINA | L13: 1202012 | M13: =VLOOKUP(L13,Arkusz3!A:L,2,0) -> Borzęcin.......................................................................................................................................................................................................................................................... | N13: 1202012 | O13: =VLOOKUP(N13,Arkusz3!A:L,5,0) -> 103 | P13: =VLOOKUP(N13,Arkusz3!A:L,6,0) -> 8379 | Q13: =VLOOKUP(N13,Arkusz3!A:L,8,0) -> 82 | R13: =VLOOKUP(N13,Arkusz3!AN:AP,3,0) -> 1199.73
A14: 8691002648 | B14: GMINA BRZESKO | C14: 12 | D14: 02 | E14: 024 | F14: 32800 | G14: Brzesko | H14: Brzesko | I14: ul. Bartosza Głowackiego | J14: 51 | K14: GMINA | L14: 1202024 | M14: =VLOOKUP(L14,Arkusz3!A:L,2,0) ->  | N14: 1202023 | O14: =VLOOKUP(N14,Arkusz3!A:L,5,0) -> 103 | P14: =VLOOKUP(N14,Arkusz3!A:L,6,0) -> 36314 | Q14: =VLOOKUP(N14,Arkusz3!A:L,8,0) -> 354 | R14: =VLOOKUP(N14,Arkusz3!AN:AP,3,0) -> 1665.15
A15: 5492197470 | B15: GMINA BRZESZCZE | C15: 12 | D15: 13 | E15: 024 | F15: 32620 | G15: Brzeszcze | H15: Brzeszcze | I15: ul. Kościelna | J15: 4 | K15: GMINA | L15: 1213024 | M15: =VLOOKUP(L15,Arkusz3!A:L,2,0) ->  | N15: 1213023 | O15: =VLOOKUP(N15,Arkusz3!A:L,5,0) -> 46 | P15: =VLOOKUP(N15,Arkusz3!A:L,6,0) -> 21270 | Q15: =VLOOKUP(N15,Arkusz3!A:L,8,0) -> 466 | R15: =VLOOKUP(N15,Arkusz3!AN:AP,3,0) -> 2220.96
A16: 5511123918 | B16: GMINA BRZEŹNICA | C16: 12 | D16: 18 | E16: 022 | F16: 34114 | G16: Brzeźnica | H16: Brzeźnica | I16: ul. Krakowska | J16: 109 | K16: GMINA | L16: 1218022 | M16: =VLOOKUP(L16,Arkusz3!A:L,2,0) -> Brzeźnica.......................................................................................................................................................................................................................................................... | N16: 1218022 | O16: =VLOOKUP(N16,Arkusz3!A:L,5,0) -> 66 | P16: =VLOOKUP(N16,Arkusz3!A:L,6,0) -> 10345 | Q16: =VLOOKUP(N16,Arkusz3!A:L,8,0) -> 156 | R16: =VLOOKUP(N16,Arkusz3!AN:AP,3,0) -> 1192.31
A17: 5521677860 | B17: GMINA BUDZÓW | C17: 12 | D17: 15 | E17: 032 | F17: 34211 | G17: Budzów | H17: Budzów | J17: 445 | K17: GMINA | L17: 1215032 | M17: =VLOOKUP(L17,Arkusz3!A:L,2,0) -> Budzów.......................................................................................................................................................................................................................................................... | N17: 1215032 | O17: =VLOOKUP(N17,Arkusz3!A:L,5,0) -> 74 | P17: =VLOOKUP(N17,Arkusz3!A:L,6,0) -> 8946 | Q17: =VLOOKUP(N17,Arkusz3!A:L,8,0) -> 122 | R17: =VLOOKUP(N17,Arkusz3!AN:AP,3,0) -> 800.17
A18: 7361717220 | B18: GMINA BUKOWINA TATRZAŃSKA | C18: 12 | D18: 17 | E18: 032 | F18: 34530 | G18: Bukowina Tatrzańska | H18: Bukowina Tatrzańska | I18: ul. Długa | J18: 144 | K18: GMINA | L18: 1217032 | M18: =VLOOKUP(L18,Arkusz3!A:L,2,0) -> Bukowina Tatrzańska.......................................................................................................................................................................................................................................................... | N18: 1217032 | O18: =VLOOKUP(N18,Arkusz3!A:L,5,0) -> 132 | P18: =VLOOKUP(N18,Arkusz3!A:L,6,0) -> 13351 | Q18: =VLOOKUP(N18,Arkusz3!A:L,8,0) -> 101 | R18: =VLOOKUP(N18,Arkusz3!AN:AP,3,0) -> 1622.97
A19: 6371998065 | B19: GMINA BUKOWNO | C19: 12 | D19: 12 | E19: 011 | F19: 32332 | G19: Bukowno | H19: Bukowno | I19: ul. Kolejowa | J19: 16 | K19: GMINA | L19: 1212011 | M19: =VLOOKUP(L19,Arkusz3!A:L,2,0) -> Bukowno.......................................................................................................................................................................................................................................................... | N19: 1212011 | O19: =VLOOKUP(N19,Arkusz3!A:L,5,0) -> 65 | P19: =VLOOKUP(N19,Arkusz3!A:L,6,0) -> 10197 | Q19: =VLOOKUP(N19,Arkusz3!A:L,8,0) -> 158 | R19: =VLOOKUP(N19,Arkusz3!AN:AP,3,0) -> 2718.4
A20: 5521570518 | B20: GMINA BYSTRA-SIDZINA W BYSTREJ PODHALAŃSKIEJ | C20: 12 | D20: 15 | E20: 042 | F20: 34235 | G20: Bystra Podhalańska | H20: Bystra Podhalańska | J20: 373 | K20: GMINA | L20: 1215042 | M20: =VLOOKUP(L20,Arkusz3!A:L,2,0) -> Bystra-Sidzina.......................................................................................................................................................................................................................................................... | N20: 1215042 | O20: =VLOOKUP(N20,Arkusz3!A:L,5,0) -> 81 | P20: =VLOOKUP(N20,Arkusz3!A:L,6,0) -> 6859 | Q20: =VLOOKUP(N20,Arkusz3!A:L,8,0) -> 85 | R20: =VLOOKUP(N20,Arkusz3!AN:AP,3,0) -> 820.86
A21: 6591153915 | B21: GMINA CHARSZNICA | C21: 12 | D21: 08 | E21: 012 | F21: 32250 | G21: Charsznica | H21: Miechów-Charsznica | J21: 20 | K21: GMINA | L21: 1208012 | M21: =VLOOKUP(L21,Arkusz3!A:L,2,0) -> Charsznica.......................................................................................................................................................................................................................................................... | N21: 1208012 | O21: =VLOOKUP(N21,Arkusz3!A:L,5,0) -> 78 | P21: =VLOOKUP(N21,Arkusz3!A:L,6,0) -> 7464 | Q21: =VLOOKUP(N21,Arkusz3!A:L,8,0) -> 95 | R21: =VLOOKUP(N21,Arkusz3!AN:AP,3,0) -> 999.66
A22: 5492197441 | B22: GMINA CHEŁMEK | C22: 12 | D22: 13 | E22: 034 | F22: 32660 | G22: Chełmek | H22: Chełmek | I22: ul. Krakowska | J22: 11 | K22: GMINA | L22: 1213034 | M22: =VLOOKUP(L22,Arkusz3!A:L,2,0) ->  | N22: 1213033 | O22: =VLOOKUP(N22,Arkusz3!A:L,5,0) -> 27 | P22: =VLOOKUP(N22,Arkusz3!A:L,6,0) -> 12999 | Q22: =VLOOKUP(N22,Arkusz3!A:L,8,0) -> 476 | R22: =VLOOKUP(N22,Arkusz3!AN:AP,3,0) -> 1661.22
A23: 7343445768 | B23: GMINA CHEŁMIEC | C23: 12 | D23: 10 | E23: 022 | F23: 33395 | G23: Chełmiec | H23: Chełmiec | I23: ul. Papieska | J23: 2 | K23: GMINA | L23: 1210022 | M23: =VLOOKUP(L23,Arkusz3!A:L,2,0) -> Chełmiec.......................................................................................................................................................................................................................................................... | N23: 1210022 | O23: =VLOOKUP(N23,Arkusz3!A:L,5,0) -> 112 | P23: =VLOOKUP(N23,Arkusz3!A:L,6,0) -> 28572 | Q23: =VLOOKUP(N23,Arkusz3!A:L,8,0) -> 255 | R23: =VLOOKUP(N23,Arkusz3!AN:AP,3,0) -> 1550.01
A24: 6282260665 | B24: GMINA CHRZANÓW | C24: 12 | D24: 03 | E24: 034 | F24: 32500 | G24: Chrzanów | H24: Chrzanów | I24: ul. Aleja Henryka | J24: 20 | K24: GMINA | L24: 1203034 | M24: =VLOOKUP(L24,Arkusz3!A:L,2,0) ->  | N24: 1203033 | O24: =VLOOKUP(N24,Arkusz3!A:L,5,0) -> 79 | P24: =VLOOKUP(N24,Arkusz3!A:L,6,0) -> 47169 | Q24: =VLOOKUP(N24,Arkusz3!A:L,8,0) -> 594 | R24: =VLOOKUP(N24,Arkusz3!AN:AP,3,0) -> 1886.18
A25: 8731014848 | B25: GMINA CIĘŻKOWICE | C25: 12 | D25: 16 | E25: 014 | F25: 33190 | G25: Ciężkowice | H25: Ciężkowice | I25: ul. Tysiąclecia | J25: 19 | K25: GMINA | L25: 1216014 | M25: =VLOOKUP(L25,Arkusz3!A:L,2,0) ->  | N25: 1216013 | O25: =VLOOKUP(N25,Arkusz3!A:L,5,0) -> 103 | P25: =VLOOKUP(N25,Arkusz3!A:L,6,0) -> 11232 | Q25: =VLOOKUP(N25,Arkusz3!A:L,8,0) -> 109 | R25: =VLOOKUP(N25,Arkusz3!AN:AP,3,0) -> 872.34
A26: 7352843273 | B26: GMINA CZARNY DUNAJEC | C26: 12 | D26: 11 | E26: 032 | F26: 34470 | G26: Czarny Dunajec | H26: Czarny Dunajec | I26: ul. Józefa Piłsudskiego | J26: 2 | K26: GMINA | L26: 1211032 | M26: =VLOOKUP(L26,Arkusz3!A:L,2,0) -> Czarny Dunajec.......................................................................................................................................................................................................................................................... | N26: 1211032 | O26: =VLOOKUP(N26,Arkusz3!A:L,5,0) -> 218 | P26: =VLOOKUP(N26,Arkusz3!A:L,6,0) -> 22527 | Q26: =VLOOKUP(N26,Arkusz3!A:L,8,0) -> 104 | R26: =VLOOKUP(N26,Arkusz3!AN:AP,3,0) -> 599.09
A27: 8691291026 | B27: GMINA CZCHÓW | C27: 12 | D27: 02 | E27: 034 | F27: 32860 | G27: Czchów | H27: Czchów | I27: rynek Rynek | J27: 12 | K27: GMINA | L27: 1202034 | M27: =VLOOKUP(L27,Arkusz3!A:L,2,0) ->  | N27: 1202033 | O27: =VLOOKUP(N27,Arkusz3!A:L,5,0) -> 66 | P27: =VLOOKUP(N27,Arkusz3!A:L,6,0) -> 9803 | Q27: =VLOOKUP(N27,Arkusz3!A:L,8,0) -> 148 | R27: =VLOOKUP(N27,Arkusz3!AN:AP,3,0) -> 1046.6
A28: 9442253228 | B28: GMINA CZERNICHÓW | C28: 12 | D28: 06 | E28: 012 | F28: 32070 | G28: Czernichów | H28: Czernichów | I28: ul. Gminna | J28: 1 | K28: GMINA | L28: 1206012 | M28: =VLOOKUP(L28,Arkusz3!A:L,2,0) -> Czernichów.......................................................................................................................................................................................................................................................... | N28: 1206012 | O28: =VLOOKUP(N28,Arkusz3!A:L,5,0) -> 85 | P28: =VLOOKUP(N28,Arkusz3!A:L,6,0) -> 14587 | Q28: =VLOOKUP(N28,Arkusz3!A:L,8,0) -> 173 | R28: =VLOOKUP(N28,Arkusz3!AN:AP,3,0) -> 1422.42
A29: 7352851410 | B29: GMINA CZORSZTYN | C29: 12 | D29: 11 | E29: 042 | F29: 34436 | G29: Maniowy | H29: Maniowy | I29: ul. Gorczańska | J29: 3 | K29: GMINA | L29: 1211042 | M29: =VLOOKUP(L29,Arkusz3!A:L,2,0) -> Czorsztyn.......................................................................................................................................................................................................................................................... | N29: 1211042 | O29: =VLOOKUP(N29,Arkusz3!A:L,5,0) -> 62 | P29: =VLOOKUP(N29,Arkusz3!A:L,6,0) -> 7631 | Q29: =VLOOKUP(N29,Arkusz3!A:L,8,0) -> 123 | R29: =VLOOKUP(N29,Arkusz3!AN:AP,3,0) -> 1183.41
A30: 8711771055 | B30: GMINA DĄBROWA TARNOWSKA | C30: 12 | D30: 04 | E30: 024 | F30: 33200 | G30: Dąbrowa Tarnowska | H30: Dąbrowa Tarnowska | I30: rynek Rynek | J30: 34 | K30: GMINA | L30: 1204024 | M30: =VLOOKUP(L30,Arkusz3!A:L,2,0) ->  | N30: 1204023 | O30: =VLOOKUP(N30,Arkusz3!A:L,5,0) -> 116 | P30: =VLOOKUP(N30,Arkusz3!A:L,6,0) -> 21287 | Q30: =VLOOKUP(N30,Arkusz3!A:L,8,0) -> 183 | R30: =VLOOKUP(N30,Arkusz3!AN:AP,3,0) -> 1032.42
A31: 8691326517 | B31: GMINA DĘBNO | C31: 12 | D31: 02 | E31: 042 | F31: 32852 | G31: Dębno | H31: Wola Dębińska | J31: 240 | K31: GMINA | L31: 1202042 | M31: =VLOOKUP(L31,Arkusz3!A:L,2,0) -> Dębno.......................................................................................................................................................................................................................................................... | N31: 1202042 | O31: =VLOOKUP(N31,Arkusz3!A:L,5,0) -> 82 | P31: =VLOOKUP(N31,Arkusz3!A:L,6,0) -> 14723 | Q31: =VLOOKUP(N31,Arkusz3!A:L,8,0) -> 180 | R31: =VLOOKUP(N31,Arkusz3!AN:AP,3,0) -> 1019
A32: 6811004443 | B32: GMINA DOBCZYCE | C32: 12 | D32: 09 | E32: 014 | F32: 32410 | G32: Dobczyce | H32: Dobczyce | I32: ul. Rynek | J32: 26 | K32: GMINA | L32: 1209014 | M32: =VLOOKUP(L32,Arkusz3!A:L,2,0) ->  | N32: 1209013 | O32: =VLOOKUP(N32,Arkusz3!A:L,5,0) -> 66 | P32: =VLOOKUP(N32,Arkusz3!A:L,6,0) -> 15272 | Q32: =VLOOKUP(N32,Arkusz3!A:L,8,0) -> 230 | R32: =VLOOKUP(N32,Arkusz3!AN:AP,3,0) -> 1728.97
A33: 7371005969 | B33: GMINA DOBRA | C33: 12 | D33: 07 | E33: 032 | F33: 34642 | G33: Dobra | H33: Dobra | J33: 233 | K33: GMINA | L33: 1207032 | M33: =VLOOKUP(L33,Arkusz3!A:L,2,0) -> Dobra.......................................................................................................................................................................................................................................................... | N33: 1207032 | O33: =VLOOKUP(N33,Arkusz3!A:L,5,0) -> 110 | P33: =VLOOKUP(N33,Arkusz3!A:L,6,0) -> 9967 | Q33: =VLOOKUP(N33,Arkusz3!A:L,8,0) -> 91 | R33: =VLOOKUP(N33,Arkusz3!AN:AP,3,0) -> 949.95
A34: 6831718453 | B34: GMINA DRWINIA | C34: 12 | D34: 01 | E34: 032 | F34: 32709 | G34: Drwinia | H34: Drwinia | J34: 57 | K34: GMINA | L34: 1201032 | M34: =VLOOKUP(L34,Arkusz3!A:L,2,0) -> Drwinia.......................................................................................................................................................................................................................................................... | N34: 1201032 | O34: =VLOOKUP(N34,Arkusz3!A:L,5,0) -> 108 | P34: =VLOOKUP(N34,Arkusz3!A:L,6,0) -> 6517 | Q34: =VLOOKUP(N34,Arkusz3!A:L,8,0) -> 60 | R34: =VLOOKUP(N34,Arkusz3!AN:AP,3,0) -> 1109.4
A35: 6831006563 | B35: GMINA GDÓW | C35: 12 | D35: 19 | E35: 022 | F35: 32420 | G35: Gdów | H35: Gdów | J35: 40 | K35: GMINA | L35: 1219022 | M35: =VLOOKUP(L35,Arkusz3!A:L,2,0) -> Gdów.......................................................................................................................................................................................................................................................... | N35: 1219022 | O35: =VLOOKUP(N35,Arkusz3!A:L,5,0) -> 109 | P35: =VLOOKUP(N35,Arkusz3!A:L,6,0) -> 18188 | Q35: =VLOOKUP(N35,Arkusz3!A:L,8,0) -> 167 | R35: =VLOOKUP(N35,Arkusz3!AN:AP,3,0) -> 1367.47
A36: 8691186447 | B36: GMINA GNOJNIK | C36: 12 | D36: 02 | E36: 052 | F36: 32864 | G36: Gnojnik | H36: Gnojnik | J36: 363 | K36: GMINA | L36: 1202052 | M36: =VLOOKUP(L36,Arkusz3!A:L,2,0) -> Gnojnik.......................................................................................................................................................................................................................................................... | N36: 1202052 | O36: =VLOOKUP(N36,Arkusz3!A:L,5,0) -> 55 | P36: =VLOOKUP(N36,Arkusz3!A:L,6,0) -> 8027 | Q36: =VLOOKUP(N36,Arkusz3!A:L,8,0) -> 146 | R36: =VLOOKUP(N36,Arkusz3!AN:AP,3,0) -> 1001.32
A37: 6591545880 | B37: GMINA GOŁCZA | C37: 12 | D37: 08 | E37: 022 | F37: 32075 | G37: Gołcza | H37: Gołcza | J37: 80 | K37: GMINA | L37: 1208022 | M37: =VLOOKUP(L37,Arkusz3!A:L,2,0) -> Gołcza.......................................................................................................................................................................................................................................................... | N37: 1208022 | O37: =VLOOKUP(N37,Arkusz3!A:L,5,0) -> 90 | P37: =VLOOKUP(N37,Arkusz3!A:L,6,0) -> 6078 | Q37: =VLOOKUP(N37,Arkusz3!A:L,8,0) -> 68 | R37: =VLOOKUP(N37,Arkusz3!AN:AP,3,0) -> 1019.03
A38: 7382125507 | B38: MIASTO GORLICE | C38: 12 | D38: 05 | E38: 011 | F38: 38300 | G38: Gorlice | H38: Gorlice | I38: Rynek | J38: 2 | K38: GMINA | L38: 1205011 | M38: =VLOOKUP(L38,Arkusz3!A:L,2,0) -> Gorlice.......................................................................................................................................................................................................................................................... | N38: 1205011 | O38: =VLOOKUP(N38,Arkusz3!A:L,5,0) -> 24 | P38: =VLOOKUP(N38,Arkusz3!A:L,6,0) -> 27597 | Q38: =VLOOKUP(N38,Arkusz3!A:L,8,0) -> 1173 | R38: =VLOOKUP(N38,Arkusz3!AN:AP,3,0) -> 1616.68
A39: 7382131749 | B39: GMINA GORLICE | C39: 12 | D39: 05 | E39: 011 | F39: 38300 | G39: Gorlice | H39: Gorlice | I39: ul. 11 Listopada | J39: 2 | K39: GMINA | L39: 1205011 | M39: =VLOOKUP(L39,Arkusz3!A:L,2,0) -> Gorlice.......................................................................................................................................................................................................................................................... | N39: 1205011 | O39: =VLOOKUP(N39,Arkusz3!A:L,5,0) -> 24 | P39: =VLOOKUP(N39,Arkusz3!A:L,6,0) -> 27597 | Q39: =VLOOKUP(N39,Arkusz3!A:L,8,0) -> 1173 | R39: =VLOOKUP(N39,Arkusz3!AN:AP,3,0) -> 1616.68
A40: 8711771090 | B40: GMINA GRĘBOSZÓW | C40: 12 | D40: 04 | E40: 032 | F40: 33260 | G40: Gręboszów | H40: Gręboszów | J40: 144 | K40: GMINA | L40: 1204032 | M40: =VLOOKUP(L40,Arkusz3!A:L,2,0) -> Gręboszów.......................................................................................................................................................................................................................................................... | N40: 1204032 | O40: =VLOOKUP(N40,Arkusz3!A:L,5,0) -> 49 | P40: =VLOOKUP(N40,Arkusz3!A:L,6,0) -> 3368 | Q40: =VLOOKUP(N40,Arkusz3!A:L,8,0) -> 69 | R40: =VLOOKUP(N40,Arkusz3!AN:AP,3,0) -> 884.26
A41: 8732614007 | B41: GMINA GROMNIK | C41: 12 | D41: 16 | E41: 022 | F41: 33180 | G41: Gromnik | H41: Gromnik | I41: ul. Witosa | J41: 2 | K41: GMINA | L41: 1216022 | M41: =VLOOKUP(L41,Arkusz3!A:L,2,0) -> Gromnik.......................................................................................................................................................................................................................................................... | N41: 1216022 | O41: =VLOOKUP(N41,Arkusz3!A:L,5,0) -> 70 | P41: =VLOOKUP(N41,Arkusz3!A:L,6,0) -> 8899 | Q41: =VLOOKUP(N41,Arkusz3!A:L,8,0) -> 128 | R41: =VLOOKUP(N41,Arkusz3!AN:AP,3,0) -> 705.97
A42: 7343482812 | B42: GMINA GRÓDEK NAD DUNAJCEM | C42: 12 | D42: 10 | E42: 032 | F42: 33318 | G42: Gródek nad Dunajcem | H42: Gródek nad Dunajcem | J42: 54 | K42: GMINA | L42: 1210032 | M42: =VLOOKUP(L42,Arkusz3!A:L,2,0) -> Gródek nad Dunajcem.......................................................................................................................................................................................................................................................... | N42: 1210032 | O42: =VLOOKUP(N42,Arkusz3!A:L,5,0) -> 88 | P42: =VLOOKUP(N42,Arkusz3!A:L,6,0) -> 9239 | Q42: =VLOOKUP(N42,Arkusz3!A:L,8,0) -> 105 | R42: =VLOOKUP(N42,Arkusz3!AN:AP,3,0) -> 1321.72
A43: 7381010274 | B43: MIASTO GRYBÓW | C43: 12 | D43: 10 | E43: 011 | F43: 33330 | G43: Grybów | H43: Grybów | I43: ul. Rynek | J43: 12 | K43: GMINA | L43: 1210011 | M43: =VLOOKUP(L43,Arkusz3!A:L,2,0) -> Grybów.......................................................................................................................................................................................................................................................... | N43: 1210011 | O43: =VLOOKUP(N43,Arkusz3!A:L,5,0) -> 17 | P43: =VLOOKUP(N43,Arkusz3!A:L,6,0) -> 6038 | Q43: =VLOOKUP(N43,Arkusz3!A:L,8,0) -> 356 | R43: =VLOOKUP(N43,Arkusz3!AN:AP,3,0) -> 951.62
A44: 7343515546 | B44: GMINA GRYBÓW | C44: 12 | D44: 10 | E44: 011 | F44: 33330 | G44: Grybów | H44: Grybów | I44: ul. Jakubowskiego | J44: 33 | K44: GMINA | L44: 1210011 | M44: =VLOOKUP(L44,Arkusz3!A:L,2,0) -> Grybów.......................................................................................................................................................................................................................................................... | N44: 1210011 | O44: =VLOOKUP(N44,Arkusz3!A:L,5,0) -> 17 | P44: =VLOOKUP(N44,Arkusz3!A:L,6,0) -> 6038 | Q44: =VLOOKUP(N44,Arkusz3!A:L,8,0) -> 356 | R44: =VLOOKUP(N44,Arkusz3!AN:AP,3,0) -> 951.62
A45: 6821642228 | B45: GMINA IGOŁOMIA-WAWRZEŃCZYCE | C45: 12 | D45: 06 | E45: 022 | F45: 32125 | G45: Wawrzeńczyce | H45: Wawrzeńczyce | J45: 57 | K45: GMINA | L45: 1206022 | M45: =VLOOKUP(L45,Arkusz3!A:L,2,0) -> Igołomia-Wawrzeńczyce.......................................................................................................................................................................................................................................................... | N45: 1206022 | O45: =VLOOKUP(N45,Arkusz3!A:L,5,0) -> 63 | P45: =VLOOKUP(N45,Arkusz3!A:L,6,0) -> 7724 | Q45: =VLOOKUP(N45,Arkusz3!A:L,8,0) -> 123 | R45: =VLOOKUP(N45,Arkusz3!AN:AP,3,0) -> 1277.04
A46: 6821634453 | B46: GMINA IWANOWICE | C46: 12 | D46: 06 | E46: 032 | F46: 32095 | G46: Iwanowice Włościańskie | H46: Iwanowice Włościańskie | J46: 99 | K46: GMINA | L46: 1206032 | M46: =VLOOKUP(L46,Arkusz3!A:L,2,0) -> Iwanowice.......................................................................................................................................................................................................................................................... | N46: 1206032 | O46: =VLOOKUP(N46,Arkusz3!A:L,5,0) -> 71 | P46: =VLOOKUP(N46,Arkusz3!A:L,6,0) -> 9135 | Q46: =VLOOKUP(N46,Arkusz3!A:L,8,0) -> 128 | R46: =VLOOKUP(N46,Arkusz3!AN:AP,3,0) -> 1306.38
A47: 8691212363 | B47: GMINA IWKOWA | C47: 12 | D47: 02 | E47: 062 | F47: 32861 | G47: Iwkowa | H47: Iwkowa | J47: 468 | K47: GMINA | L47: 1202062 | M47: =VLOOKUP(L47,Arkusz3!A:L,2,0) -> Iwkowa.......................................................................................................................................................................................................................................................... | N47: 1202062 | O47: =VLOOKUP(N47,Arkusz3!A:L,5,0) -> 47 | P47: =VLOOKUP(N47,Arkusz3!A:L,6,0) -> 6426 | Q47: =VLOOKUP(N47,Arkusz3!A:L,8,0) -> 136 | R47: =VLOOKUP(N47,Arkusz3!AN:AP,3,0) -> 973.47
A48: 7352856459 | B48: GMINA JABŁONKA | C48: 12 | D48: 11 | E48: 052 | F48: 34480 | G48: Jabłonka | H48: Jabłonka | I48: ul. 3 Maja | J48: 1 | K48: GMINA | L48: 1211052 | M48: =VLOOKUP(L48,Arkusz3!A:L,2,0) -> Jabłonka.......................................................................................................................................................................................................................................................... | N48: 1211052 | O48: =VLOOKUP(N48,Arkusz3!A:L,5,0) -> 212 | P48: =VLOOKUP(N48,Arkusz3!A:L,6,0) -> 18589 | Q48: =VLOOKUP(N48,Arkusz3!A:L,8,0) -> 87 | R48: =VLOOKUP(N48,Arkusz3!AN:AP,3,0) -> 899.94
A49: 6772019451 | B49: GMINA JERZMANOWICE-PRZEGINIA | C49: 12 | D49: 06 | E49: 042 | F49: 32048 | G49: Jerzmanowice | H49: Jerzmanowice | I49: ul. Rajska | J49: 22 | K49: GMINA | L49: 1206042 | M49: =VLOOKUP(L49,Arkusz3!A:L,2,0) -> Jerzmanowice-Przeginia.......................................................................................................................................................................................................................................................... | N49: 1206042 | O49: =VLOOKUP(N49,Arkusz3!A:L,5,0) -> 68 | P49: =VLOOKUP(N49,Arkusz3!A:L,6,0) -> 10935 | Q49: =VLOOKUP(N49,Arkusz3!A:L,8,0) -> 160 | R49: =VLOOKUP(N49,Arkusz3!AN:AP,3,0) -> 1243.66
A50: 7371007419 | B50: GMINA JODŁOWNIK | C50: 12 | D50: 07 | E50: 042 | F50: 34620 | G50: Jodłownik | H50: Jodłownik | J50: 198 | K50: GMINA | L50: 1207042 | M50: =VLOOKUP(L50,Arkusz3!A:L,2,0) -> Jodłownik.......................................................................................................................................................................................................................................................... | N50: 1207042 | O50: =VLOOKUP(N50,Arkusz3!A:L,5,0) -> 72 | P50: =VLOOKUP(N50,Arkusz3!A:L,6,0) -> 8667 | Q50: =VLOOKUP(N50,Arkusz3!A:L,8,0) -> 120 | R50: =VLOOKUP(N50,Arkusz3!AN:AP,3,0) -> 943.48
A51: 5521579821 | B51: MIASTO JORDANÓW | C51: 12 | D51: 15 | E51: 011 | F51: 34240 | G51: Jordanów | H51: Jordanów | I51: ul. Rynek | J51: 1 | K51: GMINA | L51: 1215011 | M51: =VLOOKUP(L51,Arkusz3!A:L,2,0) -> Jordanów.......................................................................................................................................................................................................................................................... | N51: 1215011 | O51: =VLOOKUP(N51,Arkusz3!A:L,5,0) -> 21 | P51: =VLOOKUP(N51,Arkusz3!A:L,6,0) -> 5373 | Q51: =VLOOKUP(N51,Arkusz3!A:L,8,0) -> 255 | R51: =VLOOKUP(N51,Arkusz3!AN:AP,3,0) -> 1706.43
A52: 5521586100 | B52: GMINA JORDANÓW | C52: 12 | D52: 15 | E52: 011 | F52: 34240 | G52: Jordanów | H52: Jordanów | I52: ul. Rynek | J52: 2 | K52: GMINA | L52: 1215011 | M52: =VLOOKUP(L52,Arkusz3!A:L,2,0) -> Jordanów.......................................................................................................................................................................................................................................................... | N52: 1215011 | O52: =VLOOKUP(N52,Arkusz3!A:L,5,0) -> 21 | P52: =VLOOKUP(N52,Arkusz3!A:L,6,0) -> 5373 | Q52: =VLOOKUP(N52,Arkusz3!A:L,8,0) -> 255 | R52: =VLOOKUP(N52,Arkusz3!AN:AP,3,0) -> 1706.43
A53: 5511158182 | B53: GMINA KALWARIA ZEBRZYDOWSKA | C53: 12 | D53: 18 | E53: 034 | F53: 34130 | G53: Kalwaria Zebrzydowska | H53: Kalwaria Zebrzydowska | I53: ul. Adama Mickiewicza | J53: 7 | K53: GMINA | L53: 1218034 | M53: =VLOOKUP(L53,Arkusz3!A:L,2,0) ->  | N53: 1218033 | O53: =VLOOKUP(N53,Arkusz3!A:L,5,0) -> 75 | P53: =VLOOKUP(N53,Arkusz3!A:L,6,0) -> 20045 | Q53: =VLOOKUP(N53,Arkusz3!A:L,8,0) -> 266 | R53: =VLOOKUP(N53,Arkusz3!AN:AP,3,0) -> 1631.17
A54: 7371193876 | B54: GMINA KAMIENICA | C54: 12 | D54: 07 | E54: 052 | F54: 34608 | G54: Kamienica | H54: Kamienica | J54: 420 | K54: GMINA | L54: 1207052 | M54: =VLOOKUP(L54,Arkusz3!A:L,2,0) -> Kamienica.......................................................................................................................................................................................................................................................... | N54: 1207052 | O54: =VLOOKUP(N54,Arkusz3!A:L,5,0) -> 95 | P54: =VLOOKUP(N54,Arkusz3!A:L,6,0) -> 7861 | Q54: =VLOOKUP(N54,Arkusz3!A:L,8,0) -> 83 | R54: =VLOOKUP(N54,Arkusz3!AN:AP,3,0) -> 768.29
A55: 7343514860 | B55: GMINA KAMIONKA WIELKA | C55: 12 | D55: 10 | E55: 052 | F55: 33334 | G55: Kamionka Wielka | H55: Kamionka Wielka | J55: 5 | K55: GMINA | L55: 1210052 | M55: =VLOOKUP(L55,Arkusz3!A:L,2,0) -> Kamionka Wielka.......................................................................................................................................................................................................................................................... | N55: 1210052 | O55: =VLOOKUP(N55,Arkusz3!A:L,5,0) -> 65 | P55: =VLOOKUP(N55,Arkusz3!A:L,6,0) -> 10363 | Q55: =VLOOKUP(N55,Arkusz3!A:L,8,0) -> 159 | R55: =VLOOKUP(N55,Arkusz3!AN:AP,3,0) -> 1056.85
A56: 5492202969 | B56: GMINA KĘTY | C56: 12 | D56: 13 | E56: 044 | F56: 32650 | G56: Kęty | H56: Kęty | I56: Rynek | J56: 7 | K56: GMINA | L56: 1213044 | M56: =VLOOKUP(L56,Arkusz3!A:L,2,0) ->  | N56: 1213043 | O56: =VLOOKUP(N56,Arkusz3!A:L,5,0) -> 76 | P56: =VLOOKUP(N56,Arkusz3!A:L,6,0) -> 34193 | Q56: =VLOOKUP(N56,Arkusz3!A:L,8,0) -> 449 | R56: =VLOOKUP(N56,Arkusz3!AN:AP,3,0) -> 1834.73
A57: 6371998059 | B57: GMINA KLUCZE | C57: 12 | D57: 12 | E57: 042 | F57: 32310 | G57: Klucze | H57: Klucze | I57: ul. Partyzantów | J57: 1 | K57: GMINA | L57: 1212042 | M57: =VLOOKUP(L57,Arkusz3!A:L,2,0) -> Klucze.......................................................................................................................................................................................................................................................... | N57: 1212042 | O57: =VLOOKUP(N57,Arkusz3!A:L,5,0) -> 119 | P57: =VLOOKUP(N57,Arkusz3!A:L,6,0) -> 15103 | Q57: =VLOOKUP(N57,Arkusz3!A:L,8,0) -> 126 | R57: =VLOOKUP(N57,Arkusz3!AN:AP,3,0) -> 2270.42
A58: 6831511752 | B58: GMINA KŁAJ | C58: 12 | D58: 19 | E58: 032 | F58: 32015 | G58: Kłaj | H58: Kłaj | J58: 655 | K58: GMINA | L58: 1219032 | M58: =VLOOKUP(L58,Arkusz3!A:L,2,0) -> Kłaj.......................................................................................................................................................................................................................................................... | N58: 1219032 | O58: =VLOOKUP(N58,Arkusz3!A:L,5,0) -> 65 | P58: =VLOOKUP(N58,Arkusz3!A:L,6,0) -> 10691 | Q58: =VLOOKUP(N58,Arkusz3!A:L,8,0) -> 165 | R58: =VLOOKUP(N58,Arkusz3!AN:AP,3,0) -> 1885.98
A59: 6821605658 | B59: GMINA KOCMYRZÓW-LUBORZYCA | C59: 12 | D59: 06 | E59: 052 | F59: 32010 | G59: Luborzyca | H59: Luborzyca | J59: 97 | K59: GMINA | L59: 1206052 | M59: =VLOOKUP(L59,Arkusz3!A:L,2,0) -> Kocmyrzów-Luborzyca.......................................................................................................................................................................................................................................................... | N59: 1206052 | O59: =VLOOKUP(N59,Arkusz3!A:L,5,0) -> 81 | P59: =VLOOKUP(N59,Arkusz3!A:L,6,0) -> 15575 | Q59: =VLOOKUP(N59,Arkusz3!A:L,8,0) -> 193 | R59: =VLOOKUP(N59,Arkusz3!AN:AP,3,0) -> 1544.93
A60: 6821773580 | B60: GMINA KONIUSZA | C60: 12 | D60: 14 | E60: 012 | F60: 32104 | G60: Koniusza | H60: Koniusza | J60: 55 | K60: GMINA | L60: 1214012 | M60: =VLOOKUP(L60,Arkusz3!A:L,2,0) -> Koniusza.......................................................................................................................................................................................................................................................... | N60: 1214012 | O60: =VLOOKUP(N60,Arkusz3!A:L,5,0) -> 89 | P60: =VLOOKUP(N60,Arkusz3!A:L,6,0) -> 9020 | Q60: =VLOOKUP(N60,Arkusz3!A:L,8,0) -> 102 | R60: =VLOOKUP(N60,Arkusz3!AN:AP,3,0) -> 1157.86
A61: 7343483272 | B61: GMINA KORZENNA | C61: 12 | D61: 10 | E61: 062 | F61: 33322 | G61: Korzenna | H61: Korzenna | J61: 325 | K61: GMINA | L61: 1210062 | M61: =VLOOKUP(L61,Arkusz3!A:L,2,0) -> Korzenna.......................................................................................................................................................................................................................................................... | N61: 1210062 | O61: =VLOOKUP(N61,Arkusz3!A:L,5,0) -> 107 | P61: =VLOOKUP(N61,Arkusz3!A:L,6,0) -> 14500 | Q61: =VLOOKUP(N61,Arkusz3!A:L,8,0) -> 136 | R61: =VLOOKUP(N61,Arkusz3!AN:AP,3,0) -> 656.55
A62: 6821606646 | B62: GMINA KOSZYCE | C62: 12 | D62: 14 | E62: 024 | F62: 32130 | G62: Koszyce | H62: Koszyce | I62: ul. Elżbiety Łokietkówny | J62: 14 | K62: GMINA | L62: 1214024 | M62: =VLOOKUP(L62,Arkusz3!A:L,2,0) ->  | N62: 1214023 | O62: =VLOOKUP(N62,Arkusz3!A:L,5,0) -> 66 | P62: =VLOOKUP(N62,Arkusz3!A:L,6,0) -> 5508 | Q62: =VLOOKUP(N62,Arkusz3!A:L,8,0) -> 83 | R62: =VLOOKUP(N62,Arkusz3!AN:AP,3,0) -> 1027.32
A63: 7361699456 | B63: GMINA KOŚCIELISKO | C63: 12 | D63: 17 | E63: 042 | F63: 34511 | G63: Kościelisko | H63: Kościelisko | I63: ul. Strzelców Podhalańskich | J63: 44 | K63: GMINA | L63: 1217042 | M63: =VLOOKUP(L63,Arkusz3!A:L,2,0) -> Kościelisko.......................................................................................................................................................................................................................................................... | N63: 1217042 | O63: =VLOOKUP(N63,Arkusz3!A:L,5,0) -> 137 | P63: =VLOOKUP(N63,Arkusz3!A:L,6,0) -> 8784 | Q63: =VLOOKUP(N63,Arkusz3!A:L,8,0) -> 64 | R63: =VLOOKUP(N63,Arkusz3!AN:AP,3,0) -> 1370.49
A64: 6591174001 | B64: GMINA KOZŁÓW | C64: 12 | D64: 08 | E64: 032 | F64: 32241 | G64: Kozłów | H64: Kozłów | J64: 60 | K64: GMINA | L64: 1208032 | M64: =VLOOKUP(L64,Arkusz3!A:L,2,0) -> Kozłów.......................................................................................................................................................................................................................................................... | N64: 1208032 | O64: =VLOOKUP(N64,Arkusz3!A:L,5,0) -> 86 | P64: =VLOOKUP(N64,Arkusz3!A:L,6,0) -> 4651 | Q64: =VLOOKUP(N64,Arkusz3!A:L,8,0) -> 54 | R64: =VLOOKUP(N64,Arkusz3!AN:AP,3,0) -> 886.81
A65: 7352849761 | B65: GMINA KROŚCIENKO NAD DUNAJCEM | C65: 12 | D65: 11 | E65: 062 | F65: 34450 | G65: Krościenko nad Dunajcem | H65: Krościenko nad Dunajcem | I65: ul. Rynek | J65: 35 | K65: GMINA | L65: 1211062 | M65: =VLOOKUP(L65,Arkusz3!A:L,2,0) -> Krościenko nad Dunajcem.......................................................................................................................................................................................................................................................... | N65: 1211062 | O65: =VLOOKUP(N65,Arkusz3!A:L,5,0) -> 57 | P65: =VLOOKUP(N65,Arkusz3!A:L,6,0) -> 6809 | Q65: =VLOOKUP(N65,Arkusz3!A:L,8,0) -> 119 | R65: =VLOOKUP(N65,Arkusz3!AN:AP,3,0) -> 919.96
A66: 7343543100 | B66: GMINA KRYNICA -ZDRÓJ | C66: 12 | D66: 10 | E66: 074 | F66: 33380 | G66: Krynica-Zdrój | H66: Krynica-Zdrój | I66: ul. Józefa Ignacego Kraszewskiego | J66: 7 | K66: GMINA | L66: 1210074 | M66: =VLOOKUP(L66,Arkusz3!A:L,2,0) ->  | N66: 1210073 | O66: =VLOOKUP(N66,Arkusz3!A:L,5,0) -> 145 | P66: =VLOOKUP(N66,Arkusz3!A:L,6,0) -> 16777 | Q66: =VLOOKUP(N66,Arkusz3!A:L,8,0) -> 116 | R66: =VLOOKUP(N66,Arkusz3!AN:AP,3,0) -> 1743.11
A67: 5130233774 | B67: GMINA KRZESZOWICE | C67: 12 | D67: 06 | E67: 064 | F67: 32065 | G67: Krzeszowice | H67: Krzeszowice | I67: ul. Grunwaldzka | J67: 4 | K67: GMINA | L67: =C67*100000+D67*1000+E67 -> 1206064 | M67: =VLOOKUP(L67,Arkusz3!A:L,2,0) ->  | N67: =IF(M67=M$1,L67-1,IF(M67=N$1,L67-2,L67)) -> 1206063 | O67: =VLOOKUP(N67,Arkusz3!A:L,5,0) -> 139 | P67: =VLOOKUP(N67,Arkusz3!A:L,6,0) -> 32195 | Q67: =VLOOKUP(N67,Arkusz3!A:L,8,0) -> 232 | R67: =VLOOKUP(N67,Arkusz3!AN:AP,3,0) -> 1723.93
A68: 6591186961 | B68: GMINA KSIĄŻ WIELKI | C68: 12 | D68: 08 | E68: 042 | F68: 32210 | G68: Książ Wielki | H68: Książ Wielki | I68: ul. Warszawska | J68: 17 | K68: GMINA | L68: 1208042 | M68: =VLOOKUP(L68,Arkusz3!A:L,2,0) -> Książ Wielki.......................................................................................................................................................................................................................................................... | N68: 1208042 | O68: =VLOOKUP(N68,Arkusz3!A:L,5,0) -> 138 | P68: =VLOOKUP(N68,Arkusz3!A:L,6,0) -> 5121 | Q68: =VLOOKUP(N68,Arkusz3!A:L,8,0) -> 37 | R68: =VLOOKUP(N68,Arkusz3!AN:AP,3,0) -> 1085.17
A69: 5511158242 | B69: GMINA LANCKORONA | C69: 12 | D69: 18 | E69: 042 | F69: 34143 | G69: Lanckorona | H69: Lanckorona | I69: ul. Krakowska | J69: 8 | K69: GMINA | L69: 1218042 | M69: =VLOOKUP(L69,Arkusz3!A:L,2,0) -> Lanckorona.......................................................................................................................................................................................................................................................... | N69: 1218042 | O69: =VLOOKUP(N69,Arkusz3!A:L,5,0) -> 40 | P69: =VLOOKUP(N69,Arkusz3!A:L,6,0) -> 6235 | Q69: =VLOOKUP(N69,Arkusz3!A:L,8,0) -> 154 | R69: =VLOOKUP(N69,Arkusz3!AN:AP,3,0) -> 1022.9
A70: 7371283697 | B70: GMINA LASKOWA | C70: 12 | D70: 07 | E70: 062 | F70: 34602 | G70: Laskowa | H70: Laskowa | J70: 643 | K70: GMINA | L70: 1207062 | M70: =VLOOKUP(L70,Arkusz3!A:L,2,0) -> Laskowa.......................................................................................................................................................................................................................................................... | N70: 1207062 | O70: =VLOOKUP(N70,Arkusz3!A:L,5,0) -> 72 | P70: =VLOOKUP(N70,Arkusz3!A:L,6,0) -> 8149 | Q70: =VLOOKUP(N70,Arkusz3!A:L,8,0) -> 112 | R70: =VLOOKUP(N70,Arkusz3!AN:AP,3,0) -> 890.05
A71: 6282260168 | B71: GMINA LIBIĄŻ | C71: 12 | D71: 03 | E71: 044 | F71: 32590 | G71: Libiąż | H71: Libiąż | I71: ul. Działkowa | J71: 1 | K71: GMINA | L71: 1203044 | M71: =VLOOKUP(L71,Arkusz3!A:L,2,0) ->  | N71: 1203043 | O71: =VLOOKUP(N71,Arkusz3!A:L,5,0) -> 57 | P71: =VLOOKUP(N71,Arkusz3!A:L,6,0) -> 22433 | Q71: =VLOOKUP(N71,Arkusz3!A:L,8,0) -> 393 | R71: =VLOOKUP(N71,Arkusz3!AN:AP,3,0) -> 1981.85
A72: 7371004591 | B72: MIASTO LIMANOWA | C72: 12 | D72: 07 | E72: 011 | F72: 34600 | G72: Limanowa | H72: Limanowa | I72: ul. Jana Pawła II | J72: 9 | K72: GMINA | L72: 1207011 | M72: =VLOOKUP(L72,Arkusz3!A:L,2,0) -> Limanowa.......................................................................................................................................................................................................................................................... | N72: 1207011 | O72: =VLOOKUP(N72,Arkusz3!A:L,5,0) -> 19 | P72: =VLOOKUP(N72,Arkusz3!A:L,6,0) -> 15158 | Q72: =VLOOKUP(N72,Arkusz3!A:L,8,0) -> 811 | R72: =VLOOKUP(N72,Arkusz3!AN:AP,3,0) -> 1901.96
A73: 7371188119 | B73: GMINA LIMANOWA | C73: 12 | D73: 07 | E73: 011 | F73: 34600 | G73: Limanowa | H73: Limanowa | I73: ul. Matki Boskiej Bolesnej | J73: 18 B | K73: GMINA | L73: 1207011 | M73: =VLOOKUP(L73,Arkusz3!A:L,2,0) -> Limanowa.......................................................................................................................................................................................................................................................... | N73: 1207011 | O73: =VLOOKUP(N73,Arkusz3!A:L,5,0) -> 19 | P73: =VLOOKUP(N73,Arkusz3!A:L,6,0) -> 15158 | Q73: =VLOOKUP(N73,Arkusz3!A:L,8,0) -> 811 | R73: =VLOOKUP(N73,Arkusz3!AN:AP,3,0) -> 1901.96
A74: 6851648081 | B74: GMINA LIPINKI | C74: 12 | D74: 05 | E74: 052 | F74: 38305 | G74: Lipinki | H74: Lipinki | J74: 57 | K74: GMINA | L74: 1205052 | M74: =VLOOKUP(L74,Arkusz3!A:L,2,0) -> Lipinki.......................................................................................................................................................................................................................................................... | N74: 1205052 | O74: =VLOOKUP(N74,Arkusz3!A:L,5,0) -> 66 | P74: =VLOOKUP(N74,Arkusz3!A:L,6,0) -> 6806 | Q74: =VLOOKUP(N74,Arkusz3!A:L,8,0) -> 102 | R74: =VLOOKUP(N74,Arkusz3!AN:AP,3,0) -> 757.39
A75: 8681021288 | B75: GMINA LIPNICA MUROWANA | C75: 12 | D75: 01 | E75: 042 | F75: 32724 | G75: Lipnica Murowana | H75: Lipnica Murowana | J75: 44 | K75: GMINA | L75: 1201042 | M75: =VLOOKUP(L75,Arkusz3!A:L,2,0) -> Lipnica Murowana.......................................................................................................................................................................................................................................................... | N75: 1201042 | O75: =VLOOKUP(N75,Arkusz3!A:L,5,0) -> 60 | P75: =VLOOKUP(N75,Arkusz3!A:L,6,0) -> 5642 | Q75: =VLOOKUP(N75,Arkusz3!A:L,8,0) -> 94 | R75: =VLOOKUP(N75,Arkusz3!AN:AP,3,0) -> 787.46
A76: 7352841452 | B76: GMINA LIPNICA WIELKA | C76: 12 | D76: 11 | E76: 072 | F76: 34483 | G76: Lipnica Wielka | H76: Lipnica Wielka | J76: 518 | K76: GMINA | L76: 1211072 | M76: =VLOOKUP(L76,Arkusz3!A:L,2,0) -> Lipnica Wielka.......................................................................................................................................................................................................................................................... | N76: 1211072 | O76: =VLOOKUP(N76,Arkusz3!A:L,5,0) -> 67 | P76: =VLOOKUP(N76,Arkusz3!A:L,6,0) -> 5998 | Q76: =VLOOKUP(N76,Arkusz3!A:L,8,0) -> 89 | R76: =VLOOKUP(N76,Arkusz3!AN:AP,3,0) -> 519.09
A77: 9930658661 | B77: GMINA LISIA GÓRA | C77: 12 | D77: 16 | E77: 032 | F77: 33140 | G77: Lisia Góra | H77: Lisia Góra | I77: ul. 1 Maja | J77: 7 | K77: GMINA | L77: 1216032 | M77: =VLOOKUP(L77,Arkusz3!A:L,2,0) -> Lisia Góra.......................................................................................................................................................................................................................................................... | N77: 1216032 | O77: =VLOOKUP(N77,Arkusz3!A:L,5,0) -> 105 | P77: =VLOOKUP(N77,Arkusz3!A:L,6,0) -> 15332 | Q77: =VLOOKUP(N77,Arkusz3!A:L,8,0) -> 147 | R77: =VLOOKUP(N77,Arkusz3!AN:AP,3,0) -> 1109.2
A78: 9442243129 | B78: GMINA LISZKI | C78: 12 | D78: 06 | E78: 072 | F78: 32060 | G78: Liszki | H78: Liszki | J78: 230 | K78: GMINA | L78: 1206072 | M78: =VLOOKUP(L78,Arkusz3!A:L,2,0) -> Liszki.......................................................................................................................................................................................................................................................... | N78: 1206072 | O78: =VLOOKUP(N78,Arkusz3!A:L,5,0) -> 72 | P78: =VLOOKUP(N78,Arkusz3!A:L,6,0) -> 17292 | Q78: =VLOOKUP(N78,Arkusz3!A:L,8,0) -> 240 | R78: =VLOOKUP(N78,Arkusz3!AN:AP,3,0) -> 1525.69
A79: 7351071414 | B79: GMINA LUBIEŃ | C79: 12 | D79: 09 | E79: 022 | F79: 32433 | G79: Lubień | H79: Lubień | J79: 50 | K79: GMINA | L79: 1209022 | M79: =VLOOKUP(L79,Arkusz3!A:L,2,0) -> Lubień.......................................................................................................................................................................................................................................................... | N79: 1209022 | O79: =VLOOKUP(N79,Arkusz3!A:L,5,0) -> 75 | P79: =VLOOKUP(N79,Arkusz3!A:L,6,0) -> 10060 | Q79: =VLOOKUP(N79,Arkusz3!A:L,8,0) -> 134 | R79: =VLOOKUP(N79,Arkusz3!AN:AP,3,0) -> 782.43
A80: 7343517410 | B80: GMINA ŁABOWA | C80: 12 | D80: 10 | E80: 082 | F80: 33336 | G80: Łabowa | H80: Łabowa | J80: 38 | K80: GMINA | L80: 1210082 | M80: =VLOOKUP(L80,Arkusz3!A:L,2,0) -> Łabowa.......................................................................................................................................................................................................................................................... | N80: 1210082 | O80: =VLOOKUP(N80,Arkusz3!A:L,5,0) -> 119 | P80: =VLOOKUP(N80,Arkusz3!A:L,6,0) -> 6032 | Q80: =VLOOKUP(N80,Arkusz3!A:L,8,0) -> 51 | R80: =VLOOKUP(N80,Arkusz3!AN:AP,3,0) -> 917.99
A81: 8681021302 | B81: GMINA ŁAPANÓW | C81: 12 | D81: 01 | E81: 052 | F81: 32740 | G81: Łapanów | H81: Łapanów | J81: 34 | K81: GMINA | L81: 1201052 | M81: =VLOOKUP(L81,Arkusz3!A:L,2,0) -> Łapanów.......................................................................................................................................................................................................................................................... | N81: 1201052 | O81: =VLOOKUP(N81,Arkusz3!A:L,5,0) -> 72 | P81: =VLOOKUP(N81,Arkusz3!A:L,6,0) -> 8139 | Q81: =VLOOKUP(N81,Arkusz3!A:L,8,0) -> 114 | R81: =VLOOKUP(N81,Arkusz3!AN:AP,3,0) -> 1137.83
A82: 7352834759 | B82: GMINA ŁAPSZE NIŻNE | C82: 12 | D82: 11 | E82: 082 | F82: 34442 | G82: Łapsze Niżne | H82: Łapsze Niżne | I82: ul. Jana Pawła II | J82: 20 | K82: GMINA | L82: 1211082 | M82: =VLOOKUP(L82,Arkusz3!A:L,2,0) -> Łapsze Niżne.......................................................................................................................................................................................................................................................... | N82: 1211082 | O82: =VLOOKUP(N82,Arkusz3!A:L,5,0) -> 126 | P82: =VLOOKUP(N82,Arkusz3!A:L,6,0) -> 9341 | Q82: =VLOOKUP(N82,Arkusz3!A:L,8,0) -> 74 | R82: =VLOOKUP(N82,Arkusz3!AN:AP,3,0) -> 1003.23
A83: 7343514742 | B83: GMINA ŁĄCKO | C83: 12 | D83: 10 | E83: 092 | F83: 33390 | G83: Łącko | H83: Łącko | J83: 445 | K83: GMINA | L83: 1210092 | M83: =VLOOKUP(L83,Arkusz3!A:L,2,0) -> Łącko.......................................................................................................................................................................................................................................................... | N83: 1210092 | O83: =VLOOKUP(N83,Arkusz3!A:L,5,0) -> 132 | P83: =VLOOKUP(N83,Arkusz3!A:L,6,0) -> 16499 | Q83: =VLOOKUP(N83,Arkusz3!A:L,8,0) -> 124 | R83: =VLOOKUP(N83,Arkusz3!AN:AP,3,0) -> 771.43
A84: 7343472848 | B84: GMINA ŁOSOSINA DOLNA | C84: 12 | D84: 10 | E84: 102 | F84: 33314 | G84: Łososina Dolna | H84: Łososina Dolna | J84: 300 | K84: GMINA | L84: 1210102 | M84: =VLOOKUP(L84,Arkusz3!A:L,2,0) -> Łososina Dolna.......................................................................................................................................................................................................................................................... | N84: 1210102 | O84: =VLOOKUP(N84,Arkusz3!A:L,5,0) -> 85 | P84: =VLOOKUP(N84,Arkusz3!A:L,6,0) -> 11049 | Q84: =VLOOKUP(N84,Arkusz3!A:L,8,0) -> 130 | R84: =VLOOKUP(N84,Arkusz3!AN:AP,3,0) -> 1225.25
A85: 7371022962 | B85: GMINA ŁUKOWICA | C85: 12 | D85: 07 | E85: 082 | F85: 34606 | G85: Łukowica | H85: Łukowica | J85: 334 | K85: GMINA | L85: 1207082 | M85: =VLOOKUP(L85,Arkusz3!A:L,2,0) -> Łukowica.......................................................................................................................................................................................................................................................... | N85: 1207082 | O85: =VLOOKUP(N85,Arkusz3!A:L,5,0) -> 70 | P85: =VLOOKUP(N85,Arkusz3!A:L,6,0) -> 10044 | Q85: =VLOOKUP(N85,Arkusz3!A:L,8,0) -> 144 | R85: =VLOOKUP(N85,Arkusz3!AN:AP,3,0) -> 679.46
A86: 7381022314 | B86: GMINA ŁUŻNA | C86: 12 | D86: 05 | E86: 062 | F86: 38322 | G86: Łużna | H86: Łużna | J86: 634 | K86: GMINA | L86: 1205062 | M86: =VLOOKUP(L86,Arkusz3!A:L,2,0) -> Łużna.......................................................................................................................................................................................................................................................... | N86: 1205062 | O86: =VLOOKUP(N86,Arkusz3!A:L,5,0) -> 56 | P86: =VLOOKUP(N86,Arkusz3!A:L,6,0) -> 8514 | Q86: =VLOOKUP(N86,Arkusz3!A:L,8,0) -> 151 | R86: =VLOOKUP(N86,Arkusz3!AN:AP,3,0) -> 688.89
A87: 5521584963 | B87: GMINA MAKÓW PODHALAŃSKI | C87: 12 | D87: 15 | E87: 064 | F87: 34220 | G87: Maków Podhalański | H87: Maków Podhalański | I87: ul. Szpitalna | J87: 3 | K87: GMINA | L87: 1215064 | M87: =VLOOKUP(L87,Arkusz3!A:L,2,0) ->  | N87: 1215063 | O87: =VLOOKUP(N87,Arkusz3!A:L,5,0) -> 109 | P87: =VLOOKUP(N87,Arkusz3!A:L,6,0) -> 16132 | Q87: =VLOOKUP(N87,Arkusz3!A:L,8,0) -> 148 | R87: =VLOOKUP(N87,Arkusz3!AN:AP,3,0) -> 1328.17
A88: 8711770363 | B88: GMINA MĘDRZECHÓW | C88: 12 | D88: 04 | E88: 042 | F88: 33221 | G88: Mędrzechów | H88: Mędrzechów | J88: 434 | K88: GMINA | L88: 1204042 | M88: =VLOOKUP(L88,Arkusz3!A:L,2,0) -> Mędrzechów.......................................................................................................................................................................................................................................................... | N88: 1204042 | O88: =VLOOKUP(N88,Arkusz3!A:L,5,0) -> 44 | P88: =VLOOKUP(N88,Arkusz3!A:L,6,0) -> 3460 | Q88: =VLOOKUP(N88,Arkusz3!A:L,8,0) -> 78 | R88: =VLOOKUP(N88,Arkusz3!AN:AP,3,0) -> 779.95
A89: 5130060109 | B89: GMINA MICHAŁOWICE | C89: 12 | D89: 06 | E89: 082 | F89: 32091 | G89: Michałowice | H89: Michałowice | I89: pl. Józefa Piłsudskiego | J89: 1 | K89: GMINA | L89: 1206082 | M89: =VLOOKUP(L89,Arkusz3!A:L,2,0) -> Michałowice.......................................................................................................................................................................................................................................................... | N89: 1206082 | O89: =VLOOKUP(N89,Arkusz3!A:L,5,0) -> 51 | P89: =VLOOKUP(N89,Arkusz3!A:L,6,0) -> 10563 | Q89: =VLOOKUP(N89,Arkusz3!A:L,8,0) -> 207 | R89: =VLOOKUP(N89,Arkusz3!AN:AP,3,0) -> 2165.58
A90: 6590003697 | B90: GMINA MIECHÓW | C90: 12 | D90: 08 | E90: 054 | F90: 32200 | G90: Miechów | H90: Miechów | I90: ul. Henryka Sienkiewicza | J90: 25 | K90: GMINA | L90: 1208054 | M90: =VLOOKUP(L90,Arkusz3!A:L,2,0) ->  | N90: 1208053 | O90: =VLOOKUP(N90,Arkusz3!A:L,5,0) -> 148 | P90: =VLOOKUP(N90,Arkusz3!A:L,6,0) -> 19737 | Q90: =VLOOKUP(N90,Arkusz3!A:L,8,0) -> 133 | R90: =VLOOKUP(N90,Arkusz3!AN:AP,3,0) -> 1411.93
A91: 9442246027 | B91: GMINA MOGILANY | C91: 12 | D91: 06 | E91: 092 | F91: 32031 | G91: Mogilany | H91: Mogilany | I91: rynek Rynek | J91: 2 | K91: GMINA | L91: 1206092 | M91: =VLOOKUP(L91,Arkusz3!A:L,2,0) -> Mogilany.......................................................................................................................................................................................................................................................... | N91: 1206092 | O91: =VLOOKUP(N91,Arkusz3!A:L,5,0) -> 44 | P91: =VLOOKUP(N91,Arkusz3!A:L,6,0) -> 14052 | Q91: =VLOOKUP(N91,Arkusz3!A:L,8,0) -> 322 | R91: =VLOOKUP(N91,Arkusz3!AN:AP,3,0) -> 2262.73
A92: 7381021958 | B92: GMINA MOSZCZENICA | C92: 12 | D92: 05 | E92: 072 | F92: 38321 | G92: Moszczenica | H92: Moszczenica | I92: ul. Samorządowa | J92: 4 | K92: GMINA | L92: 1205072 | M92: =VLOOKUP(L92,Arkusz3!A:L,2,0) -> Moszczenica.......................................................................................................................................................................................................................................................... | N92: 1205072 | O92: =VLOOKUP(N92,Arkusz3!A:L,5,0) -> 38 | P92: =VLOOKUP(N92,Arkusz3!A:L,6,0) -> 4922 | Q92: =VLOOKUP(N92,Arkusz3!A:L,8,0) -> 131 | R92: =VLOOKUP(N92,Arkusz3!AN:AP,3,0) -> 648.38
A93: 7371008784 | B93: MIASTO MSZANA DOLNA | C93: 12 | D93: 07 | E93: 021 | F93: 34730 | G93: Mszana Dolna | H93: Mszana Dolna | I93: ul. marsz. Józefa Piłsudskiego | J93: 2 | K93: GMINA | L93: 1207021 | M93: =VLOOKUP(L93,Arkusz3!A:L,2,0) -> Mszana Dolna.......................................................................................................................................................................................................................................................... | N93: 1207021 | O93: =VLOOKUP(N93,Arkusz3!A:L,5,0) -> 27 | P93: =VLOOKUP(N93,Arkusz3!A:L,6,0) -> 7948 | Q93: =VLOOKUP(N93,Arkusz3!A:L,8,0) -> 293 | R93: =VLOOKUP(N93,Arkusz3!AN:AP,3,0) -> 1386.96
A94: 7371008991 | B94: GMINA MSZANA DOLNA | C94: 12 | D94: 07 | E94: 021 | F94: 34730 | G94: Mszana Dolna | H94: Mszana Dolna | I94: ul. Spadochroniarzy | J94: 6 | K94: GMINA | L94: 1207021 | M94: =VLOOKUP(L94,Arkusz3!A:L,2,0) -> Mszana Dolna.......................................................................................................................................................................................................................................................... | N94: 1207021 | O94: =VLOOKUP(N94,Arkusz3!A:L,5,0) -> 27 | P94: =VLOOKUP(N94,Arkusz3!A:L,6,0) -> 7948 | Q94: =VLOOKUP(N94,Arkusz3!A:L,8,0) -> 293 | R94: =VLOOKUP(N94,Arkusz3!AN:AP,3,0) -> 1386.96
A95: 5512618591 | B95: GMINA MUCHARZ | C95: 12 | D95: 18 | E95: 052 | F95: 34106 | G95: Mucharz | H95: Mucharz | J95: 226 | K95: GMINA | L95: 1218052 | M95: =VLOOKUP(L95,Arkusz3!A:L,2,0) -> Mucharz.......................................................................................................................................................................................................................................................... | N95: 1218052 | O95: =VLOOKUP(N95,Arkusz3!A:L,5,0) -> 37 | P95: =VLOOKUP(N95,Arkusz3!A:L,6,0) -> 4122 | Q95: =VLOOKUP(N95,Arkusz3!A:L,8,0) -> 110 | R95: =VLOOKUP(N95,Arkusz3!AN:AP,3,0) -> 1486.43
A96: 7343472601 | B96: MIASTO I GMINA UZDROWISKOWA MUSZYNA | C96: 12 | D96: 10 | E96: 114 | F96: 33370 | G96: Muszyna | H96: Muszyna | I96: ul. Rynek | J96: 31 | K96: GMINA | L96: 1210114 | M96: =VLOOKUP(L96,Arkusz3!A:L,2,0) ->  | N96: 1210113 | O96: =VLOOKUP(N96,Arkusz3!A:L,5,0) -> 141 | P96: =VLOOKUP(N96,Arkusz3!A:L,6,0) -> 11574 | Q96: =VLOOKUP(N96,Arkusz3!A:L,8,0) -> 82 | R96: =VLOOKUP(N96,Arkusz3!AN:AP,3,0) -> 1460.7
A97: 6811004414 | B97: GMINA MYŚLENICE | C97: 12 | D97: 09 | E97: 034 | F97: 32400 | G97: Myślenice | H97: Myślenice | I97: Rynek | J97: 8/9 | K97: GMINA | L97: 1209034 | M97: =VLOOKUP(L97,Arkusz3!A:L,2,0) ->  | N97: 1209033 | O97: =VLOOKUP(N97,Arkusz3!A:L,5,0) -> 154 | P97: =VLOOKUP(N97,Arkusz3!A:L,6,0) -> 44189 | Q97: =VLOOKUP(N97,Arkusz3!A:L,8,0) -> 288 | R97: =VLOOKUP(N97,Arkusz3!AN:AP,3,0) -> 1718.41
A98: 7343450806 | B98: GMINA NAWOJOWA | C98: 12 | D98: 10 | E98: 122 | F98: 33335 | G98: Nawojowa | H98: Nawojowa | I98: ul. Ogrodowa | J98: 2 | K98: GMINA | L98: 1210122 | M98: =VLOOKUP(L98,Arkusz3!A:L,2,0) -> Nawojowa.......................................................................................................................................................................................................................................................... | N98: 1210122 | O98: =VLOOKUP(N98,Arkusz3!A:L,5,0) -> 50 | P98: =VLOOKUP(N98,Arkusz3!A:L,6,0) -> 8703 | Q98: =VLOOKUP(N98,Arkusz3!A:L,8,0) -> 173 | R98: =VLOOKUP(N98,Arkusz3!AN:AP,3,0) -> 1188.91
A99: 7371152618 | B99: GMINA NIEDŹWIEDŹ | C99: 12 | D99: 07 | E99: 102 | F99: 34735 | G99: Niedźwiedź | H99: Niedźwiedź | J99: 233 | K99: GMINA | L99: 1207102 | M99: =VLOOKUP(L99,Arkusz3!A:L,2,0) -> Niedźwiedź.......................................................................................................................................................................................................................................................... | N99: 1207102 | O99: =VLOOKUP(N99,Arkusz3!A:L,5,0) -> 74 | P99: =VLOOKUP(N99,Arkusz3!A:L,6,0) -> 7344 | Q99: =VLOOKUP(N99,Arkusz3!A:L,8,0) -> 99 | R99: =VLOOKUP(N99,Arkusz3!AN:AP,3,0) -> 699.43
A100: 6831395375 | B100: GMINA NIEPOŁOMICE | C100: 12 | D100: 19 | E100: 044 | F100: 32005 | G100: Niepołomice | H100: Niepołomice | I100: ul. Plac Zwycięstwa | J100: 13 | K100: GMINA | L100: 1219044 | M100: =VLOOKUP(L100,Arkusz3!A:L,2,0) ->  | N100: 1219043 | O100: =VLOOKUP(N100,Arkusz3!A:L,5,0) -> 96 | P100: =VLOOKUP(N100,Arkusz3!A:L,6,0) -> 28455 | Q100: =VLOOKUP(N100,Arkusz3!A:L,8,0) -> 296 | R100: =VLOOKUP(N100,Arkusz3!AN:AP,3,0) -> 2652.47
A101: 6821773870 | B101: GMINA NOWE BRZESKO | C101: 12 | D101: 14 | E101: 034 | F101: 32120 | G101: Nowe Brzesko | H101: Nowe Brzesko | I101: ul. Krakowska | J101: 44 | K101: GMINA | L101: 1214034 | M101: =VLOOKUP(L101,Arkusz3!A:L,2,0) ->  | N101: 1214033 | O101: =VLOOKUP(N101,Arkusz3!A:L,5,0) -> 54 | P101: =VLOOKUP(N101,Arkusz3!A:L,6,0) -> 5752 | Q101: =VLOOKUP(N101,Arkusz3!A:L,8,0) -> 106 | R101: =VLOOKUP(N101,Arkusz3!AN:AP,3,0) -> 1067.97
A102: 7350014012 | B102: GMINA MIASTO NOWY TARG | C102: 12 | D102: 11 | E102: 011 | F102: 34400 | G102: Nowy Targ | H102: Nowy Targ | I102: ul. Krzywa | J102: 1 | K102: GMINA | L102: 1211011 | M102: =VLOOKUP(L102,Arkusz3!A:L,2,0) -> Nowy Targ.......................................................................................................................................................................................................................................................... | N102: 1211011 | O102: =VLOOKUP(N102,Arkusz3!A:L,5,0) -> 51 | P102: =VLOOKUP(N102,Arkusz3!A:L,6,0) -> 33373 | Q102: =VLOOKUP(N102,Arkusz3!A:L,8,0) -> 653 | R102: =VLOOKUP(N102,Arkusz3!AN:AP,3,0) -> 1700.49
A103: 7352833352 | B103: GMINA NOWY TARG | C103: 12 | D103: 11 | E103: 011 | F103: 34400 | G103: Nowy Targ | H103: Nowy Targ | I103: ul. Bulwarowa | J103: 9 | K103: GMINA | L103: 1211011 | M103: =VLOOKUP(L103,Arkusz3!A:L,2,0) -> Nowy Targ.......................................................................................................................................................................................................................................................... | N103: 1211011 | O103: =VLOOKUP(N103,Arkusz3!A:L,5,0) -> 51 | P103: =VLOOKUP(N103,Arkusz3!A:L,6,0) -> 33373 | Q103: =VLOOKUP(N103,Arkusz3!A:L,8,0) -> 653 | R103: =VLOOKUP(N103,Arkusz3!AN:AP,3,0) -> 1700.49
A104: 8681021360 | B104: GMINA NOWY WIŚNICZ | C104: 12 | D104: 01 | E104: 064 | F104: 32720 | G104: Nowy Wiśnicz | H104: Nowy Wiśnicz | I104: rynek Rynek | J104: 38 | K104: GMINA | L104: 1201064 | M104: =VLOOKUP(L104,Arkusz3!A:L,2,0) ->  | N104: 1201063 | O104: =VLOOKUP(N104,Arkusz3!A:L,5,0) -> 82 | P104: =VLOOKUP(N104,Arkusz3!A:L,6,0) -> 14021 | Q104: =VLOOKUP(N104,Arkusz3!A:L,8,0) -> 171 | R104: =VLOOKUP(N104,Arkusz3!AN:AP,3,0) -> 1218.88
A105: 7352834179 | B105: GMINA OCHOTNICA DOLNA | C105: 12 | D105: 11 | E105: 102 | F105: 34452 | G105: Ochotnica Dolna | H105: Ochotnica Dolna | I105: os. Dłubacze | J105: 160 | K105: GMINA | L105: 1211102 | M105: =VLOOKUP(L105,Arkusz3!A:L,2,0) -> Ochotnica Dolna.......................................................................................................................................................................................................................................................... | N105: 1211102 | O105: =VLOOKUP(N105,Arkusz3!A:L,5,0) -> 141 | P105: =VLOOKUP(N105,Arkusz3!A:L,6,0) -> 8564 | Q105: =VLOOKUP(N105,Arkusz3!A:L,8,0) -> 61 | R105: =VLOOKUP(N105,Arkusz3!AN:AP,3,0) -> 985.37
A106: 8711771227 | B106: GMINA OLESNO | C106: 12 | D106: 04 | E106: 052 | F106: 33210 | G106: Olesno | H106: Olesno | I106: ul. Wł. Jagiełły | J106: 1 | K106: GMINA | L106: 1204052 | M106: =VLOOKUP(L106,Arkusz3!A:L,2,0) -> Olesno.......................................................................................................................................................................................................................................................... | N106: 1204052 | O106: =VLOOKUP(N106,Arkusz3!A:L,5,0) -> 78 | P106: =VLOOKUP(N106,Arkusz3!A:L,6,0) -> 7934 | Q106: =VLOOKUP(N106,Arkusz3!A:L,8,0) -> 102 | R106: =VLOOKUP(N106,Arkusz3!AN:AP,3,0) -> 807.77
A107: 6371998042 | B107: GMINA OLKUSZ | C107: 12 | D107: 12 | E107: 054 | F107: 32300 | G107: Olkusz | H107: Olkusz | I107: Rynek | J107: 1 | K107: GMINA | L107: 1212054 | M107: =VLOOKUP(L107,Arkusz3!A:L,2,0) ->  | N107: 1212053 | O107: =VLOOKUP(N107,Arkusz3!A:L,5,0) -> 151 | P107: =VLOOKUP(N107,Arkusz3!A:L,6,0) -> 49026 | Q107: =VLOOKUP(N107,Arkusz3!A:L,8,0) -> 325 | R107: =VLOOKUP(N107,Arkusz3!AN:AP,3,0) -> 1799.15
A108: 5492197435 | B108: GMINA OSIEK | C108: 12 | D108: 13 | E108: 052 | F108: 32608 | G108: Osiek | H108: Osiek | I108: ul. Główna | J108: 125 | K108: GMINA | L108: 1213052 | M108: =VLOOKUP(L108,Arkusz3!A:L,2,0) -> Osiek.......................................................................................................................................................................................................................................................... | N108: 1213052 | O108: =VLOOKUP(N108,Arkusz3!A:L,5,0) -> 41 | P108: =VLOOKUP(N108,Arkusz3!A:L,6,0) -> 8207 | Q108: =VLOOKUP(N108,Arkusz3!A:L,8,0) -> 201 | R108: =VLOOKUP(N108,Arkusz3!AN:AP,3,0) -> 1446.74
A109: 5492197458 | B109: MIASTO OŚWIĘCIM | C109: 12 | D109: 13 | E109: 011 | F109: 32600 | G109: Oświęcim | H109: Oświęcim | I109: ul. Zaborska | J109: 2 | K109: GMINA | L109: 1213011 | M109: =VLOOKUP(L109,Arkusz3!A:L,2,0) -> Oświęcim.......................................................................................................................................................................................................................................................... | N109: 1213011 | O109: =VLOOKUP(N109,Arkusz3!A:L,5,0) -> 30 | P109: =VLOOKUP(N109,Arkusz3!A:L,6,0) -> 38300 | Q109: =VLOOKUP(N109,Arkusz3!A:L,8,0) -> 1277 | R109: =VLOOKUP(N109,Arkusz3!AN:AP,3,0) -> 2377.43
A110: 5492198593 | B110: GMINA OŚWIĘCIM | C110: 12 | D110: 13 | E110: 011 | F110: 32600 | G110: Oświęcim | H110: Oświęcim | I110: ul. Zamkowa | J110: 12 | K110: GMINA | L110: 1213011 | M110: =VLOOKUP(L110,Arkusz3!A:L,2,0) -> Oświęcim.......................................................................................................................................................................................................................................................... | N110: 1213011 | O110: =VLOOKUP(N110,Arkusz3!A:L,5,0) -> 30 | P110: =VLOOKUP(N110,Arkusz3!A:L,6,0) -> 38300 | Q110: =VLOOKUP(N110,Arkusz3!A:L,8,0) -> 1277 | R110: =VLOOKUP(N110,Arkusz3!AN:AP,3,0) -> 2377.43
A111: 6821635547 | B111: GMINA PAŁECZNICA | C111: 12 | D111: 14 | E111: 042 | F111: 32109 | G111: Pałecznica | H111: Pałecznica | I111: ul. św. Jakuba | J111: 11 | K111: GMINA | L111: 1214042 | M111: =VLOOKUP(L111,Arkusz3!A:L,2,0) -> Pałecznica.......................................................................................................................................................................................................................................................... | N111: 1214042 | O111: =VLOOKUP(N111,Arkusz3!A:L,5,0) -> 48 | P111: =VLOOKUP(N111,Arkusz3!A:L,6,0) -> 3583 | Q111: =VLOOKUP(N111,Arkusz3!A:L,8,0) -> 75 | R111: =VLOOKUP(N111,Arkusz3!AN:AP,3,0) -> 1115.66
A112: 6811355131 | B112: GMINA PCIM | C112: 12 | D112: 09 | E112: 042 | F112: 32432 | G112: Pcim | H112: Pcim | J112: 563 | K112: GMINA | L112: 1209042 | M112: =VLOOKUP(L112,Arkusz3!A:L,2,0) -> Pcim.......................................................................................................................................................................................................................................................... | N112: 1209042 | O112: =VLOOKUP(N112,Arkusz3!A:L,5,0) -> 89 | P112: =VLOOKUP(N112,Arkusz3!A:L,6,0) -> 11082 | Q112: =VLOOKUP(N112,Arkusz3!A:L,8,0) -> 125 | R112: =VLOOKUP(N112,Arkusz3!AN:AP,3,0) -> 1210.85
A113: 7343543904 | B113: MIASTO I GMINA PIWNICZNA-ZDRÓJ | C113: 12 | D113: 10 | E113: 134 | F113: 33350 | G113: Piwniczna-Zdrój | H113: Piwniczna-Zdrój | I113: ul. Rynek | J113: 20 | K113: GMINA | L113: 1210134 | M113: =VLOOKUP(L113,Arkusz3!A:L,2,0) ->  | N113: 1210133 | O113: =VLOOKUP(N113,Arkusz3!A:L,5,0) -> 126 | P113: =VLOOKUP(N113,Arkusz3!A:L,6,0) -> 10650 | Q113: =VLOOKUP(N113,Arkusz3!A:L,8,0) -> 84 | R113: =VLOOKUP(N113,Arkusz3!AN:AP,3,0) -> 977.43
A114: 8732978229 | B114: GMINA PLEŚNA | C114: 12 | D114: 16 | E114: 042 | F114: 33171 | G114: Pleśna | H114: Pleśna | J114: 240 | K114: GMINA | L114: 1216042 | M114: =VLOOKUP(L114,Arkusz3!A:L,2,0) -> Pleśna.......................................................................................................................................................................................................................................................... | N114: 1216042 | O114: =VLOOKUP(N114,Arkusz3!A:L,5,0) -> 83 | P114: =VLOOKUP(N114,Arkusz3!A:L,6,0) -> 11955 | Q114: =VLOOKUP(N114,Arkusz3!A:L,8,0) -> 144 | R114: =VLOOKUP(N114,Arkusz3!AN:AP,3,0) -> 941.91
A115: 7343456306 | B115: GMINA PODEGRODZIE | C115: 12 | D115: 10 | E115: 142 | F115: 33386 | G115: Podegrodzie | H115: Podegrodzie | J115: 248 | K115: GMINA | L115: 1210142 | M115: =VLOOKUP(L115,Arkusz3!A:L,2,0) -> Podegrodzie.......................................................................................................................................................................................................................................................... | N115: 1210142 | O115: =VLOOKUP(N115,Arkusz3!A:L,5,0) -> 65 | P115: =VLOOKUP(N115,Arkusz3!A:L,6,0) -> 13170 | Q115: =VLOOKUP(N115,Arkusz3!A:L,8,0) -> 203 | R115: =VLOOKUP(N115,Arkusz3!AN:AP,3,0) -> 934.69
A116: 5492199463 | B116: GMINA POLANKA WIELKA | C116: 12 | D116: 13 | E116: 072 | F116: 32607 | G116: Polanka Wielka | H116: Polanka Wielka | I116: ul. Długa | J116: 61 | K116: GMINA | L116: 1213072 | M116: =VLOOKUP(L116,Arkusz3!A:L,2,0) -> Polanka Wielka.......................................................................................................................................................................................................................................................... | N116: 1213072 | O116: =VLOOKUP(N116,Arkusz3!A:L,5,0) -> 24 | P116: =VLOOKUP(N116,Arkusz3!A:L,6,0) -> 4297 | Q116: =VLOOKUP(N116,Arkusz3!A:L,8,0) -> 180 | R116: =VLOOKUP(N116,Arkusz3!AN:AP,3,0) -> 1312.13
A117: 7361705814 | B117: GMINA PORONIN | C117: 12 | D117: 17 | E117: 052 | F117: 34520 | G117: Poronin | H117: Poronin | I117: ul. Józefa Piłsudskiego | J117: 5 | K117: GMINA | L117: 1217052 | M117: =VLOOKUP(L117,Arkusz3!A:L,2,0) -> Poronin.......................................................................................................................................................................................................................................................... | N117: 1217052 | O117: =VLOOKUP(N117,Arkusz3!A:L,5,0) -> 84 | P117: =VLOOKUP(N117,Arkusz3!A:L,6,0) -> 11636 | Q117: =VLOOKUP(N117,Arkusz3!A:L,8,0) -> 139 | R117: =VLOOKUP(N117,Arkusz3!AN:AP,3,0) -> 1194.26
A118: 6821604469 | B118: GMINA PROSZOWICE | C118: 12 | D118: 14 | E118: 054 | F118: 32100 | G118: Proszowice | H118: Proszowice | I118: ul. 3 Maja | J118: 72 | K118: GMINA | L118: 1214054 | M118: =VLOOKUP(L118,Arkusz3!A:L,2,0) ->  | N118: 1214053 | O118: =VLOOKUP(N118,Arkusz3!A:L,5,0) -> 100 | P118: =VLOOKUP(N118,Arkusz3!A:L,6,0) -> 16243 | Q118: =VLOOKUP(N118,Arkusz3!A:L,8,0) -> 162 | R118: =VLOOKUP(N118,Arkusz3!AN:AP,3,0) -> 1198.98
A119: 5492197487 | B119: GMINA PRZECISZÓW | C119: 12 | D119: 13 | E119: 082 | F119: 32641 | G119: Przeciszów | H119: Przeciszów | I119: ul. Podlesie | J119: 1 | K119: GMINA | L119: 1213082 | M119: =VLOOKUP(L119,Arkusz3!A:L,2,0) -> Przeciszów.......................................................................................................................................................................................................................................................... | N119: 1213082 | O119: =VLOOKUP(N119,Arkusz3!A:L,5,0) -> 35 | P119: =VLOOKUP(N119,Arkusz3!A:L,6,0) -> 6751 | Q119: =VLOOKUP(N119,Arkusz3!A:L,8,0) -> 190 | R119: =VLOOKUP(N119,Arkusz3!AN:AP,3,0) -> 1337.6
A120: 7352854845 | B120: GMINA RABA WYŻNA | C120: 12 | D120: 11 | E120: 112 | F120: 34721 | G120: Raba Wyżna | H120: Raba Wyżna | J120: 41 | K120: GMINA | L120: 1211112 | M120: =VLOOKUP(L120,Arkusz3!A:L,2,0) -> Raba Wyżna.......................................................................................................................................................................................................................................................... | N120: 1211112 | O120: =VLOOKUP(N120,Arkusz3!A:L,5,0) -> 89 | P120: =VLOOKUP(N120,Arkusz3!A:L,6,0) -> 14717 | Q120: =VLOOKUP(N120,Arkusz3!A:L,8,0) -> 165 | R120: =VLOOKUP(N120,Arkusz3!AN:AP,3,0) -> 727.83
A121: 7351006084 | B121: GMINA RABKA ZDRÓJ | C121: 12 | D121: 11 | E121: 124 | F121: 34700 | G121: Rabka-Zdrój | H121: Rabka-Zdrój | I121: ul. Parkowa | J121: 2 | K121: GMINA | L121: 1211124 | M121: =VLOOKUP(L121,Arkusz3!A:L,2,0) ->  | N121: 1211123 | O121: =VLOOKUP(N121,Arkusz3!A:L,5,0) -> 69 | P121: =VLOOKUP(N121,Arkusz3!A:L,6,0) -> 17092 | Q121: =VLOOKUP(N121,Arkusz3!A:L,8,0) -> 247 | R121: =VLOOKUP(N121,Arkusz3!AN:AP,3,0) -> 1305.71
A122: 6811359293 | B122: GMINA RACIECHOWICE | C122: 12 | D122: 09 | E122: 052 | F122: 32415 | G122: Raciechowice | H122: Raciechowice | J122: 277 | K122: GMINA | L122: 1209052 | M122: =VLOOKUP(L122,Arkusz3!A:L,2,0) -> Raciechowice.......................................................................................................................................................................................................................................................... | N122: 1209052 | O122: =VLOOKUP(N122,Arkusz3!A:L,5,0) -> 61 | P122: =VLOOKUP(N122,Arkusz3!A:L,6,0) -> 6395 | Q122: =VLOOKUP(N122,Arkusz3!A:L,8,0) -> 105 | R122: =VLOOKUP(N122,Arkusz3!AN:AP,3,0) -> 1017.42
A123: 6591184436 | B123: GMINA RACŁAWICE | C123: 12 | D123: 08 | E123: 062 | F123: 32222 | G123: Racławice | H123: Racławice | J123: 15 | K123: GMINA | L123: 1208062 | M123: =VLOOKUP(L123,Arkusz3!A:L,2,0) -> Racławice.......................................................................................................................................................................................................................................................... | N123: 1208062 | O123: =VLOOKUP(N123,Arkusz3!A:L,5,0) -> 59 | P123: =VLOOKUP(N123,Arkusz3!A:L,6,0) -> 2519 | Q123: =VLOOKUP(N123,Arkusz3!A:L,8,0) -> 43 | R123: =VLOOKUP(N123,Arkusz3!AN:AP,3,0) -> 1043.34
A124: 8711665525 | B124: GMINA RADGOSZCZ | C124: 12 | D124: 04 | E124: 062 | F124: 33207 | G124: Radgoszcz | H124: Radgoszcz | I124: pl. św. Kazimierza | J124: 7-8 | K124: GMINA | L124: 1204062 | M124: =VLOOKUP(L124,Arkusz3!A:L,2,0) -> Radgoszcz.......................................................................................................................................................................................................................................................... | N124: 1204062 | O124: =VLOOKUP(N124,Arkusz3!A:L,5,0) -> 88 | P124: =VLOOKUP(N124,Arkusz3!A:L,6,0) -> 7439 | Q124: =VLOOKUP(N124,Arkusz3!A:L,8,0) -> 84 | R124: =VLOOKUP(N124,Arkusz3!AN:AP,3,0) -> 566.34
A125: 8731001716 | B125: GMINA RADŁÓW | C125: 12 | D125: 16 | E125: 054 | F125: 33130 | G125: Radłów | H125: Radłów | I125: ul. Kolejowa | J125: 7 | K125: GMINA | L125: 1216054 | M125: =VLOOKUP(L125,Arkusz3!A:L,2,0) ->  | N125: 1216053 | O125: =VLOOKUP(N125,Arkusz3!A:L,5,0) -> 86 | P125: =VLOOKUP(N125,Arkusz3!A:L,6,0) -> 9750 | Q125: =VLOOKUP(N125,Arkusz3!A:L,8,0) -> 113 | R125: =VLOOKUP(N125,Arkusz3!AN:AP,3,0) -> 1206.6
A126: 6821762292 | B126: GMINA RADZIEMICE | C126: 12 | D126: 14 | E126: 062 | F126: 32107 | G126: Radziemice | H126: Radziemice | J126: 74 | K126: GMINA | L126: 1214062 | M126: =VLOOKUP(L126,Arkusz3!A:L,2,0) -> Radziemice.......................................................................................................................................................................................................................................................... | N126: 1214062 | O126: =VLOOKUP(N126,Arkusz3!A:L,5,0) -> 58 | P126: =VLOOKUP(N126,Arkusz3!A:L,6,0) -> 3417 | Q126: =VLOOKUP(N126,Arkusz3!A:L,8,0) -> 59 | R126: =VLOOKUP(N126,Arkusz3!AN:AP,3,0) -> 1105.25
A127: 7382130282 | B127: GMINA ROPA | C127: 12 | D127: 05 | E127: 082 | F127: 38312 | G127: Ropa | H127: Ropa | J127: 733 | K127: GMINA | L127: 1205082 | M127: =VLOOKUP(L127,Arkusz3!A:L,2,0) -> Ropa.......................................................................................................................................................................................................................................................... | N127: 1205082 | O127: =VLOOKUP(N127,Arkusz3!A:L,5,0) -> 49 | P127: =VLOOKUP(N127,Arkusz3!A:L,6,0) -> 5498 | Q127: =VLOOKUP(N127,Arkusz3!A:L,8,0) -> 112 | R127: =VLOOKUP(N127,Arkusz3!AN:AP,3,0) -> 635.24
A128: 9930337247 | B128: GMINA RYGLICE | C128: 12 | D128: 16 | E128: 064 | F128: 33160 | G128: Ryglice | H128: Ryglice | I128: ul. Rynek | J128: 9 | K128: GMINA | L128: 1216064 | M128: =VLOOKUP(L128,Arkusz3!A:L,2,0) ->  | N128: 1216063 | O128: =VLOOKUP(N128,Arkusz3!A:L,5,0) -> 117 | P128: =VLOOKUP(N128,Arkusz3!A:L,6,0) -> 11694 | Q128: =VLOOKUP(N128,Arkusz3!A:L,8,0) -> 100 | R128: =VLOOKUP(N128,Arkusz3!AN:AP,3,0) -> 853.6
A129: 7343517947 | B129: GMINA RYTRO | C129: 12 | D129: 10 | E129: 152 | F129: 33343 | G129: Rytro | H129: Rytro | J129: 265 | K129: GMINA | L129: 1210152 | M129: =VLOOKUP(L129,Arkusz3!A:L,2,0) -> Rytro.......................................................................................................................................................................................................................................................... | N129: 1210152 | O129: =VLOOKUP(N129,Arkusz3!A:L,5,0) -> 42 | P129: =VLOOKUP(N129,Arkusz3!A:L,6,0) -> 3807 | Q129: =VLOOKUP(N129,Arkusz3!A:L,8,0) -> 91 | R129: =VLOOKUP(N129,Arkusz3!AN:AP,3,0) -> 937.25
A130: 9930656314 | B130: GMINA RZEPIENNIK STRZYŻEWSKI | C130: 12 | D130: 16 | E130: 072 | F130: 33163 | G130: Rzepiennik Strzyżewski | H130: Rzepiennik Strzyżewski | J130: 400 | K130: GMINA | L130: 1216072 | M130: =VLOOKUP(L130,Arkusz3!A:L,2,0) -> Rzepiennik Strzyżewski.......................................................................................................................................................................................................................................................... | N130: 1216072 | O130: =VLOOKUP(N130,Arkusz3!A:L,5,0) -> 71 | P130: =VLOOKUP(N130,Arkusz3!A:L,6,0) -> 6742 | Q130: =VLOOKUP(N130,Arkusz3!A:L,8,0) -> 95 | R130: =VLOOKUP(N130,Arkusz3!AN:AP,3,0) -> 867.62
A131: 8681021294 | B131: GMINA RZEZAWA | C131: 12 | D131: 01 | E131: 072 | F131: 32765 | G131: Rzezawa | H131: Rzezawa | I131: ul. Długa | J131: 21 | K131: GMINA | L131: =C131*100000+D131*1000+E131 -> 1201072 | M131: =VLOOKUP(L131,Arkusz3!A:L,2,0) -> Rzezawa.......................................................................................................................................................................................................................................................... | N131: =IF(M131=M$1,L131-1,IF(M131=N$1,L131-2,L131)) -> 1201072 | O131: =VLOOKUP(N131,Arkusz3!A:L,5,0) -> 86 | P131: =VLOOKUP(N131,Arkusz3!A:L,6,0) -> 11276 | Q131: =VLOOKUP(N131,Arkusz3!A:L,8,0) -> 131 | R131: =VLOOKUP(N131,Arkusz3!AN:AP,3,0) -> 1017.63
A132: 7381013686 | B132: GMINA SĘKOWA | C132: 12 | D132: 05 | E132: 092 | F132: 38307 | G132: Sękowa | H132: Sękowa | J132: 252 | K132: GMINA | L132: 1205092 | M132: =VLOOKUP(L132,Arkusz3!A:L,2,0) -> Sękowa.......................................................................................................................................................................................................................................................... | N132: 1205092 | O132: =VLOOKUP(N132,Arkusz3!A:L,5,0) -> 195 | P132: =VLOOKUP(N132,Arkusz3!A:L,6,0) -> 5017 | Q132: =VLOOKUP(N132,Arkusz3!A:L,8,0) -> 26 | R132: =VLOOKUP(N132,Arkusz3!AN:AP,3,0) -> 965.01
A133: 6811299390 | B133: GMINA SIEPRAW | C133: 12 | D133: 09 | E133: 062 | F133: 32447 | G133: Siepraw | H133: Siepraw | I133: ul. Kawęciny | J133: 30 | K133: GMINA | L133: 1209062 | M133: =VLOOKUP(L133,Arkusz3!A:L,2,0) -> Siepraw.......................................................................................................................................................................................................................................................... | N133: 1209062 | O133: =VLOOKUP(N133,Arkusz3!A:L,5,0) -> 32 | P133: =VLOOKUP(N133,Arkusz3!A:L,6,0) -> 8953 | Q133: =VLOOKUP(N133,Arkusz3!A:L,8,0) -> 281 | R133: =VLOOKUP(N133,Arkusz3!AN:AP,3,0) -> 1444.31
A134: 6771024094 | B134: GMINA SKAŁA | C134: 12 | D134: 06 | E134: 104 | F134: 32043 | G134: Skała | H134: Skała | I134: Rynek | J134: 29 | K134: GMINA | L134: 1206104 | M134: =VLOOKUP(L134,Arkusz3!A:L,2,0) ->  | N134: 1206103 | O134: =VLOOKUP(N134,Arkusz3!A:L,5,0) -> 75 | P134: =VLOOKUP(N134,Arkusz3!A:L,6,0) -> 10556 | Q134: =VLOOKUP(N134,Arkusz3!A:L,8,0) -> 141 | R134: =VLOOKUP(N134,Arkusz3!AN:AP,3,0) -> 1191.94
A135: 6791023301 | B135: GMINA SKAWINA | C135: 12 | D135: 06 | E135: 114 | F135: 32050 | G135: Skawina | H135: Skawina | I135: Rynek | J135: 1 | K135: GMINA | L135: 1206114 | M135: =VLOOKUP(L135,Arkusz3!A:L,2,0) ->  | N135: 1206113 | O135: =VLOOKUP(N135,Arkusz3!A:L,5,0) -> 100 | P135: =VLOOKUP(N135,Arkusz3!A:L,6,0) -> 43496 | Q135: =VLOOKUP(N135,Arkusz3!A:L,8,0) -> 436 | R135: =VLOOKUP(N135,Arkusz3!AN:AP,3,0) -> 2236.95
A136: 9930340717 | B136: GMINA SKRZYSZÓW | C136: 12 | D136: 16 | E136: 082 | F136: 33156 | G136: Skrzyszów | H136: Skrzyszów | J136: 642 | K136: GMINA | L136: 1216082 | M136: =VLOOKUP(L136,Arkusz3!A:L,2,0) -> Skrzyszów.......................................................................................................................................................................................................................................................... | N136: 1216082 | O136: =VLOOKUP(N136,Arkusz3!A:L,5,0) -> 86 | P136: =VLOOKUP(N136,Arkusz3!A:L,6,0) -> 14254 | Q136: =VLOOKUP(N136,Arkusz3!A:L,8,0) -> 166 | R136: =VLOOKUP(N136,Arkusz3!AN:AP,3,0) -> 1117.47
A137: 6591222510 | B137: GMINA SŁABOSZÓW | C137: 12 | D137: 08 | E137: 072 | F137: 32218 | G137: Słaboszów | H137: Słaboszów | J137: 57 | K137: GMINA | L137: 1208072 | M137: =VLOOKUP(L137,Arkusz3!A:L,2,0) -> Słaboszów.......................................................................................................................................................................................................................................................... | N137: 1208072 | O137: =VLOOKUP(N137,Arkusz3!A:L,5,0) -> 77 | P137: =VLOOKUP(N137,Arkusz3!A:L,6,0) -> 3567 | Q137: =VLOOKUP(N137,Arkusz3!A:L,8,0) -> 46 | R137: =VLOOKUP(N137,Arkusz3!AN:AP,3,0) -> 940.46
A138: 6821604831 | B138: GMINA SŁOMNIKI | C138: 12 | D138: 06 | E138: 124 | F138: 32090 | G138: Słomniki | H138: Słomniki | I138: ul. Tadeusza Kościuszki | J138: 64 | K138: GMINA | L138: 1206124 | M138: =VLOOKUP(L138,Arkusz3!A:L,2,0) ->  | N138: 1206123 | O138: =VLOOKUP(N138,Arkusz3!A:L,5,0) -> 113 | P138: =VLOOKUP(N138,Arkusz3!A:L,6,0) -> 13680 | Q138: =VLOOKUP(N138,Arkusz3!A:L,8,0) -> 121 | R138: =VLOOKUP(N138,Arkusz3!AN:AP,3,0) -> 1354.69
A139: 7371410411 | B139: GMINA SŁOPNICE | C139: 12 | D139: 07 | E139: 112 | F139: 34615 | G139: Słopnice | H139: Słopnice | J139: 911 | K139: GMINA | L139: 1207112 | M139: =VLOOKUP(L139,Arkusz3!A:L,2,0) -> Słopnice.......................................................................................................................................................................................................................................................... | N139: 1207112 | O139: =VLOOKUP(N139,Arkusz3!A:L,5,0) -> 57 | P139: =VLOOKUP(N139,Arkusz3!A:L,6,0) -> 6720 | Q139: =VLOOKUP(N139,Arkusz3!A:L,8,0) -> 118 | R139: =VLOOKUP(N139,Arkusz3!AN:AP,3,0) -> 638.24
A140: 7352703193 | B140: GMINA SPYTKOWICE (pow. nowotarski) | C140: 12 | D140: 11 | E140: 132 | F140: 34745 | G140: Spytkowice | H140: Spytkowice | J140: 26 | K140: GMINA | L140: 1211132 | M140: =VLOOKUP(L140,Arkusz3!A:L,2,0) -> Spytkowice.......................................................................................................................................................................................................................................................... | N140: 1211132 | O140: =VLOOKUP(N140,Arkusz3!A:L,5,0) -> 32 | P140: =VLOOKUP(N140,Arkusz3!A:L,6,0) -> 4533 | Q140: =VLOOKUP(N140,Arkusz3!A:L,8,0) -> 141 | R140: =VLOOKUP(N140,Arkusz3!AN:AP,3,0) -> 977.22
A141: 5511123930 | B141: GMINA SPYTKOWICE (pow. wadowicki) | C141: 12 | D141: 18 | E141: 062 | F141: 34116 | G141: Spytkowice | H141: Spytkowice | I141: ul. Zamkowa | J141: 12 | K141: GMINA | L141: 1218062 | M141: =VLOOKUP(L141,Arkusz3!A:L,2,0) -> Spytkowice.......................................................................................................................................................................................................................................................... | N141: 1218062 | O141: =VLOOKUP(N141,Arkusz3!A:L,5,0) -> 52 | P141: =VLOOKUP(N141,Arkusz3!A:L,6,0) -> 10379 | Q141: =VLOOKUP(N141,Arkusz3!A:L,8,0) -> 202 | R141: =VLOOKUP(N141,Arkusz3!AN:AP,3,0) -> 1244.39
A142: 7341009655 | B142: GMINA STARY SĄCZ | C142: 12 | D142: 10 | E142: 164 | F142: 33340 | G142: Stary Sącz | H142: Stary Sącz | I142: ul. Stefana Batorego | J142: 25 | K142: GMINA | L142: 1210164 | M142: =VLOOKUP(L142,Arkusz3!A:L,2,0) ->  | N142: 1210163 | O142: =VLOOKUP(N142,Arkusz3!A:L,5,0) -> 101 | P142: =VLOOKUP(N142,Arkusz3!A:L,6,0) -> 23747 | Q142: =VLOOKUP(N142,Arkusz3!A:L,8,0) -> 235 | R142: =VLOOKUP(N142,Arkusz3!AN:AP,3,0) -> 1049.71
A143: 5521707153 | B143: GMINA STRYSZAWA | C143: 12 | D143: 15 | E143: 072 | F143: 34205 | G143: Stryszawa | H143: Stryszawa | J143: 17 | K143: GMINA | L143: 1215072 | M143: =VLOOKUP(L143,Arkusz3!A:L,2,0) -> Stryszawa.......................................................................................................................................................................................................................................................... | N143: 1215072 | O143: =VLOOKUP(N143,Arkusz3!A:L,5,0) -> 114 | P143: =VLOOKUP(N143,Arkusz3!A:L,6,0) -> 11888 | Q143: =VLOOKUP(N143,Arkusz3!A:L,8,0) -> 104 | R143: =VLOOKUP(N143,Arkusz3!AN:AP,3,0) -> 1191.64
A144: 5511690907 | B144: GMINA STRYSZÓW | C144: 12 | D144: 18 | E144: 072 | F144: 34146 | G144: Stryszów | H144: Stryszów | J144: 149 | K144: GMINA | L144: 1218072 | M144: =VLOOKUP(L144,Arkusz3!A:L,2,0) -> Stryszów.......................................................................................................................................................................................................................................................... | N144: 1218072 | O144: =VLOOKUP(N144,Arkusz3!A:L,5,0) -> 46 | P144: =VLOOKUP(N144,Arkusz3!A:L,6,0) -> 6856 | Q144: =VLOOKUP(N144,Arkusz3!A:L,8,0) -> 149 | R144: =VLOOKUP(N144,Arkusz3!AN:AP,3,0) -> 1048.66
A145: 5521567404 | B145: GMINA SUCHA BESKIDZKA | C145: 12 | D145: 15 | E145: 021 | F145: 34200 | G145: Sucha Beskidzka | H145: Sucha Beskidzka | I145: ul. Adama Mickiewicza | J145: 19 | K145: GMINA | L145: 1215021 | M145: =VLOOKUP(L145,Arkusz3!A:L,2,0) -> Sucha Beskidzka.......................................................................................................................................................................................................................................................... | N145: 1215021 | O145: =VLOOKUP(N145,Arkusz3!A:L,5,0) -> 28 | P145: =VLOOKUP(N145,Arkusz3!A:L,6,0) -> 9165 | Q145: =VLOOKUP(N145,Arkusz3!A:L,8,0) -> 331 | R145: =VLOOKUP(N145,Arkusz3!AN:AP,3,0) -> 1920.34
A146: 6811036147 | B146: GMINA SUŁKOWICE | C146: 12 | D146: 09 | E146: 074 | F146: 32440 | G146: Sułkowice | H146: Sułkowice | I146: Rynek | J146: 1 | K146: GMINA | L146: 1209074 | M146: =VLOOKUP(L146,Arkusz3!A:L,2,0) ->  | N146: 1209073 | O146: =VLOOKUP(N146,Arkusz3!A:L,5,0) -> 60 | P146: =VLOOKUP(N146,Arkusz3!A:L,6,0) -> 14916 | Q146: =VLOOKUP(N146,Arkusz3!A:L,8,0) -> 247 | R146: =VLOOKUP(N146,Arkusz3!AN:AP,3,0) -> 1134.36
A147: 6771037576 | B147: GMINA SUŁOSZOWA | C147: 12 | D147: 06 | E147: 132 | F147: 32045 | G147: Sułoszowa | H147: Sułoszowa | I147: ul. Krakowska | J147: 139 | K147: GMINA | L147: 1206132 | M147: =VLOOKUP(L147,Arkusz3!A:L,2,0) -> Sułoszowa.......................................................................................................................................................................................................................................................... | N147: 1206132 | O147: =VLOOKUP(N147,Arkusz3!A:L,5,0) -> 53 | P147: =VLOOKUP(N147,Arkusz3!A:L,6,0) -> 5830 | Q147: =VLOOKUP(N147,Arkusz3!A:L,8,0) -> 109 | R147: =VLOOKUP(N147,Arkusz3!AN:AP,3,0) -> 800.63
A148: 7361198317 | B148: GMINA SZAFLARY | C148: 12 | D148: 11 | E148: 142 | F148: 34424 | G148: Szaflary | H148: Szaflary | I148: ul. Zakopiańska | J148: 18 | K148: GMINA | L148: 1211142 | M148: =VLOOKUP(L148,Arkusz3!A:L,2,0) -> Szaflary.......................................................................................................................................................................................................................................................... | N148: 1211142 | O148: =VLOOKUP(N148,Arkusz3!A:L,5,0) -> 54 | P148: =VLOOKUP(N148,Arkusz3!A:L,6,0) -> 11054 | Q148: =VLOOKUP(N148,Arkusz3!A:L,8,0) -> 204 | R148: =VLOOKUP(N148,Arkusz3!AN:AP,3,0) -> 799.58
A149: 7351026738 | B149: MIASTO I GMINA SZCZAWNICA | C149: 12 | D149: 11 | E149: 024 | F149: 34460 | G149: Szczawnica | H149: Szczawnica | I149: ul. Szalaya | J149: 103 | K149: GMINA | L149: 1211024 | M149: =VLOOKUP(L149,Arkusz3!A:L,2,0) ->  | N149: 1211023 | O149: =VLOOKUP(N149,Arkusz3!A:L,5,0) -> 88 | P149: =VLOOKUP(N149,Arkusz3!A:L,6,0) -> 7265 | Q149: =VLOOKUP(N149,Arkusz3!A:L,8,0) -> 83 | R149: =VLOOKUP(N149,Arkusz3!AN:AP,3,0) -> 1659.62
A150: 8711769963 | B150: GMINA SZCZUCIN | C150: 12 | D150: 04 | E150: 074 | F150: 33230 | G150: Szczucin | H150: Szczucin | I150: ul. Wolności | J150: 3 | K150: GMINA | L150: 1204074 | M150: =VLOOKUP(L150,Arkusz3!A:L,2,0) ->  | N150: 1204073 | O150: =VLOOKUP(N150,Arkusz3!A:L,5,0) -> 119 | P150: =VLOOKUP(N150,Arkusz3!A:L,6,0) -> 13180 | Q150: =VLOOKUP(N150,Arkusz3!A:L,8,0) -> 110 | R150: =VLOOKUP(N150,Arkusz3!AN:AP,3,0) -> 965.77
A151: 8691186401 | B151: GMINA SZCZUROWA | C151: 12 | D151: 02 | E151: 072 | F151: 32820 | G151: Szczurowa | H151: Szczurowa | I151: ul. Lwowska | J151: 2 | K151: GMINA | L151: 1202072 | M151: =VLOOKUP(L151,Arkusz3!A:L,2,0) -> Szczurowa.......................................................................................................................................................................................................................................................... | N151: 1202072 | O151: =VLOOKUP(N151,Arkusz3!A:L,5,0) -> 135 | P151: =VLOOKUP(N151,Arkusz3!A:L,6,0) -> 9534 | Q151: =VLOOKUP(N151,Arkusz3!A:L,8,0) -> 71 | R151: =VLOOKUP(N151,Arkusz3!AN:AP,3,0) -> 1069.93
A152: 9930337193 | B152: GMINA SZERZYNY | C152: 12 | D152: 16 | E152: 162 | F152: 38246 | G152: Szerzyny | H152: Szerzyny | J152: 521 | K152: GMINA | L152: 1216162 | M152: =VLOOKUP(L152,Arkusz3!A:L,2,0) -> Szerzyny.......................................................................................................................................................................................................................................................... | N152: 1216162 | O152: =VLOOKUP(N152,Arkusz3!A:L,5,0) -> 82 | P152: =VLOOKUP(N152,Arkusz3!A:L,6,0) -> 7975 | Q152: =VLOOKUP(N152,Arkusz3!A:L,8,0) -> 97 | R152: =VLOOKUP(N152,Arkusz3!AN:AP,3,0) -> 666.2
A153: 9442226987 | B153: GMINA ŚWIĄTNIKI GÓRNE | C153: 12 | D153: 06 | E153: 144 | F153: 32040 | G153: Świątniki Górne | H153: Świątniki Górne | I153: ul. Kazimierza Bruchnalskiego | J153: 36 | K153: GMINA | L153: 1206144 | M153: =VLOOKUP(L153,Arkusz3!A:L,2,0) ->  | N153: 1206143 | O153: =VLOOKUP(N153,Arkusz3!A:L,5,0) -> 20 | P153: =VLOOKUP(N153,Arkusz3!A:L,6,0) -> 10083 | Q153: =VLOOKUP(N153,Arkusz3!A:L,8,0) -> 495 | R153: =VLOOKUP(N153,Arkusz3!AN:AP,3,0) -> 1911.11
A154: 8731550848 | B154: GMINA TARNÓW | C154: 12 | D154: 63 | E154: 011 | F154: 33100 | G154: Tarnów | H154: Tarnów | I154: ul. Krakowska | J154: 19 | K154: GMINA | L154: 1263011 | M154: =VLOOKUP(L154,Arkusz3!A:L,2,0) -> Tarnów.......................................................................................................................................................................................................................................................... | N154: 1263011 | O154: =VLOOKUP(N154,Arkusz3!A:L,5,0) -> 72 | P154: =VLOOKUP(N154,Arkusz3!A:L,6,0) -> 109062 | Q154: =VLOOKUP(N154,Arkusz3!A:L,8,0) -> 1507 | R154: =VLOOKUP(N154,Arkusz3!AN:AP,3,0) -> 2023.45
A155: 6811304607 | B155: GMINA TOKARNIA | C155: 12 | D155: 09 | E155: 082 | F155: 32436 | G155: Tokarnia | H155: Tokarnia | J155: 380 | K155: GMINA | L155: 1209082 | M155: =VLOOKUP(L155,Arkusz3!A:L,2,0) -> Tokarnia.......................................................................................................................................................................................................................................................... | N155: 1209082 | O155: =VLOOKUP(N155,Arkusz3!A:L,5,0) -> 69 | P155: =VLOOKUP(N155,Arkusz3!A:L,6,0) -> 8771 | Q155: =VLOOKUP(N155,Arkusz3!A:L,8,0) -> 128 | R155: =VLOOKUP(N155,Arkusz3!AN:AP,3,0) -> 836.72
A156: 5511163935 | B156: GMINA TOMICE | C156: 12 | D156: 18 | E156: 082 | F156: 34100 | G156: Wadowice | H156: Tomice | I156: ul. Wadowicka | J156: 51 | K156: GMINA | L156: 1218082 | M156: =VLOOKUP(L156,Arkusz3!A:L,2,0) -> Tomice.......................................................................................................................................................................................................................................................... | N156: 1218082 | O156: =VLOOKUP(N156,Arkusz3!A:L,5,0) -> 42 | P156: =VLOOKUP(N156,Arkusz3!A:L,6,0) -> 8171 | Q156: =VLOOKUP(N156,Arkusz3!A:L,8,0) -> 197 | R156: =VLOOKUP(N156,Arkusz3!AN:AP,3,0) -> 1168.04
A157: 8681021259 | B157: GMINA TRZCIANA | C157: 12 | D157: 01 | E157: 082 | F157: 32733 | G157: Trzciana | H157: Trzciana | J157: 302 | K157: GMINA | L157: 1201082 | M157: =VLOOKUP(L157,Arkusz3!A:L,2,0) -> Trzciana.......................................................................................................................................................................................................................................................... | N157: 1201082 | O157: =VLOOKUP(N157,Arkusz3!A:L,5,0) -> 44 | P157: =VLOOKUP(N157,Arkusz3!A:L,6,0) -> 5582 | Q157: =VLOOKUP(N157,Arkusz3!A:L,8,0) -> 127 | R157: =VLOOKUP(N157,Arkusz3!AN:AP,3,0) -> 1151.25
A158: 6282260122 | B158: GMINA TRZEBINIA | C158: 12 | D158: 03 | E158: 054 | F158: 32540 | G158: Trzebinia | H158: Trzebinia | I158: ul. Marszałka Piłsudskiego | J158: 14 | K158: GMINA | L158: 1203054 | M158: =VLOOKUP(L158,Arkusz3!A:L,2,0) ->  | N158: 1203053 | O158: =VLOOKUP(N158,Arkusz3!A:L,5,0) -> 105 | P158: =VLOOKUP(N158,Arkusz3!A:L,6,0) -> 33997 | Q158: =VLOOKUP(N158,Arkusz3!A:L,8,0) -> 323 | R158: =VLOOKUP(N158,Arkusz3!AN:AP,3,0) -> 2323.89
A159: 6372024112 | B159: GMINA TRZYCIĄŻ | C159: 12 | D159: 12 | E159: 062 | F159: 32353 | G159: Trzyciąż | H159: Trzyciąż | J159: 99 | K159: GMINA | L159: 1212062 | M159: =VLOOKUP(L159,Arkusz3!A:L,2,0) -> Trzyciąż.......................................................................................................................................................................................................................................................... | N159: 1212062 | O159: =VLOOKUP(N159,Arkusz3!A:L,5,0) -> 95 | P159: =VLOOKUP(N159,Arkusz3!A:L,6,0) -> 7048 | Q159: =VLOOKUP(N159,Arkusz3!A:L,8,0) -> 74 | R159: =VLOOKUP(N159,Arkusz3!AN:AP,3,0) -> 1198.04
A160: 9930336443 | B160: GMINA TUCHÓW | C160: 12 | D160: 16 | E160: 104 | F160: 33170 | G160: Tuchów | H160: Tuchów | I160: ul. Rynek | J160: 1 | K160: GMINA | L160: 1216104 | M160: =VLOOKUP(L160,Arkusz3!A:L,2,0) ->  | N160: 1216103 | O160: =VLOOKUP(N160,Arkusz3!A:L,5,0) -> 100 | P160: =VLOOKUP(N160,Arkusz3!A:L,6,0) -> 18043 | Q160: =VLOOKUP(N160,Arkusz3!A:L,8,0) -> 181 | R160: =VLOOKUP(N160,Arkusz3!AN:AP,3,0) -> 928.12
A161: 7371362818 | B161: GMINA TYMBARK | C161: 12 | D161: 07 | E161: 122 | F161: 34650 | G161: Tymbark | H161: Tymbark | J161: 49 | K161: GMINA | L161: 1207122 | M161: =VLOOKUP(L161,Arkusz3!A:L,2,0) -> Tymbark.......................................................................................................................................................................................................................................................... | N161: 1207122 | O161: =VLOOKUP(N161,Arkusz3!A:L,5,0) -> 33 | P161: =VLOOKUP(N161,Arkusz3!A:L,6,0) -> 6556 | Q161: =VLOOKUP(N161,Arkusz3!A:L,8,0) -> 200 | R161: =VLOOKUP(N161,Arkusz3!AN:AP,3,0) -> 1368.59
A162: 7382144864 | B162: GMINA UŚCIE GORLICKIE | C162: 12 | D162: 05 | E162: 102 | F162: 38315 | G162: Uście Gorlickie | H162: Uście Gorlickie | J162: 80 | K162: GMINA | L162: 1205102 | M162: =VLOOKUP(L162,Arkusz3!A:L,2,0) -> Uście Gorlickie.......................................................................................................................................................................................................................................................... | N162: 1205102 | O162: =VLOOKUP(N162,Arkusz3!A:L,5,0) -> 287 | P162: =VLOOKUP(N162,Arkusz3!A:L,6,0) -> 6837 | Q162: =VLOOKUP(N162,Arkusz3!A:L,8,0) -> 24 | R162: =VLOOKUP(N162,Arkusz3!AN:AP,3,0) -> 921.05
A163: 5511003597 | B163: GMINA WADOWICE | C163: 12 | D163: 18 | E163: 094 | F163: 34100 | G163: Wadowice | H163: Wadowice | I163: pl. Jana Pawła II | J163: 23 | K163: GMINA | L163: 1218094 | M163: =VLOOKUP(L163,Arkusz3!A:L,2,0) ->  | N163: 1218093 | O163: =VLOOKUP(N163,Arkusz3!A:L,5,0) -> 113 | P163: =VLOOKUP(N163,Arkusz3!A:L,6,0) -> 37934 | Q163: =VLOOKUP(N163,Arkusz3!A:L,8,0) -> 336 | R163: =VLOOKUP(N163,Arkusz3!AN:AP,3,0) -> 2036.14
A164: 6830011450 | B164: GMINA WIELICZKA | C164: 12 | D164: 19 | E164: 054 | F164: 32020 | G164: Wieliczka | H164: Wieliczka | I164: ul. Powstania Warszawskiego | J164: 1 | K164: GMINA | L164: 1219054 | M164: =VLOOKUP(L164,Arkusz3!A:L,2,0) ->  | N164: 1219053 | O164: =VLOOKUP(N164,Arkusz3!A:L,5,0) -> 100 | P164: =VLOOKUP(N164,Arkusz3!A:L,6,0) -> 59414 | Q164: =VLOOKUP(N164,Arkusz3!A:L,8,0) -> 596 | R164: =VLOOKUP(N164,Arkusz3!AN:AP,3,0) -> 1900.98
A165: 5130066230 | B165: GMINA WIELKA WIEŚ | C165: 12 | D165: 06 | E165: 152 | F165: 32085 | G165: Modlnica | H165: Szyce | I165: pl. Plac Wspólnoty | J165: 1 | K165: GMINA | L165: 1206152 | M165: =VLOOKUP(L165,Arkusz3!A:L,2,0) -> Wielka Wieś.......................................................................................................................................................................................................................................................... | N165: 1206152 | O165: =VLOOKUP(N165,Arkusz3!A:L,5,0) -> 48 | P165: =VLOOKUP(N165,Arkusz3!A:L,6,0) -> 12356 | Q165: =VLOOKUP(N165,Arkusz3!A:L,8,0) -> 256 | R165: =VLOOKUP(N165,Arkusz3!AN:AP,3,0) -> 3033.84
A166: 5511123841 | B166: GMINA WIEPRZ | C166: 12 | D166: 18 | E166: 102 | F166: 34122 | G166: Wieprz | H166: Wieprz | I166: ul. Centralna | J166: 5 | K166: GMINA | L166: 1218102 | M166: =VLOOKUP(L166,Arkusz3!A:L,2,0) -> Wieprz.......................................................................................................................................................................................................................................................... | N166: 1218102 | O166: =VLOOKUP(N166,Arkusz3!A:L,5,0) -> 75 | P166: =VLOOKUP(N166,Arkusz3!A:L,6,0) -> 12389 | Q166: =VLOOKUP(N166,Arkusz3!A:L,8,0) -> 166 | R166: =VLOOKUP(N166,Arkusz3!AN:AP,3,0) -> 1119.26
A167: 8731111741 | B167: GMINA WIERZCHOSŁAWICE | C167: 12 | D167: 16 | E167: 112 | F167: 33122 | G167: Wierzchosławice | H167: Wierzchosławice | J167: 550 | K167: GMINA | L167: 1216112 | M167: =VLOOKUP(L167,Arkusz3!A:L,2,0) -> Wierzchosławice.......................................................................................................................................................................................................................................................... | N167: 1216112 | O167: =VLOOKUP(N167,Arkusz3!A:L,5,0) -> 75 | P167: =VLOOKUP(N167,Arkusz3!A:L,6,0) -> 10825 | Q167: =VLOOKUP(N167,Arkusz3!A:L,8,0) -> 144 | R167: =VLOOKUP(N167,Arkusz3!AN:AP,3,0) -> 1472
A168: 9930652629 | B168: GMINA WIETRZYCHOWICE | C168: 12 | D168: 16 | E168: 122 | F168: 33270 | G168: Wietrzychowice | H168: Wietrzychowice | J168: 19 | K168: GMINA | L168: 1216122 | M168: =VLOOKUP(L168,Arkusz3!A:L,2,0) -> Wietrzychowice.......................................................................................................................................................................................................................................................... | N168: 1216122 | O168: =VLOOKUP(N168,Arkusz3!A:L,5,0) -> 48 | P168: =VLOOKUP(N168,Arkusz3!A:L,6,0) -> 3989 | Q168: =VLOOKUP(N168,Arkusz3!A:L,8,0) -> 82 | R168: =VLOOKUP(N168,Arkusz3!AN:AP,3,0) -> 1047.58
A169: 6811381938 | B169: GMINA WIŚNIOWA | C169: 12 | D169: 09 | E169: 092 | F169: 32412 | G169: Wiśniowa | H169: Wiśniowa | J169: 441 | K169: GMINA | L169: 1209092 | M169: =VLOOKUP(L169,Arkusz3!A:L,2,0) -> Wiśniowa.......................................................................................................................................................................................................................................................... | N169: 1209092 | O169: =VLOOKUP(N169,Arkusz3!A:L,5,0) -> 67 | P169: =VLOOKUP(N169,Arkusz3!A:L,6,0) -> 7390 | Q169: =VLOOKUP(N169,Arkusz3!A:L,8,0) -> 110 | R169: =VLOOKUP(N169,Arkusz3!AN:AP,3,0) -> 958.47
A170: 8732630130 | B170: GMINA WOJNICZ | C170: 12 | D170: 16 | E170: 134 | F170: 32830 | G170: Wojnicz | H170: Wojnicz | I170: ul. Rynek | J170: 1 | K170: GMINA | L170: 1216134 | M170: =VLOOKUP(L170,Arkusz3!A:L,2,0) ->  | N170: 1216133 | O170: =VLOOKUP(N170,Arkusz3!A:L,5,0) -> 79 | P170: =VLOOKUP(N170,Arkusz3!A:L,6,0) -> 13481 | Q170: =VLOOKUP(N170,Arkusz3!A:L,8,0) -> 170 | R170: =VLOOKUP(N170,Arkusz3!AN:AP,3,0) -> 1173.7
A171: 6372003423 | B171: GMINA WOLBROM | C171: 12 | D171: 12 | E171: 074 | F171: 32340 | G171: Wolbrom | H171: Wolbrom | I171: ul. Krakowska | J171: 1 | K171: GMINA | L171: 1212074 | M171: =VLOOKUP(L171,Arkusz3!A:L,2,0) ->  | N171: 1212073 | O171: =VLOOKUP(N171,Arkusz3!A:L,5,0) -> 147 | P171: =VLOOKUP(N171,Arkusz3!A:L,6,0) -> 22875 | Q171: =VLOOKUP(N171,Arkusz3!A:L,8,0) -> 156 | R171: =VLOOKUP(N171,Arkusz3!AN:AP,3,0) -> 1752.99
A172: 6761706490 | B172: GMINA ZABIERZÓW | C172: 12 | D172: 06 | E172: 162 | F172: 32080 | G172: Zabierzów | H172: Zabierzów | I172: Rynek | J172: 1 | K172: GMINA | L172: 1206162 | M172: =VLOOKUP(L172,Arkusz3!A:L,2,0) -> Zabierzów (a) .......................................................................................................................................................................................................................................................... | N172: 1206162 | O172: =VLOOKUP(N172,Arkusz3!A:L,5,0) -> 99 | P172: =VLOOKUP(N172,Arkusz3!A:L,6,0) -> 26504 | Q172: =VLOOKUP(N172,Arkusz3!A:L,8,0) -> 267 | R172: =VLOOKUP(N172,Arkusz3!AN:AP,3,0) -> 2477.29
A173: 8691013238 | B173: GMINA ZAKLICZYN | C173: 12 | D173: 16 | E173: 144 | F173: 32840 | G173: Zakliczyn | H173: Zakliczyn | I173: Rynek | J173: 32 | K173: GMINA | L173: 1216144 | M173: =VLOOKUP(L173,Arkusz3!A:L,2,0) ->  | N173: 1216143 | O173: =VLOOKUP(N173,Arkusz3!A:L,5,0) -> 122 | P173: =VLOOKUP(N173,Arkusz3!A:L,6,0) -> 12459 | Q173: =VLOOKUP(N173,Arkusz3!A:L,8,0) -> 102 | R173: =VLOOKUP(N173,Arkusz3!AN:AP,3,0) -> 864.85
A174: 7360007798 | B174: MIASTO ZAKOPANE | C174: 12 | D174: 17 | E174: 011 | F174: 34500 | G174: Zakopane | H174: Zakopane | I174: ul. Tadeusza Kościuszki | J174: 13 | K174: GMINA | L174: 1217011 | M174: =VLOOKUP(L174,Arkusz3!A:L,2,0) -> Zakopane.......................................................................................................................................................................................................................................................... | N174: 1217011 | O174: =VLOOKUP(N174,Arkusz3!A:L,5,0) -> 84 | P174: =VLOOKUP(N174,Arkusz3!A:L,6,0) -> 27191 | Q174: =VLOOKUP(N174,Arkusz3!A:L,8,0) -> 323 | R174: =VLOOKUP(N174,Arkusz3!AN:AP,3,0) -> 2524.45
A175: 5492197464 | B175: GMINA ZATOR | C175: 12 | D175: 13 | E175: 094 | F175: 32640 | G175: Zator | H175: Zator | I175: pl. Marszałka Józefa Piłsudskiego | J175: 1 | K175: GMINA | L175: 1213094 | M175: =VLOOKUP(L175,Arkusz3!A:L,2,0) ->  | N175: 1213093 | O175: =VLOOKUP(N175,Arkusz3!A:L,5,0) -> 52 | P175: =VLOOKUP(N175,Arkusz3!A:L,6,0) -> 9298 | Q175: =VLOOKUP(N175,Arkusz3!A:L,8,0) -> 180 | R175: =VLOOKUP(N175,Arkusz3!AN:AP,3,0) -> 1829.22
A176: 5521588530 | B176: GMINA ZAWOJA | C176: 12 | D176: 15 | E176: 082 | F176: 34222 | G176: Zawoja | H176: Zawoja | J176: 1307 | K176: GMINA | L176: 1215082 | M176: =VLOOKUP(L176,Arkusz3!A:L,2,0) -> Zawoja.......................................................................................................................................................................................................................................................... | N176: 1215082 | O176: =VLOOKUP(N176,Arkusz3!A:L,5,0) -> 128 | P176: =VLOOKUP(N176,Arkusz3!A:L,6,0) -> 9126 | Q176: =VLOOKUP(N176,Arkusz3!A:L,8,0) -> 71 | R176: =VLOOKUP(N176,Arkusz3!AN:AP,3,0) -> 1040.46
A177: 5521576805 | B177: GMINA ZEMBRZYCE | C177: 12 | D177: 15 | E177: 092 | F177: 34210 | G177: Zembrzyce | H177: Zembrzyce | J177: 540 | K177: GMINA | L177: 1215092 | M177: =VLOOKUP(L177,Arkusz3!A:L,2,0) -> Zembrzyce.......................................................................................................................................................................................................................................................... | N177: 1215092 | O177: =VLOOKUP(N177,Arkusz3!A:L,5,0) -> 39 | P177: =VLOOKUP(N177,Arkusz3!A:L,6,0) -> 5620 | Q177: =VLOOKUP(N177,Arkusz3!A:L,8,0) -> 143 | R177: =VLOOKUP(N177,Arkusz3!AN:AP,3,0) -> 1127.97
A178: 5130038162 | B178: GMINA ZIELONKI | C178: 12 | D178: 06 | E178: 172 | F178: 32087 | G178: Zielonki | H178: Zielonki | I178: ul. Krakowskie Przedmieście | J178: 116 | K178: GMINA | L178: 1206172 | M178: =VLOOKUP(L178,Arkusz3!A:L,2,0) -> Zielonki.......................................................................................................................................................................................................................................................... | N178: 1206172 | O178: =VLOOKUP(N178,Arkusz3!A:L,5,0) -> 49 | P178: =VLOOKUP(N178,Arkusz3!A:L,6,0) -> 22582 | Q178: =VLOOKUP(N178,Arkusz3!A:L,8,0) -> 465 | R178: =VLOOKUP(N178,Arkusz3!AN:AP,3,0) -> 2568.85
A179: 9930370109 | B179: GMINA ŻABNO | C179: 12 | D179: 16 | E179: 154 | F179: 33240 | G179: Żabno | H179: Żabno | I179: ul. Władysława Jagiełły | J179: 1 | K179: GMINA | L179: 1216154 | M179: =VLOOKUP(L179,Arkusz3!A:L,2,0) ->  | N179: 1216153 | O179: =VLOOKUP(N179,Arkusz3!A:L,5,0) -> 102 | P179: =VLOOKUP(N179,Arkusz3!A:L,6,0) -> 18912 | Q179: =VLOOKUP(N179,Arkusz3!A:L,8,0) -> 186 | R179: =VLOOKUP(N179,Arkusz3!AN:AP,3,0) -> 1385.94
A180: 8681021319 | B180: GMINA ŻEGOCINA | C180: 12 | D180: 01 | E180: 092 | F180: 32731 | G180: Żegocina | H180: Żegocina | J180: 316 | K180: GMINA | L180: 1201092 | M180: =VLOOKUP(L180,Arkusz3!A:L,2,0) -> Żegocina.......................................................................................................................................................................................................................................................... | N180: 1201092 | O180: =VLOOKUP(N180,Arkusz3!A:L,5,0) -> 35 | P180: =VLOOKUP(N180,Arkusz3!A:L,6,0) -> 5543 | Q180: =VLOOKUP(N180,Arkusz3!A:L,8,0) -> 159 | R180: =VLOOKUP(N180,Arkusz3!AN:AP,3,0) -> 981.08
A181: 8681599283 | B181: POWIAT BOCHEŃSKI | C181: 12 | D181: 01 | E181: 011 | F181: 32700 | G181: Bochnia | H181: Bochnia | I181: ul. Kazimierza Wielkiego | J181: 31 | K181: POWIAT | L181: 1201 | N181: =L181*1 -> 1201 | O181: =VLOOKUP(L181,Arkusz3!M:T,4,0) -> 649 | P181: =VLOOKUP(L181,Arkusz3!M:T,5,0) -> 106514 | Q181: =VLOOKUP(L181,Arkusz3!M:T,6,0) -> 164 | R181: =VLOOKUP(N181,Arkusz3!AV4:AX384,3,0) -> 219.8
A182: 8691652725 | B182: POWIAT BRZESKI | C182: 12 | D182: 02 | E182: 024 | F182: 32800 | G182: Brzesko | H182: Brzesko | I182: ul. Bartosza Głowackiego | J182: 51 | K182: POWIAT | L182: 1202 | N182: =L182*1 -> 1202 | O182: =VLOOKUP(L182,Arkusz3!M:T,4,0) -> 591 | P182: =VLOOKUP(L182,Arkusz3!M:T,5,0) -> 93206 | Q182: =VLOOKUP(L182,Arkusz3!M:T,6,0) -> 158 | R182: =VLOOKUP(N182,Arkusz3!AV5:AX385,3,0) -> 178.69
A183: 6281715276 | B183: POWIAT CHRZANOWSKI | C183: 12 | D183: 03 | E183: 034 | F183: 32500 | G183: Chrzanów | H183: Chrzanów | I183: ul. Partyzantów | J183: 2 | K183: POWIAT | L183: 1203 | N183: 1203 | O183: =VLOOKUP(L183,Arkusz3!M:T,4,0) -> 370 | P183: =VLOOKUP(L183,Arkusz3!M:T,5,0) -> 125385 | Q183: =VLOOKUP(L183,Arkusz3!M:T,6,0) -> 339 | R183: =VLOOKUP(N183,Arkusz3!AV6:AX386,3,0) -> 294.5
A184: 8711771285 | B184: POWIAT DĄBROWSKI | C184: 12 | D184: 04 | E184: 024 | F184: 33200 | G184: Dąbrowa Tarnowska | H184: Dąbrowa Tarnowska | I184: ul. Berka Joselewicza | J184: 5 | K184: POWIAT | L184: 1204 | N184: 1204 | O184: =VLOOKUP(L184,Arkusz3!M:T,4,0) -> 530 | P184: =VLOOKUP(L184,Arkusz3!M:T,5,0) -> 59350 | Q184: =VLOOKUP(L184,Arkusz3!M:T,6,0) -> 112 | R184: =VLOOKUP(N184,Arkusz3!AV7:AX387,3,0) -> 116.31
A185: 7382150787 | B185: POWIAT GORLICKI | C185: 12 | D185: 05 | E185: 011 | F185: 38300 | G185: Gorlice | H185: Gorlice | I185: ul. Biecka | J185: 3 | K185: POWIAT | L185: 1205 | N185: 1205 | O185: =VLOOKUP(L185,Arkusz3!M:T,4,0) -> 966 | P185: =VLOOKUP(L185,Arkusz3!M:T,5,0) -> 109104 | Q185: =VLOOKUP(L185,Arkusz3!M:T,6,0) -> 113 | R185: =VLOOKUP(N185,Arkusz3!AV8:AX388,3,0) -> 146.45
A186: 6772364194 | B186: POWIAT KRAKOWSKI | C186: 12 | D186: 61 | E186: 029 | F186: 30037 | G186: Kraków | H186: Kraków | I186: Aleja Juliusza Słowackiego | J186: 20 | K186: POWIAT | L186: 1206 | N186: 1206 | O186: =VLOOKUP(L186,Arkusz3!M:T,4,0) -> 1231 | P186: =VLOOKUP(L186,Arkusz3!M:T,5,0) -> 277145 | Q186: =VLOOKUP(L186,Arkusz3!M:T,6,0) -> 225 | R186: =VLOOKUP(N186,Arkusz3!AV9:AX389,3,0) -> 327.42
A187: 7372206836 | B187: POWIAT LIMANOWSKI | C187: 12 | D187: 07 | E187: 011 | F187: 34600 | G187: Limanowa | H187: Limanowa | I187: ul. Józefa Marka | J187: 9 | K187: POWIAT | L187: 1207 | N187: 1207 | O187: =VLOOKUP(L187,Arkusz3!M:T,4,0) -> 951 | P187: =VLOOKUP(L187,Arkusz3!M:T,5,0) -> 131523 | Q187: =VLOOKUP(L187,Arkusz3!M:T,6,0) -> 138 | R187: =VLOOKUP(N187,Arkusz3!AV10:AX390,3,0) -> 152.3
A188: 6591545868 | B188: POWIAT MIECHOWSKI | C188: 12 | D188: 08 | E188: 054 | F188: 32200 | G188: Miechów | H188: Miechów | I188: ul. Racławicka | J188: 12 | K188: POWIAT | L188: 1208 | N188: 1208 | O188: =VLOOKUP(L188,Arkusz3!M:T,4,0) -> 676 | P188: =VLOOKUP(L188,Arkusz3!M:T,5,0) -> 49137 | Q188: =VLOOKUP(L188,Arkusz3!M:T,6,0) -> 73 | R188: =VLOOKUP(N188,Arkusz3!AV11:AX391,3,0) -> 151.7
A189: 6811692325 | B189: POWIAT MYŚLENICKI | C189: 12 | D189: 09 | E189: 034 | F189: 32400 | G189: Myślenice | H189: Myślenice | I189: ul. Mikołaja Reja | J189: 13 | K189: POWIAT | L189: 1209 | N189: 1209 | O189: =VLOOKUP(L189,Arkusz3!M:T,4,0) -> 673 | P189: =VLOOKUP(L189,Arkusz3!M:T,5,0) -> 127028 | Q189: =VLOOKUP(L189,Arkusz3!M:T,6,0) -> 189 | R189: =VLOOKUP(N189,Arkusz3!AV12:AX392,3,0) -> 207.5
A190: 7343544080 | B190: POWIAT NOWOSĄDECKI | C190: 12 | D190: 62 | E190: 011 | F190: 33300 | G190: Nowy Sącz | H190: Nowy Sącz | I190: ul. Jagiellońska | J190: 33 | K190: POWIAT | L190: 1210 | N190: 1210 | O190: =VLOOKUP(L190,Arkusz3!M:T,4,0) -> 1549 | P190: =VLOOKUP(L190,Arkusz3!M:T,5,0) -> 216176 | Q190: =VLOOKUP(L190,Arkusz3!M:T,6,0) -> 139 | R190: =VLOOKUP(N190,Arkusz3!AV13:AX393,3,0) -> 159.5
A191: 7352175044 | B191: POWIAT NOWOTARSKI | C191: 12 | D191: 11 | E191: 011 | F191: 34400 | G191: Nowy Targ | H191: Nowy Targ | I191: ul. Bolesława Wstydliwego | J191: 14 | K191: POWIAT | L191: 1211 | N191: 1211 | O191: =VLOOKUP(L191,Arkusz3!M:T,4,0) -> 1474 | P191: =VLOOKUP(L191,Arkusz3!M:T,5,0) -> 191508 | Q191: =VLOOKUP(L191,Arkusz3!M:T,6,0) -> 130 | R191: =VLOOKUP(N191,Arkusz3!AV14:AX394,3,0) -> 142.19
A192: 6372024678 | B192: POWIAT OLKUSKI | C192: 12 | D192: 12 | E192: 054 | F192: 32300 | G192: Olkusz | H192: Olkusz | I192: ul. Adama Mickiewicza | J192: 2 | K192: POWIAT | L192: 1212 | N192: 1212 | O192: =VLOOKUP(L192,Arkusz3!M:T,4,0) -> 618 | P192: =VLOOKUP(L192,Arkusz3!M:T,5,0) -> 112035 | Q192: =VLOOKUP(L192,Arkusz3!M:T,6,0) -> 181 | R192: =VLOOKUP(N192,Arkusz3!AV15:AX395,3,0) -> 291.72
A193: 5492197501 | B193: POWIAT OŚWIĘCIMSKI | C193: 12 | D193: 13 | E193: 011 | F193: 32602 | G193: Oświęcim | H193: Oświęcim | I193: ul. Stanisława Wyspiańskiego | J193: 10 | K193: POWIAT | L193: 1213 | N193: 1213 | O193: =VLOOKUP(L193,Arkusz3!M:T,4,0) -> 406 | P193: =VLOOKUP(L193,Arkusz3!M:T,5,0) -> 153737 | Q193: =VLOOKUP(L193,Arkusz3!M:T,6,0) -> 379 | R193: =VLOOKUP(N193,Arkusz3!AV16:AX396,3,0) -> 289.66
A194: 6821436782 | B194: POWIAT PROSZOWICKI | C194: 12 | D194: 14 | E194: 054 | F194: 32100 | G194: Proszowice | H194: Proszowice | I194: ul. 3 Maja | J194: 72 | K194: POWIAT | L194: 1214 | N194: 1214 | O194: =VLOOKUP(L194,Arkusz3!M:T,4,0) -> 415 | P194: =VLOOKUP(L194,Arkusz3!M:T,5,0) -> 43523 | Q194: =VLOOKUP(L194,Arkusz3!M:T,6,0) -> 105 | R194: =VLOOKUP(N194,Arkusz3!AV17:AX397,3,0) -> 145.32
A195: 5521427933 | B195: POWIAT SUSKI | C195: 12 | D195: 15 | E195: 021 | F195: 34200 | G195: Sucha Beskidzka | H195: Sucha Beskidzka | I195: ul. Kościelna | J195: 5b | K195: POWIAT | L195: 1215 | N195: 1215 | O195: =VLOOKUP(L195,Arkusz3!M:T,4,0) -> 686 | P195: =VLOOKUP(L195,Arkusz3!M:T,5,0) -> 84255 | Q195: =VLOOKUP(L195,Arkusz3!M:T,6,0) -> 123 | R195: =VLOOKUP(N195,Arkusz3!AV18:AX398,3,0) -> 186.54
A196: 9930660913 | B196: POWIAT TARNOWSKI | C196: 12 | D196: 63 | E196: 011 | F196: 33100 | G196: Tarnów | H196: Tarnów | I196: ul. Gabriela Narutowicza | J196: 38 | K196: POWIAT | L196: 1216 | N196: 1216 | O196: =VLOOKUP(L196,Arkusz3!M:T,4,0) -> 1412 | P196: =VLOOKUP(L196,Arkusz3!M:T,5,0) -> 201570 | Q196: =VLOOKUP(L196,Arkusz3!M:T,6,0) -> 143 | R196: =VLOOKUP(N196,Arkusz3!AV19:AX399,3,0) -> 155.99
A197: 7361720593 | B197: POWIAT TATRZAŃSKI | C197: 12 | D197: 17 | E197: 011 | F197: 34500 | G197: Zakopane | H197: Zakopane | I197: ul. Chramcówki | J197: 15 | K197: POWIAT | L197: 1217 | N197: 1217 | O197: =VLOOKUP(L197,Arkusz3!M:T,4,0) -> 472 | P197: =VLOOKUP(L197,Arkusz3!M:T,5,0) -> 68146 | Q197: =VLOOKUP(L197,Arkusz3!M:T,6,0) -> 144 | R197: =VLOOKUP(N197,Arkusz3!AV20:AX400,3,0) -> 196.47
A198: 5512129478 | B198: POWIAT WADOWICKI | C198: 12 | D198: 18 | E198: 094 | F198: 34100 | G198: Wadowice | H198: Wadowice | I198: ul. Batorego | J198: 2 | K198: POWIAT | L198: 1218 | N198: 1218 | O198: =VLOOKUP(L198,Arkusz3!M:T,4,0) -> 646 | P198: =VLOOKUP(L198,Arkusz3!M:T,5,0) -> 160130 | Q198: =VLOOKUP(L198,Arkusz3!M:T,6,0) -> 248 | R198: =VLOOKUP(N198,Arkusz3!AV21:AX401,3,0) -> 229.25
A199: 6831742730 | B199: POWIAT WIELICKI | C199: 12 | D199: 19 | E199: 054 | F199: 32020 | G199: Wieliczka | H199: Wieliczka | I199: ul. Rynek Górny | J199: 2 | K199: POWIAT | L199: 1219 | N199: 1219 | O199: =VLOOKUP(L199,Arkusz3!M:T,4,0) -> 411 | P199: =VLOOKUP(L199,Arkusz3!M:T,5,0) -> 127078 | Q199: =VLOOKUP(L199,Arkusz3!M:T,6,0) -> 309 | R199: =VLOOKUP(N199,Arkusz3!AV22:AX402,3,0) -> 296.05
A200: 7343507021 | B200: NOWY SĄCZ - MIASTO NA PRAWACH POWIATU | C200: 12 | D200: 62 | E200: 011 | F200: 33300 | G200: Nowy Sącz | H200: Nowy Sącz | I200: ul. Rynek | J200: 1 | K200: MNPP | L200: 1262 | N200: 1262 | O200: =VLOOKUP(L200,Arkusz3!M:T,4,0) -> 58 | P200: =VLOOKUP(L200,Arkusz3!M:T,5,0) -> 83896 | Q200: =VLOOKUP(L200,Arkusz3!M:T,6,0) -> 1457 | R200: =VLOOKUP(N200,Arkusz3!AV23:AX403,3,0) -> 292.82
... 3 more rows

Sheet Arkusz3 (hidden)
A1: TABL.21.POWIERZCHNIA,LUDNOŚĆORAZLOKATYWEDŁUGGMIN AREA,POPULATIONANDRANKINGPOSITIONSBYGMINAS | AF1: Warszawa, 15.10.2019 r. | AR1: Warszawa, 15.10.2019 r.
AF2: Wskaźnik G - podstawowych dochodów podatkowych na 1 mieszkańca gminy przyjęty do obliczania subwencji wyrównawczej na 2020 r.
AR4: WK | AS4: PK | AW4: P O W I A T | AX4: Wskaźnik P na 2020 | AZ4: 5130038162
B5: WOJ. DOLNOŚLĄSKIE | N5: WOJ. DOLNOŚLĄSKIE | X5: P O L S K A | Y5: 31270525 | Z5: 312705 | AA5: 38411148 | AB5: 123 | AC5: x | AD5: x | AR5: 02 | AS5: 01 | AT5: =AR5*100 -> 200 | AU5: =+AS5*1 -> 1 | AV5: =AT5+AU5 -> 201 | AW5: bolesławiecki | AX5: 230.14 | AZ5: 5130060109
B6: Powiat bolesławiecki (6 gmin) | N6: Powiaty: | X6: P O L A N D | AF6: Kod gminy | AO6: GMINA | AP6: Wskaźnik G na 2020 r. | AR6: 02 | AS6: 02 | AT6: =AR6*100 -> 200 | AU6: =+AS6*1 -> 2 | AV6: =AT6+AU6 -> 202 | AW6: dzierżoniowski | AX6: 201.23 | AZ6: 5130066230
N7: Powiats: | W7: 02 | X7: Dolnośląskie | Y7: 1994670 | Z7: 19947 | AA7: 2901225 | AB7: 145 | AC7: 7 | AD7: 5 | AF7: 02 | AG7: 01 | AH7: 01 | AI7: 1 | AJ7: =AF7*100000 -> 200000 | AK7: =AG7*1000 -> 1000 | AL7: =AH7*10 -> 10 | AM7: =AI7*1 -> 1 | AN7: =SUM(AJ7:AM7) -> 201011 | AO7: BOLESŁAWIEC | AP7: 1897.67 | AR7: 02 | AS7: 03 | AT7: 200 | AU7: 3 | AV7: 203 | AW7: głogowski | AX7: 336.84 | AZ7: 5130233774
A8: 201011 | B8: Bolesławiec.......................................................................................................................................................................................................................................................... | C8: 2357 | E8: 24 | F8: 38935 | H8: 1652 | I8: 2206 | J8: 132 | M8: 0201 | N8: bolesławiecki | O8: 130351 | P8: 1304 | Q8: 90200 | R8: 69 | S8: 64 | T8: 98 | W8: 04 | X8: Kujawsko-pomorskie | Y8: 1797134 | Z8: 17971 | AA8: 2077775 | AB8: 116 | AC8: 10 | AD8: 10 | AF8: 02 | AG8: 01 | AH8: 02 | AI8: 2 | AJ8: =AF8*100000 -> 200000 | AK8: =AG8*1000 -> 1000 | AL8: =AH8*10 -> 20 | AM8: =AI8*1 -> 2 | AN8: =SUM(AJ8:AM8) -> 201022 | AO8: BOLESŁAWIEC | AP8: 2140.02 | AR8: 02 | AS8: 04 | AT8: 200 | AU8: 4 | AV8: 204 | AW8: górowski | AX8: 154.71 | AZ8: 5492197435
M9: 0202 | N9: dzierżoniowski | O9: 47851 | P9: 479 | Q9: 101437 | R9: 212 | S9: 285 | T9: 78 | W9: 06 | X9: Lubelskie | Y9: 2512246 | Z9: 25123 | AA9: 2117619 | AB9: 84 | AC9: 3 | AD9: 9 | AF9: 02 | AG9: 01 | AH9: 03 | AI9: 2 | AJ9: 200000 | AK9: 1000 | AL9: 30 | AM9: 2 | AN9: 201032 | AO9: GROMADKA | AP9: 2423.86 | AR9: 02 | AS9: 05 | AT9: 200 | AU9: 5 | AV9: 205 | AW9: jaworski | AX9: 192.8 | AZ9: 5492197441
A10: 201022 | B10: Bolesławiec.......................................................................................................................................................................................................................................................... | C10: 28849 | E10: 289 | F10: 14626 | H10: 51 | I10: 116 | J10: 536 | M10: 0203 | N10: głogowski | O10: 44327 | P10: 443 | Q10: 89541 | R10: 202 | S10: 293 | T10: 101 | W10: 08 | X10: Lubuskie | Y10: 1398793 | Z10: 13988 | AA10: 1014548 | AB10: 73 | AC10: 13 | AD10: 15 | AF10: 02 | AG10: 01 | AH10: 04 | AI10: 3 | AJ10: 200000 | AK10: 1000 | AL10: 40 | AM10: 3 | AN10: 201043 | AO10: NOWOGRODZIEC | AP10: 2048.27 | AR10: 02 | AS10: 06 | AT10: 200 | AU10: 6 | AV10: 206 | AW10: jeleniogórski | AX10: 224.05 | AZ10: 5492197458
A11: 201032 | B11: Gromadka.......................................................................................................................................................................................................................................................... | C11: 26768 | E11: 268 | F11: 5367 | H11: 20 | I11: 139 | J11: 1638 | M11: 0204 | N11: górowski | O11: 73827 | P11: 738 | Q11: 35182 | R11: 48 | S11: 199 | T11: 299 | W11: 10 | X11: Łódzkie | Y11: 1821895 | Z11: 18219 | AA11: 2466322 | AB11: 135 | AC11: 9 | AD11: 6 | AF11: 02 | AG11: 01 | AH11: 05 | AI11: 2 | AJ11: 200000 | AK11: 1000 | AL11: 50 | AM11: 2 | AN11: 201052 | AO11: OSIECZNICA | AP11: 2449.93 | AR11: 02 | AS11: 07 | AT11: 200 | AU11: 7 | AV11: 207 | AW11: kamiennogórski | AX11: 187.53 | AZ11: 5492197464
A12: 201052 | B12: Osiecznica.......................................................................................................................................................................................................................................................... | C12: 43704 | D12: ↑ | E12: 437 | F12: 7371 | H12: 17 | I12: 12 | J12: 1230 | M12: 0205 | N12: jaworski | O12: 58155 | P12: 582 | Q12: 50545 | R12: 87 | S12: 261 | T12: 240 | W12: 12 | X12: Małopolskie | Y12: 1518279 | Z12: 15183 | AA12: 3400577 | AB12: 224 | AC12: 12 | AD12: 4 | AF12: 02 | AG12: 01 | AH12: 06 | AI12: 2 | AJ12: 200000 | AK12: 1000 | AL12: 60 | AM12: 2 | AN12: 201062 | AO12: WARTA BOLESŁAWIECKA | AP12: 1782.52 | AR12: 02 | AS12: 08 | AT12: 200 | AU12: 8 | AV12: 208 | AW12: kłodzki | AX12: 191.41 | AZ12: 5492197470
A13: 201062 | B13: Warta Bolesławiecka.......................................................................................................................................................................................................................................................... | C13: 11044 | E13: 110 | F13: 8643 | H13: 78 | I13: 1214 | J13: 1027 | M13: 0206 | N13: jeleniogórski | O13: 62714 | P13: 627 | Q13: 63855 | R13: 102 | S13: 242 | T13: 184 | W13: 14 | X13: Mazowieckie | Y13: 3555847 | Z13: 35559 | AA13: 5403412 | AB13: 152 | AC13: 1 | AD13: 1 | AF13: 02 | AG13: 02 | AH13: 01 | AI13: 1 | AJ13: 200000 | AK13: 2000 | AL13: 10 | AM13: 1 | AN13: 202011 | AO13: BIELAWA | AP13: 1159.86 | AR13: 02 | AS13: 09 | AT13: 200 | AU13: 9 | AV13: 209 | AW13: legnicki | AX13: 227.53 | AZ13: 5492197487
M14: 0207 | N14: kamiennogórski | O14: 39569 | P14: 396 | Q14: 43621 | R14: 110 | S14: 301 | T14: 270 | W14: 16 | X14: Opolskie | Y14: 941187 | Z14: 9412 | AA14: 986506 | AB14: 105 | AC14: 16 | AD14: 16 | AF14: 02 | AG14: 02 | AH14: 02 | AI14: 1 | AJ14: 200000 | AK14: 2000 | AL14: 20 | AM14: 1 | AN14: 202021 | AO14: DZIERŻONIÓW | AP14: 1675.1 | AR14: 02 | AS14: 10 | AT14: 200 | AU14: 10 | AV14: 210 | AW14: lubański | AX14: 200.75 | AZ14: 5492197501
A15: 201043 | B15: Nowogrodziec.......................................................................................................................................................................................................................................................... | C15: 17629 | E15: 176 | F15: 15258 | H15: 87 | I15: 476 | J15: 510 | M15: 0208 | N15: kłodzki | O15: 164330 | P15: 1642 | Q15: 159337 | R15: 97 | S15: 25 | T15: 18 | W15: 18 | X15: Podkarpackie | Y15: 1784576 | Z15: 17846 | AA15: 2129015 | AB15: 119 | AC15: 11 | AD15: 8 | AF15: 02 | AG15: 02 | AH15: 03 | AI15: 3 | AJ15: 200000 | AK15: 2000 | AL15: 30 | AM15: 3 | AN15: 202033 | AO15: PIESZYCE | AP15: 1279.58 | AR15: 02 | AS15: 11 | AT15: 200 | AU15: 11 | AV15: 211 | AW15: lubiński | AX15: 418.29 | AZ15: 5492198593
A16: 201044 | C16: 1610 | E16: 16 | F16: 4235 | H16: 263 | I16: x | J16: x | M16: 0209 | N16: legnicki | O16: 74408 | P16: 744 | Q16: 55326 | R16: 74 | S16: 196 | T16: 223 | W16: 20 | X16: Podlaskie | Y16: 2018702 | Z16: 20187 | AA16: 1181533 | AB16: 59 | AC16: 6 | AD16: 14 | AF16: 02 | AG16: 02 | AH16: 04 | AI16: 1 | AJ16: 200000 | AK16: 2000 | AL16: 40 | AM16: 1 | AN16: 202041 | AO16: PIŁAWA GÓRNA | AP16: 1179.6 | AR16: 02 | AS16: 12 | AT16: 200 | AU16: 12 | AV16: 212 | AW16: lwówecki | AX16: 163.61 | AZ16: 5492199463
A17: 201045 | C17: 16019 | E17: 160 | F17: 11023 | H17: 69 | I17: x | J17: x | M17: 0210 | N17: lubański | O17: 42830 | P17: 428 | Q17: 54699 | R17: 128 | S17: 296 | T17: 227 | W17: 22 | X17: Pomorskie | Y17: 1832368 | Z17: 18323 | AA17: 2333523 | AB17: 127 | AC17: 8 | AD17: 7 | AF17: 02 | AG17: 02 | AH17: 05 | AI17: 2 | AJ17: 200000 | AK17: 2000 | AL17: 50 | AM17: 2 | AN17: 202052 | AO17: DZIERŻONIÓW | AP17: 1459.74 | AR17: 02 | AS17: 13 | AT17: 200 | AU17: 13 | AV17: 213 | AW17: milicki | AX17: 199.26 | AZ17: 5492202969
B18: Powiat dzierżoniowski (7 gmin) | M18: 0211 | N18: lubiński | O18: 71162 | P18: 712 | Q18: 106254 | R18: 149 | S18: 212 | T18: 76 | W18: 24 | X18: Śląskie | Y18: 1233309 | Z18: 12333 | AA18: 4533565 | AB18: 368 | AC18: 14 | AD18: 2 | AF18: 02 | AG18: 02 | AH18: 06 | AI18: 2 | AJ18: 200000 | AK18: 2000 | AL18: 60 | AM18: 2 | AN18: 202062 | AO18: ŁAGIEWNIKI | AP18: 1267.96 | AR18: 02 | AS18: 14 | AT18: 200 | AU18: 14 | AV18: 214 | AW18: oleśnicki | AX18: 249.2 | AZ18: 5510013406
M19: 0212 | N19: lwówecki | O19: 70969 | P19: 710 | Q19: 46059 | R19: 65 | S19: 214 | T19: 256 | W19: 26 | X19: Świętokrzyskie | Y19: 1171050 | Z19: 11710 | AA19: 1241546 | AB19: 106 | AC19: 15 | AD19: 13 | AF19: 02 | AG19: 02 | AH19: 07 | AI19: 3 | AJ19: 200000 | AK19: 2000 | AL19: 70 | AM19: 3 | AN19: 202073 | AO19: NIEMCZA | AP19: 1189.8 | AR19: 02 | AS19: 15 | AT19: 200 | AU19: 15 | AV19: 215 | AW19: oławski | AX19: 300 | AZ19: 5511003597
A20: 202011 | B20: Bielawa.......................................................................................................................................................................................................................................................... | C20: 3621 | E20: 36 | F20: 30055 | H20: 830 | I20: 2118 | J20: 188 | M20: 0213 | N20: milicki | O20: 71493 | P20: 715 | Q20: 37093 | R20: 52 | S20: 209 | T20: 293 | W20: 28 | X20: Warmińsko-mazurskie | Y20: 2417347 | Z20: 24173 | AA20: 1428983 | AB20: 59 | AC20: 4 | AD20: 12 | AF20: 02 | AG20: 03 | AH20: 01 | AI20: 1 | AJ20: 200000 | AK20: 3000 | AL20: 10 | AM20: 1 | AN20: 203011 | AO20: GŁOGÓW | AP20: 2628.91 | AR20: 02 | AS20: 16 | AT20: 200 | AU20: 16 | AV20: 216 | AW20: polkowicki | AX20: 394.06 | AZ20: 5511123841
A21: 202021 | B21: Dzierżoniów.......................................................................................................................................................................................................................................................... | C21: 2007 | E21: 20 | F21: 33344 | H21: 1661 | I21: 2237 | J21: 163 | M21: 0214 | N21: oleśnicki | O21: 104931 | P21: 1049 | Q21: 107062 | R21: 102 | S21: 112 | T21: 72 | W21: 30 | X21: Wielkopolskie | Y21: 2982650 | Z21: 29826 | AA21: 3493969 | AB21: 117 | AC21: 2 | AD21: 3 | AF21: 02 | AG21: 03 | AH21: 02 | AI21: 2 | AJ21: 200000 | AK21: 3000 | AL21: 20 | AM21: 2 | AN21: 203022 | AO21: GŁOGÓW | AP21: 2639.41 | AR21: 02 | AS21: 17 | AT21: 200 | AU21: 17 | AV21: 217 | AW21: strzeliński | AX21: 207.07 | AZ21: 5511123918
A22: 202041 | B22: Piława Górna.......................................................................................................................................................................................................................................................... | C22: 2093 | E22: 21 | F22: 6457 | H22: 309 | I22: 2229 | J22: 1396 | M22: 0215 | N22: oławski | O22: 52410 | P22: 524 | Q22: 76595 | R22: 146 | S22: 276 | T22: 142 | W22: 32 | X22: Zachodniopomorskie | Y22: 2290472 | Z22: 22905 | AA22: 1701030 | AB22: 74 | AC22: 5 | AD22: 11 | AF22: 02 | AG22: 03 | AH22: 03 | AI22: 2 | AJ22: 200000 | AK22: 3000 | AL22: 30 | AM22: 2 | AN22: 203032 | AO22: JERZMANOWA | AP22: 7006.93 | AR22: 02 | AS22: 18 | AT22: 200 | AU22: 18 | AV22: 218 | AW22: średzki | AX22: 260.84 | AZ22: 5511123930
M23: 0216 | N23: polkowicki | O23: 77946 | P23: 779 | Q23: 62982 | R23: 81 | S23: 185 | T23: 188 | AF23: 02 | AG23: 03 | AH23: 04 | AI23: 2 | AJ23: 200000 | AK23: 3000 | AL23: 40 | AM23: 2 | AN23: 203042 | AO23: KOTLA | AP23: 1603.47 | AR23: 02 | AS23: 19 | AT23: 200 | AU23: 19 | AV23: 219 | AW23: świdnicki | AX23: 259.9 | AZ23: 5511158182
A24: 202052 | B24: Dzierżoniów.......................................................................................................................................................................................................................................................... | C24: 14106 | E24: 141 | F24: 9138 | H24: 65 | I24: 770 | J24: 959 | M24: 0217 | N24: strzeliński | O24: 62206 | P24: 622 | Q24: 43773 | R24: 70 | S24: 246 | T24: 269 | AF24: 02 | AG24: 03 | AH24: 05 | AI24: 2 | AJ24: 200000 | AK24: 3000 | AL24: 50 | AM24: 2 | AN24: 203052 | AO24: PĘCŁAW | AP24: 1232.11 | AR24: 02 | AS24: 20 | AT24: 200 | AU24: 20 | AV24: 220 | AW24: trzebnicki | AX24: 270.25 | AZ24: 5511158242
A25: 202062 | B25: Łagiewniki.......................................................................................................................................................................................................................................................... | C25: 12477 | E25: 125 | F25: 7449 | H25: 60 | I25: 981 | J25: 1216 | M25: 0218 | N25: średzki | O25: 70414 | P25: 704 | Q25: 54269 | R25: 77 | S25: 216 | T25: 228 | AF25: 02 | AG25: 03 | AH25: 06 | AI25: 2 | AJ25: 200000 | AK25: 3000 | AL25: 60 | AM25: 2 | AN25: 203062 | AO25: ŻUKOWICE | AP25: 1681.54 | AR25: 02 | AS25: 21 | AT25: 200 | AU25: 21 | AV25: 221 | AW25: wałbrzyski | AX25: 219.73 | AZ25: 5511163935
M26: 0219 | N26: świdnicki | O26: 74114 | P26: 741 | Q26: 157615 | R26: 213 | S26: 197 | T26: 20 | AF26: 02 | AG26: 04 | AH26: 01 | AI26: 3 | AJ26: 200000 | AK26: 4000 | AL26: 10 | AM26: 3 | AN26: 204013 | AO26: GÓRA | AP26: 1464.01 | AR26: 02 | AS26: 22 | AT26: 200 | AU26: 22 | AV26: 222 | AW26: wołowski | AX26: 227.09 | AZ26: 5511690907
A27: 202073 | B27: Niemcza.......................................................................................................................................................................................................................................................... | C27: 7186 | E27: 72 | F27: 5502 | H27: 77 | I27: 1821 | J27: 1601 | M27: 0220 | N27: trzebnicki | O27: 102478 | P27: 1025 | Q27: 84886 | R27: 83 | S27: 121 | T27: 114 | AF27: 02 | AG27: 04 | AH27: 02 | AI27: 2 | AJ27: 200000 | AK27: 4000 | AL27: 20 | AM27: 2 | AN27: 204022 | AO27: JEMIELNO | AP27: 1053.53 | AR27: 02 | AS27: 23 | AT27: 200 | AU27: 23 | AV27: 223 | AW27: wrocławski | AX27: 440.07 | AZ27: 5512129478
A28: 202074 | C28: 1981 | E28: 20 | F28: 2974 | H28: 150 | I28: x | J28: x | M28: 0221 | N28: wałbrzyski | O28: 43022 | P28: 430 | Q28: 56004 | R28: 130 | S28: 295 | T28: 218 | AF28: 02 | AG28: 04 | AH28: 03 | AI28: 2 | AJ28: 200000 | AK28: 4000 | AL28: 30 | AM28: 2 | AN28: 204032 | AO28: NIECHLÓW | AP28: 1251.21 | AR28: 02 | AS28: 24 | AT28: 200 | AU28: 24 | AV28: 224 | AW28: ząbkowicki | AX28: 196.27 | AZ28: 5512618591
A29: 202075 | C29: 5205 | E29: 52 | F29: 2528 | H29: 49 | I29: x | J29: x | M29: 0222 | N29: wołowski | O29: 67496 | P29: 675 | Q29: 47056 | R29: 70 | S29: 229 | T29: 255 | AF29: 02 | AG29: 04 | AH29: 04 | AI29: 3 | AJ29: 200000 | AK29: 4000 | AL29: 40 | AM29: 3 | AN29: 204043 | AO29: WĄSOSZ | AP29: 1400.34 | AR29: 02 | AS29: 25 | AT29: 200 | AU29: 25 | AV29: 225 | AW29: zgorzelecki | AX29: 289.51 | AZ29: 5521427933
A30: 202033 | B30: Pieszyce.......................................................................................................................................................................................................................................................... | C30: 6361 | E30: 64 | F30: 9492 | H30: 149 | I30: 1917 | J30: 923 | M30: 0223 | N30: wrocławski | O30: 111770 | P30: 1118 | Q30: 146060 | R30: 131 | S30: 104 | T30: 28 | AF30: 02 | AG30: 05 | AH30: 01 | AI30: 1 | AJ30: 200000 | AK30: 5000 | AL30: 10 | AM30: 1 | AN30: 205011 | AO30: JAWOR | AP30: 1662.26 | AR30: 02 | AS30: 26 | AT30: 200 | AU30: 26 | AV30: 226 | AW30: złotoryjski | AX30: 202.99 | AZ30: 5521567404
A31: 202034 | C31: 1772 | E31: 18 | F31: 7136 | H31: 403 | I31: x | J31: x | M31: 0224 | N31: ząbkowicki | O31: 80153 | P31: 802 | Q31: 65428 | R31: 82 | S31: 180 | T31: 180 | AF31: 02 | AG31: 05 | AH31: 02 | AI31: 3 | AJ31: 200000 | AK31: 5000 | AL31: 20 | AM31: 3 | AN31: 205023 | AO31: BOLKÓW | AP31: 1023.42 | AR31: 02 | AS31: 61 | AT31: 200 | AU31: 61 | AV31: 261 | AW31: Jelenia Góra | AX31: 278.08 | AZ31: 5521570518
A32: 202035 | C32: 4589 | E32: 46 | F32: 2356 | H32: 51 | I32: x | J32: x | M32: 0225 | N32: zgorzelecki | O32: 83860 | P32: 839 | Q32: 90003 | R32: 107 | S32: 167 | T32: 99 | AF32: 02 | AG32: 05 | AH32: 03 | AI32: 2 | AJ32: 200000 | AK32: 5000 | AL32: 30 | AM32: 2 | AN32: 205032 | AO32: MĘCINKA | AP32: 1838.55 | AR32: 02 | AS32: 62 | AT32: 200 | AU32: 62 | AV32: 262 | AW32: Legnica | AX32: 302.51 | AZ32: 5521576805
B33: Powiat głogowski (6 gmin) | M33: 0226 | N33: złotoryjski | O33: 57581 | P33: 576 | Q33: 43869 | R33: 76 | S33: 264 | T33: 266 | AF33: 02 | AG33: 05 | AH33: 04 | AI33: 2 | AJ33: 200000 | AK33: 5000 | AL33: 40 | AM33: 2 | AN33: 205042 | AO33: MŚCIWOJÓW | AP33: 1677.57 | AR33: 02 | AS33: 64 | AT33: 200 | AU33: 64 | AV33: 264 | AW33: Wrocław | AX33: 470.74 | AZ33: 5521579821
N34: Miasta na prawach powiatu: | AF34: 02 | AG34: 05 | AH34: 05 | AI34: 2 | AJ34: 200000 | AK34: 5000 | AL34: 50 | AM34: 2 | AN34: 205052 | AO34: PASZOWICE | AP34: 1435.3 | AR34: 02 | AS34: 65 | AT34: 200 | AU34: 65 | AV34: 265 | AW34: Wałbrzych | AX34: 247.84 | AZ34: 5521584963
A35: 203011 | B35: Głogów.......................................................................................................................................................................................................................................................... | C35: 3511 | E35: 35 | F35: 67615 | H35: 1926 | I35: 2127 | J35: 59 | N35: Cities with powiat status: | AF35: 02 | AG35: 05 | AH35: 06 | AI35: 2 | AJ35: 200000 | AK35: 5000 | AL35: 60 | AM35: 2 | AN35: 205062 | AO35: WĄDROŻE WIELKIE | AP35: 1395.65 | AR35: 04 | AS35: 01 | AT35: 400 | AU35: 1 | AV35: 401 | AW35: aleksandrowski | AX35: 174.45 | AZ35: 5521586100
M36: 0261 | N36: Jelenia Góra | O36: 10922 | P36: 109 | Q36: 79480 | R36: 728 | S36: 25 | T36: 45 | AF36: 02 | AG36: 06 | AH36: 01 | AI36: 1 | AJ36: 200000 | AK36: 6000 | AL36: 10 | AM36: 1 | AN36: 206011 | AO36: KARPACZ | AP36: 3989.58 | AR36: 04 | AS36: 02 | AT36: 400 | AU36: 2 | AV36: 402 | AW36: brodnicki | AX36: 194.78 | AZ36: 5521588530
A37: 203022 | B37: Głogów.......................................................................................................................................................................................................................................................... | C37: 8479 | E37: 85 | F37: 6734 | H37: 79 | I37: 1621 | J37: 1350 | M37: 0262 | N37: Legnica | O37: 5629 | P37: 56 | Q37: 99752 | R37: 1772 | S37: 50 | T37: 39 | AF37: 02 | AG37: 06 | AH37: 02 | AI37: 1 | AJ37: 200000 | AK37: 6000 | AL37: 20 | AM37: 1 | AN37: 206021 | AO37: KOWARY | AP37: 1466.46 | AR37: 04 | AS37: 03 | AT37: 400 | AU37: 3 | AV37: 403 | AW37: bydgoski | AX37: 326.86 | AZ37: 5521677860
A38: 203032 | B38: Jerzmanowa.......................................................................................................................................................................................................................................................... | C38: 6332 | E38: 63 | F38: 5042 | H38: 80 | I38: 1921 | J38: 1715 | M38: 0265 | N38: Wałbrzych | O38: 8470 | P38: 85 | Q38: 112594 | R38: 1329 | S38: 34 | T38: 33 | AF38: 02 | AG38: 06 | AH38: 03 | AI38: 1 | AJ38: 200000 | AK38: 6000 | AL38: 30 | AM38: 1 | AN38: 206031 | AO38: PIECHOWICE | AP38: 2240.77 | AR38: 04 | AS38: 04 | AT38: 400 | AU38: 4 | AV38: 404 | AW38: chełmiński | AX38: 183.03 | AZ38: 5521707153
A39: 203042 | B39: Kotla.......................................................................................................................................................................................................................................................... | C39: 12752 | E39: 128 | F39: 4430 | H39: 35 | I39: 950 | J39: 1866 | M39: 0264 | N39: Wrocław | O39: 29282 | P39: 293 | Q39: 640648 | R39: 2188 | S39: 5 | T39: 4 | AF39: 02 | AG39: 06 | AH39: 04 | AI39: 1 | AJ39: 200000 | AK39: 6000 | AL39: 40 | AM39: 1 | AN39: 206041 | AO39: SZKLARSKA PORĘBA | AP39: 2780.07 | AR39: 04 | AS39: 05 | AT39: 400 | AU39: 5 | AV39: 405 | AW39: golubsko-dobrzyński | AX39: 177.5 | AZ39: 6281715276
A40: 203052 | B40: Pęcław.......................................................................................................................................................................................................................................................... | C40: 6427 | E40: 64 | F40: 2274 | H40: 35 | I40: 1912 | J40: 2269 | N40: WOJ. KUJAWSKO-POMORSKIE | AF40: 02 | AG40: 06 | AH40: 05 | AI40: 2 | AJ40: 200000 | AK40: 6000 | AL40: 50 | AM40: 2 | AN40: 206052 | AO40: JANOWICE WIELKIE | AP40: 1288.61 | AR40: 04 | AS40: 06 | AT40: 400 | AU40: 6 | AV40: 406 | AW40: grudziądzki | AX40: 157.15 | AZ40: 6282074477
A41: 203062 | B41: Żukowice.......................................................................................................................................................................................................................................................... | C41: 6826 | E41: 68 | F41: 3446 | H41: 50 | I41: 1869 | J41: 2106 | N41: Powiaty: | AF41: 02 | AG41: 06 | AH41: 06 | AI41: 2 | AJ41: 200000 | AK41: 6000 | AL41: 60 | AM41: 2 | AN41: 206062 | AO41: JEŻÓW SUDECKI | AP41: 1647.64 | AR41: 04 | AS41: 07 | AT41: 400 | AU41: 7 | AV41: 407 | AW41: inowrocławski | AX41: 215.69 | AZ41: 6282260122
B42: Powiat górowski (4 gminy) | N42: Powiats: | AF42: 02 | AG42: 06 | AH42: 07 | AI42: 2 | AJ42: 200000 | AK42: 6000 | AL42: 70 | AM42: 2 | AN42: 206072 | AO42: MYSŁAKOWICE | AP42: 1581.74 | AR42: 04 | AS42: 08 | AT42: 400 | AU42: 8 | AV42: 408 | AW42: lipnowski | AX42: 134.22 | AZ42: 6282260168
M43: 0401 | N43: aleksandrowski | O43: 47463 | P43: 475 | Q43: 55274 | R43: 116 | S43: 286 | T43: 224 | AF43: 02 | AG43: 06 | AH43: 08 | AI43: 2 | AJ43: 200000 | AK43: 6000 | AL43: 80 | AM43: 2 | AN43: 206082 | AO43: PODGÓRZYN | AP43: 1838.6 | AR43: 04 | AS43: 09 | AT43: 400 | AU43: 9 | AV43: 409 | AW43: mogileński | AX43: 192.35 | AZ43: 6282260665
A44: 204022 | B44: Jemielno.......................................................................................................................................................................................................................................................... | C44: 12402 | E44: 124 | F44: 3010 | H44: 24 | I44: 993 | J44: 2186 | M44: 0402 | N44: brodnicki | O44: 103997 | P44: 1040 | Q44: 78898 | R44: 76 | S44: 116 | T44: 131 | AF44: 02 | AG44: 06 | AH44: 09 | AI44: 2 | AJ44: 200000 | AK44: 6000 | AL44: 90 | AM44: 2 | AN44: 206092 | AO44: STARA KAMIENICA | AP44: 2051.32 | AR44: 04 | AS44: 10 | AT44: 400 | AU44: 10 | AV44: 410 | AW44: nakielski | AX44: 181.32 | AZ44: 6282267905
A45: 204032 | B45: Niechlów.......................................................................................................................................................................................................................................................... | C45: 15103 | E45: 151 | F45: 4939 | H45: 33 | I45: 665 | J45: 1737 | M45: 0403 | N45: bydgoski | O45: 139412 | P45: 1394 | Q45: 117325 | R45: 84 | S45: 48 | T45: 51 | AF45: 02 | AG45: 07 | AH45: 01 | AI45: 1 | AJ45: 200000 | AK45: 7000 | AL45: 10 | AM45: 1 | AN45: 207011 | AO45: KAMIENNA GÓRA | AP45: 1334.21 | AR45: 04 | AS45: 11 | AT45: 400 | AU45: 11 | AV45: 411 | AW45: radziejowski | AX45: 143.89 | AZ45: 6371997976
M46: 0404 | N46: chełmiński | O46: 52694 | P46: 527 | Q46: 52193 | R46: 99 | S46: 275 | T46: 235 | AF46: 02 | AG46: 07 | AH46: 02 | AI46: 2 | AJ46: 200000 | AK46: 7000 | AL46: 20 | AM46: 2 | AN46: 207022 | AO46: KAMIENNA GÓRA | AP46: 1375.01 | AR46: 04 | AS46: 12 | AT46: 400 | AU46: 12 | AV46: 412 | AW46: rypiński | AX46: 167.05 | AZ46: 6371998042
A47: 204013 | B47: Góra.......................................................................................................................................................................................................................................................... | C47: 26611 | E47: 266 | F47: 20037 | H47: 75 | I47: 143 | J47: 341 | M47: 0405 | N47: golubsko-dobrzyński | O47: 61285 | P47: 613 | Q47: 45140 | R47: 74 | S47: 254 | T47: 263 | AF47: 02 | AG47: 07 | AH47: 03 | AI47: 3 | AJ47: 200000 | AK47: 7000 | AL47: 30 | AM47: 3 | AN47: 207033 | AO47: LUBAWKA | AP47: 1181.74 | AR47: 04 | AS47: 13 | AT47: 400 | AU47: 13 | AV47: 413 | AW47: sępoleński | AX47: 146.43 | AZ47: 6371998059
A48: 204014 | C48: 1365 | E48: 14 | F48: 11859 | H48: 869 | I48: x | J48: x | M48: 0406 | N48: grudziądzki | O48: 72776 | P48: 728 | Q48: 40271 | R48: 55 | S48: 205 | T48: 283 | AF48: 02 | AG48: 07 | AH48: 04 | AI48: 2 | AJ48: 200000 | AK48: 7000 | AL48: 40 | AM48: 2 | AN48: 207042 | AO48: MARCISZÓW | AP48: 920.5 | AR48: 04 | AS48: 14 | AT48: 400 | AU48: 14 | AV48: 414 | AW48: świecki | AX48: 209.33 | AZ48: 6371998065
A49: 204015 | C49: 25246 | E49: 252 | F49: 8178 | H49: 32 | I49: x | J49: x | M49: 0407 | N49: inowrocławski | O49: 122518 | P49: 1225 | Q49: 160647 | R49: 131 | S49: 78 | T49: 16 | AF49: 02 | AG49: 08 | AH49: 01 | AI49: 1 | AJ49: 200000 | AK49: 8000 | AL49: 10 | AM49: 1 | AN49: 208011 | AO49: DUSZNIKI-ZDRÓJ | AP49: 1873.13 | AR49: 04 | AS49: 15 | AT49: 400 | AU49: 15 | AV49: 415 | AW49: toruński | AX49: 222.24 | AZ49: 6372003423
A50: 204043 | B50: Wąsosz.......................................................................................................................................................................................................................................................... | C50: 19711 | E50: 197 | F50: 7196 | H50: 37 | I50: 364 | J50: 1265 | M50: 0408 | N50: lipnowski | O50: 101574 | P50: 1016 | Q50: 66062 | R50: 65 | S50: 123 | T50: 176 | AF50: 02 | AG50: 08 | AH50: 02 | AI50: 1 | AJ50: 200000 | AK50: 8000 | AL50: 20 | AM50: 1 | AN50: 208021 | AO50: KŁODZKO | AP50: 1570.02 | AR50: 04 | AS50: 16 | AT50: 400 | AU50: 16 | AV50: 416 | AW50: tucholski | AX50: 171.61 | AZ50: 6372024112
A51: 204044 | C51: 324 | E51: 3 | F51: 2672 | H51: 825 | I51: x | J51: x | M51: 0409 | N51: mogileński | O51: 67512 | P51: 675 | Q51: 45821 | R51: 68 | S51: 228 | T51: 259 | AF51: 02 | AG51: 08 | AH51: 03 | AI51: 1 | AJ51: 200000 | AK51: 8000 | AL51: 30 | AM51: 1 | AN51: 208031 | AO51: KUDOWA-ZDRÓJ | AP51: 1415.37 | AR51: 04 | AS51: 17 | AT51: 400 | AU51: 17 | AV51: 417 | AW51: wąbrzeski | AX51: 168.83 | AZ51: 6372024678
A52: 204045 | C52: 19387 | E52: 194 | F52: 4524 | H52: 23 | I52: x | J52: x | M52: 0410 | N52: nakielski | O52: 112008 | P52: 1120 | Q52: 86590 | R52: 77 | S52: 101 | T52: 108 | AF52: 02 | AG52: 08 | AH52: 04 | AI52: 1 | AJ52: 200000 | AK52: 8000 | AL52: 40 | AM52: 1 | AN52: 208041 | AO52: NOWA RUDA | AP52: 1322.82 | AR52: 04 | AS52: 18 | AT52: 400 | AU52: 18 | AV52: 418 | AW52: włocławski | AX52: 160.49 | AZ52: 6590003697
B53: Powiat jaworski (6 gmin) | M53: 0411 | N53: radziejowski | O53: 60720 | P53: 607 | Q53: 40714 | R53: 67 | S53: 256 | T53: 281 | AF53: 02 | AG53: 08 | AH53: 05 | AI53: 1 | AJ53: 200000 | AK53: 8000 | AL53: 50 | AM53: 1 | AN53: 208051 | AO53: POLANICA-ZDRÓJ | AP53: 2011.16 | AR53: 04 | AS53: 19 | AT53: 400 | AU53: 19 | AV53: 419 | AW53: żniński | AX53: 173.94 | AZ53: 6591153915
M54: 0412 | N54: rypiński | O54: 58647 | P54: 586 | Q54: 43826 | R54: 75 | S54: 259 | T54: 267 | AF54: 02 | AG54: 08 | AH54: 06 | AI54: 3 | AJ54: 200000 | AK54: 8000 | AL54: 60 | AM54: 3 | AN54: 208063 | AO54: BYSTRZYCA KŁODZKA | AP54: 1288.64 | AR54: 04 | AS54: 61 | AT54: 400 | AU54: 61 | AV54: 461 | AW54: Bydgoszcz | AX54: 311.68 | AZ54: 6591174001
A55: 205011 | B55: Jawor.......................................................................................................................................................................................................................................................... | C55: 1880 | E55: 19 | F55: 23056 | H55: 1226 | I55: 2248 | J55: 283 | M55: 0413 | N55: sępoleński | O55: 79109 | P55: 791 | Q55: 41147 | R55: 52 | S55: 183 | T55: 280 | AF55: 02 | AG55: 08 | AH55: 07 | AI55: 2 | AJ55: 200000 | AK55: 8000 | AL55: 70 | AM55: 2 | AN55: 208072 | AO55: KŁODZKO | AP55: 1323.2 | AR55: 04 | AS55: 62 | AT55: 400 | AU55: 62 | AV55: 462 | AW55: Grudziądz | AX55: 234.19 | AZ55: 6591184436
M56: 0414 | N56: świecki | O56: 147418 | P56: 1474 | Q56: 99281 | R56: 67 | S56: 39 | T56: 80 | AF56: 02 | AG56: 08 | AH56: 08 | AI56: 3 | AJ56: 200000 | AK56: 8000 | AL56: 80 | AM56: 3 | AN56: 208083 | AO56: LĄDEK-ZDRÓJ | AP56: 1336.48 | AR56: 04 | AS56: 63 | AT56: 400 | AU56: 63 | AV56: 463 | AW56: Toruń | AX56: 326.2 | AZ56: 6591186961
A57: 205032 | B57: Męcinka.......................................................................................................................................................................................................................................................... | C57: 14778 | E57: 148 | F57: 4991 | H57: 34 | I57: 697 | J57: 1726 | M57: 0415 | N57: toruński | O57: 123042 | P57: 1230 | Q57: 106935 | R57: 87 | S57: 77 | T57: 73 | AF57: 02 | AG57: 08 | AH57: 09 | AI57: 2 | AJ57: 200000 | AK57: 8000 | AL57: 90 | AM57: 2 | AN57: 208092 | AO57: LEWIN KŁODZKI | AP57: 1271.05 | AR57: 04 | AS57: 64 | AT57: 400 | AU57: 64 | AV57: 464 | AW57: Włocławek | AX57: 255.64 | AZ57: 6591222510
A58: 205042 | B58: Mściwojów.......................................................................................................................................................................................................................................................... | C58: 7194 | E58: 72 | F58: 4094 | H58: 57 | I58: 1818 | J58: 1951 | M58: 0416 | N58: tucholski | O58: 107546 | P58: 1075 | Q58: 48374 | R58: 45 | S58: 107 | T58: 248 | AF58: 02 | AG58: 08 | AH58: 10 | AI58: 3 | AJ58: 200000 | AK58: 8000 | AL58: 100 | AM58: 3 | AN58: 208103 | AO58: MIĘDZYLESIE | AP58: 1078.69 | AR58: 06 | AS58: 01 | AT58: 600 | AU58: 1 | AV58: 601 | AW58: bialski | AX58: 133.44 | AZ58: 6591545868
A59: 205052 | B59: Paszowice.......................................................................................................................................................................................................................................................... | C59: 10128 | E59: 101 | F59: 3967 | H59: 39 | I59: 1364 | J59: 1979 | M59: 0417 | N59: wąbrzeski | O59: 50195 | P59: 502 | Q59: 34413 | R59: 69 | S59: 280 | T59: 302 | AF59: 02 | AG59: 08 | AH59: 11 | AI59: 2 | AJ59: 200000 | AK59: 8000 | AL59: 110 | AM59: 2 | AN59: 208112 | AO59: NOWA RUDA | AP59: 1173.24 | AR59: 06 | AS59: 02 | AT59: 600 | AU59: 2 | AV59: 602 | AW59: biłgorajski | AX59: 132.87 | AZ59: 6591545880
A60: 205062 | B60: Wądroże Wielkie.......................................................................................................................................................................................................................................................... | C60: 8915 | E60: 89 | F60: 3934 | H60: 44 | I60: 1540 | J60: 1991 | M60: 0418 | N60: włocławski | O60: 147363 | P60: 1474 | Q60: 86352 | R60: 59 | S60: 40 | T60: 109 | AF60: 02 | AG60: 08 | AH60: 12 | AI60: 3 | AJ60: 200000 | AK60: 8000 | AL60: 120 | AM60: 3 | AN60: 208123 | AO60: RADKÓW | AP60: 1499.3 | AR60: 06 | AS60: 03 | AT60: 600 | AU60: 3 | AV60: 603 | AW60: chełmski | AX60: 112.98 | AZ60: 6761013717
M61: 0419 | N61: żniński | O61: 98477 | P61: 985 | Q61: 70413 | R61: 72 | S61: 132 | T61: 163 | AF61: 02 | AG61: 08 | AH61: 13 | AI61: 3 | AJ61: 200000 | AK61: 8000 | AL61: 130 | AM61: 3 | AN61: 208133 | AO61: STRONIE ŚLĄSKIE | AP61: 1742.1 | AR61: 06 | AS61: 04 | AT61: 600 | AU61: 4 | AV61: 604 | AW61: hrubieszowski | AX61: 122.3 | AZ61: 6761706490
A62: 205023 | B62: Bolków.......................................................................................................................................................................................................................................................... | C62: 15260 | E62: 153 | F62: 10503 | H62: 69 | I62: 650 | J62: 825 | N62: Miasta na prawach powiatu: | AF62: 02 | AG62: 08 | AH62: 14 | AI62: 3 | AJ62: 200000 | AK62: 8000 | AL62: 140 | AM62: 3 | AN62: 208143 | AO62: SZCZYTNA | AP62: 1160.11 | AR62: 06 | AS62: 05 | AT62: 600 | AU62: 5 | AV62: 605 | AW62: janowski | AX62: 133.88 | AZ62: 6762178337
A63: 205024 | C63: 768 | E63: 8 | F63: 5001 | H63: 651 | I63: x | J63: x | N63: Cities with powiat status: | AF63: 02 | AG63: 09 | AH63: 01 | AI63: 1 | AJ63: 200000 | AK63: 9000 | AL63: 10 | AM63: 1 | AN63: 209011 | AO63: CHOJNÓW | AP63: 1397.92 | AR63: 06 | AS63: 06 | AT63: 600 | AU63: 6 | AV63: 606 | AW63: krasnostawski | AX63: 148.31 | AZ63: 6771024094
A64: 205025 | C64: 14492 | E64: 145 | F64: 5502 | H64: 38 | I64: x | J64: x | M64: 0461 | N64: Bydgoszcz | O64: 17598 | P64: 176 | Q64: 350178 | R64: 1990 | S64: 11 | T64: 8 | AF64: 02 | AG64: 09 | AH64: 02 | AI64: 2 | AJ64: 200000 | AK64: 9000 | AL64: 20 | AM64: 2 | AN64: 209022 | AO64: CHOJNÓW | AP64: 1586.19 | AR64: 06 | AS64: 07 | AT64: 600 | AU64: 7 | AV64: 607 | AW64: kraśnicki | AX64: 145.86 | AZ64: 6771037576
B65: Powiat jeleniogórski (9 gmin) | M65: 0462 | N65: Grudziądz | O65: 5776 | P65: 58 | Q65: 95045 | R65: 1646 | S65: 48 | T65: 40 | AF65: 02 | AG65: 09 | AH65: 03 | AI65: 2 | AJ65: 200000 | AK65: 9000 | AL65: 30 | AM65: 2 | AN65: 209032 | AO65: KROTOSZYCE | AP65: 1807.9 | AR65: 06 | AS65: 08 | AT65: 600 | AU65: 8 | AV65: 608 | AW65: lubartowski | AX65: 152.18 | AZ65: 6772019451
M66: 0463 | N66: Toruń | O66: 11572 | P66: 116 | Q66: 202074 | R66: 1746 | S66: 22 | T66: 15 | AF66: 02 | AG66: 09 | AH66: 04 | AI66: 2 | AJ66: 200000 | AK66: 9000 | AL66: 40 | AM66: 2 | AN66: 209042 | AO66: KUNICE | AP66: 2709.58 | AR66: 06 | AS66: 09 | AT66: 600 | AU66: 9 | AV66: 609 | AW66: lubelski | AX66: 198.46 | AZ66: 6772364194
A67: 206011 | B67: Karpacz.......................................................................................................................................................................................................................................................... | C67: 3799 | E67: 38 | F67: 4633 | H67: 122 | I67: 2108 | J67: 1811 | M67: 0464 | N67: Włocławek | O67: 8432 | P67: 84 | Q67: 110802 | R67: 1314 | S67: 35 | T67: 34 | AF67: 02 | AG67: 09 | AH67: 05 | AI67: 2 | AJ67: 200000 | AK67: 9000 | AL67: 50 | AM67: 2 | AN67: 209052 | AO67: LEGNICKIE POLE | AP67: 3337.59 | AR67: 06 | AS67: 10 | AT67: 600 | AU67: 10 | AV67: 610 | AW67: łęczyński | AX67: 203.06 | AZ67: 6791023301
A68: 206021 | B68: Kowary.......................................................................................................................................................................................................................................................... | C68: 3739 | E68: 37 | F68: 10957 | H68: 293 | I68: 2111 | J68: 781 | N68: WOJ. LUBELSKIE | AF68: 02 | AG68: 09 | AH68: 06 | AI68: 2 | AJ68: 200000 | AK68: 9000 | AL68: 60 | AM68: 2 | AN68: 209062 | AO68: MIŁKOWICE | AP68: 1562.44 | AR68: 06 | AS68: 11 | AT68: 600 | AU68: 11 | AV68: 611 | AW68: łukowski | AX68: 163.58 | AZ68: 6811004414
A69: 206031 | B69: Piechowice.......................................................................................................................................................................................................................................................... | C69: 4322 | E69: 43 | F69: 6222 | H69: 144 | I69: 2069 | J69: 1442 | N69: Powiaty: | AF69: 02 | AG69: 09 | AH69: 07 | AI69: 3 | AJ69: 200000 | AK69: 9000 | AL69: 70 | AM69: 3 | AN69: 209073 | AO69: PROCHOWICE | AP69: 1931.91 | AR69: 06 | AS69: 12 | AT69: 600 | AU69: 12 | AV69: 612 | AW69: opolski | AX69: 126.14 | AZ69: 6811004443
A70: 206041 | B70: Szklarska Poręba.......................................................................................................................................................................................................................................................... | C70: 7544 | E70: 75 | F70: 6611 | H70: 88 | I70: 1766 | J70: 1370 | N70: Powiats: | AF70: 02 | AG70: 09 | AH70: 08 | AI70: 2 | AJ70: 200000 | AK70: 9000 | AL70: 80 | AM70: 2 | AN70: 209082 | AO70: RUJA | AP70: 1329.89 | AR70: 06 | AS70: 13 | AT70: =AR70*100 -> 600 | AU70: =+AS70*1 -> 13 | AV70: =AT70+AU70 -> 613 | AW70: parczewski | AX70: 147.3 | AZ70: 6811036147
M71: 0601 | N71: bialski | O71: 275426 | P71: 2754 | Q71: 111391 | R71: 40 | S71: 3 | T71: 64 | AF71: 02 | AG71: 10 | AH71: 01 | AI71: 1 | AJ71: 200000 | AK71: 10000 | AL71: 10 | AM71: 1 | AN71: 210011 | AO71: LUBAŃ | AP71: 1620.57 | AR71: 06 | AS71: 14 | AT71: 600 | AU71: 14 | AV71: 614 | AW71: puławski | AX71: 230.8 | AZ71: 6811299390
A72: 206052 | B72: Janowice Wielkie.......................................................................................................................................................................................................................................................... | C72: 5783 | E72: 58 | F72: 4309 | H72: 75 | I72: 1958 | J72: 1897 | M72: 0602 | N72: biłgorajski | O72: 168110 | P72: 1681 | Q72: 101435 | R72: 60 | S72: 20 | T72: 79 | AF72: 02 | AG72: 10 | AH72: 02 | AI72: 1 | AJ72: =AF72*100000 -> 200000 | AK72: =AG72*1000 -> 10000 | AL72: =AH72*10 -> 20 | AM72: =AI72*1 -> 1 | AN72: =SUM(AJ72:AM72) -> 210021 | AO72: ŚWIERADÓW-ZDRÓJ | AP72: 2094.21 | AR72: 06 | AS72: 15 | AT72: 600 | AU72: 15 | AV72: 615 | AW72: radzyński | AX72: 143.76 | AZ72: 6811304607
A73: 206062 | B73: Jeżów Sudecki.......................................................................................................................................................................................................................................................... | C73: 9428 | E73: 94 | F73: 7397 | H73: 78 | I73: 1484 | J73: 1225 | M73: 0603 | N73: chełmski | O73: 188560 | P73: 1886 | Q73: 78228 | R73: 41 | S73: 11 | T73: 134 | AF73: 02 | AG73: 10 | AH73: 03 | AI73: 3 | AJ73: 200000 | AK73: 10000 | AL73: 30 | AM73: 3 | AN73: 210033 | AO73: LEŚNA | AP73: 1115.43 | AR73: 06 | AS73: 16 | AT73: 600 | AU73: 16 | AV73: 616 | AW73: rycki | AX73: 200.17 | AZ73: 6811355131
A74: 206072 | B74: Mysłakowice.......................................................................................................................................................................................................................................................... | C74: 8798 | E74: 88 | F74: 10196 | H74: 116 | I74: 1561 | J74: 848 | M74: 0604 | N74: hrubieszowski | O74: 126802 | P74: 1268 | Q74: 63698 | R74: 50 | S74: 70 | T74: 186 | AF74: 02 | AG74: 10 | AH74: 04 | AI74: 2 | AJ74: 200000 | AK74: 10000 | AL74: 40 | AM74: 2 | AN74: 210042 | AO74: LUBAŃ | AP74: 1387.14 | AR74: 06 | AS74: 17 | AT74: 600 | AU74: 17 | AV74: 617 | AW74: świdnicki | AX74: 217.75 | AZ74: 6811359293
A75: 206082 | B75: Podgórzyn.......................................................................................................................................................................................................................................................... | C75: 8251 | E75: 83 | F75: 8254 | H75: 100 | I75: 1664 | J75: 1084 | M75: 0605 | N75: janowski | O75: 87528 | P75: 876 | Q75: 46057 | R75: 53 | S75: 160 | T75: 257 | AF75: 02 | AG75: 10 | AH75: 05 | AI75: 3 | AJ75: 200000 | AK75: 10000 | AL75: 50 | AM75: 3 | AN75: 210053 | AO75: OLSZYNA | AP75: 1287.68 | AR75: 06 | AS75: 18 | AT75: 600 | AU75: 18 | AV75: 618 | AW75: tomaszowski | AX75: 128.18 | AZ75: 6811381938
A76: 206092 | B76: Stara Kamienica.......................................................................................................................................................................................................................................................... | C76: 11050 | E76: 111 | F76: 5276 | H76: 48 | I76: 1212 | J76: 1659 | M76: 0606 | N76: krasnostawski | O76: 103144 | P76: 1032 | Q76: 63925 | R76: 62 | S76: 118 | T76: 183 | AF76: 02 | AG76: 10 | AH76: 06 | AI76: 2 | AJ76: 200000 | AK76: 10000 | AL76: 60 | AM76: 2 | AN76: 210062 | AO76: PLATERÓWKA | AP76: 1975.86 | AR76: 06 | AS76: 19 | AT76: 600 | AU76: 19 | AV76: 619 | AW76: włodawski | AX76: 142.75 | AZ76: 6811692325
B77: Powiat kamiennogórski (4 gminy) | M77: 0607 | N77: kraśnicki | O77: 100530 | P77: 1005 | Q77: 96043 | R77: 96 | S77: 127 | T77: 87 | AF77: 02 | AG77: 10 | AH77: 07 | AI77: 2 | AJ77: 200000 | AK77: 10000 | AL77: 70 | AM77: 2 | AN77: 210072 | AO77: SIEKIERCZYN | AP77: 1326.65 | AR77: 06 | AS77: 20 | AT77: 600 | AU77: 20 | AV77: 620 | AW77: zamojski | AX77: 124.68 | AZ77: 6821436782
M78: 0608 | N78: lubartowski | O78: 128874 | P78: 1289 | Q78: 88789 | R78: 69 | S78: 66 | T78: 102 | AF78: 02 | AG78: 11 | AH78: 01 | AI78: 1 | AJ78: 200000 | AK78: 11000 | AL78: 10 | AM78: 1 | AN78: 211011 | AO78: LUBIN | AP78: 2460.55 | AR78: 06 | AS78: 61 | AT78: 600 | AU78: 61 | AV78: 661 | AW78: Biała Podlaska | AX78: 240.94 | AZ78: 6821604469
A79: 207011 | B79: Kamienna Góra.......................................................................................................................................................................................................................................................... | C79: 1804 | E79: 18 | F79: 19136 | H79: 1061 | I79: 2252 | J79: 368 | M79: 0609 | N79: lubelski | O79: 167953 | P79: 1680 | Q79: 154387 | R79: 92 | S79: 21 | T79: 21 | AF79: 02 | AG79: 11 | AH79: 02 | AI79: 2 | AJ79: 200000 | AK79: 11000 | AL79: 20 | AM79: 2 | AN79: 211022 | AO79: LUBIN | AP79: 3876.92 | AR79: 06 | AS79: 62 | AT79: 600 | AU79: 62 | AV79: 662 | AW79: Chełm | AX79: 225.78 | AZ79: 6821604831
M80: 0610 | N80: łęczyński | O80: 63664 | P80: 637 | Q80: 57457 | R80: 90 | S80: 241 | T80: 207 | AF80: 02 | AG80: 11 | AH80: 03 | AI80: 2 | AJ80: 200000 | AK80: 11000 | AL80: 30 | AM80: 2 | AN80: 211032 | AO80: RUDNA | AP80: 4378.08 | AR80: 06 | AS80: 63 | AT80: 600 | AU80: 63 | AV80: 663 | AW80: Lublin | AX80: 329.26 | AZ80: 6821605658
A81: 207022 | B81: Kamienna Góra.......................................................................................................................................................................................................................................................... | C81: 15803 | E81: 158 | F81: 9037 | H81: 57 | I81: 616 | J81: 981 | M81: 0611 | N81: łukowski | O81: 139421 | P81: 1394 | Q81: 107449 | R81: 77 | S81: 47 | T81: 71 | AF81: 02 | AG81: 11 | AH81: 04 | AI81: 3 | AJ81: 200000 | AK81: 11000 | AL81: 40 | AM81: 3 | AN81: 211043 | AO81: ŚCINAWA | AP81: 1506.22 | AR81: 06 | AS81: 64 | AT81: 600 | AU81: 64 | AV81: 664 | AW81: Zamość | AX81: 242.56 | AZ81: 6821606646
A82: 207042 | B82: Marciszów.......................................................................................................................................................................................................................................................... | C82: 8157 | E82: 82 | F82: 4513 | H82: 55 | I82: 1679 | J82: 1847 | M82: 0612 | N82: opolski | O82: 81002 | P82: 810 | Q82: 59726 | R82: 74 | S82: 176 | T82: 198 | AF82: 02 | AG82: 12 | AH82: 01 | AI82: 3 | AJ82: 200000 | AK82: 12000 | AL82: 10 | AM82: 3 | AN82: 212013 | AO82: GRYFÓW ŚLĄSKI | AP82: 1227.13 | AR82: 08 | AS82: 01 | AT82: 800 | AU82: 1 | AV82: 801 | AW82: gorzowski | AX82: 266.42 | AZ82: 6821634453
M83: 0613 | N83: parczewski | O83: 95220 | P83: 952 | Q83: 34954 | R83: 37 | S83: 142 | T83: 300 | AF83: 02 | AG83: 12 | AH83: 02 | AI83: 3 | AJ83: 200000 | AK83: 12000 | AL83: 20 | AM83: 3 | AN83: 212023 | AO83: LUBOMIERZ | AP83: 912.91 | AR83: 08 | AS83: 02 | AT83: 800 | AU83: 2 | AV83: 802 | AW83: krośnieński | AX83: 201.27 | AZ83: 6821635547
A84: 207033 | B84: Lubawka.......................................................................................................................................................................................................................................................... | C84: 13805 | E84: 138 | F84: 10935 | H84: 79 | I84: 801 | J84: 785 | M84: 0614 | N84: puławski | O84: 93409 | P84: 934 | Q84: 113762 | R84: 122 | S84: 146 | T84: 59 | AF84: 02 | AG84: 12 | AH84: 03 | AI84: 3 | AJ84: 200000 | AK84: 12000 | AL84: 30 | AM84: 3 | AN84: 212033 | AO84: LWÓWEK ŚLĄSKI | AP84: 1466.57 | AR84: 08 | AS84: 03 | AT84: 800 | AU84: 3 | AV84: 803 | AW84: międzyrzecki | AX84: 201.76 | AZ84: 6821642228
A85: 207034 | C85: 2244 | E85: 22 | F85: 6063 | H85: 270 | I85: x | J85: x | M85: 0615 | N85: radzyński | O85: 96506 | P85: 965 | Q85: 59278 | R85: 61 | S85: 138 | T85: 201 | AF85: 02 | AG85: 12 | AH85: 04 | AI85: 3 | AJ85: 200000 | AK85: 12000 | AL85: 40 | AM85: 3 | AN85: 212043 | AO85: MIRSK | AP85: 1113.32 | AR85: 08 | AS85: 04 | AT85: 800 | AU85: 4 | AV85: 804 | AW85: nowosolski | AX85: 189.98 | AZ85: 6821762292
A86: 207035 | C86: 11561 | E86: 116 | F86: 4872 | H86: 42 | I86: x | J86: x | M86: 0616 | N86: rycki | O86: 61453 | P86: 615 | Q86: 56166 | R86: 91 | S86: 253 | T86: 217 | AF86: 02 | AG86: 12 | AH86: 05 | AI86: 3 | AJ86: 200000 | AK86: 12000 | AL86: 50 | AM86: 3 | AN86: 212053 | AO86: WLEŃ | AP86: 1128.84 | AR86: 08 | AS86: 05 | AT86: 800 | AU86: 5 | AV86: 805 | AW86: słubicki | AX86: 225.81 | AZ86: 6821773580
B87: Powiat kłodzki (14 gmin) | M87: 0617 | N87: świdnicki | O87: 46835 | P87: 468 | Q87: 72039 | R87: 154 | S87: 289 | T87: 158 | AF87: 02 | AG87: 13 | AH87: 01 | AI87: 2 | AJ87: 200000 | AK87: 13000 | AL87: 10 | AM87: 2 | AN87: 213012 | AO87: CIESZKÓW | AP87: 1198.6 | AR87: 08 | AS87: 06 | AT87: 800 | AU87: 6 | AV87: 806 | AW87: strzelecko-drezdenecki | AX87: 181.63 | AZ87: 6821773870
M88: 0618 | N88: tomaszowski | O88: 148889 | P88: 1489 | Q88: 83715 | R88: 56 | S88: 37 | T88: 117 | AF88: 02 | AG88: 13 | AH88: 02 | AI88: 2 | AJ88: 200000 | AK88: 13000 | AL88: 20 | AM88: 2 | AN88: 213022 | AO88: KROŚNICE | AP88: 2433.12 | AR88: 08 | AS88: 07 | AT88: 800 | AU88: 7 | AV88: 807 | AW88: sulęciński | AX88: 195.46 | AZ88: 6830011450
A89: 208011 | B89: Duszniki-Zdrój.......................................................................................................................................................................................................................................................... | C89: 2228 | E89: 22 | F89: 4629 | H89: 208 | I89: 2213 | J89: 1814 | M89: 0619 | N89: włodawski | O89: 125642 | P89: 1256 | Q89: 38668 | R89: 31 | S89: 73 | T89: 289 | AF89: 02 | AG89: 13 | AH89: 03 | AI89: 3 | AJ89: 200000 | AK89: 13000 | AL89: 30 | AM89: 3 | AN89: 213033 | AO89: MILICZ | AP89: 1590.76 | AR89: 08 | AS89: 08 | AT89: 800 | AU89: 8 | AV89: 808 | AW89: świebodziński | AX89: 238.06 | AZ89: 6831006563
A90: 208021 | B90: Kłodzko.......................................................................................................................................................................................................................................................... | C90: 2484 | E90: 25 | F90: 26954 | H90: 1085 | I90: 2199 | J90: 219 | M90: 0620 | N90: zamojski | O90: 187029 | P90: 1870 | Q90: 106935 | R90: 57 | S90: 12 | T90: 73 | AF90: 02 | AG90: 14 | AH90: 01 | AI90: 1 | AJ90: 200000 | AK90: 14000 | AL90: 10 | AM90: 1 | AN90: 214011 | AO90: OLEŚNICA | AP90: 1796.47 | AR90: 08 | AS90: 09 | AT90: 800 | AU90: 9 | AV90: 809 | AW90: zielonogórski | AX90: 217.37 | AZ90: 6831395375
A91: 208031 | B91: Kudowa-Zdrój.......................................................................................................................................................................................................................................................... | C91: 3390 | E91: 34 | F91: 9954 | H91: 294 | I91: 2139 | J91: 876 | N91: Miasta na prawach powiatu: | AF91: 02 | AG91: 14 | AH91: 02 | AI91: 3 | AJ91: 200000 | AK91: 14000 | AL91: 20 | AM91: 3 | AN91: 214023 | AO91: BIERUTÓW | AP91: 1263.64 | AR91: 08 | AS91: 10 | AT91: 800 | AU91: 10 | AV91: 810 | AW91: żagański | AX91: 195.7 | AZ91: 6831511752
A92: 208041 | B92: Nowa Ruda.......................................................................................................................................................................................................................................................... | C92: 3705 | E92: 37 | F92: 22246 | H92: 600 | I92: 2114 | J92: 296 | N92: Cities with powiat status: | AF92: 02 | AG92: 14 | AH92: 03 | AI92: 2 | AJ92: 200000 | AK92: 14000 | AL92: 30 | AM92: 2 | AN92: 214032 | AO92: DOBROSZYCE | AP92: 1636.47 | AR92: 08 | AS92: 11 | AT92: 800 | AU92: 11 | AV92: 811 | AW92: żarski | AX92: 222.94 | AZ92: 6831573055
A93: 208051 | B93: Polanica-Zdrój.......................................................................................................................................................................................................................................................... | C93: 1722 | E93: 17 | F93: 6357 | H93: 369 | I93: 2259 | J93: 1414 | M93: 0661 | N93: Biała Podlaska | O93: 4940 | P93: 49 | Q93: 57352 | R93: 1161 | S93: 51 | T93: 58 | AF93: 02 | AG93: 14 | AH93: 04 | AI93: 2 | AJ93: 200000 | AK93: 14000 | AL93: 40 | AM93: 2 | AN93: 214042 | AO93: DZIADOWA KŁODA | AP93: 1016.2 | AR93: 08 | AS93: 12 | AT93: 800 | AU93: 12 | AV93: 812 | AW93: wschowski | AX93: 210.43 | AZ93: 6831718453
M94: 0662 | N94: Chełm | O94: 3528 | P94: 35 | Q94: 62670 | R94: 1776 | S94: 56 | T94: 55 | AF94: 02 | AG94: 14 | AH94: 05 | AI94: 3 | AJ94: 200000 | AK94: 14000 | AL94: 50 | AM94: 3 | AN94: 214053 | AO94: MIĘDZYBÓRZ | AP94: 1618.15 | AR94: 08 | AS94: 61 | AT94: 800 | AU94: 61 | AV94: 861 | AW94: Gorzów Wielkopolski | AX94: 276.07 | AZ94: 6831742730
A95: 208072 | B95: Kłodzko.......................................................................................................................................................................................................................................................... | C95: 25325 | E95: 252 | F95: 17208 | H95: 68 | I95: 177 | J95: 432 | M95: 0663 | N95: Lublin | O95: 14747 | P95: 148 | Q95: 339682 | R95: 2303 | S95: 17 | T95: 9 | AF95: 02 | AG95: 14 | AH95: 06 | AI95: 2 | AJ95: 200000 | AK95: 14000 | AL95: 60 | AM95: 2 | AN95: 214062 | AO95: OLEŚNICA | AP95: 1871.01 | AR95: 08 | AS95: 62 | AT95: 800 | AU95: 62 | AV95: 862 | AW95: Zielona Góra | AX95: 364.75 | AZ95: 6851648081
A96: 208092 | B96: Lewin Kłodzki.......................................................................................................................................................................................................................................................... | C96: 5214 | E96: 52 | F96: 1940 | H96: 37 | I96: 2003 | J96: 2281 | M96: 0664 | N96: Zamość | O96: 3034 | P96: 30 | Q96: 63813 | R96: 2103 | S96: 62 | T96: 53 | AF96: 02 | AG96: 14 | AH96: 07 | AI96: 3 | AJ96: 200000 | AK96: 14000 | AL96: 70 | AM96: 3 | AN96: 214073 | AO96: SYCÓW | AP96: 1607.39 | AR96: 10 | AS96: 01 | AT96: 1000 | AU96: 1 | AV96: 1001 | AW96: bełchatowski | AX96: 351 | AZ96: 7341009655
A97: 208112 | B97: Nowa Ruda.......................................................................................................................................................................................................................................................... | C97: 13967 | E97: 140 | F97: 11657 | H97: 83 | I97: 789 | J97: 727 | N97: WOJ. LUBUSKIE | AF97: 02 | AG97: 14 | AH97: 08 | AI97: 3 | AJ97: 200000 | AK97: 14000 | AL97: 80 | AM97: 3 | AN97: 214083 | AO97: TWARDOGÓRA | AP97: 2113.32 | AR97: 10 | AS97: 02 | AT97: 1000 | AU97: 2 | AV97: 1002 | AW97: kutnowski | AX97: 223.61 | AZ97: 7343445768
N98: Powiaty: | AF98: 02 | AG98: 15 | AH98: 01 | AI98: 1 | AJ98: 200000 | AK98: 15000 | AL98: 10 | AM98: 1 | AN98: 215011 | AO98: OŁAWA | AP98: 2044.6 | AR98: 10 | AS98: 03 | AT98: 1000 | AU98: 3 | AV98: 1003 | AW98: łaski | AX98: 215.37 | AZ98: 7343450806
A99: 208063 | B99: Bystrzyca Kłodzka.......................................................................................................................................................................................................................................................... | C99: 33853 | E99: 339 | F99: 18984 | H99: 56 | I99: 61 | J99: 373 | N99: Powiats: | AF99: 02 | AG99: 15 | AH99: 02 | AI99: 2 | AJ99: 200000 | AK99: 15000 | AL99: 20 | AM99: 2 | AN99: 215022 | AO99: DOMANIÓW | AP99: 1481.31 | AR99: 10 | AS99: 04 | AT99: 1000 | AU99: 4 | AV99: 1004 | AW99: łęczycki | AX99: 164.85 | AZ99: 7343456306
A100: 208064 | C100: 1074 | E100: 11 | F100: 10189 | H100: 949 | I100: x | J100: x | M100: 0801 | N100: gorzowski | O100: 121423 | P100: 1214 | Q100: 71549 | R100: 59 | S100: 83 | T100: 161 | AF100: 02 | AG100: 15 | AH100: 03 | AI100: 3 | AJ100: 200000 | AK100: 15000 | AL100: 30 | AM100: 3 | AN100: 215033 | AO100: JELCZ-LASKOWICE | AP100: 2320.88 | AR100: 10 | AS100: 05 | AT100: 1000 | AU100: 5 | AV100: 1005 | AW100: łowicki | AX100: 209.46 | AZ100: 7343472601
A101: 208065 | C101: 32779 | E101: 328 | F101: 8795 | H101: 27 | I101: x | J101: x | M101: 0802 | N101: krośnieński | O101: 139125 | P101: 1391 | Q101: 55245 | R101: 40 | S101: 50 | T101: 225 | AF101: 02 | AG101: 15 | AH101: 04 | AI101: 2 | AJ101: 200000 | AK101: 15000 | AL101: 40 | AM101: 2 | AN101: 215042 | AO101: OŁAWA | AP101: 2510.81 | AR101: 10 | AS101: 06 | AT101: 1000 | AU101: 6 | AV101: 1006 | AW101: łódzki wschodni | AX101: 334.56 | AZ101: 7343472848
A102: 208083 | B102: Lądek-Zdrój.......................................................................................................................................................................................................................................................... | C102: 11727 | E102: 117 | F102: 8276 | H102: 71 | I102: 1093 | J102: 1081 | M102: 0803 | N102: międzyrzecki | O102: 138761 | P102: 1388 | Q102: 58024 | R102: 42 | S102: 51 | T102: 204 | AF102: 02 | AG102: 16 | AH102: 01 | AI102: 3 | AJ102: 200000 | AK102: 16000 | AL102: 10 | AM102: 3 | AN102: 216013 | AO102: CHOCIANÓW | AP102: 1796.43 | AR102: 10 | AS102: 07 | AT102: 1000 | AU102: 7 | AV102: 1007 | AW102: opoczyński | AX102: 174.67 | AZ102: 7343482812
A103: 208084 | C103: 2032 | E103: 20 | F103: 5622 | H103: 277 | I103: x | J103: x | M103: 0804 | N103: nowosolski | O103: 77073 | P103: 771 | Q103: 86634 | R103: 112 | S103: 192 | T103: 107 | AF103: 02 | AG103: 16 | AH103: 02 | AI103: 2 | AJ103: 200000 | AK103: 16000 | AL103: 20 | AM103: 2 | AN103: 216022 | AO103: GAWORZYCE | AP103: 1464.3 | AR103: 10 | AS103: 08 | AT103: 1000 | AU103: 8 | AV103: 1008 | AW103: pabianicki | AX103: 282.67 | AZ103: 7343483272
A104: 208085 | C104: 9695 | E104: 97 | F104: 2654 | H104: 27 | I104: x | J104: x | M104: 0805 | N104: słubicki | O104: 99929 | P104: 999 | Q104: 47101 | R104: 47 | S104: 129 | T104: 254 | AF104: 02 | AG104: 16 | AH104: 03 | AI104: 2 | AJ104: 200000 | AK104: 16000 | AL104: 30 | AM104: 2 | AN104: 216032 | AO104: GRĘBOCICE | AP104: 5203.13 | AR104: 10 | AS104: 09 | AT104: 1000 | AU104: 9 | AV104: 1009 | AW104: pajęczański | AX104: 216.56 | AZ104: 7343507021
A105: 208103 | B105: Międzylesie.......................................................................................................................................................................................................................................................... | C105: 18875 | E105: 189 | F105: 7212 | H105: 38 | I105: 397 | J105: 1264 | M105: 0806 | N105: strzelecko-drezdenecki | O105: 124786 | P105: 1248 | Q105: 49366 | R105: 40 | S105: 75 | T105: 244 | AF105: 02 | AG105: 16 | AH105: 04 | AI105: 3 | AJ105: 200000 | AK105: 16000 | AL105: 40 | AM105: 3 | AN105: 216043 | AO105: POLKOWICE | AP105: 6442.47 | AR105: 10 | AS105: 10 | AT105: 1000 | AU105: 10 | AV105: 1010 | AW105: piotrkowski | AX105: 186.79 | AZ105: 7343514742
A106: 208104 | C106: 1437 | E106: 14 | F106: 2591 | H106: 180 | I106: x | J106: x | M106: 0807 | N106: sulęciński | O106: 117780 | P106: 1178 | Q106: 35297 | R106: 30 | S106: 89 | T106: 298 | AF106: 02 | AG106: 16 | AH106: 05 | AI106: 3 | AJ106: 200000 | AK106: 16000 | AL106: 50 | AM106: 3 | AN106: 216053 | AO106: PRZEMKÓW | AP106: 1427.88 | AR106: 10 | AS106: 11 | AT106: 1000 | AU106: 11 | AV106: 1011 | AW106: poddębicki | AX106: 167.11 | AZ106: 7343514860
A107: 208105 | C107: 17438 | E107: 175 | F107: 4621 | H107: 26 | I107: x | J107: x | M107: 0808 | N107: świebodziński | O107: 93657 | P107: 937 | Q107: 55840 | R107: 60 | S107: 145 | T107: 219 | AF107: 02 | AG107: 16 | AH107: 06 | AI107: 2 | AJ107: 200000 | AK107: 16000 | AL107: 60 | AM107: 2 | AN107: 216062 | AO107: RADWANICE | AP107: 3320.55 | AR107: 10 | AS107: 12 | AT107: 1000 | AU107: 12 | AV107: 1012 | AW107: radomszczański | AX107: 207.86 | AZ107: 7343515546
A108: 208123 | B108: Radków.......................................................................................................................................................................................................................................................... | C108: 13995 | E108: 140 | F108: 9059 | H108: 65 | I108: 784 | J108: 979 | M108: 0812 | N108: wschowski | O108: 62420 | P108: 624 | Q108: 39065 | R108: 63 | S108: 244 | T108: 287 | AF108: 02 | AG108: 17 | AH108: 01 | AI108: 2 | AJ108: 200000 | AK108: 17000 | AL108: 10 | AM108: 2 | AN108: 217012 | AO108: BORÓW | AP108: 1465.3 | AR108: 10 | AS108: 13 | AT108: 1000 | AU108: 13 | AV108: 1013 | AW108: rawski | AX108: 232.65 | AZ108: 7343517410
A109: 208124 | C109: 1503 | E109: 15 | F109: 2418 | H109: 161 | I109: x | J109: x | M109: 0809 | N109: zielonogórski | O109: 134975 | P109: 1350 | Q109: 75750 | R109: 56 | S109: 58 | T109: 146 | AF109: 02 | AG109: 17 | AH109: 02 | AI109: 2 | AJ109: 200000 | AK109: 17000 | AL109: 20 | AM109: 2 | AN109: 217022 | AO109: KONDRATOWICE | AP109: 1639.52 | AR109: 10 | AS109: 14 | AT109: 1000 | AU109: 14 | AV109: 1014 | AW109: sieradzki | AX109: 194.44 | AZ109: 7343517947
A110: 208125 | C110: 12492 | E110: 125 | F110: 6641 | H110: 53 | I110: x | J110: x | M110: 0810 | N110: żagański | O110: 113182 | P110: 1132 | Q110: 79583 | R110: 70 | S110: 98 | T110: 125 | AF110: 02 | AG110: 17 | AH110: 03 | AI110: 2 | AJ110: 200000 | AK110: 17000 | AL110: 30 | AM110: 2 | AN110: 217032 | AO110: PRZEWORNO | AP110: 1066.82 | AR110: 10 | AS110: 15 | AT110: 1000 | AU110: 15 | AV110: 1015 | AW110: skierniewicki | AX110: 179.08 | AZ110: 7343543100
A111: 208133 | B111: Stronie Śląskie.......................................................................................................................................................................................................................................................... | C111: 14608 | E111: 146 | F111: 7559 | H111: 52 | I111: 719 | J111: 1193 | M111: 0811 | N111: żarski | O111: 139278 | P111: 1393 | Q111: 96876 | R111: 70 | S111: 49 | T111: 86 | AF111: 02 | AG111: 17 | AH111: 04 | AI111: 3 | AJ111: 200000 | AK111: 17000 | AL111: 40 | AM111: 3 | AN111: 217043 | AO111: STRZELIN | AP111: 2103.39 | AR111: 10 | AS111: 16 | AT111: 1000 | AU111: 16 | AV111: 1016 | AW111: tomaszowski | AX111: 226.88 | AZ111: 7343543904
A112: 208134 | C112: 238 | E112: 2 | F112: 5741 | H112: 2412 | I112: x | J112: x | N112: Miasta na prawach powiatu: | AF112: 02 | AG112: 17 | AH112: 05 | AI112: 3 | AJ112: 200000 | AK112: 17000 | AL112: 50 | AM112: 3 | AN112: 217053 | AO112: WIĄZÓW | AP112: 1321.52 | AR112: 10 | AS112: 17 | AT112: 1000 | AU112: 17 | AV112: 1017 | AW112: wieluński | AX112: 184.96 | AZ112: 7343544080
A113: 208135 | C113: 14370 | E113: 144 | F113: 1818 | H113: 13 | I113: x | J113: x | N113: Cities with powiat status: | AF113: 02 | AG113: 18 | AH113: 01 | AI113: 2 | AJ113: 200000 | AK113: 18000 | AL113: 10 | AM113: 2 | AN113: 218012 | AO113: KOSTOMŁOTY | AP113: 1508.15 | AR113: 10 | AS113: 18 | AT113: 1000 | AU113: 18 | AV113: 1018 | AW113: wieruszowski | AX113: 205.49 | AZ113: 7350014012
A114: 208143 | B114: Szczytna.......................................................................................................................................................................................................................................................... | C114: 13237 | E114: 132 | F114: 7302 | H114: 55 | I114: 878 | J114: 1243 | M114: 0861 | N114: Gorzów Wielkopolski | O114: 8572 | P114: 86 | Q114: 123921 | R114: 1446 | S114: 31 | T114: 29 | AF114: 02 | AG114: 18 | AH114: 02 | AI114: 2 | AJ114: 200000 | AK114: 18000 | AL114: 20 | AM114: 2 | AN114: 218022 | AO114: MALCZYCE | AP114: 1343.54 | AR114: 10 | AS114: 19 | AT114: 1000 | AU114: 19 | AV114: 1019 | AW114: zduńskowolski | AX114: 229.02 | AZ114: 7351006084
A115: 208144 | C115: 8038 | E115: 80 | F115: 5163 | H115: 64 | I115: x | J115: x | M115: 0862 | N115: Zielona Góra | O115: 27832 | P115: 277 | Q115: 140297 | R115: 504 | S115: 6 | T115: 24 | AF115: 02 | AG115: 18 | AH115: 03 | AI115: 2 | AJ115: 200000 | AK115: 18000 | AL115: 30 | AM115: 2 | AN115: 218032 | AO115: MIĘKINIA | AP115: 2636.09 | AR115: 10 | AS115: 20 | AT115: 1000 | AU115: 20 | AV115: 1020 | AW115: zgierski | AX115: 261.39 | AZ115: 7351026738
A116: 208145 | C116: 5199 | E116: 52 | F116: 2139 | H116: 41 | I116: x | J116: x | N116: WOJ. ŁÓDZKIE | AF116: 02 | AG116: 18 | AH116: 04 | AI116: 3 | AJ116: 200000 | AK116: 18000 | AL116: 40 | AM116: 3 | AN116: 218043 | AO116: ŚRODA ŚLĄSKA | AP116: 2368.49 | AR116: 10 | AS116: 21 | AT116: 1000 | AU116: 21 | AV116: 1021 | AW116: brzeziński | AX116: 206.37 | AZ116: 7351071414
B117: Powiat legnicki (8 gmin) | N117: Powiaty: | AF117: 02 | AG117: 18 | AH117: 05 | AI117: 2 | AJ117: 200000 | AK117: 18000 | AL117: 50 | AM117: 2 | AN117: 218052 | AO117: UDANIN | AP117: 1345.22 | AR117: 10 | AS117: 61 | AT117: 1000 | AU117: 61 | AV117: 1061 | AW117: Łódź | AX117: 361.23 | AZ117: 7352175044
N118: Powiats: | AF118: 02 | AG118: 19 | AH118: 01 | AI118: 1 | AJ118: 200000 | AK118: 19000 | AL118: 10 | AM118: 1 | AN118: 219011 | AO118: ŚWIDNICA | AP118: 2002.55 | AR118: 10 | AS118: 62 | AT118: 1000 | AU118: 62 | AV118: 1062 | AW118: Piotrków Trybunalski | AX118: 293.72 | AZ118: 7352703193
A119: 209011 | B119: Chojnów.......................................................................................................................................................................................................................................................... | C119: 532 | D119: ↓ | E119: 5 | F119: 13426 | H119: 2524 | I119: 2337 | J119: 599 | M119: 1001 | N119: bełchatowski | O119: 96760 | P119: 968 | Q119: 112997 | R119: 117 | S119: 136 | T119: 61 | AF119: 02 | AG119: 19 | AH119: 02 | AI119: 1 | AJ119: 200000 | AK119: 19000 | AL119: 20 | AM119: 1 | AN119: 219021 | AO119: ŚWIEBODZICE | AP119: 1817.54 | AR119: 10 | AS119: 63 | AT119: 1000 | AU119: 63 | AV119: 1063 | AW119: Skierniewice | AX119: 345.18 | AZ119: 7352833352
M120: 1021 | N120: brzeziński | O120: 35856 | P120: 359 | Q120: 30890 | R120: 86 | S120: 308 | T120: 308 | AF120: 02 | AG120: 19 | AH120: 03 | AI120: 2 | AJ120: 200000 | AK120: 19000 | AL120: 30 | AM120: 2 | AN120: 219032 | AO120: DOBROMIERZ | AP120: 1476.92 | AR120: 12 | AS120: 01 | AT120: 1200 | AU120: 1 | AV120: 1201 | AW120: bocheński | AX120: 219.8 | AZ120: 7352834179
A121: 209022 | B121: Chojnów.......................................................................................................................................................................................................................................................... | C121: 23092 | E121: 231 | F121: 9636 | H121: 42 | I121: 229 | J121: 910 | M121: 1002 | N121: kutnowski | O121: 88686 | P121: 887 | Q121: 97295 | R121: 110 | S121: 155 | T121: 85 | AF121: 02 | AG121: 19 | AH121: 04 | AI121: 3 | AJ121: 200000 | AK121: 19000 | AL121: 40 | AM121: 3 | AN121: 219043 | AO121: JAWORZYNA ŚLĄSKA | AP121: 1388.91 | AR121: 12 | AS121: 02 | AT121: 1200 | AU121: 2 | AV121: 1202 | AW121: brzeski | AX121: 178.69 | AZ121: 7352834759
A122: 209032 | B122: Krotoszyce.......................................................................................................................................................................................................................................................... | C122: 6750 | E122: 67 | F122: 3336 | H122: 49 | I122: 1877 | J122: 2130 | M122: 1003 | N122: łaski | O122: 61823 | P122: 618 | Q122: 50103 | R122: 81 | S122: 248 | T122: 242 | AF122: 02 | AG122: 19 | AH122: 05 | AI122: 2 | AJ122: 200000 | AK122: 19000 | AL122: 50 | AM122: 2 | AN122: 219052 | AO122: MARCINOWICE | AP122: 1508.57 | AR122: 12 | AS122: 03 | AT122: 1200 | AU122: 3 | AV122: 1203 | AW122: chrzanowski | AX122: 294.5 | AZ122: 7352841452
A123: 209042 | B123: Kunice.......................................................................................................................................................................................................................................................... | C123: 9266 | E123: 93 | F123: 6893 | H123: 74 | I123: 1504 | J123: 1319 | M123: 1004 | N123: łęczycki | O123: 77275 | P123: 773 | Q123: 50143 | R123: 65 | S123: 188 | T123: 241 | AF123: 02 | AG123: 19 | AH123: 06 | AI123: 3 | AJ123: 200000 | AK123: 19000 | AL123: 60 | AM123: 3 | AN123: 219063 | AO123: STRZEGOM | AP123: 1980.5 | AR123: 12 | AS123: 04 | AT123: 1200 | AU123: 4 | AV123: 1204 | AW123: dąbrowski | AX123: 116.31 | AZ123: 7352843273
A124: 209052 | B124: Legnickie Pole.......................................................................................................................................................................................................................................................... | C124: 8524 | E124: 85 | F124: 5241 | H124: 61 | I124: 1614 | J124: 1665 | M124: 1005 | N124: łowicki | O124: 98817 | P124: 988 | Q124: 78616 | R124: 80 | S124: 131 | T124: 132 | AF124: 02 | AG124: 19 | AH124: 07 | AI124: 2 | AJ124: 200000 | AK124: 19000 | AL124: 70 | AM124: 2 | AN124: 219072 | AO124: ŚWIDNICA | AP124: 1843.16 | AR124: 12 | AS124: 05 | AT124: 1200 | AU124: 5 | AV124: 1205 | AW124: gorlicki | AX124: 146.45 | AZ124: 7352849761
A125: 209062 | B125: Miłkowice.......................................................................................................................................................................................................................................................... | C125: 8663 | E125: 87 | F125: 6706 | H125: 77 | I125: 1582 | J125: 1354 | M125: 1006 | N125: łódzki wschodni | O125: 49976 | P125: 500 | Q125: 71705 | R125: 143 | S125: 281 | T125: 159 | AF125: 02 | AG125: 19 | AH125: 08 | AI125: 3 | AJ125: 200000 | AK125: 19000 | AL125: 80 | AM125: 3 | AN125: 219083 | AO125: ŻARÓW | AP125: 2112.54 | AR125: 12 | AS125: 06 | AT125: 1200 | AU125: 6 | AV125: 1206 | AW125: krakowski | AX125: 327.42 | AZ125: 7352851410
A126: 209082 | B126: Ruja.......................................................................................................................................................................................................................................................... | C126: 7330 | E126: 73 | F126: 2633 | H126: 36 | I126: 1804 | J126: 2233 | M126: 1007 | N126: opoczyński | O126: 104019 | P126: 1040 | Q126: 76623 | R126: 74 | S126: 114 | T126: 141 | AF126: 02 | AG126: 20 | AH126: 01 | AI126: 3 | AJ126: 200000 | AK126: 20000 | AL126: 10 | AM126: 3 | AN126: 220013 | AO126: OBORNIKI ŚLĄSKIE | AP126: 1799.23 | AR126: 12 | AS126: 07 | AT126: 1200 | AU126: 7 | AV126: 1207 | AW126: limanowski | AX126: 152.3 | AZ126: 7352854845
M127: 1008 | N127: pabianicki | O127: 49218 | P127: 492 | Q127: 119289 | R127: 242 | S127: 283 | T127: 48 | AF127: 02 | AG127: 20 | AH127: 02 | AI127: 3 | AJ127: 200000 | AK127: 20000 | AL127: 20 | AM127: 3 | AN127: 220023 | AO127: PRUSICE | AP127: 1311.65 | AR127: 12 | AS127: 08 | AT127: 1200 | AU127: 8 | AV127: 1208 | AW127: miechowski | AX127: 151.7 | AZ127: 7352856459
A128: 209073 | B128: Prochowice.......................................................................................................................................................................................................................................................... | C128: 10251 | E128: 103 | F128: 7455 | H128: 73 | I128: 1347 | J128: 1215 | M128: 1009 | N128: pajęczański | O128: 80382 | P128: 804 | Q128: 51597 | R128: 64 | S128: 179 | T128: 238 | AF128: 02 | AG128: 20 | AH128: 03 | AI128: 3 | AJ128: 200000 | AK128: 20000 | AL128: 30 | AM128: 3 | AN128: 220033 | AO128: TRZEBNICA | AP128: 1646.75 | AR128: 12 | AS128: 09 | AT128: 1200 | AU128: 9 | AV128: 1209 | AW128: myślenicki | AX128: 207.5 | AZ128: 7360007798
A129: 209074 | C129: 985 | E129: 10 | F129: 3620 | H129: 368 | I129: x | J129: x | M129: 1010 | N129: piotrkowski | O129: 142874 | P129: 1429 | Q129: 91315 | R129: 64 | S129: 43 | T129: 94 | AF129: 02 | AG129: 20 | AH129: 04 | AI129: 2 | AJ129: 200000 | AK129: 20000 | AL129: 40 | AM129: 2 | AN129: 220042 | AO129: WISZNIA MAŁA | AP129: 2400.59 | AR129: 12 | AS129: 10 | AT129: 1200 | AU129: 10 | AV129: 1210 | AW129: nowosądecki | AX129: 159.5 | AZ129: 7361198317
A130: 209075 | C130: 9266 | E130: 93 | F130: 3835 | H130: 41 | I130: x | J130: x | M130: 1011 | N130: poddębicki | O130: 88121 | P130: 881 | Q130: 41205 | R130: 47 | S130: 156 | T130: 279 | AF130: 02 | AG130: 20 | AH130: 05 | AI130: 2 | AJ130: 200000 | AK130: 20000 | AL130: 50 | AM130: 2 | AN130: 220052 | AO130: ZAWONIA | AP130: 2204.15 | AR130: 12 | AS130: 11 | AT130: 1200 | AU130: 11 | AV130: 1211 | AW130: nowotarski | AX130: 142.19 | AZ130: 7361699456
B131: Powiat lubański (7 gmin) | M131: 1012 | N131: radomszczański | O131: 144257 | P131: 1443 | Q131: 113315 | R131: 79 | S131: 42 | T131: 60 | AF131: 02 | AG131: 20 | AH131: 06 | AI131: 3 | AJ131: 200000 | AK131: 20000 | AL131: 60 | AM131: 3 | AN131: 220063 | AO131: ŻMIGRÓD | AP131: 1485.68 | AR131: 12 | AS131: 12 | AT131: 1200 | AU131: 12 | AV131: 1212 | AW131: olkuski | AX131: 291.72 | AZ131: 7361705814
M132: 1013 | N132: rawski | O132: 64620 | P132: 646 | Q132: 48808 | R132: 76 | S132: 236 | T132: 246 | AF132: 02 | AG132: 21 | AH132: 01 | AI132: 1 | AJ132: 200000 | AK132: 21000 | AL132: 10 | AM132: 1 | AN132: 221011 | AO132: BOGUSZÓW-GORCE | AP132: 1025.97 | AR132: 12 | AS132: 13 | AT132: 1200 | AU132: 13 | AV132: 1213 | AW132: oświęcimski | AX132: 289.66 | AZ132: 7361717220
A133: 210011 | B133: Lubań.......................................................................................................................................................................................................................................................... | C133: 1612 | E133: 16 | F133: 21168 | H133: 1313 | I133: 2270 | J133: 322 | M133: 1014 | N133: sieradzki | O133: 149083 | P133: 1491 | Q133: 118240 | R133: 79 | S133: 36 | T133: 50 | AF133: 02 | AG133: 21 | AH133: 02 | AI133: 1 | AJ133: 200000 | AK133: 21000 | AL133: 20 | AM133: 1 | AN133: 221021 | AO133: JEDLINA-ZDRÓJ | AP133: 1378.62 | AR133: 12 | AS133: 14 | AT133: 1200 | AU133: 14 | AV133: 1214 | AW133: proszowicki | AX133: 145.32 | AZ133: 7361717680
A134: 210021 | B134: Świeradów-Zdrój.......................................................................................................................................................................................................................................................... | C134: 2072 | E134: 21 | F134: 4183 | H134: 202 | I134: 2230 | J134: 1931 | M134: 1015 | N134: skierniewicki | O134: 75338 | P134: 753 | Q134: 38195 | R134: 51 | S134: 193 | T134: 291 | AF134: 02 | AG134: 21 | AH134: 03 | AI134: 1 | AJ134: 200000 | AK134: 21000 | AL134: 30 | AM134: 1 | AN134: 221031 | AO134: SZCZAWNO-ZDRÓJ | AP134: 2604.74 | AR134: 12 | AS134: 15 | AT134: =AR134*100 -> 1200 | AU134: =+AS134*1 -> 15 | AV134: =AT134+AU134 -> 1215 | AW134: suski | AX134: 186.54 | AZ134: 7361720593
M135: 1016 | N135: tomaszowski | O135: 102479 | P135: 1025 | Q135: 117259 | R135: 114 | S135: 120 | T135: 52 | AF135: 02 | AG135: 21 | AH135: 04 | AI135: 2 | AJ135: 200000 | AK135: 21000 | AL135: 40 | AM135: 2 | AN135: 221042 | AO135: CZARNY BÓR | AP135: 1981.79 | AR135: 12 | AS135: 16 | AT135: 1200 | AU135: 16 | AV135: 1216 | AW135: tarnowski | AX135: 155.99 | AZ135: 7371004591
A136: 210042 | B136: Lubań.......................................................................................................................................................................................................................................................... | C136: 14234 | E136: 142 | F136: 6593 | H136: 46 | I136: 755 | J136: 1373 | M136: 1017 | N136: wieluński | O136: 92648 | P136: 926 | Q136: 76699 | R136: 83 | S136: 148 | T136: 140 | AF136: 02 | AG136: 21 | AH136: 05 | AI136: 3 | AJ136: =AF136*100000 -> 200000 | AK136: =AG136*1000 -> 21000 | AL136: =AH136*10 -> 50 | AM136: =AI136*1 -> 3 | AN136: =SUM(AJ136:AM136) -> 221053 | AO136: GŁUSZYCA | AP136: 991.95 | AR136: 12 | AS136: 17 | AT136: 1200 | AU136: 17 | AV136: 1217 | AW136: tatrzański | AX136: 196.47 | AZ136: 7371005969
A137: 210062 | B137: Platerówka.......................................................................................................................................................................................................................................................... | C137: 4790 | E137: 48 | F137: 1631 | G137: ↓ | H137: 34 | I137: 2037 | J137: 2291 | M137: 1018 | N137: wieruszowski | O137: 57713 | P137: 577 | Q137: 42213 | R137: 73 | S137: 263 | T137: 274 | AF137: 02 | AG137: 21 | AH137: 06 | AI137: 3 | AJ137: 200000 | AK137: 21000 | AL137: 60 | AM137: 3 | AN137: 221063 | AO137: MIEROSZÓW | AP137: 1425.6 | AR137: 12 | AS137: 18 | AT137: 1200 | AU137: 18 | AV137: 1218 | AW137: wadowicki | AX137: 229.25 | AZ137: 7371007419
A138: 210072 | B138: Siekierczyn.......................................................................................................................................................................................................................................................... | C138: 4950 | E138: 49 | F138: 4508 | H138: 91 | I138: 2023 | J138: 1848 | M138: 1019 | N138: zduńskowolski | O138: 36923 | P138: 369 | Q138: 66766 | R138: 181 | S138: 305 | T138: 171 | AF138: 02 | AG138: 21 | AH138: 07 | AI138: 2 | AJ138: 200000 | AK138: 21000 | AL138: 70 | AM138: 2 | AN138: 221072 | AO138: STARE BOGACZOWICE | AP138: 1211.17 | AR138: 12 | AS138: 19 | AT138: 1200 | AU138: 19 | AV138: 1219 | AW138: wielicki | AX138: 296.05 | AZ138: 7371008784
M139: 1020 | N139: zgierski | O139: 85518 | P139: 855 | Q139: 165916 | R139: 194 | S139: 162 | T139: 12 | AF139: 02 | AG139: 21 | AH139: 08 | AI139: 2 | AJ139: 200000 | AK139: 21000 | AL139: 80 | AM139: 2 | AN139: 221082 | AO139: WALIM | AP139: 1613.17 | AR139: 12 | AS139: 61 | AT139: 1200 | AU139: 61 | AV139: 1261 | AW139: Kraków | AX139: 476.73 | AZ139: 7371008991
A140: 210033 | B140: Leśna.......................................................................................................................................................................................................................................................... | C140: 10460 | E140: 105 | F140: 10093 | H140: 96 | I140: 1307 | J140: 857 | N140: Miasta na prawach powiatu: | AF140: 02 | AG140: 22 | AH140: 01 | AI140: 3 | AJ140: 200000 | AK140: 22000 | AL140: 10 | AM140: 3 | AN140: 222013 | AO140: BRZEG DOLNY | AP140: 2611.64 | AR140: 12 | AS140: 62 | AT140: 1200 | AU140: 62 | AV140: 1262 | AW140: Nowy Sącz | AX140: 292.82 | AZ140: 7371022962
A141: 210034 | C141: 856 | E141: 9 | F141: 4484 | H141: 524 | I141: x | J141: x | N141: Cities with powiat status: | AF141: 02 | AG141: 22 | AH141: 02 | AI141: 2 | AJ141: 200000 | AK141: 22000 | AL141: 20 | AM141: 2 | AN141: 222022 | AO141: WIŃSKO | AP141: 1123.81 | AR141: 12 | AS141: 63 | AT141: 1200 | AU141: 63 | AV141: 1263 | AW141: Tarnów | AX141: 270.21 | AZ141: 7371152618
A142: 210035 | C142: 9604 | E142: 96 | F142: 5609 | H142: 58 | I142: x | J142: x | M142: 1061 | N142: Łódź | O142: 29325 | P142: 293 | Q142: 685285 | R142: 2337 | S142: 4 | T142: 3 | AF142: 02 | AG142: 22 | AH142: 03 | AI142: 3 | AJ142: 200000 | AK142: 22000 | AL142: 30 | AM142: 3 | AN142: 222033 | AO142: WOŁÓW | AP142: 1429.13 | AR142: 14 | AS142: 01 | AT142: 1400 | AU142: 1 | AV142: 1401 | AW142: białobrzeski | AX142: 162.53 | AZ142: 7371188119
A143: 210053 | B143: Olszyna.......................................................................................................................................................................................................................................................... | C143: 4712 | E143: 47 | F143: 6523 | H143: 138 | I143: 2044 | J143: 1385 | M143: 1062 | N143: Piotrków Trybunalski | O143: 6724 | P143: 67 | Q143: 73670 | R143: 1096 | S143: 44 | T143: 49 | AF143: 02 | AG143: 23 | AH143: 01 | AI143: 2 | AJ143: 200000 | AK143: 23000 | AL143: 10 | AM143: 2 | AN143: 223012 | AO143: CZERNICA | AP143: 2322.47 | AR143: 14 | AS143: 02 | AT143: 1400 | AU143: 2 | AV143: 1402 | AW143: ciechanowski | AX143: 225.07 | AZ143: 7371193876
A144: 210054 | C144: 2026 | E144: 20 | F144: 4359 | H144: 215 | I144: x | J144: x | M144: 1063 | N144: Skierniewice | O144: 3460 | P144: 35 | Q144: 48178 | R144: 1392 | S144: 57 | T144: 62 | AF144: 02 | AG144: 23 | AH144: 02 | AI144: 2 | AJ144: 200000 | AK144: 23000 | AL144: 20 | AM144: 2 | AN144: 223022 | AO144: DŁUGOŁĘKA | AP144: 2720.72 | AR144: 14 | AS144: 03 | AT144: 1400 | AU144: 3 | AV144: 1403 | AW144: garwoliński | AX144: 209.05 | AZ144: 7371283697
A145: 210055 | C145: 2686 | E145: 27 | F145: 2164 | H145: 81 | I145: x | J145: x | N145: WOJ. MAŁOPOLSKIE | AF145: 02 | AG145: 23 | AH145: 03 | AI145: 2 | AJ145: 200000 | AK145: 23000 | AL145: 30 | AM145: 2 | AN145: 223032 | AO145: JORDANÓW ŚLĄSKI | AP145: 1493.21 | AR145: 14 | AS145: 04 | AT145: 1400 | AU145: 4 | AV145: 1404 | AW145: gostyniński | AX145: 173.27 | AZ145: 7371362818
B146: Powiat lubiński (4 gminy) | N146: Powiaty: | AF146: 02 | AG146: 23 | AH146: 04 | AI146: 3 | AJ146: 200000 | AK146: 23000 | AL146: 40 | AM146: 3 | AN146: 223043 | AO146: KĄTY WROCŁAWSKIE | AP146: 3225.76 | AR146: 14 | AS146: 05 | AT146: 1400 | AU146: 5 | AV146: 1405 | AW146: grodziski | AX146: 470.61 | AZ146: 7371410411
N147: Powiats: | AF147: 02 | AG147: 23 | AH147: 05 | AI147: 2 | AJ147: 200000 | AK147: 23000 | AL147: 50 | AM147: 2 | AN147: 223052 | AO147: KOBIERZYCE | AP147: 7153.59 | AR147: 14 | AS147: 06 | AT147: 1400 | AU147: 6 | AV147: 1406 | AW147: grójecki | AX147: 232.29 | AZ147: 7372206836
A148: 211011 | B148: Lubin.......................................................................................................................................................................................................................................................... | C148: 4077 | E148: 41 | F148: 72581 | H148: 1780 | I148: 2086 | J148: 53 | M148: 1201 | N148: bocheński | O148: 64856 | P148: 649 | Q148: 106514 | R148: 164 | S148: 235 | T148: 75 | AF148: 02 | AG148: 23 | AH148: 06 | AI148: 2 | AJ148: 200000 | AK148: 23000 | AL148: 60 | AM148: 2 | AN148: 223062 | AO148: MIETKÓW | AP148: 2151.32 | AR148: 14 | AS148: 07 | AT148: 1400 | AU148: 7 | AV148: 1407 | AW148: kozienicki | AX148: 230.29 | AZ148: 7381010274
M149: 1202 | N149: brzeski | O149: 59052 | P149: 591 | Q149: 93206 | R149: 158 | S149: 257 | T149: 91 | AF149: 02 | AG149: 23 | AH149: 07 | AI149: 3 | AJ149: 200000 | AK149: 23000 | AL149: 70 | AM149: 3 | AN149: 223073 | AO149: SOBÓTKA | AP149: 2039.59 | AR149: 14 | AS149: 08 | AT149: 1400 | AU149: 8 | AV149: 1408 | AW149: legionowski | AX149: 422.4 | AZ149: 7381013686
A150: 211022 | B150: Lubin.......................................................................................................................................................................................................................................................... | C150: 28978 | E150: 290 | F150: 15920 | H150: 55 | I150: 115 | J150: 481 | M150: 1203 | N150: chrzanowski | O150: 37012 | P150: 370 | Q150: 125385 | R150: 339 | S150: 304 | T150: 43 | AF150: 02 | AG150: 23 | AH150: 08 | AI150: 3 | AJ150: 200000 | AK150: 23000 | AL150: 80 | AM150: 3 | AN150: 223083 | AO150: SIECHNICE | AP150: 3478.57 | AR150: 14 | AS150: 09 | AT150: 1400 | AU150: 9 | AV150: 1409 | AW150: lipski | AX150: 138.69 | AZ150: 7381021958
A151: 211032 | B151: Rudna.......................................................................................................................................................................................................................................................... | C151: 21664 | E151: 217 | F151: 7785 | H151: 36 | I151: 268 | J151: 1158 | M151: 1204 | N151: dąbrowski | O151: 53025 | P151: 530 | Q151: 59350 | R151: 112 | S151: 274 | T151: 200 | AF151: 02 | AG151: 23 | AH151: 09 | AI151: 2 | AJ151: 200000 | AK151: 23000 | AL151: 90 | AM151: 2 | AN151: 223092 | AO151: ŻÓRAWINA | AP151: 2298.1 | AR151: 14 | AS151: 10 | AT151: 1400 | AU151: 10 | AV151: 1410 | AW151: łosicki | AX151: 146.51 | AZ151: 7381022314
M152: 1205 | N152: gorlicki | O152: 96646 | P152: 966 | Q152: 109104 | R152: 113 | S152: 137 | T152: 68 | AF152: 02 | AG152: 24 | AH152: 01 | AI152: 3 | AJ152: 200000 | AK152: 24000 | AL152: 10 | AM152: 3 | AN152: 224013 | AO152: BARDO | AP152: 1573.42 | AR152: 14 | AS152: 11 | AT152: 1400 | AU152: 11 | AV152: 1411 | AW152: makowski | AX152: 157.14 | AZ152: 7381973883
A153: 211043 | B153: Ścinawa.......................................................................................................................................................................................................................................................... | C153: 16443 | E153: 164 | F153: 9968 | H153: 61 | I153: 558 | J153: 873 | M153: 1206 | N153: krakowski | O153: 123052 | P153: 1231 | Q153: 277145 | R153: 225 | S153: 76 | T153: 2 | AF153: 02 | AG153: 24 | AH153: 02 | AI153: 2 | AJ153: 200000 | AK153: 24000 | AL153: 20 | AM153: 2 | AN153: 224022 | AO153: CIEPŁOWODY | AP153: 1919.67 | AR153: 14 | AS153: 12 | AT153: 1400 | AU153: 12 | AV153: 1412 | AW153: miński | AX153: 294.07 | AZ153: 7382125507
A154: 211044 | C154: 1354 | E154: 13 | F154: 5589 | H154: 413 | I154: x | J154: x | M154: 1207 | N154: limanowski | O154: 95123 | P154: 951 | Q154: 131523 | R154: 138 | S154: 143 | T154: 37 | AF154: 02 | AG154: 24 | AH154: 03 | AI154: 2 | AJ154: 200000 | AK154: 24000 | AL154: 30 | AM154: 2 | AN154: 224032 | AO154: KAMIENIEC ZĄBKOWICKI | AP154: 1645.77 | AR154: 14 | AS154: 13 | AT154: 1400 | AU154: 13 | AV154: 1413 | AW154: mławski | AX154: 208.19 | AZ154: 7382129965
A155: 211045 | C155: 15089 | E155: 151 | F155: 4379 | H155: 29 | I155: x | J155: x | M155: 1208 | N155: miechowski | O155: 67629 | P155: 676 | Q155: 49137 | R155: 73 | S155: 226 | T155: 245 | AF155: 02 | AG155: 24 | AH155: 04 | AI155: 2 | AJ155: 200000 | AK155: 24000 | AL155: 40 | AM155: 2 | AN155: 224042 | AO155: STOSZOWICE | AP155: 1268.51 | AR155: 14 | AS155: 14 | AT155: 1400 | AU155: 14 | AV155: 1414 | AW155: nowodworski | AX155: 306.71 | AZ155: 7382130282
B156: Powiat lwówecki (5 gmin) | M156: 1209 | N156: myślenicki | O156: 67308 | P156: 673 | Q156: 127028 | R156: 189 | S156: 231 | T156: 41 | AF156: 02 | AG156: 24 | AH156: 05 | AI156: 3 | AJ156: 200000 | AK156: 24000 | AL156: 50 | AM156: 3 | AN156: 224053 | AO156: ZĄBKOWICE ŚLĄSKIE | AP156: 1707.48 | AR156: 14 | AS156: 15 | AT156: 1400 | AU156: 15 | AV156: 1415 | AW156: ostrołęcki | AX156: 172.91 | AZ156: 7382131749
M157: 1210 | N157: nowosądecki | O157: 154980 | P157: 1549 | Q157: 216176 | R157: 139 | S157: 31 | T157: 4 | AF157: 02 | AG157: 24 | AH157: 06 | AI157: 3 | AJ157: 200000 | AK157: 24000 | AL157: 60 | AM157: 3 | AN157: 224063 | AO157: ZIĘBICE | AP157: 1197.22 | AR157: 14 | AS157: 16 | AT157: 1400 | AU157: 16 | AV157: 1416 | AW157: ostrowski | AX157: 186.96 | AZ157: 7382144864
A158: 212013 | B158: Gryfów Śląski.......................................................................................................................................................................................................................................................... | C158: 6667 | E158: 67 | F158: 9721 | H158: 146 | I158: 1884 | J158: 902 | M158: 1211 | N158: nowotarski | O158: 147499 | P158: 1474 | Q158: 191508 | R158: 130 | S158: 38 | T158: 8 | AF158: 02 | AG158: 24 | AH158: 07 | AI158: 3 | AJ158: 200000 | AK158: 24000 | AL158: 70 | AM158: 3 | AN158: 224073 | AO158: ZŁOTY STOK | AP158: 1105.09 | AR158: 14 | AS158: 17 | AT158: 1400 | AU158: 17 | AV158: 1417 | AW158: otwocki | AX158: 411.65 | AZ158: 7382150787
A159: 212014 | C159: 663 | E159: 7 | F159: 6641 | H159: 1002 | I159: x | J159: x | M159: 1212 | N159: olkuski | O159: 61811 | P159: 618 | Q159: 112035 | R159: 181 | S159: 249 | T159: 63 | AF159: 02 | AG159: 25 | AH159: 01 | AI159: 1 | AJ159: 200000 | AK159: 25000 | AL159: 10 | AM159: 1 | AN159: 225011 | AO159: ZAWIDÓW | AP159: 1458.75 | AR159: 14 | AS159: 18 | AT159: 1400 | AU159: 18 | AV159: 1418 | AW159: piaseczyński | AX159: 621.98 | AZ159: 8681001825
A160: 212015 | C160: 6004 | E160: 60 | F160: 3080 | H160: 51 | I160: x | J160: x | M160: 1213 | N160: oświęcimski | O160: 40558 | P160: 406 | Q160: 153737 | R160: 379 | S160: 300 | T160: 23 | AF160: 02 | AG160: 25 | AH160: 02 | AI160: 1 | AJ160: 200000 | AK160: 25000 | AL160: 20 | AM160: 1 | AN160: 225021 | AO160: ZGORZELEC | AP160: 1832.42 | AR160: 14 | AS160: 19 | AT160: 1400 | AU160: 19 | AV160: 1419 | AW160: płocki | AX160: 204.83 | AZ160: 8681021259
A161: 212023 | B161: Lubomierz.......................................................................................................................................................................................................................................................... | C161: 13053 | E161: 130 | F161: 6188 | H161: 47 | I161: 902 | J161: 1449 | M161: 1214 | N161: proszowicki | O161: 41487 | P161: 415 | Q161: 43523 | R161: 105 | S161: 298 | T161: 271 | AF161: 02 | AG161: 25 | AH161: 03 | AI161: 3 | AJ161: 200000 | AK161: 25000 | AL161: 30 | AM161: 3 | AN161: 225033 | AO161: BOGATYNIA | AP161: 4761.2 | AR161: 14 | AS161: 20 | AT161: 1400 | AU161: 20 | AV161: 1420 | AW161: płoński | AX161: 190.47 | AZ161: 8681021271
A162: 212024 | C162: 805 | E162: 8 | F162: 1990 | H162: 247 | I162: x | J162: x | M162: 1215 | N162: suski | O162: 68571 | P162: 686 | Q162: 84255 | R162: 123 | S162: 223 | T162: 115 | AF162: 02 | AG162: 25 | AH162: 04 | AI162: 3 | AJ162: 200000 | AK162: 25000 | AL162: 40 | AM162: 3 | AN162: 225043 | AO162: PIEŃSK | AP162: 1450.08 | AR162: 14 | AS162: 21 | AT162: 1400 | AU162: 21 | AV162: 1421 | AW162: pruszkowski | AX162: 532.41 | AZ162: 8681021288
A163: 212025 | C163: 12248 | E163: 122 | F163: 4198 | H163: 34 | I163: x | J163: x | M163: 1216 | N163: tarnowski | O163: 141158 | P163: 1412 | Q163: 201570 | R163: 143 | S163: 46 | T163: 7 | AF163: 02 | AG163: 25 | AH163: 05 | AI163: 2 | AJ163: 200000 | AK163: 25000 | AL163: 50 | AM163: 2 | AN163: 225052 | AO163: SULIKÓW | AP163: 2255.43 | AR163: 14 | AS163: 22 | AT163: 1400 | AU163: 22 | AV163: 1422 | AW163: przasnyski | AX163: 159.37 | AZ163: 8681021294
A164: 212033 | B164: Lwówek Śląski.......................................................................................................................................................................................................................................................... | C164: 23993 | E164: 240 | F164: 17252 | H164: 72 | I164: 205 | J164: 428 | M164: 1217 | N164: tatrzański | O164: 47165 | P164: 472 | Q164: 68146 | R164: 144 | S164: 287 | T164: 168 | AF164: 02 | AG164: 25 | AH164: 06 | AI164: 3 | AJ164: 200000 | AK164: 25000 | AL164: 60 | AM164: 3 | AN164: 225063 | AO164: WĘGLINIEC | AP164: 1537.46 | AR164: 14 | AS164: 23 | AT164: 1400 | AU164: 23 | AV164: 1423 | AW164: przysuski | AX164: 133.49 | AZ164: 8681021302
A165: 212034 | C165: 1665 | E165: 17 | F165: 8870 | H165: 533 | I165: x | J165: x | M165: 1218 | N165: wadowicki | O165: 64588 | P165: 646 | Q165: 160130 | R165: 248 | S165: 237 | T165: 17 | AF165: 02 | AG165: 25 | AH165: 07 | AI165: 2 | AJ165: 200000 | AK165: 25000 | AL165: 70 | AM165: 2 | AN165: 225072 | AO165: ZGORZELEC | AP165: 2325.65 | AR165: 14 | AS165: 24 | AT165: 1400 | AU165: 24 | AV165: 1424 | AW165: pułtuski | AX165: 198.88 | AZ165: 8681021319
A166: 212035 | C166: 22328 | E166: 223 | F166: 8382 | H166: 38 | I166: x | J166: x | M166: 1219 | N166: wielicki | O166: 41078 | P166: 411 | Q166: 127078 | R166: 309 | S166: 299 | T166: 40 | AF166: 02 | AG166: 26 | AH166: 01 | AI166: 1 | AJ166: 200000 | AK166: 26000 | AL166: 10 | AM166: 1 | AN166: 226011 | AO166: WOJCIESZÓW | AP166: 1305.95 | AR166: 14 | AS166: 25 | AT166: 1400 | AU166: 25 | AV166: 1425 | AW166: radomski | AX166: 166.7 | AZ166: 8681021360
A167: 212043 | B167: Mirsk.......................................................................................................................................................................................................................................................... | C167: 18650 | E167: 187 | F167: 8639 | H167: 46 | I167: 412 | J167: 1029 | N167: Miasta na prawach powiatu: | AF167: 02 | AG167: 26 | AH167: 02 | AI167: 1 | AJ167: 200000 | AK167: 26000 | AL167: 20 | AM167: 1 | AN167: 226021 | AO167: ZŁOTORYJA | AP167: 1627.56 | AR167: 14 | AS167: 26 | AT167: 1400 | AU167: 26 | AV167: 1426 | AW167: siedlecki | AX167: 173.77 | AZ167: 8681599283
A168: 212044 | C168: 1466 | E168: 15 | F168: 3902 | H168: 266 | I168: x | J168: x | N168: Cities with powiat status: | AF168: 02 | AG168: 26 | AH168: 03 | AI168: 2 | AJ168: 200000 | AK168: 26000 | AL168: 30 | AM168: 2 | AN168: 226032 | AO168: PIELGRZYMKA | AP168: 1240.53 | AR168: 14 | AS168: 27 | AT168: 1400 | AU168: 27 | AV168: 1427 | AW168: sierpecki | AX168: 165.04 | AZ168: 8691002648
A169: 212045 | C169: 17184 | E169: 172 | F169: 4737 | H169: 28 | I169: x | J169: x | M169: 1261 | N169: Kraków | O169: 32685 | P169: 327 | Q169: 771069 | R169: 2359 | S169: 2 | T169: 2 | AF169: 02 | AG169: 26 | AH169: 04 | AI169: 3 | AJ169: 200000 | AK169: 26000 | AL169: 40 | AM169: 3 | AN169: 226043 | AO169: ŚWIERZAWA | AP169: 1350.02 | AR169: 14 | AS169: 28 | AT169: 1400 | AU169: 28 | AV169: 1428 | AW169: sochaczewski | AX169: 266.86 | AZ169: 8691013238
A170: 212053 | B170: Wleń.......................................................................................................................................................................................................................................................... | C170: 8606 | E170: 86 | F170: 4259 | H170: 49 | I170: 1593 | J170: 1914 | M170: 1262 | N170: Nowy Sącz | O170: 5758 | P170: 58 | Q170: 83896 | R170: 1457 | S170: 49 | T170: 44 | AF170: 02 | AG170: 26 | AH170: 05 | AI170: 2 | AJ170: 200000 | AK170: 26000 | AL170: 50 | AM170: 2 | AN170: 226052 | AO170: ZAGRODNO | AP170: 1855.47 | AR170: 14 | AS170: 29 | AT170: 1400 | AU170: 29 | AV170: 1429 | AW170: sokołowski | AX170: 208.64 | AZ170: 8691186401
A171: 212054 | C171: 722 | E171: 7 | F171: 1778 | H171: 246 | I171: x | J171: x | M171: 1263 | N171: Tarnów | O171: 7238 | P171: 72 | Q171: 109062 | R171: 1507 | S171: 41 | T171: 35 | AF171: 02 | AG171: 26 | AH171: 06 | AI171: 2 | AJ171: 200000 | AK171: 26000 | AL171: 60 | AM171: 2 | AN171: 226062 | AO171: ZŁOTORYJA | AP171: 1738.56 | AR171: 14 | AS171: 30 | AT171: 1400 | AU171: 30 | AV171: 1430 | AW171: szydłowiecki | AX171: 141.37 | AZ171: 8691186447
A172: 212055 | C172: 7884 | E172: 79 | F172: 2481 | H172: 31 | I172: x | J172: x | N172: WOJ. MAZOWIECKIE | AF172: 02 | AG172: 61 | AH172: 01 | AI172: 1 | AJ172: 200000 | AK172: 61000 | AL172: 10 | AM172: 1 | AN172: 261011 | AO172: Jelenia Góra | AP172: 1846.95 | AR172: 14 | AS172: 32 | AT172: 1400 | AU172: 32 | AV172: 1432 | AW172: warszawski zachodni | AX172: 583.66 | AZ172: 8691212363
B173: Powiat milicki (3 gminy) | N173: Powiaty: | AF173: 02 | AG173: 62 | AH173: 01 | AI173: 1 | AJ173: 200000 | AK173: 62000 | AL173: 10 | AM173: 1 | AN173: 262011 | AO173: Legnica | AP173: 1966.48 | AR173: 14 | AS173: 33 | AT173: 1400 | AU173: 33 | AV173: 1433 | AW173: węgrowski | AX173: 202.2 | AZ173: 8691291026
N174: Powiats: | AF174: 02 | AG174: 64 | AH174: 01 | AI174: 1 | AJ174: 200000 | AK174: 64000 | AL174: 10 | AM174: 1 | AN174: 264011 | AO174: Wrocław | AP174: 2762.23 | AR174: 14 | AS174: 34 | AT174: 1400 | AU174: 34 | AV174: 1434 | AW174: wołomiński | AX174: 346.16 | AZ174: 8691318251
A175: 213012 | B175: Cieszków.......................................................................................................................................................................................................................................................... | C175: 10083 | E175: 101 | F175: 4696 | H175: 47 | I175: 1375 | J175: 1799 | M175: 1401 | N175: białobrzeski | O175: 63910 | P175: 639 | Q175: 33551 | R175: 52 | S175: 240 | T175: 305 | AF175: 02 | AG175: 65 | AH175: 01 | AI175: 1 | AJ175: 200000 | AK175: 65000 | AL175: 10 | AM175: 1 | AN175: 265011 | AO175: WAŁBRZYCH | AP175: 1610.61 | AR175: 14 | AS175: 35 | AT175: 1400 | AU175: 35 | AV175: 1435 | AW175: wyszkowski | AX175: 218.44 | AZ175: 8691326517
A176: 213022 | B176: Krośnice.......................................................................................................................................................................................................................................................... | C176: 17854 | E176: 178 | F176: 8169 | H176: 46 | I176: 463 | J176: 1099 | M176: 1402 | N176: ciechanowski | O176: 105980 | P176: 1060 | Q176: 89670 | R176: 85 | S176: 111 | T176: 100 | AF176: 04 | AG176: 01 | AH176: 01 | AI176: 1 | AJ176: 400000 | AK176: 1000 | AL176: 10 | AM176: 1 | AN176: 401011 | AO176: ALEKSANDRÓW KUJAWSKI | AP176: 1210.99 | AR176: 14 | AS176: 36 | AT176: 1400 | AU176: 36 | AV176: 1436 | AW176: zwoleński | AX176: 148.05 | AZ176: 8691652725
M177: 1403 | N177: garwoliński | O177: 128483 | P177: 1285 | Q177: 108993 | R177: 85 | S177: 68 | T177: 69 | AF177: 04 | AG177: 01 | AH177: 02 | AI177: 1 | AJ177: 400000 | AK177: 1000 | AL177: 20 | AM177: 1 | AN177: 401021 | AO177: CIECHOCINEK | AP177: 1986.78 | AR177: 14 | AS177: 37 | AT177: 1400 | AU177: 37 | AV177: 1437 | AW177: żuromiński | AX177: 146.55 | AZ177: 8711665525
A178: 213033 | B178: Milicz.......................................................................................................................................................................................................................................................... | C178: 43556 | E178: 436 | F178: 24228 | H178: 56 | I178: 13 | J178: 260 | M178: 1404 | N178: gostyniński | O178: 61481 | P178: 615 | Q178: 45203 | R178: 74 | S178: 252 | T178: 262 | AF178: 04 | AG178: 01 | AH178: 03 | AI178: 1 | AJ178: 400000 | AK178: 1000 | AL178: 30 | AM178: 1 | AN178: 401031 | AO178: NIESZAWA | AP178: 1785.56 | AR178: 14 | AS178: 38 | AT178: 1400 | AU178: 38 | AV178: 1438 | AW178: żyrardowski | AX178: 280.17 | AZ178: 8711769963
A179: 213034 | C179: 1350 | E179: 14 | F179: 11357 | H179: 841 | I179: x | J179: x | M179: 1405 | N179: grodziski | O179: 36704 | P179: 367 | Q179: 94091 | R179: 256 | S179: 306 | T179: 90 | AF179: 04 | AG179: 01 | AH179: 04 | AI179: 2 | AJ179: 400000 | AK179: 1000 | AL179: 40 | AM179: 2 | AN179: 401042 | AO179: ALEKSANDRÓW KUJAWSKI | AP179: 1081.7 | AR179: 14 | AS179: 61 | AT179: 1400 | AU179: 61 | AV179: 1461 | AW179: Ostrołęka | AX179: 306.72 | AZ179: 8711770280
A180: 213035 | C180: 42206 | E180: 422 | F180: 12871 | H180: 30 | I180: x | J180: x | M180: 1406 | N180: grójecki | O180: 126773 | P180: 1268 | Q180: 98451 | R180: 78 | S180: 71 | T180: 82 | AF180: 04 | AG180: 01 | AH180: 05 | AI180: 2 | AJ180: 400000 | AK180: 1000 | AL180: 50 | AM180: 2 | AN180: 401052 | AO180: BĄDKOWO | AP180: 1345.24 | AR180: 14 | AS180: 62 | AT180: 1400 | AU180: 62 | AV180: 1462 | AW180: Płock | AX180: 407.45 | AZ180: 8711770363
B181: Powiat oleśnicki (8 gmin) | M181: 1407 | N181: kozienicki | O181: 91610 | P181: 916 | Q181: 60472 | R181: 66 | S181: 151 | T181: 194 | AF181: 04 | AG181: 01 | AH181: 06 | AI181: 2 | AJ181: 400000 | AK181: 1000 | AL181: 60 | AM181: 2 | AN181: 401062 | AO181: KONECK | AP181: 1140.19 | AR181: 14 | AS181: 63 | AT181: 1400 | AU181: 63 | AV181: 1463 | AW181: Radom | AX181: 273.06 | AZ181: 8711771055
M182: 1408 | N182: legionowski | O182: 39076 | P182: 391 | Q182: 116775 | R182: 299 | S182: 303 | T182: 54 | AF182: 04 | AG182: 01 | AH182: 07 | AI182: 2 | AJ182: 400000 | AK182: 1000 | AL182: 70 | AM182: 2 | AN182: 401072 | AO182: RACIĄŻEK | AP182: 1075.62 | AR182: 14 | AS182: 64 | AT182: 1400 | AU182: 64 | AV182: 1464 | AW182: Siedlce | AX182: 324.26 | AZ182: 8711771090
A183: 214011 | B183: Oleśnica.......................................................................................................................................................................................................................................................... | C183: 2096 | E183: 21 | F183: 37242 | H183: 1777 | I183: 2228 | J183: 142 | M183: 1409 | N183: lipski | O183: 74022 | P183: 740 | Q183: 34214 | R183: 46 | S183: 198 | T183: 303 | AF183: 04 | AG183: 01 | AH183: 08 | AI183: 2 | AJ183: 400000 | AK183: 1000 | AL183: 80 | AM183: 2 | AN183: 401082 | AO183: WAGANIEC | AP183: 1117.12 | AR183: 14 | AS183: 65 | AT183: 1400 | AU183: 65 | AV183: 1465 | AW183: m. st. Warszawa | AX183: 775.51 | AZ183: 8711771227
M184: 1410 | N184: łosicki | O184: 77245 | P184: 772 | Q184: 31023 | R184: 40 | S184: 190 | T184: 307 | AF184: 04 | AG184: 01 | AH184: 09 | AI184: 2 | AJ184: 400000 | AK184: 1000 | AL184: 90 | AM184: 2 | AN184: 401092 | AO184: ZAKRZEWO | AP184: 1725.82 | AR184: 16 | AS184: 01 | AT184: 1600 | AU184: 1 | AV184: 1601 | AW184: brzeski | AX184: 221.91 | AZ184: 8711771285
A185: 214032 | B185: Dobroszyce.......................................................................................................................................................................................................................................................... | C185: 13196 | E185: 132 | F185: 6667 | H185: 51 | I185: 883 | J185: 1360 | M185: 1411 | N185: makowski | O185: 106463 | P185: 1065 | Q185: 45247 | R185: 43 | S185: 110 | T185: 261 | AF185: 04 | AG185: 02 | AH185: 01 | AI185: 1 | AJ185: 400000 | AK185: 2000 | AL185: 10 | AM185: 1 | AN185: 402011 | AO185: BRODNICA | AP185: 1873.56 | AR185: 16 | AS185: 02 | AT185: 1600 | AU185: 2 | AV185: 1602 | AW185: głubczycki | AX185: 175.43 | AZ185: 8731001716
A186: 214042 | B186: Dziadowa Kłoda.......................................................................................................................................................................................................................................................... | C186: 10579 | E186: 106 | F186: 4597 | H186: 43 | I186: 1291 | J186: 1827 | M186: 1412 | N186: miński | O186: 116372 | P186: 1164 | Q186: 153824 | R186: 132 | S186: 91 | T186: 22 | AF186: 04 | AG186: 02 | AH186: 02 | AI186: 2 | AJ186: 400000 | AK186: 2000 | AL186: 20 | AM186: 2 | AN186: 402022 | AO186: BOBROWO | AP186: 1107.73 | AR186: 16 | AS186: 03 | AT186: 1600 | AU186: 3 | AV186: 1603 | AW186: kędzierzyńsko-kozielski | AX186: 250.53 | AZ186: 8731011086
A187: 214062 | B187: Oleśnica.......................................................................................................................................................................................................................................................... | C187: 24285 | E187: 242 | F187: 13535 | H187: 56 | I187: 199 | J187: 592 | M187: 1413 | N187: mławski | O187: 118182 | P187: 1182 | Q187: 73102 | R187: 62 | S187: 88 | T187: 153 | AF187: 04 | AG187: 02 | AH187: 03 | AI187: 2 | AJ187: 400000 | AK187: 2000 | AL187: 30 | AM187: 2 | AN187: 402032 | AO187: BRODNICA | AP187: 1546.72 | AR187: 16 | AS187: 04 | AT187: 1600 | AU187: 4 | AV187: 1604 | AW187: kluczborski | AX187: 185.42 | AZ187: 8731014848
M188: 1414 | N188: nowodworski | O188: 69479 | P188: 695 | Q188: 79291 | R188: 114 | S188: 220 | T188: 129 | AF188: 04 | AG188: 02 | AH188: 04 | AI188: 2 | AJ188: 400000 | AK188: 2000 | AL188: 40 | AM188: 2 | AN188: 402042 | AO188: BRZOZIE | AP188: 1073.7 | AR188: 16 | AS188: 05 | AT188: 1600 | AU188: 5 | AV188: 1605 | AW188: krapkowicki | AX188: 226.68 | AZ188: 8731111741
A189: 214023 | B189: Bierutów.......................................................................................................................................................................................................................................................... | C189: 14700 | E189: 147 | F189: 9988 | H189: 68 | I189: 705 | J189: 869 | M189: 1415 | N189: ostrołęcki | O189: 209355 | P189: 2093 | Q189: 88735 | R189: 42 | S189: 7 | T189: 103 | AF189: 04 | AG189: 02 | AH189: 05 | AI189: 3 | AJ189: 400000 | AK189: 2000 | AL189: 50 | AM189: 3 | AN189: 402053 | AO189: GÓRZNO | AP189: 1441.63 | AR189: 16 | AS189: 06 | AT189: 1600 | AU189: 6 | AV189: 1606 | AW189: namysłowski | AX189: 208.24 | AZ189: 8731550848
A190: 214024 | C190: 836 | E190: 8 | F190: 4871 | H190: 583 | I190: x | J190: x | M190: 1416 | N190: ostrowski | O190: 121779 | P190: 1218 | Q190: 72782 | R190: 60 | S190: 82 | T190: 154 | AF190: 04 | AG190: 02 | AH190: 06 | AI190: 2 | AJ190: 400000 | AK190: 2000 | AL190: 60 | AM190: 2 | AN190: 402062 | AO190: BARTNICZKA | AP190: 1208.56 | AR190: 16 | AS190: 07 | AT190: 1600 | AU190: 7 | AV190: 1607 | AW190: nyski | AX190: 188.89 | AZ190: 8732614007
A191: 214025 | C191: 13864 | E191: 139 | F191: 5117 | H191: 37 | I191: x | J191: x | M191: 1417 | N191: otwocki | O191: 61592 | P191: 616 | Q191: 124036 | R191: 201 | S191: 251 | T191: 44 | AF191: 04 | AG191: 02 | AH191: 07 | AI191: 3 | AJ191: 400000 | AK191: 2000 | AL191: 70 | AM191: 3 | AN191: 402073 | AO191: JABŁONOWO POMORSKIE | AP191: 1342.93 | AR191: 16 | AS191: 08 | AT191: 1600 | AU191: 8 | AV191: 1608 | AW191: oleski | AX191: 180.98 | AZ191: 8732630130
A192: 214053 | B192: Międzybórz.......................................................................................................................................................................................................................................................... | C192: 8778 | E192: 88 | F192: 5095 | H192: 58 | I192: 1565 | J192: 1705 | M192: 1418 | N192: piaseczyński | O192: 62100 | P192: 621 | Q192: 184951 | R192: 298 | S192: 247 | T192: 9 | AF192: 04 | AG192: 02 | AH192: 08 | AI192: 2 | AJ192: 400000 | AK192: 2000 | AL192: 80 | AM192: 2 | AN192: 402082 | AO192: OSIEK | AP192: 1209.41 | AR192: 16 | AS192: 09 | AT192: 1600 | AU192: 9 | AV192: 1609 | AW192: opolski | AX192: 227.14 | AZ192: 8732978229
A193: 214054 | C193: 641 | E193: 6 | F193: 2352 | H193: 367 | I193: x | J193: x | M193: 1419 | N193: płocki | O193: 179663 | P193: 1796 | Q193: 111088 | R193: 62 | S193: 15 | T193: 66 | AF193: 04 | AG193: 02 | AH193: 09 | AI193: 2 | AJ193: 400000 | AK193: 2000 | AL193: 90 | AM193: 2 | AN193: 402092 | AO193: ŚWIEDZIEBNIA | AP193: 706.87 | AR193: 16 | AS193: 10 | AT193: 1600 | AU193: 10 | AV193: 1610 | AW193: prudnicki | AX193: 171.81 | AZ193: 9442226987
A194: 214055 | C194: 8137 | E194: 82 | F194: 2743 | H194: 34 | I194: x | J194: x | M194: 1420 | N194: płoński | O194: 137979 | P194: 1380 | Q194: 87409 | R194: 63 | S194: 55 | T194: 105 | AF194: 04 | AG194: 02 | AH194: 10 | AI194: 2 | AJ194: 400000 | AK194: 2000 | AL194: 100 | AM194: 2 | AN194: 402102 | AO194: ZBICZNO | AP194: 1324.49 | AR194: 16 | AS194: 11 | AT194: 1600 | AU194: 11 | AV194: 1611 | AW194: strzelecki | AX194: 202.24 | AZ194: 9442243129
A195: 214073 | B195: Syców.......................................................................................................................................................................................................................................................... | C195: 14511 | E195: 145 | F195: 16878 | H195: 116 | I195: 730 | J195: 441 | M195: 1421 | N195: pruszkowski | O195: 24630 | P195: 246 | Q195: 164240 | R195: 667 | S195: 310 | T195: 14 | AF195: 04 | AG195: 03 | AH195: 01 | AI195: 2 | AJ195: 400000 | AK195: 3000 | AL195: 10 | AM195: 2 | AN195: 403012 | AO195: BIAŁE BŁOTA | AP195: 2634.62 | AR195: 16 | AS195: 61 | AT195: 1600 | AU195: 61 | AV195: 1661 | AW195: Opole | AX195: 383.53 | AZ195: 9442246027
A196: 214074 | C196: 1705 | E196: 17 | F196: 10420 | H196: 611 | I196: x | J196: x | M196: 1422 | N196: przasnyski | O196: 121862 | P196: 1219 | Q196: 52824 | R196: 43 | S196: 81 | T196: 232 | AF196: 04 | AG196: 03 | AH196: 02 | AI196: 2 | AJ196: 400000 | AK196: 3000 | AL196: 20 | AM196: 2 | AN196: 403022 | AO196: DĄBROWA CHEŁMIŃSKA | AP196: 1445.97 | AR196: 18 | AS196: 01 | AT196: 1800 | AU196: 1 | AV196: 1801 | AW196: bieszczadzki | AX196: 158.77 | AZ196: 9442253228
A197: 214075 | C197: 12806 | E197: 128 | F197: 6458 | H197: 50 | I197: x | J197: x | M197: 1423 | N197: przysuski | O197: 80119 | P197: 801 | Q197: 41922 | R197: 52 | S197: 181 | T197: 275 | AF197: 04 | AG197: 03 | AH197: 03 | AI197: 2 | AJ197: 400000 | AK197: 3000 | AL197: 30 | AM197: 2 | AN197: 403032 | AO197: DOBRCZ | AP197: 1504.65 | AR197: 18 | AS197: 02 | AT197: 1800 | AU197: 2 | AV197: 1802 | AW197: brzozowski | AX197: 140.32 | AZ197: 9930336443
A198: 214083 | B198: Twardogóra.......................................................................................................................................................................................................................................................... | C198: 16786 | E198: 168 | F198: 13060 | H198: 78 | I198: 534 | J198: 624 | M198: 1424 | N198: pułtuski | O198: 82742 | P198: 827 | Q198: 51809 | R198: 63 | S198: 173 | T198: 237 | AF198: 04 | AG198: 03 | AH198: 04 | AI198: 3 | AJ198: 400000 | AK198: 3000 | AL198: 40 | AM198: 3 | AN198: 403043 | AO198: KORONOWO | AP198: 1455.08 | AR198: 18 | AS198: 03 | AT198: =AR198*100 -> 1800 | AU198: =+AS198*1 -> 3 | AV198: =AT198+AU198 -> 1803 | AW198: dębicki | AX198: 200.56 | AZ198: 9930337193
A199: 214084 | C199: 829 | E199: 8 | F199: 6716 | H199: 810 | I199: x | J199: x | M199: 1425 | N199: radomski | O199: 152978 | P199: 1530 | Q199: 152117 | R199: 99 | S199: 33 | T199: 25 | AF199: 04 | AG199: 03 | AH199: 05 | AI199: 2 | AJ199: 400000 | AK199: 3000 | AL199: 50 | AM199: 2 | AN199: 403052 | AO199: NOWA WIEŚ WIELKA | AP199: 2450.04 | AR199: 18 | AS199: 04 | AT199: 1800 | AU199: 4 | AV199: 1804 | AW199: jarosławski | AX199: 155.12 | AZ199: 9930337247
A200: 214085 | C200: 15957 | E200: 160 | F200: 6344 | H200: 40 | I200: x | J200: x | M200: 1426 | N200: siedlecki | O200: 160348 | P200: 1603 | Q200: 81352 | R200: 51 | S200: 28 | T200: 122 | AF200: 04 | AG200: 03 | AH200: 06 | AI200: 2 | AJ200: =AF200*100000 -> 400000 | AK200: =AG200*1000 -> 3000 | AL200: =AH200*10 -> 60 | AM200: =AI200*1 -> 2 | AN200: =SUM(AJ200:AM200) -> 403062 | AO200: OSIELSKO | AP200: 3672.61 | AR200: 18 | AS200: 05 | AT200: 1800 | AU200: 5 | AV200: 1805 | AW200: jasielski | AX200: 161.83 | AZ200: 9930340717
B201: Powiat oławski (4 gminy) | M201: 1427 | N201: sierpecki | O201: 85204 | P201: 852 | Q201: 52196 | R201: 61 | S201: 164 | T201: 234 | AF201: 04 | AG201: 03 | AH201: 07 | AI201: 2 | AJ201: 400000 | AK201: 3000 | AL201: 70 | AM201: 2 | AN201: 403072 | AO201: SICIENKO | AP201: 1798.07 | AR201: 18 | AS201: 06 | AT201: 1800 | AU201: 6 | AV201: 1806 | AW201: kolbuszowski | AX201: 131.54 | AZ201: 9930370109
... 1912 more rows

Sheet Arkusz1 (hidden)
F1: Kolumna1
B2: =TRANSPOSE('SPRAWOZDANIE CZĘŚĆ II'!26:26) -> NIP | F2: =INDEX($A$2:$B$2001,E3+1,2) -> 0 | G2: =IFERROR(F2,0) -> 0 | H2: =MATCH(G2:G200,G2:G200,0) -> 1 | I2: =IF(G2=0,"",H2) ->  | K2: =SUMPRODUCT(--(FREQUENCY($I$2:$I$2000,$I$2:$I$2000)>0)) -> 0
A3: =TRANSPOSE('SPRAWOZDANIE CZĘŚĆ II'!26:26) -> NIP | B3: 0 | D3: =IF(A3=$B$2,ROW(A3)-ROW($B$2)) -> 1 | E3: =SMALL($D$3:$D$2001,ROWS($E$3:E3)) -> 1 | F3: =INDEX($A$2:$B$2001,E4+1,2) -> 0 | G3: =IFERROR(F3,0) -> 0 | H3: 1 | I3: =IF(G3=0,"",H3) -> 
A4: 0 | B4: NAZWA | D4: =IF(A4=$B$2,ROW(A4)-ROW($B$2)) -> FALSE | E4: =SMALL($D$3:$D$2001,ROWS($E$3:E4)) -> 10 | F4: =INDEX($A$2:$B$2001,E5+1,2) -> 0 | G4: 0 | H4: 1
A5: NAZWA | B5: 0 | D5: FALSE | E5: =SMALL($D$3:$D$2001,ROWS($E$3:E5)) -> 19 | F5: =INDEX($A$2:$B$2001,E6+1,2) -> 0 | G5: 0 | H5: 1
A6: 0 | B6: 0 | D6: FALSE | E6: =SMALL($D$3:$D$2001,ROWS($E$3:E6)) -> 28 | F6: =INDEX($A$2:$B$2001,E7+1,2) -> 0 | G6: 0 | H6: 1
A7: 0 | B7: 0 | D7: FALSE | E7: =SMALL($D$3:$D$2001,ROWS($E$3:E7)) -> 37 | F7: =INDEX($A$2:$B$2001,E8+1,2) -> 0 | G7: 0 | H7: 1
A8: 0 | B8: 0 | D8: FALSE | E8: =SMALL($D$3:$D$2001,ROWS($E$3:E8)) -> 46 | F8: =INDEX($A$2:$B$2001,E9+1,2) -> 0 | G8: 0 | H8: 1
A9: 0 | B9: 0 | D9: FALSE | E9: =SMALL($D$3:$D$2001,ROWS($E$3:E9)) -> 55 | F9: =INDEX($A$2:$B$2001,E10+1,2) -> 0 | G9: 0 | H9: 1
A10: 0 | B10: 0 | D10: FALSE | E10: =SMALL($D$3:$D$2001,ROWS($E$3:E10)) -> 64 | F10: =INDEX($A$2:$B$2001,E11+1,2) -> 0 | G10: 0 | H10: 1
A11: 0 | B11: NIP | D11: FALSE | E11: =SMALL($D$3:$D$2001,ROWS($E$3:E11)) -> 73 | F11: =INDEX($A$2:$B$2001,E12+1,2) -> 0 | G11: 0 | H11: 1
A12: NIP | B12: 0 | D12: 10 | E12: =SMALL($D$3:$D$2001,ROWS($E$3:E12)) -> 82 | F12: =INDEX($A$2:$B$2001,E13+1,2) -> 0 | G12: 0 | H12: 1
A13: 0 | B13: NAZWA | D13: FALSE | E13: =SMALL($D$3:$D$2001,ROWS($E$3:E13)) -> 91 | F13: =INDEX($A$2:$B$2001,E14+1,2) -> 0 | G13: 0 | H13: 1
A14: NAZWA | B14: 0 | D14: FALSE | E14: =SMALL($D$3:$D$2001,ROWS($E$3:E14)) -> 100 | F14: =INDEX($A$2:$B$2001,E15+1,2) -> 0 | G14: 0 | H14: 1
A15: 0 | B15: 0 | D15: FALSE | E15: =SMALL($D$3:$D$2001,ROWS($E$3:E15)) -> 109 | F15: =INDEX($A$2:$B$2001,E16+1,2) ->  | G15: 0 | H15: 1
A16: 0 | B16: 0 | D16: FALSE | E16: =SMALL($D$3:$D$2001,ROWS($E$3:E16)) ->  | F16: =INDEX($A$2:$B$2001,E17+1,2) ->  | G16: 0 | H16: 1
A17: 0 | B17: 0 | D17: FALSE | E17: =SMALL($D$3:$D$2001,ROWS($E$3:E17)) ->  | F17: =INDEX($A$2:$B$2001,E18+1,2) ->  | G17: 0 | H17: 1
A18: 0 | B18: 0 | D18: FALSE | E18: =SMALL($D$3:$D$2001,ROWS($E$3:E18)) ->  | F18: =INDEX($A$2:$B$2001,E19+1,2) ->  | G18: 0 | H18: 1
A19: 0 | B19: 0 | D19: FALSE | E19: =SMALL($D$3:$D$2001,ROWS($E$3:E19)) ->  | F19: =INDEX($A$2:$B$2001,E20+1,2) ->  | G19: 0 | H19: 1
A20: 0 | B20: NIP | D20: FALSE | E20: =SMALL($D$3:$D$2001,ROWS($E$3:E20)) ->  | F20: =INDEX($A$2:$B$2001,E21+1,2) ->  | G20: 0 | H20: 1
A21: NIP | B21: 0 | D21: 19 | E21: =SMALL($D$3:$D$2001,ROWS($E$3:E21)) ->  | F21: =INDEX($A$2:$B$2001,E22+1,2) ->  | G21: 0 | H21: 1
A22: 0 | B22: NAZWA | D22: FALSE | E22: =SMALL($D$3:$D$2001,ROWS($E$3:E22)) ->  | F22: =INDEX($A$2:$B$2001,E23+1,2) ->  | G22: 0 | H22: 1
A23: NAZWA | B23: 0 | D23: FALSE | E23: =SMALL($D$3:$D$2001,ROWS($E$3:E23)) ->  | F23: =INDEX($A$2:$B$2001,E24+1,2) ->  | G23: 0 | H23: 1
A24: 0 | B24: 0 | D24: FALSE | E24: =SMALL($D$3:$D$2001,ROWS($E$3:E24)) ->  | F24: =INDEX($A$2:$B$2001,E25+1,2) ->  | G24: 0 | H24: 1
A25: 0 | B25: 0 | D25: FALSE | E25: =SMALL($D$3:$D$2001,ROWS($E$3:E25)) ->  | F25: =INDEX($A$2:$B$2001,E26+1,2) ->  | G25: 0 | H25: 1
A26: 0 | B26: 0 | D26: FALSE | E26: =SMALL($D$3:$D$2001,ROWS($E$3:E26)) ->  | F26: =INDEX($A$2:$B$2001,E27+1,2) ->  | G26: 0 | H26: 1
A27: 0 | B27: 0 | D27: FALSE | E27: =SMALL($D$3:$D$2001,ROWS($E$3:E27)) ->  | F27: =INDEX($A$2:$B$2001,E28+1,2) ->  | G27: 0 | H27: 1
A28: 0 | B28: 0 | D28: FALSE | E28: =SMALL($D$3:$D$2001,ROWS($E$3:E28)) ->  | F28: =INDEX($A$2:$B$2001,E29+1,2) ->  | G28: 0 | H28: 1
A29: 0 | B29: NIP | D29: FALSE | E29: =SMALL($D$3:$D$2001,ROWS($E$3:E29)) ->  | F29: =INDEX($A$2:$B$2001,E30+1,2) ->  | G29: 0 | H29: 1
A30: NIP | B30: 0 | D30: 28 | E30: =SMALL($D$3:$D$2001,ROWS($E$3:E30)) ->  | F30: =INDEX($A$2:$B$2001,E31+1,2) ->  | G30: 0 | H30: 1
A31: 0 | B31: NAZWA | D31: FALSE | E31: =SMALL($D$3:$D$2001,ROWS($E$3:E31)) ->  | F31: =INDEX($A$2:$B$2001,E32+1,2) ->  | G31: 0 | H31: 1
A32: NAZWA | B32: 0 | D32: FALSE | E32: =SMALL($D$3:$D$2001,ROWS($E$3:E32)) ->  | F32: =INDEX($A$2:$B$2001,E33+1,2) ->  | G32: 0 | H32: 1
A33: 0 | B33: 0 | D33: FALSE | E33: =SMALL($D$3:$D$2001,ROWS($E$3:E33)) ->  | F33: =INDEX($A$2:$B$2001,E34+1,2) ->  | G33: 0 | H33: 1
A34: 0 | B34: 0 | D34: FALSE | E34: =SMALL($D$3:$D$2001,ROWS($E$3:E34)) ->  | F34: =INDEX($A$2:$B$2001,E35+1,2) ->  | G34: 0 | H34: 1
A35: 0 | B35: 0 | D35: FALSE | E35: =SMALL($D$3:$D$2001,ROWS($E$3:E35)) ->  | F35: =INDEX($A$2:$B$2001,E36+1,2) ->  | G35: 0 | H35: 1
A36: 0 | B36: 0 | D36: FALSE | E36: =SMALL($D$3:$D$2001,ROWS($E$3:E36)) ->  | F36: =INDEX($A$2:$B$2001,E37+1,2) ->  | G36: 0 | H36: 1
A37: 0 | B37: 0 | D37: FALSE | E37: =SMALL($D$3:$D$2001,ROWS($E$3:E37)) ->  | F37: =INDEX($A$2:$B$2001,E38+1,2) ->  | G37: 0 | H37: 1
A38: 0 | B38: NIP | D38: FALSE | E38: =SMALL($D$3:$D$2001,ROWS($E$3:E38)) ->  | F38: =INDEX($A$2:$B$2001,E39+1,2) ->  | G38: 0 | H38: 1
A39: NIP | B39: 0 | D39: 37 | E39: =SMALL($D$3:$D$2001,ROWS($E$3:E39)) ->  | F39: =INDEX($A$2:$B$2001,E40+1,2) ->  | G39: 0 | H39: 1
A40: 0 | B40: NAZWA | D40: FALSE | E40: =SMALL($D$3:$D$2001,ROWS($E$3:E40)) ->  | F40: =INDEX($A$2:$B$2001,E41+1,2) ->  | G40: 0 | H40: 1
A41: NAZWA | B41: 0 | D41: FALSE | E41: =SMALL($D$3:$D$2001,ROWS($E$3:E41)) ->  | F41: =INDEX($A$2:$B$2001,E42+1,2) ->  | G41: 0 | H41: 1
A42: 0 | B42: 0 | D42: FALSE | E42: =SMALL($D$3:$D$2001,ROWS($E$3:E42)) ->  | F42: =INDEX($A$2:$B$2001,E43+1,2) ->  | G42: 0 | H42: 1
A43: 0 | B43: 0 | D43: FALSE | E43: =SMALL($D$3:$D$2001,ROWS($E$3:E43)) ->  | F43: =INDEX($A$2:$B$2001,E44+1,2) ->  | G43: 0 | H43: 1
A44: 0 | B44: 0 | D44: FALSE | E44: =SMALL($D$3:$D$2001,ROWS($E$3:E44)) ->  | F44: =INDEX($A$2:$B$2001,E45+1,2) ->  | G44: 0 | H44: 1
A45: 0 | B45: 0 | D45: FALSE | E45: =SMALL($D$3:$D$2001,ROWS($E$3:E45)) ->  | F45: =INDEX($A$2:$B$2001,E46+1,2) ->  | G45: 0 | H45: 1
A46: 0 | B46: 0 | D46: FALSE | E46: =SMALL($D$3:$D$2001,ROWS($E$3:E46)) ->  | F46: =INDEX($A$2:$B$2001,E47+1,2) ->  | G46: 0 | H46: 1
A47: 0 | B47: NIP | D47: FALSE | E47: =SMALL($D$3:$D$2001,ROWS($E$3:E47)) ->  | F47: =INDEX($A$2:$B$2001,E48+1,2) ->  | G47: 0 | H47: 1
A48: NIP | B48: 0 | D48: 46 | E48: =SMALL($D$3:$D$2001,ROWS($E$3:E48)) ->  | F48: =INDEX($A$2:$B$2001,E49+1,2) ->  | G48: 0 | H48: 1
A49: 0 | B49: NAZWA | D49: FALSE | E49: =SMALL($D$3:$D$2001,ROWS($E$3:E49)) ->  | F49: =INDEX($A$2:$B$2001,E50+1,2) ->  | G49: 0 | H49: 1
A50: NAZWA | B50: 0 | D50: FALSE | E50: =SMALL($D$3:$D$2001,ROWS($E$3:E50)) ->  | F50: =INDEX($A$2:$B$2001,E51+1,2) ->  | G50: 0 | H50: 1
A51: 0 | B51: 0 | D51: FALSE | E51: =SMALL($D$3:$D$2001,ROWS($E$3:E51)) ->  | F51: =INDEX($A$2:$B$2001,E52+1,2) ->  | G51: 0 | H51: 1
A52: 0 | B52: 0 | D52: FALSE | E52: =SMALL($D$3:$D$2001,ROWS($E$3:E52)) ->  | F52: =INDEX($A$2:$B$2001,E53+1,2) ->  | G52: 0 | H52: 1
A53: 0 | B53: 0 | D53: FALSE | E53: =SMALL($D$3:$D$2001,ROWS($E$3:E53)) ->  | F53: =INDEX($A$2:$B$2001,E54+1,2) ->  | G53: 0 | H53: 1
A54: 0 | B54: 0 | D54: FALSE | E54: =SMALL($D$3:$D$2001,ROWS($E$3:E54)) ->  | F54: =INDEX($A$2:$B$2001,E55+1,2) ->  | G54: 0 | H54: 1
A55: 0 | B55: 0 | D55: FALSE | E55: =SMALL($D$3:$D$2001,ROWS($E$3:E55)) ->  | F55: =INDEX($A$2:$B$2001,E56+1,2) ->  | G55: 0 | H55: 1
A56: 0 | B56: NIP | D56: FALSE | E56: =SMALL($D$3:$D$2001,ROWS($E$3:E56)) ->  | F56: =INDEX($A$2:$B$2001,E57+1,2) ->  | G56: 0 | H56: 1
A57: NIP | B57: 0 | D57: 55 | E57: =SMALL($D$3:$D$2001,ROWS($E$3:E57)) ->  | F57: =INDEX($A$2:$B$2001,E58+1,2) ->  | G57: 0 | H57: 1
A58: 0 | B58: NAZWA | D58: FALSE | E58: =SMALL($D$3:$D$2001,ROWS($E$3:E58)) ->  | F58: =INDEX($A$2:$B$2001,E59+1,2) ->  | G58: 0 | H58: 1
A59: NAZWA | B59: 0 | D59: FALSE | E59: =SMALL($D$3:$D$2001,ROWS($E$3:E59)) ->  | F59: =INDEX($A$2:$B$2001,E60+1,2) ->  | G59: 0 | H59: 1
A60: 0 | B60: 0 | D60: FALSE | E60: =SMALL($D$3:$D$2001,ROWS($E$3:E60)) ->  | F60: =INDEX($A$2:$B$2001,E61+1,2) ->  | G60: 0 | H60: 1
A61: 0 | B61: 0 | D61: FALSE | E61: =SMALL($D$3:$D$2001,ROWS($E$3:E61)) ->  | F61: =INDEX($A$2:$B$2001,E62+1,2) ->  | G61: 0 | H61: 1
